Workbook

Sheet Contents
C1: SHIFT,CNTL,Q to Hide Comments, SHIFT, CNTL N to Show Comments
C3: Sheet Tab | D3: Description | E3: Author
B4: 1 | C4: Contents
B5: 2 | C5: Valuation Summary
B6: 3 | C6: Acquisition Summary
B7: 4 | C7: Total Value of Transaction
B8: 5 | C8: Mercator Financials
B9: 6 | C9: Tornado Diagram
B10: 7 | C10: Master senario page
B11: 8 | C11: Financial model
B12: 9 | C12: Transation Assumptions
B13: 10 | C13: Acquisition model
B14: 11 | C14: Waterfall Chart
B15: 12 | C15: Total Value of Transactiondata
B16: 13 | C16: Data Tables
B17: 14 | C17: EPS dilution
B18: 15 | C18: Audit Sheet
B19: 16 | C19: Long-term analysis
B20: 17 | C20: Admin Analysis
B21: 18 | C21: Simple LBO model
B22: 19 | C22: Flex Chart
B23: 20 | C23: Macros
B25: File Name: | D25: C:\Users\Monika\Documents\Courses\Chapter 1. Models and Analysis\1. Corporate Model Templates and Exercises\Featured Corporate Finance Models\AIF Class Day 3 finalised during this course1.xlsm
B26: E-mail Address | D26: edwardbodmer@gmail.com
B27: Web-Site | D27: www.edbodmer.com
B28: Skype | D28: edward.bodmer
B30: Last Save Date | D30: 20/04/2014 18:56:06
B31: Last Save By | D31: Monika Lewinski

Sheet Valuation Summary
S1: SHIFT,CNTL,Q to Hide Comments, SHIFT, CNTL N to Show Comments
A2: ='Audit Sheet'!F8 ->  | C2: Valuation Year | D2: ='Financial model'!F3 -> 2012
C4: Terminal Year | D4: ='Financial model'!F4 -> 2017 | H4: Scenarios
C6: Terminal Growth | D6: ='Master Scenario page'!D6 -> 0.01
C7: WACC | D7: ='Master Scenario page'!D5 -> 0.07
C8: Terminal EV/EBITDA | D8: ='Financial model'!H382 -> 7 | H8: Custom Case Variables
C9: Apply Normalisation | D9: ='Financial model'!H387 -> TRUE
H10: Sales
C11: DCF Valuation | D11: Growth | E11: EV/EBITDA | F11: Value Driver
H12: COGS
C13: PV of Explicit Value | D13: ='Financial model'!G389 -> 467182.3969 | E13: =D13 -> 467182.3969 | F13: =E13 -> 467182.3969
C14: Add: Terminal Value | D14: ='Financial model'!G398 -> 1982355.89 | E14: ='Financial model'!G404 -> 1464029.826 | F14: ='Financial model'!G407 -> 1825144.482 | H14: Admin
C15: Total EV | D15: =SUM(D13:D14) -> 2449538.287 | E15: =SUM(E13:E14) -> 1931212.223 | F15: =SUM(F13:F14) -> 2292326.879
H16: Other Inc | I16: ='Acquisition Summary'!H8 -> 30000
C17: Less: Bridge | D17: ='Financial model'!$F$429 -> -1035988 | E17: ='Financial model'!$F$429 -> -1035988 | F17: ='Financial model'!$F$429 -> -1035988 | H17: Translation | I17: ='Acquisition Summary'!H9 -> 50
C18: Equity Value | D18: =D15+D17 -> 1413550.287 | E18: =E15+E17 -> 895224.2229 | F18: =F15+F17 -> 1256338.879 | H18: Inventories | I18: ='Acquisition Summary'!H10 -> 0.1
C19: Shares | D19: ='Financial model'!$F$430 -> 3720.818505 | E19: ='Financial model'!$F$430 -> 3720.818505 | F19: ='Financial model'!$F$430 -> 3720.818505 | H19: A/R to Sales | I19: ='Acquisition Summary'!H11 -> 0.08
C20: Equity Value Per Share | D20: =D18/D19 -> 379.9030469 | E20: =E18/E19 -> 240.5987343 | F20: =F18/F19 -> 337.6512123 | H20: A/P to COGS | I20: ='Acquisition Summary'!H12 -> 0.22
H21: Provisions | I21: ='Acquisition Summary'!H13 -> 0.014
C22: Net Income | D22: ='Financial model'!$F$431 -> 43289.15593 | E22: ='Financial model'!$F$431 -> 43289.15593 | F22: ='Financial model'!$F$431 -> 43289.15593 | H22: Cap Exp | I22: ='Acquisition Summary'!H14 -> 0.02
C23: Implied P/E Ratio | D23: =D18/D22 -> 32.65368097 | E23: =E18/E22 -> 20.68010345 | F23: =F18/F22 -> 29.022023
C25: EBITDA | D25: ='Financial model'!$F$432 -> 153859.1103 | E25: ='Financial model'!$F$432 -> 153859.1103 | F25: ='Financial model'!$F$432 -> 153859.1103
C26: Implied EV/EBITDA Ratio | D26: =D15/D25 -> 15.92065808 | E26: =E15/E25 -> 12.55182237 | F26: =F15/F25 -> 14.89886998
C28: Holding Period | D28: 3
C29: Equity Valuation | D29: P/E | E29: Earnings | F29: Stock Price
D30: 11 | E30: ='Financial model'!F434 -> 28.14163405 | F30: =D30*E30 -> 309.5579745

Sheet Acquisition Summary
C2: Transaction Year | D2: ='Transation Assumptions'!E3 -> 2016
C3: Consideration (paid for equity) | D3: ='Transation Assumptions'!F14*1000 -> 630000 | F3: Custom Case Variables
C4: Enterprise Value Paid | D4: ='Transation Assumptions'!E97 -> 1529783.061
C5: Synergies | D5: ='Transation Assumptions'!$F$15*1000 -> 43000 | F5: Sales
F6: COGS
C7: Holding Period | D7: ='Transation Assumptions'!$E$25 -> 10 | F7: Admin
C8: Terminal EV/EBITDA | D8: ='Transation Assumptions'!$E$27 -> 5 | F8: Other Inc | H8: ='Master Scenario page'!G39 -> 30000
C9: Implied P/E | D9: ='Transation Assumptions'!E23 -> 4.128621239 | F9: Translation | H9: ='Master Scenario page'!H39 -> 50
C10: Implied EV/EBITDA | D10: ='Transation Assumptions'!E22 -> 4.958756815 | F10: Inventories | H10: ='Master Scenario page'!I39 -> 0.1
F11: A/R to Sales | H11: ='Master Scenario page'!J39 -> 0.08
C12: Sources and Uses | F12: A/P to COGS | H12: ='Master Scenario page'!K39 -> 0.22
C13: Uses of funds | F13: Provisions | H13: ='Master Scenario page'!L39 -> 0.014
C14: Consideration | D14: ='Transation Assumptions'!E57 -> 630000 | F14: Cap Exp | H14: ='Master Scenario page'!M39 -> 0.02
C15: Fees | D15: ='Transation Assumptions'!E59+'Transation Assumptions'!E60 -> 24600
C16: Debt retired | D16: ='Transation Assumptions'!E58 -> 800000 | F16: EBITDA Multiplier | H16: 1
C17: Total Uses | D17: =SUM(D14:D16) -> 1454600 | F17: Sensitivity Period | H17: 5
C19: Sources of funds | F19: IRR | G19: IRR
C20: Senior debt A (Amortising) | D20: ='Transation Assumptions'!E63 -> 500000 | F20: Pre-Tax | G20: After-tax | H20: Acquiror P/E Ratio | J20: ='Transation Assumptions'!$E$51 -> 11
C21: Senior debt B (Bullet) | D21: ='Transation Assumptions'!E64 -> 300000 | H21: Acquiror Growth | J21: ='Transation Assumptions'!$E$53 -> 0.06
C22: Senior debt C (Capitalizing debt) | D22: ='Transation Assumptions'!E65 -> 200000 | F22: ='Acquisition model'!H193 -> 0.05303731504 | G22: ='Acquisition model'!H200 -> 0.04328624847
C23: Equity | D23: ='Transation Assumptions'!E66 -> 454600 | F23: ='Acquisition model'!H208 -> 0.1129133686 | G23: ='Acquisition model'!H214 -> 0.09076571822 | J23: =D2+1 -> 2017 | K23: =J23+1 -> 2018 | L23: =K23+1 -> 2019 | M23: =L23+1 -> 2020 | N23: =M23+1 -> 2021
C24: Total Sources | D24: ='Transation Assumptions'!E67 -> 1454600 | G24: ='Acquisition model'!H165 -> 0.2890619645 | H24: Acquiring Company EPS | J24: ='Acquisition model'!I279 -> 0.9090909091 | K24: ='Acquisition model'!J279 -> 0.9636363636 | L24: ='Acquisition model'!K279 -> 1.021454545 | M24: ='Acquisition model'!L279 -> 1.082741818 | N24: ='Acquisition model'!M279 -> 1.147706327
F25: ='Acquisition model'!H183 -> 0.2306298392 | G25: ='Acquisition model'!H180 -> 0.1959853668 | H25: Combined EPS | J25: ='Acquisition model'!I285 -> 1.309130005 | K25: ='Acquisition model'!J285 -> 1.584689126 | L25: ='Acquisition model'!K285 -> 1.807539878 | M25: ='Acquisition model'!L285 -> 1.963657769 | N25: ='Acquisition model'!M285 -> 2.140968522
H26: Accretion/Dilution | J26: =J25-J24 -> 0.4000390964 | K26: =K25-K24 -> 0.6210527621 | L26: =L25-L24 -> 0.7860853329 | M26: =M25-M24 -> 0.8809159506 | N26: =N25-N24 -> 0.9932621949

Sheet Master Scenario page
M1: SHIFT,CNTL,Q to Hide Comments, SHIFT, CNTL N to Show Comments
C3: Master senario number | D3: 3 | M3: Scenario Sheet | N3: =sheet_name1(O10) -> Master Scenario page | U3: =Scenario_Sheet -> Master Scenario page
C5: WACC | D5: ='Financial model'!H380 -> 0.07
C6: Terminal growth rate | D6: ='Financial model'!H381 -> 0.01
D7: Sales | E7: Cost of goods sold | F7: Admin Expense Percent | G7: Other income | H7: Translation/Other | I7: Inventory to COGS | J7: A/R to Sales Percent | K7: A/P to COGS Percent | L7: Provisions to Revenues | M7: Cap Exp to Sales | O7: EV method 1 | P7: EV method 2 | Q7: EV method 3 | R7: Equity Valuation
O8: =IFERROR('Valuation Summary'!D20,"") -> 379.9030469 | P8: =IFERROR('Valuation Summary'!E20,"") -> 240.5987343 | Q8: =IFERROR('Valuation Summary'!F20,"") -> 337.6512123 | R8: =IFERROR('Valuation Summary'!F30,"") -> 309.5579745
C9: Base case | D9: 1 | E9: 1 | F9: 1 | G9: 20000 | H9: 4000 | I9: 0.12 | J9: 0.1 | K9: 0.24 | L9: 0.012 | M9: 0.03 | N9: 1 | O9: ='Data Tables'!G6 -> 87.82857088 | P9: ='Data Tables'!H6 -> 56.25572519 | Q9: ='Data Tables'!I6 -> 71.44634472 | R9: ='Data Tables'!J6 -> 182.1622888
C10: Low case | D10: 2 | E10: 3 | F10: 2 | G10: 12000 | H10: 7000 | I10: 0.13 | J10: 0.12 | K10: 0.26 | L10: 0.009 | M10: 0.05 | N10: 2 | O10: ='Data Tables'!G7 -> -387.6426362 | P10: ='Data Tables'!H7 -> -265.5020712 | Q10: ='Data Tables'!I7 -> -377.3273037 | R10: ='Data Tables'!J7 -> -136.9509258
C11: High case | D11: 3 | E11: 2 | F11: 3 | G11: 30000 | H11: 50 | I11: 0.1 | J11: 0.08 | K11: 0.22 | L11: 0.014 | M11: 0.02 | N11: 3 | O11: ='Data Tables'!G8 -> 379.9030469 | P11: ='Data Tables'!H8 -> 240.5987343 | Q11: ='Data Tables'!I8 -> 337.6512123 | R11: ='Data Tables'!J8 -> 309.5579745
N12: 4 | O12: ='Data Tables'!G9 -> FALSE | P12: ='Data Tables'!H9 -> FALSE | Q12: ='Data Tables'!I9 -> FALSE | R12: ='Data Tables'!J9 -> FALSE
C13: =TRANSPOSE(D7:M7)&" Low Case" -> Sales Low Case | D13: =D10 -> 2 | E13: =E9 -> 1 | F13: =F$9 -> 1 | G13: =G9 -> 20000 | H13: =H$9 -> 4000 | I13: =I9 -> 0.12 | J13: =J$9 -> 0.1 | K13: =K$9 -> 0.24 | L13: =L$9 -> 0.012 | M13: =M9 -> 0.03 | N13: 5 | O13: ='Data Tables'!G10 -> -23.60269358 | P13: ='Data Tables'!H10 -> -9.026325895 | Q13: ='Data Tables'!I10 -> -28.35091717 | R13: ='Data Tables'!J10 -> 124.9274135
C14: Cost of goods sold Low Case | D14: =D$9 -> 1 | E14: =E10 -> 3 | F14: =F$9 -> 1 | G14: =G$9 -> 20000 | H14: =H$9 -> 4000 | I14: =I$9 -> 0.12 | J14: =J$9 -> 0.1 | K14: =K$9 -> 0.24 | L14: 0.012 | M14: =M$9 -> 0.03 | N14: 6 | O14: ='Data Tables'!G11 -> -223.5805648 | P14: ='Data Tables'!H11 -> -137.4619554 | Q14: ='Data Tables'!I11 -> -210.340508 | R14: ='Data Tables'!J11 -> -20.39171097
C15: Admin Expense Percent Low Case | D15: =D$9 -> 1 | E15: 1 | F15: =F10 -> 2 | G15: =G$9 -> 20000 | H15: 4000 | I15: =I$9 -> 0.12 | J15: =J$9 -> 0.1 | K15: 0.24 | L15: 0.012 | M15: =M$9 -> 0.03 | N15: 7 | O15: ='Data Tables'!G12 -> 44.17286367 | P15: ='Data Tables'!H12 -> 24.74880428 | Q15: ='Data Tables'!I12 -> 30.8288198 | R15: ='Data Tables'!J12 -> 145.532177
C16: Other income Low Case | D16: 1 | E16: 1 | F16: 1 | G16: =G10 -> 12000 | H16: 4000 | I16: 0.12 | J16: 0.1 | K16: 0.24 | L16: 0.012 | M16: 0.03 | N16: 8 | O16: ='Data Tables'!G13 -> 87.82857088 | P16: ='Data Tables'!H13 -> 56.25572519 | Q16: ='Data Tables'!I13 -> 71.44634472 | R16: ='Data Tables'!J13 -> 163.7528439
C17: Translation/Other Low Case | D17: 1 | E17: 1 | F17: 1 | G17: 20000 | H17: =H10 -> 7000 | I17: 0.12 | J17: 0.1 | K17: 0.24 | L17: 0.012 | M17: 0.03 | N17: 9 | O17: ='Data Tables'!G14 -> 87.82857088 | P17: ='Data Tables'!H14 -> 56.25572519 | Q17: ='Data Tables'!I14 -> 71.44634472 | R17: ='Data Tables'!J14 -> 175.2587469
C18: Inventory to COGS Low Case | D18: 1 | E18: 1 | F18: 1 | G18: 20000 | H18: 4000 | I18: =I10 -> 0.13 | J18: 0.1 | K18: 0.24 | L18: 0.012 | M18: 0.03 | N18: 10 | O18: ='Data Tables'!G15 -> 80.67978497 | P18: ='Data Tables'!H15 -> 48.98405521 | Q18: ='Data Tables'!I15 -> 64.17467475 | R18: ='Data Tables'!J15 -> 179.0947275
C19: A/R to Sales Percent Low Case | D19: 1 | E19: 1 | F19: 1 | G19: 20000 | H19: 4000 | I19: 0.12 | J19: =J10 -> 0.12 | K19: 0.24 | L19: 0.012 | M19: 0.03 | N19: 11 | O19: ='Data Tables'!G16 -> 71.60534946 | P19: ='Data Tables'!H16 -> 40.11251078 | Q19: ='Data Tables'!I16 -> 55.30313031 | R19: ='Data Tables'!J16 -> 175.3475165
C20: A/P to COGS Percent Low Case | D20: 1 | E20: 1 | F20: 1 | G20: 20000 | H20: 4000 | I20: 0.12 | J20: 0.1 | K20: =K10 -> 0.26 | L20: 0.012 | M20: 0.03 | N20: 12 | O20: ='Data Tables'!G17 -> 101.3461509 | P20: ='Data Tables'!H17 -> 70.79906514 | Q20: ='Data Tables'!I17 -> 85.98968467 | R20: ='Data Tables'!J17 -> 188.2974114
C21: Provisions to Revenues Low Case | D21: 1 | E21: 1 | F21: 1 | G21: 20000 | H21: 4000 | I21: 0.12 | J21: 0.1 | K21: 0.24 | L21: =L10 -> 0.009 | M21: 0.03 | N21: 13 | O21: ='Data Tables'!G18 -> 85.40708872 | P21: ='Data Tables'!H18 -> 53.83424303 | Q21: ='Data Tables'!I18 -> 69.02486256 | R21: ='Data Tables'!J18 -> 181.1400729
C22: Cap Exp to Sales Low Case | D22: 1 | E22: 1 | F22: 1 | G22: 20000 | H22: 4000 | I22: 0.12 | J22: 0.1 | K22: 0.24 | L22: 0.012 | M22: =M10 -> 0.05 | N22: 14 | O22: ='Data Tables'!G19 -> 16.1174659 | P22: ='Data Tables'!H19 -> -10.89072233 | Q22: ='Data Tables'!I19 -> -11.19582767 | R22: ='Data Tables'!J19 -> 160.8632865
N23: 15 | O23: ='Data Tables'!G20 -> FALSE | P23: ='Data Tables'!H20 -> FALSE | Q23: ='Data Tables'!I20 -> FALSE | R23: ='Data Tables'!J20 -> FALSE
C24: =TRANSPOSE(D7:M7)&" High Case" -> Sales High Case | D24: =D11 -> 3 | E24: 1 | F24: 1 | G24: 20000 | H24: 4000 | I24: 0.12 | J24: 0.1 | K24: 0.24 | L24: 0.012 | M24: 0.03 | N24: 16 | O24: ='Data Tables'!G21 -> 160.2074894 | P24: ='Data Tables'!H21 -> 98.71883054 | Q24: ='Data Tables'!I21 -> 136.2819527 | R24: ='Data Tables'!J21 -> 221.7915515
C25: Cost of goods sold High Case | D25: 1 | E25: =E11 -> 2 | F25: 1 | G25: 20000 | H25: 4000 | I25: 0.12 | J25: 0.1 | K25: 0.24 | L25: 0.012 | M25: 0.03 | N25: 17 | O25: ='Data Tables'!G22 -> 173.3812042 | P25: ='Data Tables'!H22 -> 101.2886233 | Q25: ='Data Tables'!I22 -> 146.8479229 | R25: ='Data Tables'!J22 -> 181.3089396
C26: Admin Expense Percent High Case | D26: 1 | E26: 1 | F26: =F11 -> 3 | G26: 20000 | H26: 4000 | I26: 0.12 | J26: 0.1 | K26: 0.24 | L26: 0.012 | M26: 0.03 | N26: 18 | O26: ='Data Tables'!G23 -> 139.5117217 | P26: ='Data Tables'!H23 -> 87.69203234 | Q26: ='Data Tables'!I23 -> 118.0669919 | R26: ='Data Tables'!J23 -> 216.6713636
C27: Other income High Case | D27: 1 | E27: 1 | F27: 1 | G27: =G11 -> 30000 | H27: 4000 | I27: 0.12 | J27: 0.1 | K27: 0.24 | L27: 0.012 | M27: 0.03 | N27: 19 | O27: ='Data Tables'!G24 -> 87.82857088 | P27: ='Data Tables'!H24 -> 56.25572519 | Q27: ='Data Tables'!I24 -> 71.44634472 | R27: ='Data Tables'!J24 -> 205.1740949
C28: Translation/Other High Case | D28: 1 | E28: 1 | F28: 1 | G28: 20000 | H28: =H11 -> 50 | I28: 0.12 | J28: 0.1 | K28: 0.24 | L28: 0.012 | M28: 0.03 | N28: 20 | O28: ='Data Tables'!G25 -> 87.82857088 | P28: ='Data Tables'!H25 -> 56.25572519 | Q28: ='Data Tables'!I25 -> 71.44634472 | R28: ='Data Tables'!J25 -> 191.2519522
C29: Inventory to COGS High Case | D29: 1 | E29: 1 | F29: 1 | G29: 20000 | H29: 4000 | I29: =I11 -> 0.1 | J29: 0.1 | K29: 0.24 | L29: 0.012 | M29: 0.03 | N29: 21 | O29: ='Data Tables'!G26 -> 101.3461509 | P29: ='Data Tables'!H26 -> 70.79906514 | Q29: ='Data Tables'!I26 -> 85.98968467 | R29: ='Data Tables'!J26 -> 188.2974114
C30: A/R to Sales Percent High Case | D30: 1 | E30: 1 | F30: 1 | G30: 20000 | H30: 4000 | I30: 0.12 | J30: =J11 -> 0.08 | K30: 0.24 | L30: 0.012 | M30: 0.03 | N30: 22 | O30: ='Data Tables'!G27 -> 102.7678551 | P30: ='Data Tables'!H27 -> 72.3989396 | Q30: ='Data Tables'!I27 -> 87.58955913 | R30: ='Data Tables'!J27 -> 188.9770611
C31: A/P to COGS Percent High Case | D31: =D$9 -> 1 | E31: 1 | F31: 1 | G31: 20000 | H31: 4000 | I31: 0.12 | J31: 0.1 | K31: =K11 -> 0.22 | L31: 0.012 | M31: 0.03 | N31: 23 | O31: ='Data Tables'!G28 -> 73.27100179 | P31: ='Data Tables'!H28 -> 41.71238524 | Q31: ='Data Tables'!I28 -> 56.90300477 | R31: ='Data Tables'!J28 -> 176.0271661
C32: Provisions to Revenues High Case | D32: 1 | E32: 1 | F32: 1 | G32: 20000 | H32: 4000 | I32: 0.12 | J32: 0.1 | K32: 0.24 | L32: =L11 -> 0.014 | M32: 0.03 | N32: 24 | O32: ='Data Tables'!G29 -> 89.44289232 | P32: ='Data Tables'!H29 -> 57.87004663 | Q32: ='Data Tables'!I29 -> 73.06066616 | R32: ='Data Tables'!J29 -> 182.843766
C33: Cap Exp to Sales High Case | D33: 1 | E33: 1 | F33: 1 | G33: 20000 | H33: 4000 | I33: 0.12 | J33: 0.1 | K33: 0.24 | L33: 0.012 | M33: =M11 -> 0.02 | N33: 25 | O33: ='Data Tables'!G30 -> 116.6562264 | P33: ='Data Tables'!H30 -> 89.82894895 | Q33: ='Data Tables'!I30 -> 112.7674309 | R33: ='Data Tables'!J30 -> 192.8117899
N34: 26 | O34: ='Data Tables'!G31 -> FALSE | P34: ='Data Tables'!H31 -> FALSE | Q34: ='Data Tables'!I31 -> FALSE | R34: ='Data Tables'!J31 -> FALSE
C35: Custom case | D35: =D44/D42 -> 3 | E35: =E44/E42 -> 2 | F35: =F44/F42 -> 3 | G35: =G44/G42 -> 30000 | H35: 50 | I35: 0.1 | J35: 0.08 | K35: 0.22 | L35: 0.014 | M35: 0.02 | N35: 27 | O35: ='Data Tables'!G32 -> 87.82857088 | P35: ='Data Tables'!H32 -> 56.25572519 | Q35: ='Data Tables'!I32 -> 71.44634472 | R35: ='Data Tables'!J32 -> 182.1622888
C39: =INDEX(C9:C35,$D$3) -> High case | D39: =INDEX(D9:D35,$D$3) -> 3 | E39: =INDEX(E9:E35,$D$3) -> 2 | F39: =INDEX(F9:F35,$D$3) -> 3 | G39: =INDEX(G9:G35,$D$3) -> 30000 | H39: 50 | I39: 0.1 | J39: 0.08 | K39: 0.22 | L39: 0.014 | M39: 0.02
C41: Copied | D41: 3 | E41: 2 | F41: 3 | G41: 30000 | H41: 50 | I41: 0.1 | J41: 0.08 | K41: 0.22 | L41: 0.014 | M41: 0.02
C42: Multiplier | D42: 1 | E42: 1 | F42: 1 | G42: 0.1 | H42: 1 | I42: 100 | J42: 1000 | K42: 1000 | L42: 1000 | M42: 1000
C43: Computed | D43: =D41*D42 -> 3 | E43: =E41*E42 -> 2 | F43: 3 | G43: 3000 | H43: 50 | I43: 10 | J43: 80 | K43: 220 | L43: 14 | M43: 20
C44: Spinner | D44: 3 | E44: 2 | F44: 3 | G44: 3000 | H44: 50 | I44: 10 | J44: 80 | K44: 220 | L44: 14 | M44: 20
D47: Low versus base | E47: High versus base
C48: =TRANSPOSE(D7:M7) -> Sales | D48: =O13-$O$9 -> -111.4312645 | E48: =O24-$O$9 -> 72.37891855
C49: Cost of goods sold | D49: =O14-$O$9 -> -311.4091357 | E49: =O25-$O$9 -> 85.5526333
C50: Admin Expense Percent | D50: -43.6557072 | E50: 51.68315083
C51: Other income | D51: 0 | E51: 0
C52: Translation/Other | D52: 0 | E52: 0
C53: Inventory to COGS | D53: -7.148785908 | E53: 13.51758
C54: A/R to Sales Percent | D54: -16.22322142 | E54: 14.93928427
C55: A/P to COGS Percent | D55: 13.51758 | E55: -14.55756909
C56: Provisions to Revenues | D56: -2.421482161 | E56: 1.614321441
C57: Cap Exp to Sales | D57: -71.71110497 | E57: 28.82765554
C63: Tornado Diagram of Value versus Base Case | G63: WACC | I63: =D5 -> 0.07 | M63: Growth Rate | N63: =D6 -> 0.01
C67: Base Case | D67: =O9 -> 87.82857088
C68: =C49 -> Cost of goods sold | D68: =E48 -> 72.37891855
C69: =C50 -> Admin Expense Percent | D69: =E49 -> 85.5526333
C70: Other income | D70: 51.68315083
C71: Translation/Other | D71: 0.01
C72: Inventory to COGS | D72: 0.01
C73: A/R to Sales Percent | D73: 13.51758
C74: A/P to COGS Percent | D74: 14.93928427
C75: Provisions to Revenues | D75: -14.55756909
C76: Cap Exp to Sales | D76: 1.614321441
C77: High Case | D77: 0

Sheet Mercator Financials
B1: EBIT | C1: Financing | D1: Debt | E1: Net Debt
A2: ASSETS | F2: 2007 | G2: 2008 | H2: 2009 | I2: 2010 | J2: 2011 | K2: 2012
A3: Non-current assets
A4: Property, plant and equipment 14 | B4: TRUE | F4: 1402398 | G4: 1771963 | H4: 1863291 | I4: 1870428 | J4: 1906018 | K4: 1874735
A5: Investment property 16 | C5: FALSE | F5: 16476 | G5: 9563 | H5: 4127 | I5: 3894 | J5: 3450 | K5: 3194
A6: Intangible assets 15 | B6: TRUE | F6: 80253 | G6: 78196 | H6: 51995 | I6: 52626 | J6: 35862 | K6: 18387
A7: Deferred tax assets 19 | B7: TRUE | F7: 8686 | G7: 8380 | H7: 8086 | I7: 8700 | J7: 12774 | K7: 20378
A8: Loans and deposits 22 | C8: FALSE | E8: -1 | F8: 453 | G8: 384 | H8: 359 | I8: 77113 | J8: 65823 | K8: 50034
A9: Available-for-sale financial assets 17 | C9: FALSE | F9: 24235 | G9: 4824 | H9: 5473 | I9: 3959 | J9: 2628 | K9: 1069
F10: =SUM(F4:F9) -> 1532501 | G10: 1873310 | H10: 1933331 | I10: 2016720 | J10: 2026555 | K10: 1967797
A11: Current assets
A12: Inventories 20 | B12: TRUE | F12: 246783 | G12: 272391 | H12: 292050 | I12: 322081 | J12: 309941 | K12: 267711
A13: Trade and other receivables 21 | B13: TRUE | F13: 253550 | G13: 347741 | H13: 230747 | I13: 231871 | J13: 243402 | K13: 239998
A14: Current tax assets - | B14: TRUE | F14: 7948 | G14: 809 | H14: 2639 | I14: 3934 | J14: 6462 | K14: 0
A15: Loans and deposits 22 | C15: FALSE | E15: -1 | F15: 764 | G15: 737 | H15: 19 | I15: 17346 | J15: 2001 | K15: 2839
A16: Derivative financial instruments 18 | C16: FALSE | E16: -1 | F16: 5771 | G16: 35870 | H16: 16844 | I16: 70 | J16: 158 | K16: 1
A17: Cash and cash equivalents 23 | C17: FALSE | E17: -1 | F17: 23089 | G17: =G21 -> 9263 | H17: =H21 -> 718 | I17: =I21 -> 16832 | J17: =J21 -> 25140 | K17: =K21 -> 44474
F18: 537905 | G18: 666811 | H18: 543017 | I18: 592134 | J18: 587104 | K18: 555023
A19: Total assets | F19: 2070473 | G19: 2540121 | H19: 2476348 | I19: 2608854 | J19: 2613659 | K19: 2522820
F20: =SUM(F12:F16) -> 514816 | G20: 657548 | H20: 542299 | I20: 575302 | J20: 561964 | K20: 510549
F21: =F18-F20 -> 23089 | G21: 9263 | H21: 718 | I21: 16832 | J21: 25140 | K21: 44474
A22: EQUITY | F22: =F18+F10 -> 2070406 | G22: =F22-F19 -> -67
A23: Share capital | F23: 157129 | G23: 157129 | H23: 157129 | I23: 157129 | J23: 157129 | K23: 157129
A24: Share premium | F24: 198848 | G24: 198848 | H24: 198872 | I24: 198872 | J24: 198872 | K24: 198872
A25: Treasury shares | F25: -3250 | G25: -3250 | H25: -3235 | I25: -3235 | J25: -3235 | K25: -3235
A26: Revenue reserves | F26: 243309 | G26: 267640 | H26: 270194 | I26: 270194 | J26: 264310 | K26: 197045
A27: Fair value reserve | F27: 68078 | G27: 188751 | H27: 186029 | I27: 200187 | J27: 192209 | K27: 240762
A28: Retained earnings | F28: 0 | G28: 8697 | H28: 0 | I28: 6671 | J28: 10294 | K28: -21714
A29: Profit (loss) for the year | F29: 26047 | G29: 24682 | H29: 21232 | I29: 30396 | J29: -3068 | K29: -26953
A30: Currency translation reserve | F30: -4223 | G30: -21708 | H30: -33782 | I30: -62295 | J30: -60275 | K30: -78819
A31: Total equity attributable to equity owners of the Company | C31: TRUE | F31: =F33-F32 -> 685938 | G31: 812092 | H31: 805136 | I31: 797919 | J31: 756236 | K31: 663087
A32: Non-controlling interests | C32: TRUE | F32: 2258 | G32: 2008 | H32: 254 | I32: 246 | J32: 221 | K32: 162
A33: Total equity | F33: 688196 | G33: 814100 | H33: 805390 | I33: 798165 | J33: 756457 | K33: 663249
A34: LIABILITIES
A35: Non-current liabilities | B35: TRUE
A36: Trade and other payables 28 | B36: TRUE | F36: 855 | G36: 2271 | H36: 2872 | I36: 2447 | J36: 2369 | K36: 2462
A37: Borrowings and other financial liabilities 26 | C37: TRUE | D37: TRUE | E37: 1 | F37: 635457 | G37: 622787 | H37: 683547 | I37: 674375 | J37: 822145 | K37: 593841
A38: Deferred tax liabilities 19 | B38: TRUE | F38: 18550 | G38: 52496 | H38: 49326 | I38: 51269 | J38: 48845 | K38: 52640
A39: Provisions 27 | B39: TRUE | F39: 35228 | G39: 31415 | H39: 37188 | I39: 35709 | J39: 32711 | K39: 31459
A40: Total Non-Current Liabilities | F40: 690090 | G40: 708969 | H40: 772933 | I40: 763800 | J40: 906070 | K40: 680402
A41: Current liabilities
A42: Trade and other payables 28 | B42: TRUE | F42: 486286 | G42: 599933 | H42: 525061 | I42: 642666 | J42: 583982 | K42: 672858
A43: Current tax liabilities - | B43: TRUE | F43: 4782 | G43: 724 | H43: 164 | I43: 5892 | J43: 163
A44: Borrowings and other financial liabilities 26 | C44: TRUE | D44: TRUE | E44: 1 | F44: 201119 | G44: 412797 | H44: 367855 | I44: 395853 | J44: 362588 | K44: 500879
A45: Derivative financial instruments 18 | C45: TRUE | E45: 1 | F45: 0 | G45: 3598 | H45: 4945 | I45: 2478 | J45: 4399 | K45: 5432
A46: Total Current Liabilities | F46: 692187 | G46: 1017052 | H46: 898025 | I46: 1046889 | J46: 951132 | K46: 1179169
A47: Total liabilities | F47: 1382277 | G47: 1726021 | H47: 1670958 | I47: 1810689 | J47: 1857202 | K47: 1859571
A48: Total equity and liabilities | F48: 2070473 | G48: 2540121 | H48: 2476348 | I48: 2608854 | J48: 2613659 | K48: 2522820
F49: =SUM(F42:F45) -> 692187 | G49: 1017052 | H49: 898025 | I49: 1046889 | J49: 951132 | K49: 1179169
A50: Consolidated income statement EUR thousand
A51: Revenue | F51: 2445258 | G51: 2708560 | H51: 2643315 | I51: 2781604 | J51: 2870971 | K51: 2873186
A52: Cost of goods sold and selling costs | F52: -1802814 | G52: -2026629 | H52: -2474106 | I52: -2611100 | J52: -2704991 | K52: -2745203
A53: Administrative expenses
A54: Impairment of property, plant and equipment and intangible assets | F54: -105612 | G54: -110313 | H54: -109955 | I54: -99622 | J54: -16438 | K54: -59842
A55: Other income | F55: 23041 | G55: 33264 | H55: 12588 | I55: 23623 | J55: 24154 | K55: 20128
A56: Results from operating activities | F56: 91336 | G56: 100327 | H56: 71842 | I56: 94505 | J56: 76841 | K56: -42147
F57: =F51+F52+F53+F54+F55 -> 559873 | G57: 604882 | H57: 71842 | I57: 94505 | J57: 173696 | K57: 88269
F58: =F56-F57 -> -468537 | G58: -504555 | H58: 0 | I58: 0 | J58: -96855 | K58: -130416
A59: Finance income | F59: 25103 | G59: 28701 | H59: 10245 | I59: 6070 | J59: 5699 | K59: 4779
A60: Finance expenses | F60: -61964 | G60: -79035 | H60: -56891 | I60: -60231 | J60: -62600 | K60: -72911
A61: Net finance expense | F61: -36861 | G61: -50334 | H61: -46646 | I61: -54161 | J61: -56901 | K61: -68132
A62: Profit (loss) before tax | F62: 54475 | G62: 49993 | H62: 25196 | I62: 40344 | J62: 19940 | K62: -110279
A63: Tax expense | F63: -10661 | G63: -9232 | H63: -4077 | I63: -9957 | J63: -7451 | K63: 5659
A64: Profit (loss) for the year | F64: 43814 | G64: 40761 | H64: 21119 | I64: 30387 | J64: 12489 | K64: -104620
A65: Profit (loss) for the year attributable to:
A66: Owners of the parent company | F66: 43755 | G66: 40846 | H66: 21232 | I66: 30396 | J66: 12506 | K66: -104555
A67: Non-controlling interests | F67: 59 | G67: -85 | H67: -113 | I67: -9 | J67: -17 | K67: -65
A68: Basic and diluted earnings per share (in EUR) | F68: 11.8 | G68: 11 | H68: 5.7 | I68: 8.2 | J68: 3.4 | K68: -28.1
A69: Shares | F69: =F66/F68 -> 3708.050847 | G69: 3713.272727 | H69: 3724.912281 | I69: 3706.829268 | J69: 3678.235294 | K69: 3720.818505
A71: EBIIDA | F71: =F56-F55-F54+F81+F82+F83 -> 254998 | G71: 271430 | H71: 265221 | I71: 249198 | J71: 150431 | K71: 79356
A72: EBIT - Without Writeoffs | F72: =F71-F81-F82-F83 -> 173907 | G72: 177376 | H72: 169209 | I72: 170504 | J72: 69125 | K72: -2433
A73: EBIT - With Writeoffs | F73: =F72+F54 -> 68295 | G73: 67063 | H73: 59254 | I73: 70882 | J73: 52687 | K73: -62275
A76: Consolidated statement of cash flows EUR thousand Note
A77: Cash flows from operating activities
A78: Profit (loss) for the year | F78: 43814 | G78: 40761 | H78: 21119 | I78: 30387 | J78: 12489 | K78: -104620
A79: Adjustments:
A80: Income tax expense 19 | F80: 10661 | G80: 9232 | H80: 4077 | I80: 9957 | J80: 7451 | K80: -5659
A81: Depreciation of property, plant and equipment 14 | F81: 69971 | G81: 82467 | H81: 85463 | I81: 68946 | J81: 71745 | K81: 74097
A82: Depreciation of investment property 16 | F82: 367 | G82: 262 | H82: 211 | I82: 173 | J82: 160 | K82: 140
A83: Amortisation of intangible assets 15 | F83: 10753 | G83: 11325 | H83: 10338 | I83: 9575 | J83: 9401 | K83: 7552
A84: Impairment of goodwill 15 | H84: 0 | I84: 0 | J84: 3037 | K84: 5885
A85: Impairment of property, plant and equipment, intangible assets and (gain) loss on sale of property, plant and equipment 10,11 | H85: -1423 | I85: 2676 | J85: 6578 | K85: 51899
A87: Acquisition of subsidiaries and business operations, net of cash acquired 8 | F87: -37639 | G87: -15105 | H87: -4801 | I87: -40954 | J87: -7706 | K87: -390
A88: Acquisition of property, plant and equipment and investment property 14,16 | F88: -158085 | G88: -288531 | H88: -149757 | I88: -91910 | J88: -111024 | K88: -62948
A89: Acquisition of intangible assets 15 | F89: -2881 | G89: 18 | H89: -7596 | I89: -3532 | J89: -4800 | K89: -4382
A90: Aquisitions of available-for-sale financial assets 17 | F90: -7272 | G90: -15138 | H90: -24963 | I90: -62529 | J90: -10 | K90: -9
A93: Financial Ratios
A94: Profitability/Managment performance
A95: ROE | F95: =F66/AVERAGE(F31:F31) -> 0.06378856398 | G95: =G66/AVERAGE(F31:G31) -> 0.05453295328 | H95: =H66/AVERAGE(G31:H31) -> 0.02625727479 | I95: =I66/AVERAGE(H31:I31) -> 0.03792259155 | J95: =J66/AVERAGE(I31:J31) -> 0.01609363287 | K95: =K66/AVERAGE(J31:K31) -> -0.1473308049
A96: NOPLAT | F96: =F72*(0.8) -> 139125.6 | G96: 141900.8 | H96: 135367.2 | I96: 136403.2 | J96: 55300 | K96: -1946.4
A97: Interested Capital_EBIT | F97: =SUMPRODUCT(F4:F19*$B$4:$B$19)-SUMPRODUCT(F23:F48*$B$23:$B$48) -> 1453917 | G97: 1792641 | H97: 1834197 | I97: 1751657 | J97: 1846389 | K97: 1661790
A98: Invested Capital_Financing | F98: =SUMPRODUCT(F23:F48*$C$23:$C$48)-SUMPRODUCT(F4:F19*$C$4:$C$19) -> 1524772 | G98: 1853282 | H98: 1861737 | I98: 1870871 | J98: 1945589 | K98: 1763401
A99: Accumulated Writeoff | F99: =E99-F54 -> 105612 | G99: 215925 | H99: 325880 | I99: 425502 | J99: 441940 | K99: 501782
A100: Adjusted Invested Capital | F100: =F98+F99 -> 1630384 | G100: 2069207 | H100: 2187617 | I100: 2296373 | J100: 2387529 | K100: 2265183
A101: ROIC | F101: =F96/AVERAGE(F100:F100) -> 0.08533302584 | G101: =G96/AVERAGE(F100:G100) -> 0.07671161488 | H101: =H96/AVERAGE(G100:H100) -> 0.06360009246 | I101: =I96/AVERAGE(H100:I100) -> 0.0608401 | J101: =J96/AVERAGE(I100:J100) -> 0.02361279122 | K101: =K96/AVERAGE(J100:K100) -> -0.0008366733209
A102: Growth | G102: =G51/F51-1 -> 0.1076786171 | H102: =H51/G51-1 -> -0.02408844552 | I102: =I51/H51-1 -> 0.05231650409 | J102: =J51/I51-1 -> 0.03212786579 | K102: =K51/J51-1 -> 0.0007715159784
A104: Credit Analysis
A105: Category 1 - Capitalisation
A106: Total debt | F106: =SUMPRODUCT(F36:F48*$D$36:$D$48) -> 836576 | G106: 1035584 | H106: 1051402 | I106: 1070228 | J106: 1184733 | K106: 1094720
A107: Debt/Equity | F107: =F106/(F33) -> 1.215607182 | G107: 1.272059943 | H107: 1.305456984 | I107: 1.340860599 | J107: 1.566160403 | K107: 1.650541501
A108: Debt/Capital | F108: =F106/(F106+F33) -> 0.5486564549 | G108: 0.5598707671 | H108: 0.5662465155 | I108: 0.5728066847 | J108: 0.6103127463 | K108: 0.6227186031
A109: Category 2 - Time to repay
A110: Debt / EBITDA
A111: CF / Debt
A112: CF after CAPEX
A113: Category 3 - Coverage
A114: DSC -Debt Service Coverage ratio
A115: ICR - Interest Coverage Ratio/EBIT to Interest
A116: ICR /EBITDA to interest
A118: Ratios for financial forecasts
A119: EBITDA | F119: =F71 -> 254998 | G119: 271430 | H119: 265221 | I119: 249198 | J119: 150431 | K119: 79356
A120: EBITDA Margin - EBITDA / Revenues | F120: =F119/F51 -> 0.1042826565 | G120: 0.1002119207 | H120: 0.1003365093 | I120: 0.08958787807 | J120: 0.05239725514 | K120: 0.02761951367
A121: Asset Turnover | F121: =F19/F51 -> 0.8467298747 | G121: 0.9378123431 | H121: 0.9368342403 | I121: 0.9378955452 | J121: 0.9103745736 | K121: 0.8780566242
A122: Income taxe rate | F122: =-F63/F62 -> 0.1957044516 | G122: 0.1846658532 | H122: 0.1618113986 | I122: 0.2468024985 | J122: 0.373671013 | K122: 0.05131530028
A123: Depreciation rate
A124: Interest rate
A125: A/R to Revenues
A126: Inventories to Expenses
A129: Gross Plant | I129: 2852096 | J129: 2915498 | K129: 2985326
A130: Accumulated Depreciation | I130: 981668 | J130: 1009480 | K130: 1110591
A131: Net Plant | I131: =I129-I130 -> 1870428 | J131: =J129-J130 -> 1906018 | K131: =K129-K130 -> 1874735
A145: Revenue 9 | E145: 2064583 | F145: 2445258 | G145: 2708560 | H145: 2643315 | I145: 2781604 | J145: 2870971 | K145: 2873186
A146: Cost of goods sold and selling costs 11 | E146: 1506838 | F146: 2271351 | G146: 2353808 | H146: 2304897 | I146: 2440596 | J146: 2704991 | K146: 2745203
A147: Administrative expenses 11 | E147: 204991 | F147: 115507 | G147: 177376 | H147: 169209 | I147: 170504 | J147: 96855 | K147: 130416
A148: Impairment of property, plant and equipment and intangible assets 11 | E148: 429862 | G148: 110313 | H148: 109955 | I148: 99622 | J148: 16438 | K148: 59842
A149: Other income 10 | E149: 101026 | F149: 23041 | G149: 33264 | H149: 12588 | I149: 23623 | J149: 24154 | K149: 20128
A150: Results from operating activities | E150: 23918 | F150: 23041 | G150: 100327 | H150: 71842 | I150: 94505 | J150: 76841 | K150: -42147
A155: Consolidated income statement EUR thousand Note | F155: 2007 | G155: 2008 | H155: 2009 | I155: 2010 | J155: 2011 | K155: 2012
A156: restated
A157: Revenue 9 | F157: 2445258 | G157: 2708560 | H157: 2643315 | I157: 2781604 | J157: 2870971 | K157: 2873186
A158: Cost of goods sold and selling costs 11 | F158: -1802814 | G158: -2531184 | H158: -2474106 | I158: -2611100 | J158: -2704991 | K158: -2745203
A159: Gross Profit | F159: 642444 | G159: 177376 | H159: 169209 | I159: 170504 | J159: 165980 | K159: 127983
A160: Selling Expenses | F160: -468537
A161: Administrative expenses 11 | F161: -115507 | G161: -110313 | H161: -109955 | I161: -99622 | J161: -96855 | K161: -130416
A162: Impairment of property, plant and equipment and intangible assets 11 | J162: -16438 | K162: -59842
A163: Other income 10 | F163: 23041 | G163: 33264 | H163: 12588 | I163: 23623 | J163: 24154 | K163: 20128
A164: Results from operating activities | F164: 81441 | G164: 100327 | H164: 71842 | I164: 94505 | J164: 76841 | K164: -42147
A165: Finance income 13 | F165: 25996 | G165: 20103 | H165: 10245 | I165: 6070 | J165: 5699 | K165: 4779
A166: Finance expenses 13 | F166: -52962 | G166: -70437 | H166: -56891 | I166: -60231 | J166: -62600 | K166: -72911
A167: Net finance expense | F167: -26966 | G167: -50334 | H167: -46646 | I167: -54161 | J167: -56901 | K167: -68132
A168: Profit (loss) before tax | F168: 54475 | G168: 49993 | H168: 25196 | I168: 40344 | J168: 19940 | K168: -110279
A169: Tax expense 19 | F169: -10661 | G169: -9232 | H169: -4077 | I169: -9957 | J169: -7451 | K169: 5659
A170: Profit (loss) for the year | F170: 43814 | G170: 40761 | H170: 21119 | I170: 30387 | J170: 12489 | K170: -104620
A171: Profit (loss) for the year attributable to: | I171: 0
A172: Owners of the parent company | F172: 43755 | G172: 40846 | H172: 21232 | I172: 30396 | J172: 12506 | K172: -104555
A173: Non-controlling interests | F173: 59 | G173: -85 | H173: -113 | I173: -9 | J173: -17 | K173: -65
A174: Basic and diluted earnings per share (in EUR) 25 | F174: 11.8 | G174: 11 | H174: 5.7 | I174: 8.2 | J174: 3.4 | K174: -28.1
A176: Total Depreciation | F176: 70338 | G176: 82729 | H176: 85674 | I176: 69119 | J176: 71905 | K176: 74237
A177: Amortisation | F177: 10753 | G177: 11325 | H177: 10338 | I177: 9575 | J177: 9401 | K177: 7552
A178: Impairment | F178: 31 | G178: 0 | H178: 0 | I178: 7019 | J178: 9615 | K178: 57784
A179: Cost of Goods Sold Less Depreciation and Non-Accounted for Impariment | F179: 2190229 | G179: 2437130 | H179: 2378094 | I179: 2525387 | J179: 2630508 | K179: 2665472
A180: EBIT | F180: 81441 | G180: 100327 | H180: 71842 | I180: 94505 | J180: 76841 | K180: -42147
A181: EBITDA | F181: 162563 | G181: 194381 | H181: 167854 | I181: 180218 | J181: 167762 | K181: 97426
A183: Interest Paid | F183: 51724 | G183: 58127 | H183: 46554 | I183: 44948 | J183: 53879 | K183: 50939
A184: Interest Received | F184: 14075 | G184: 9181 | H184: 7811 | I184: 3427 | J184: 3647 | K184: 3374
A185: Translation and Other | F185: 10683 | G185: -1388 | H185: -7903 | I185: -12640 | J185: -6669 | K185: -20567
A187: Capital Expenditues | F187: 0 | G187: 313410 | H187: 162154 | I187: 136396 | J187: 123530 | K187: 67720
A191: Consolidated statement of cash flows EUR thousand Note | B191: 2006 | F191: 2007 | G191: 2008 | H191: 2009 | I191: 2010 | J191: 2011 | K191: 2012
A192: restated
A193: Cash flows from operating activities
A194: Profit (loss) for the year | B194: 30149 | F194: 43814 | G194: 40761 | H194: 21119 | I194: 30387 | J194: 12489 | K194: -104620
A195: Adjustments:
A196: Income tax expense 19 | B196: 6575 | F196: 10661 | G196: 9232 | H196: 4077 | I196: 9957 | J196: 7451 | K196: -5659
A197: Depreciation of property, plant and equipment 14 | B197: 67850 | F197: 69971 | G197: 82467 | H197: 85463 | I197: 68946 | J197: 71745 | K197: 74097
A198: Depreciation of investment property 16 | B198: 309 | F198: 367 | G198: 262 | H198: 211 | I198: 173 | J198: 160 | K198: 140
A199: Amortisation of intangible assets 15 | B199: 4254 | F199: 10753 | G199: 11325 | H199: 10338 | I199: 9575 | J199: 9401 | K199: 7552
A200: Impairment of goodwill 15 | B200: 6376 | F200: 16 | I200: 2676 | J200: 3037 | K200: 5885
A201: Impairment of property, plant and equipment, intangible assets and (gain) loss on sale of property, plant and equipment 10,11 | B201: 567 | F201: 15 | I201: 4343 | J201: 6578 | K201: 51899
A202: Change in provisions and deferred income 27 | B202: 9185 | F202: 4503 | G202: -7431 | H202: 4737 | I202: -1150 | J202: -677 | K202: 9881
A203: Gains on sale of subsidiaries - | B203: -2976 | F203: -3923 | G203: -8895 | H203: -1423 | J203: -1150 | K203: 13
A204: Dividends received, impairment losses and (gain) loss on sale of available-for-sale financial assets 13 | B204: -19794 | F204: -14075 | G204: -5347 | H204: 178 | I204: 37 | J204: -29 | K204: 366
A205: Excess of acquirer's interest in the net fair value of acquiree's identifiable assets and liabilities over cost 8 | B205: -943 | F205: -1228 | G205: -67 | H205: -371 | I205: -7626 | J205: -118 | K205: -1349
A206: Net foreign currency translation 13 | G206: 5520 | H206: 4224 | I206: 10098 | J206: 3383 | K206: 9363
A207: Interest received 13 | B207: -19794 | F207: -14075 | G207: -9181 | H207: -7811 | I207: -3427 | J207: -3647 | K207: -3374
A208: Interest paid 13 | B208: 34188 | F208: 51724 | G208: 58127 | H208: 46554 | I208: 44948 | J208: 53879 | K208: 50939
J209: 162502 | K209: 95120
A210: Change in inventories | J210: -16202 | K210: 42527
A211: Change in trade and other receivables | J211: -19027 | K211: 92
A212: Change in trade and other payables | J212: -66540 | K212: 78391
J213: 60733 | K213: 216130
A214: Interest paid 13 | J214: -53879 | K214: -50939
A215: Income tax paid 19 | J215: -8573 | K215: -144
A216: Net cash from (used in) operating activities | J216: -1719 | K216: 165047
A217: Cash flows from investing activities
A218: Acquisition of subsidiaries and business operations, net of cash acquired 8 | G218: -15105 | H218: -4801 | I218: -40954 | J218: -7706 | K218: -390
A219: Acquisition of property, plant and equipment and investment property 14,16 | G219: -288531 | H219: -149757 | I219: -91910 | J219: -111024 | K219: -62948
A220: Acquisition of intangible assets 15 | G220: -9774 | H220: -7596 | I220: -3532 | J220: -4800 | K220: -4382
A221: Aquisitions of available-for-sale financial assets 17 | J221: -10 | K221: -9
A222: Loans and bank deposits made | J222: -1481 | K222: -839
A223: Disposal of subsidiaries, net of cash disposed of - | J223: 9985
A224: Proceeds from sale of property, plant and equipment and investment property 14,16 | J224: 17228 | K224: 7292
A225: Proceeds from sale of intangible assets 15 | J225: 1 | K225: 16
A226: Proceeds from sale of available-for-sale financial assets - | J226: 1701 | K226: 17
A227: Interest received 13 | J227: 3647 | K227: 3374
A228: Dividends received 13 | J228: 56 | K228: 113
A229: Loans and deposits repayments received | J229: 28585 | K229: 15796

Sheet Financial model
A1: Timing
B2: Year | J2: 2007 | K2: =J2+1 -> 2008 | L2: =K2+1 -> 2009 | M2: 2010 | N2: 2011 | O2: 2012 | P2: 2013 | Q2: 2014 | R2: 2015 | S2: 2016 | T2: 2017 | U2: 2018 | V2: 2019 | W2: 2020 | X2: 2021 | Y2: 2022 | Z2: 2023 | AA2: 2024 | AB2: 2025
B3: Historic switch | F3: 2012 | J3: =J2<=$F$3 -> TRUE | K3: TRUE | L3: TRUE | M3: TRUE | N3: TRUE | O3: TRUE | P3: FALSE | Q3: FALSE | R3: FALSE | S3: FALSE | T3: FALSE | U3: FALSE | V3: FALSE | W3: FALSE | X3: FALSE | Y3: FALSE | Z3: FALSE | AA3: FALSE | AB3: FALSE
B4: Explicit period | F4: 2017 | J4: =AND(J2>$F$3,J2<=$F$4) -> FALSE | K4: FALSE | L4: FALSE | M4: FALSE | N4: FALSE | O4: FALSE | P4: TRUE | Q4: TRUE | R4: TRUE | S4: TRUE | T4: TRUE | U4: FALSE | V4: FALSE | W4: FALSE | X4: FALSE | Y4: FALSE | Z4: FALSE | AA4: FALSE | AB4: FALSE
B5: Terminal value switch | J5: =J2=$F$4 -> FALSE | K5: FALSE | L5: FALSE | M5: FALSE | N5: FALSE | O5: FALSE | P5: FALSE | Q5: FALSE | R5: FALSE | S5: FALSE | T5: TRUE | U5: FALSE | V5: FALSE | W5: FALSE | X5: FALSE | Y5: FALSE | Z5: FALSE | AA5: FALSE | AB5: FALSE
A7: Historical financial statements
B8: Balance sheet
C9: Assets
D10: Cash | J10: ='Mercator Financials'!F17 -> 23089 | K10: ='Mercator Financials'!G17 -> 9263 | L10: ='Mercator Financials'!H17 -> 718 | M10: ='Mercator Financials'!I17 -> 16832 | N10: ='Mercator Financials'!J17 -> 25140 | O10: ='Mercator Financials'!K17 -> 44474 | P10: ='Mercator Financials'!L17 -> 0
D11: Accounts Receivable | J11: ='Mercator Financials'!F13 -> 253550 | K11: ='Mercator Financials'!G13 -> 347741 | L11: ='Mercator Financials'!H13 -> 230747 | M11: ='Mercator Financials'!I13 -> 231871 | N11: ='Mercator Financials'!J13 -> 243402 | O11: ='Mercator Financials'!K13 -> 239998 | P11: ='Mercator Financials'!L13 -> 0
D12: Inventories | J12: ='Mercator Financials'!F12 -> 246783 | K12: ='Mercator Financials'!G12 -> 272391 | L12: ='Mercator Financials'!H12 -> 292050 | M12: ='Mercator Financials'!I12 -> 322081 | N12: ='Mercator Financials'!J12 -> 309941 | O12: ='Mercator Financials'!K12 -> 267711 | P12: ='Mercator Financials'!L12 -> 0
D13: Loans and Deposits | J13: ='Mercator Financials'!F15 -> 764 | K13: ='Mercator Financials'!G15 -> 737 | L13: ='Mercator Financials'!H15 -> 19 | M13: ='Mercator Financials'!I15 -> 17346 | N13: ='Mercator Financials'!J15 -> 2001 | O13: ='Mercator Financials'!K15 -> 2839 | P13: ='Mercator Financials'!L15 -> 0
D14: Derivative Current Assets | J14: ='Mercator Financials'!F16 -> 5771 | K14: ='Mercator Financials'!G16 -> 35870 | L14: ='Mercator Financials'!H16 -> 16844 | M14: ='Mercator Financials'!I16 -> 70 | N14: ='Mercator Financials'!J16 -> 158 | O14: ='Mercator Financials'!K16 -> 1 | P14: ='Mercator Financials'!L16 -> 0
D15: Other Current Assets | J15: ='Mercator Financials'!F14 -> 7948 | K15: ='Mercator Financials'!G14 -> 809 | L15: ='Mercator Financials'!H14 -> 2639 | M15: ='Mercator Financials'!I14 -> 3934 | N15: ='Mercator Financials'!J14 -> 6462 | O15: ='Mercator Financials'!K14 -> 0 | P15: ='Mercator Financials'!L14 -> 0
D16: Total Current Assets | J16: =SUM(J10:J15) -> 537905 | K16: =SUM(K10:K15) -> 666811 | L16: 543017 | M16: 592134 | N16: 587104 | O16: 555023 | P16: 0
D17: Gross PPE | J17: ='Mercator Financials'!F129 -> 0 | K17: ='Mercator Financials'!G129 -> 0 | L17: ='Mercator Financials'!H129 -> 0 | M17: ='Mercator Financials'!I129 -> 2852096 | N17: ='Mercator Financials'!J129 -> 2915498 | O17: ='Mercator Financials'!K129 -> 2985326 | P17: ='Mercator Financials'!L129 -> 0
D18: Accumulated depreciations | J18: ='Mercator Financials'!F130 -> 0 | K18: ='Mercator Financials'!G130 -> 0 | L18: ='Mercator Financials'!H130 -> 0 | M18: ='Mercator Financials'!I130 -> 981668 | N18: ='Mercator Financials'!J130 -> 1009480 | O18: ='Mercator Financials'!K130 -> 1110591 | P18: ='Mercator Financials'!L130 -> 0
D19: Net Plant | J19: ='Mercator Financials'!F4 -> 1402398 | K19: ='Mercator Financials'!G4 -> 1771963 | L19: ='Mercator Financials'!H4 -> 1863291 | M19: ='Mercator Financials'!I4 -> 1870428 | N19: ='Mercator Financials'!J4 -> 1906018 | O19: ='Mercator Financials'!K4 -> 1874735 | P19: ='Mercator Financials'!L4 -> 0
D20: Investment Property | J20: ='Mercator Financials'!F6 -> 80253 | K20: ='Mercator Financials'!G6 -> 78196 | L20: ='Mercator Financials'!H6 -> 51995 | M20: ='Mercator Financials'!I6 -> 52626 | N20: ='Mercator Financials'!J6 -> 35862 | O20: ='Mercator Financials'!K6 -> 18387 | P20: ='Mercator Financials'!L6 -> 0
D21: Intangible Assets | J21: ='Mercator Financials'!F5 -> 16476 | K21: ='Mercator Financials'!G5 -> 9563 | L21: ='Mercator Financials'!H5 -> 4127 | M21: ='Mercator Financials'!I5 -> 3894 | N21: ='Mercator Financials'!J5 -> 3450 | O21: ='Mercator Financials'!K5 -> 3194 | P21: ='Mercator Financials'!L5 -> 0
D22: Deferred Tax Assets | J22: ='Mercator Financials'!F7 -> 8686 | K22: ='Mercator Financials'!G7 -> 8380 | L22: ='Mercator Financials'!H7 -> 8086 | M22: ='Mercator Financials'!I7 -> 8700 | N22: ='Mercator Financials'!J7 -> 12774 | O22: ='Mercator Financials'!K7 -> 20378 | P22: ='Mercator Financials'!L7 -> 0
D23: Loans and Deposits | J23: ='Mercator Financials'!F8+67 -> 520 | K23: ='Mercator Financials'!G8 -> 384 | L23: ='Mercator Financials'!H8 -> 359 | M23: ='Mercator Financials'!I8 -> 77113 | N23: ='Mercator Financials'!J8 -> 65823 | O23: ='Mercator Financials'!K8 -> 50034 | P23: ='Mercator Financials'!L8 -> 0
D24: Available for Sale Financial Assets | J24: ='Mercator Financials'!F9 -> 24235 | K24: ='Mercator Financials'!G9 -> 4824 | L24: ='Mercator Financials'!H9 -> 5473 | M24: ='Mercator Financials'!I9 -> 3959 | N24: ='Mercator Financials'!J9 -> 2628 | O24: ='Mercator Financials'!K9 -> 1069 | P24: ='Mercator Financials'!L9 -> 0
D25: Derivative assets
D26: Total Long-term Assets | J26: =SUM(J19:J25) -> 1532568 | K26: =SUM(K19:K25) -> 1873310 | L26: 1933331 | M26: 2016720 | N26: 2026555 | O26: 1967797 | P26: 0
D27: Total assets | J27: =J26+J16 -> 2070473 | K27: =K26+K16 -> 2540121 | L27: 2476348 | M27: 2608854 | N27: 2613659 | O27: 2522820 | P27: 0
C29: Liabilities
D30: Short-term debt | J30: ='Mercator Financials'!F44 -> 201119 | K30: ='Mercator Financials'!G44 -> 412797 | L30: ='Mercator Financials'!H44 -> 367855 | M30: ='Mercator Financials'!I44 -> 395853 | N30: ='Mercator Financials'!J44 -> 362588 | O30: ='Mercator Financials'!K44 -> 500879 | P30: ='Mercator Financials'!L44 -> 0
D31: Accounts Payable | J31: ='Mercator Financials'!F42 -> 486286 | K31: ='Mercator Financials'!G42 -> 599933 | L31: ='Mercator Financials'!H42 -> 525061 | M31: ='Mercator Financials'!I42 -> 642666 | N31: ='Mercator Financials'!J42 -> 583982 | O31: ='Mercator Financials'!K42 -> 672858 | P31: ='Mercator Financials'!L42 -> 0
D32: Other Current Laibilities | J32: ='Mercator Financials'!F43+'Mercator Financials'!F36 -> 5637 | K32: ='Mercator Financials'!G43+'Mercator Financials'!G36 -> 2995 | L32: ='Mercator Financials'!H43+'Mercator Financials'!H36 -> 3036 | M32: ='Mercator Financials'!I43+'Mercator Financials'!I36 -> 8339 | N32: ='Mercator Financials'!J43+'Mercator Financials'!J36 -> 2532 | O32: ='Mercator Financials'!K43+'Mercator Financials'!K36 -> 2462 | P32: ='Mercator Financials'!L43+'Mercator Financials'!L36 -> 0
D33: Derivative Financial Instruments | J33: ='Mercator Financials'!F45 -> 0 | K33: ='Mercator Financials'!G45 -> 3598 | L33: ='Mercator Financials'!H45 -> 4945 | M33: ='Mercator Financials'!I45 -> 2478 | N33: ='Mercator Financials'!J45 -> 4399 | O33: ='Mercator Financials'!K45 -> 5432 | P33: ='Mercator Financials'!L45 -> 0
D34: Total Current Liabilities | J34: =SUM(J30:J33) -> 693042 | K34: =SUM(K30:K33) -> 1019323 | L34: 900897 | M34: 1049336 | N34: 953501 | O34: 1181631 | P34: 0
D35: Long-term debt | J35: ='Mercator Financials'!F37 -> 635457 | K35: ='Mercator Financials'!G37 -> 622787 | L35: ='Mercator Financials'!H37 -> 683547 | M35: ='Mercator Financials'!I37 -> 674375 | N35: ='Mercator Financials'!J37 -> 822145 | O35: ='Mercator Financials'!K37 -> 593841 | P35: ='Mercator Financials'!L37 -> 0
D36: Unfunded pensions | J36: 0 | K36: 0 | L36: 0 | M36: 0 | N36: 0 | O36: 0 | P36: 0
D37: Deferred tax liability | J37: ='Mercator Financials'!F38 -> 18550 | K37: ='Mercator Financials'!G38 -> 52496 | L37: ='Mercator Financials'!H38 -> 49326 | M37: ='Mercator Financials'!I38 -> 51269 | N37: ='Mercator Financials'!J38 -> 48845 | O37: ='Mercator Financials'!K38 -> 52640 | P37: ='Mercator Financials'!L38 -> 0
D38: Provisions | J38: ='Mercator Financials'!F39 -> 35228 | K38: ='Mercator Financials'!G39 -> 31415 | L38: ='Mercator Financials'!H39 -> 37188 | M38: ='Mercator Financials'!I39 -> 35709 | N38: ='Mercator Financials'!J39 -> 32711 | O38: ='Mercator Financials'!K39 -> 31459 | P38: ='Mercator Financials'!L39 -> 0
D39: Total Non-Current Liabilities | J39: =SUM(J35:J38) -> 689235 | K39: =SUM(K35:K38) -> 706698 | L39: 770061 | M39: 761353 | N39: 903701 | O39: 677940 | P39: 0
D40: Equity | J40: ='Mercator Financials'!F33 -> 688196 | K40: ='Mercator Financials'!G33 -> 814100 | L40: ='Mercator Financials'!H33 -> 805390 | M40: ='Mercator Financials'!I33 -> 798165 | N40: ='Mercator Financials'!J33 -> 756457 | O40: ='Mercator Financials'!K33 -> 663249 | P40: ='Mercator Financials'!L33 -> 0
D41: Total liabilities and equity | J41: =J34+J39+J40 -> 2070473 | K41: =K34+K39+K40 -> 2540121 | L41: 2476348 | M41: 2608854 | N41: 2613659 | O41: 2522820 | P41: 0
D43: Shares | J43: ='Mercator Financials'!F69 -> 3708.050847 | K43: ='Mercator Financials'!G69 -> 3713.272727 | L43: ='Mercator Financials'!H69 -> 3724.912281 | M43: ='Mercator Financials'!I69 -> 3706.829268 | N43: ='Mercator Financials'!J69 -> 3678.235294 | O43: ='Mercator Financials'!K69 -> 3720.818505 | P43: ='Mercator Financials'!L69 -> 0
D45: Test | H45: =AND(J45:P45) -> TRUE | J45: =J27=J41 -> TRUE | K45: TRUE | L45: TRUE | M45: TRUE | N45: TRUE | O45: TRUE | P45: TRUE
B47: Income statement
D48: Revenues | J48: ='Mercator Financials'!F51 -> 2445258 | K48: ='Mercator Financials'!G51 -> 2708560 | L48: ='Mercator Financials'!H51 -> 2643315 | M48: ='Mercator Financials'!I51 -> 2781604 | N48: ='Mercator Financials'!J51 -> 2870971 | O48: ='Mercator Financials'!K51 -> 2873186 | P48: ='Mercator Financials'!L51 -> 0
D49: Cash COGS | J49: ='Mercator Financials'!F179 -> 2190229 | K49: ='Mercator Financials'!G179 -> 2437130 | L49: ='Mercator Financials'!H179 -> 2378094 | M49: ='Mercator Financials'!I179 -> 2525387 | N49: ='Mercator Financials'!J179 -> 2630508 | O49: ='Mercator Financials'!K179 -> 2665472 | P49: ='Mercator Financials'!L179 -> 0
D50: Operating Margin | J50: =J48-J49 -> 255029 | K50: =K48-K49 -> 271430 | L50: 265221 | M50: 256217 | N50: 240463 | O50: 207714 | P50: 0
D51: Administrative expenses | J51: =-'Mercator Financials'!F161 -> 115507 | K51: =-'Mercator Financials'!G161 -> 110313 | L51: =-'Mercator Financials'!H161 -> 109955 | M51: =-'Mercator Financials'!I161 -> 99622 | N51: =-'Mercator Financials'!J161 -> 96855 | O51: =-'Mercator Financials'!K161 -> 130416 | P51: =-'Mercator Financials'!L161 -> 0
D52: EBIITA | J52: =J50-J51 -> 139522 | K52: =K50-K51 -> 161117 | L52: 155266 | M52: 156595 | N52: 143608 | O52: 77298 | P52: 0
D53: Less: Depreciation | J53: ='Mercator Financials'!F176 -> 70338 | K53: ='Mercator Financials'!G176 -> 82729 | L53: ='Mercator Financials'!H176 -> 85674 | M53: ='Mercator Financials'!I176 -> 69119 | N53: ='Mercator Financials'!J176 -> 71905 | O53: ='Mercator Financials'!K176 -> 74237 | P53: ='Mercator Financials'!L176 -> 0
D54: Less: Amortisation | J54: ='Mercator Financials'!F177 -> 10753 | K54: ='Mercator Financials'!G177 -> 11325 | L54: ='Mercator Financials'!H177 -> 10338 | M54: ='Mercator Financials'!I177 -> 9575 | N54: ='Mercator Financials'!J177 -> 9401 | O54: ='Mercator Financials'!K177 -> 7552 | P54: ='Mercator Financials'!L177 -> 0
D55: Less: Impairment | J55: ='Mercator Financials'!F178 -> 31 | K55: ='Mercator Financials'!G178 -> 0 | L55: ='Mercator Financials'!H178 -> 0 | M55: ='Mercator Financials'!I178 -> 7019 | N55: ='Mercator Financials'!J178 -> 9615 | O55: ='Mercator Financials'!K178 -> 57784 | P55: ='Mercator Financials'!L178 -> 0
D56: Other income | J56: ='Mercator Financials'!F149 -> 23041 | K56: ='Mercator Financials'!G149 -> 33264 | L56: ='Mercator Financials'!H149 -> 12588 | M56: ='Mercator Financials'!I149 -> 23623 | N56: ='Mercator Financials'!J149 -> 24154 | O56: ='Mercator Financials'!K149 -> 20128 | P56: ='Mercator Financials'!L149 -> 0
D57: Operating Income (EBIT) | J57: =J52-J53-J54-J55+J56 -> 81441 | K57: =K52-K53-K54-K55+K56 -> 100327 | L57: 71842 | M57: 94505 | N57: 76841 | O57: -42147 | P57: 0
D58: Interest expense | J58: ='Mercator Financials'!F183 -> 51724 | K58: ='Mercator Financials'!G183 -> 58127 | L58: ='Mercator Financials'!H183 -> 46554 | M58: ='Mercator Financials'!I183 -> 44948 | N58: ='Mercator Financials'!J183 -> 53879 | O58: ='Mercator Financials'!K183 -> 50939 | P58: ='Mercator Financials'!L183 -> 0
D59: Interest income | J59: ='Mercator Financials'!F184 -> 14075 | K59: ='Mercator Financials'!G184 -> 9181 | L59: ='Mercator Financials'!H184 -> 7811 | M59: ='Mercator Financials'!I184 -> 3427 | N59: ='Mercator Financials'!J184 -> 3647 | O59: ='Mercator Financials'!K184 -> 3374 | P59: ='Mercator Financials'!L184 -> 0
D60: Translation and Other | J60: =-'Mercator Financials'!F185 -> -10683 | K60: =-'Mercator Financials'!G185 -> 1388 | L60: =-'Mercator Financials'!H185 -> 7903 | M60: =-'Mercator Financials'!I185 -> 12640 | N60: =-'Mercator Financials'!J185 -> 6669 | O60: =-'Mercator Financials'!K185 -> 20567 | P60: =-'Mercator Financials'!L185 -> 0
D61: EBT | J61: =J57-J58+J59-J60 -> 54475 | K61: =K57-K58+K59-K60 -> 49993 | L61: 25196 | M61: 40344 | N61: 19940 | O61: -110279 | P61: 0
D62: Taxes | J62: =-'Mercator Financials'!F63 -> 10661 | K62: =-'Mercator Financials'!G63 -> 9232 | L62: =-'Mercator Financials'!H63 -> 4077 | M62: =-'Mercator Financials'!I63 -> 9957 | N62: =-'Mercator Financials'!J63 -> 7451 | O62: =-'Mercator Financials'!K63 -> -5659 | P62: =-'Mercator Financials'!L63 -> 0
D63: Earnings | J63: =J61-J62 -> 43814 | K63: =K61-K62 -> 40761 | L63: 21119 | M63: 30387 | N63: 12489 | O63: -104620 | P63: 0
D65: Check | J65: ='Mercator Financials'!F64 -> 43814 | K65: ='Mercator Financials'!G64 -> 40761 | L65: ='Mercator Financials'!H64 -> 21119 | M65: ='Mercator Financials'!I64 -> 30387 | N65: ='Mercator Financials'!J64 -> 12489 | O65: ='Mercator Financials'!K64 -> -104620 | P65: ='Mercator Financials'!L64 -> 0
J66: =J65-J63 -> 0 | K66: 0 | L66: 0 | M66: 0 | N66: 0 | O66: 0
B67: Cash Flow Items
C68: Depreciation | J68: ='Mercator Financials'!F176 -> 70338 | K68: ='Mercator Financials'!G176 -> 82729 | L68: ='Mercator Financials'!H176 -> 85674 | M68: ='Mercator Financials'!I176 -> 69119 | N68: ='Mercator Financials'!J176 -> 71905 | O68: ='Mercator Financials'!K176 -> 74237 | P68: ='Mercator Financials'!L176 -> 0
C69: Amortisation | J69: ='Mercator Financials'!F177 -> 10753 | K69: ='Mercator Financials'!G177 -> 11325 | L69: ='Mercator Financials'!H177 -> 10338 | M69: ='Mercator Financials'!I177 -> 9575 | N69: ='Mercator Financials'!J177 -> 9401 | O69: ='Mercator Financials'!K177 -> 7552 | P69: ='Mercator Financials'!L177 -> 0
C70: Imparirment from Cash Flow | J70: ='Mercator Financials'!F178 -> 31 | K70: ='Mercator Financials'!G178 -> 0 | L70: ='Mercator Financials'!H178 -> 0 | M70: ='Mercator Financials'!I178 -> 7019 | N70: ='Mercator Financials'!J178 -> 9615 | O70: ='Mercator Financials'!K178 -> 57784 | P70: ='Mercator Financials'!L178 -> 0
C71: Capital expenditure | J71: =-SUM('Mercator Financials'!F87:F89) -> 198605 | K71: =-SUM('Mercator Financials'!G87:G89) -> 303618 | L71: =-SUM('Mercator Financials'!H87:H89) -> 162154 | M71: =-SUM('Mercator Financials'!I87:I89) -> 136396 | N71: =-SUM('Mercator Financials'!J87:J89) -> 123530 | O71: =-SUM('Mercator Financials'!K87:K89) -> 67720 | P71: =-SUM('Mercator Financials'!L87:L89) -> 0
C72: Deferred tax | J72: =J37-I37--J22+I22 -> 27236 | K72: 51012 | L72: 13296 | M72: 18729 | N72: 19050 | O72: 36947 | P72: 0
C73: Provisions Change | J73: =J38-I38 -> 35228 | K73: -3813 | L73: 5773 | M73: -1479 | N73: -2998 | O73: -1252 | P73: 0
A75: Operating assumptions
A76: Assumptions Part 1: Revenue, Expense and Captial Expenditures
B77: Revenue growth
C78: Historical revenue growth | K78: =IF(K3,K48/J48-1) -> 0.1076786171 | L78: -0.02408844552 | M78: 0.05231650409 | N78: 0.03212786579 | O78: 0.0007715159784 | P78: FALSE | Q78: FALSE | R78: FALSE | S78: FALSE | T78: FALSE | U78: FALSE | V78: FALSE | W78: FALSE | X78: FALSE | Y78: FALSE | Z78: FALSE | AA78: FALSE | AB78: FALSE
C80: Base case growth | P80: 0.02 | Q80: 0.03 | R80: 0.02 | S80: 0.03 | T80: 0.03 | U80: 0.03 | V80: 0.03 | W80: 0.03 | X80: 0.03 | Y80: 0.03 | Z80: 0.03 | AA80: 0.03 | AB80: 0.03
C81: Low case growth | P81: -0.02 | Q81: -0.03 | R81: -0.02 | S81: -0.01 | T81: 0 | U81: 0 | V81: 0 | W81: 0 | X81: 0 | Y81: 0 | Z81: 0 | AA81: 0 | AB81: 0
C82: High case growth | P82: 0.05 | Q82: 0.06 | R82: 0.05 | S82: 0.045 | T82: 0.045 | U82: 0.045 | V82: 0.045 | W82: 0.045 | X82: 0.045 | Y82: 0.045 | Z82: 0.045 | AA82: 0.045 | AB82: 0.045
B83: 1 | C83: =B77 -> Revenue growth | H83: ='Master Scenario page'!D39 -> 3 | J83: =IF(J3,J78,INDEX(J80:J82,$H$83)) -> 0 | K83: 0.1076786171 | L83: -0.02408844552 | M83: 0.05231650409 | N83: 0.03212786579 | O83: 0.0007715159784 | P83: 0.05 | Q83: 0.06 | R83: 0.05 | S83: 0.045 | T83: 0.045 | U83: 0.045 | V83: 0.045 | W83: 0.045 | X83: 0.045 | Y83: 0.045 | Z83: 0.045 | AA83: 0.045 | AB83: 0.045
B85: Cash cost of goods sold as % revenue
C86: Cash COGS | J86: =J49 -> 2190229 | K86: =K49 -> 2437130 | L86: 2378094 | M86: 2525387 | N86: 2630508 | O86: 2665472 | P86: 0 | Q86: 0 | R86: 0 | S86: 0 | T86: 0 | U86: 0 | V86: 0 | W86: 0 | X86: 0 | Y86: 0 | Z86: 0 | AA86: 0 | AB86: 0
C87: Historic COGS | J87: =IF(J3,J86/J48) -> 0.8957046659 | K87: 0.8997880793 | L87: 0.8996634907 | M87: 0.9078887577 | N87: 0.9162433198 | O87: 0.9277060378 | P87: FALSE | Q87: FALSE | R87: FALSE | S87: FALSE | T87: FALSE | U87: FALSE | V87: FALSE | W87: FALSE | X87: FALSE | Y87: FALSE | Z87: FALSE | AA87: FALSE | AB87: FALSE
C89: Base case | P89: 0.915 | Q89: 0.9 | R89: 0.9 | S89: 0.9 | T89: 0.9 | U89: 0.9 | V89: 0.9 | W89: 0.9 | X89: 0.9 | Y89: 0.9 | Z89: 0.9 | AA89: 0.9 | AB89: 0.9
C90: Low case | P90: 0.915 | Q90: 0.91 | R90: 0.9 | S90: 0.895 | T90: 0.89 | U90: 0.885 | V90: 0.88 | W90: 0.88 | X90: 0.88 | Y90: 0.88 | Z90: 0.88 | AA90: 0.88 | AB90: 0.88
C91: High case | P91: 0.928 | Q91: 0.929 | R91: 0.929 | S91: 0.929 | T91: 0.929 | U91: 0.929 | V91: 0.929 | W91: 0.929 | X91: 0.929 | Y91: 0.929 | Z91: 0.929 | AA91: 0.929 | AB91: 0.929
B93: 2 | C93: =C86 -> Cash COGS | H93: ='Master Scenario page'!E39 -> 2 | J93: =IF(J3,J87,INDEX(J89:J91,$H$93)) -> 0.8957046659 | K93: 0.8997880793 | L93: 0.8996634907 | M93: 0.9078887577 | N93: 0.9162433198 | O93: 0.9277060378 | P93: 0.915 | Q93: 0.91 | R93: 0.9 | S93: 0.895 | T93: 0.89 | U93: 0.885 | V93: 0.88 | W93: 0.88 | X93: 0.88 | Y93: 0.88 | Z93: 0.88 | AA93: 0.88 | AB93: 0.88
B95: Admin as Percent of Sales
C96: Historic Admin Percent | J96: =IF(J3,J51/J48) -> 0.04723714226 | K96: =IF(K3,K51/K48) -> 0.04072754526 | L96: 0.04159738813 | M96: 0.03581458755 | N96: 0.03373597295 | O96: 0.04539072653 | P96: FALSE | Q96: FALSE | R96: FALSE | S96: FALSE | T96: FALSE | U96: FALSE | V96: FALSE | W96: FALSE | X96: FALSE | Y96: FALSE | Z96: FALSE | AA96: FALSE | AB96: FALSE
C98: Base Case Admin | P98: 0.035 | Q98: 0.035 | R98: 0.035 | S98: 0.035 | T98: 0.035 | U98: 0.035 | V98: 0.035 | W98: 0.035 | X98: 0.035 | Y98: 0.035 | Z98: 0.035 | AA98: 0.035 | AB98: 0.035
C99: High Admin Expense | P99: 0.045 | Q99: 0.045 | R99: 0.04 | S99: 0.04 | T99: 0.038 | U99: 0.038 | V99: 0.038 | W99: 0.038 | X99: 0.038 | Y99: 0.038 | Z99: 0.038 | AA99: 0.038 | AB99: 0.038
C100: Low Admin Expense | P100: 0.034 | Q100: 0.033 | R100: 0.03 | S100: 0.03 | T100: 0.03 | U100: 0.03 | V100: 0.03 | W100: 0.03 | X100: 0.03 | Y100: 0.03 | Z100: 0.03 | AA100: 0.03 | AB100: 0.03
B102: 13 | C102: Admin Expense Percent | H102: ='Master Scenario page'!F39 -> 3 | J102: =IF(J3,J96,INDEX(J98:J100,$H$102)) -> 0.04723714226 | K102: =IF(K3,K96,INDEX(K98:K100,$H$102)) -> 0.04072754526 | L102: 0.04159738813 | M102: 0.03581458755 | N102: 0.03373597295 | O102: 0.04539072653 | P102: 0.034 | Q102: 0.033 | R102: 0.03 | S102: 0.03 | T102: 0.03 | U102: 0.03 | V102: 0.03 | W102: 0.03 | X102: 0.03 | Y102: 0.03 | Z102: 0.03 | AA102: 0.03 | AB102: 0.03
B104: Other income
C105: Historic | J105: =IF(J3,J56) -> 23041 | K105: 33264 | L105: 12588 | M105: 23623 | N105: 24154 | O105: 20128 | P105: FALSE | Q105: FALSE | R105: FALSE | S105: FALSE | T105: FALSE | U105: FALSE | V105: FALSE | W105: FALSE | X105: FALSE | Y105: FALSE | Z105: FALSE | AA105: FALSE | AB105: FALSE
B106: 3 | C106: Other Income | H106: ='Master Scenario page'!G39 -> 30000 | J106: =IF(J3,J105,$H$106) -> 23041 | K106: 33264 | L106: 12588 | M106: 23623 | N106: 24154 | O106: 20128 | P106: 30000 | Q106: 30000 | R106: 30000 | S106: 30000 | T106: 30000 | U106: 30000 | V106: 30000 | W106: 30000 | X106: 30000 | Y106: 30000 | Z106: 30000 | AA106: 30000 | AB106: 30000
B108: Translation and Other
C109: Historic | J109: =IF(J3,J60) -> -10683 | K109: 1388 | L109: 7903 | M109: 12640 | N109: 6669 | O109: 20567 | P109: FALSE | Q109: FALSE | R109: FALSE | S109: FALSE | T109: FALSE | U109: FALSE | V109: FALSE | W109: FALSE | X109: FALSE | Y109: FALSE | Z109: FALSE | AA109: FALSE | AB109: FALSE
B110: 14 | C110: Translation and Othre | H110: ='Master Scenario page'!H39 -> 50 | J110: =IF(J3,J109,$H$110) -> -10683 | K110: 1388 | L110: 7903 | M110: 12640 | N110: 6669 | O110: 20567 | P110: 50 | Q110: 50 | R110: 50 | S110: 50 | T110: 50 | U110: 50 | V110: 50 | W110: 50 | X110: 50 | Y110: 50 | Z110: 50 | AA110: 50 | AB110: 50
B112: Cap Exp to Sales
C113: Historic | J113: =IF(J3,J71/J48) -> 0.08122046835 | K113: 0.1120957261 | L113: 0.06134493997 | M113: 0.04903501721 | N113: 0.04302725454 | O113: 0.02356965404 | P113: FALSE | Q113: FALSE | R113: FALSE | S113: FALSE | T113: FALSE | U113: FALSE | V113: FALSE | W113: FALSE | X113: FALSE | Y113: FALSE | Z113: FALSE | AA113: FALSE | AB113: FALSE
B114: 4 | C114: =B112 -> Cap Exp to Sales | H114: ='Master Scenario page'!M39 -> 0.02 | J114: =IF(J3,J113,$H$114) -> 0.08122046835 | K114: 0.1120957261 | L114: 0.06134493997 | M114: 0.04903501721 | N114: 0.04302725454 | O114: 0.02356965404 | P114: 0.02 | Q114: 0.02 | R114: 0.02 | S114: 0.02 | T114: 0.02 | U114: 0.02 | V114: 0.02 | W114: 0.02 | X114: 0.02 | Y114: 0.02 | Z114: 0.02 | AA114: 0.02 | AB114: 0.02
A116: Assumptions Part 1: Revenue, Expense and Captial Expenditures
B117: Inventories
C118: Historic inventory % of COGS | J118: =IF(J3,J12/J86) -> 0.1126745194 | K118: 0.1117671195 | L118: 0.122808434 | M118: 0.1275372844 | N118: 0.1178255303 | O118: 0.1004366206 | P118: FALSE | Q118: FALSE | R118: FALSE | S118: FALSE | T118: FALSE | U118: FALSE | V118: FALSE | W118: FALSE | X118: FALSE | Y118: FALSE | Z118: FALSE | AA118: FALSE | AB118: FALSE
B119: 15 | C119: Historic / projected | H119: ='Master Scenario page'!I39 -> 0.1 | J119: =IF(J3,J118,$H$119) -> 0.1126745194 | K119: 0.1117671195 | L119: 0.122808434 | M119: 0.1275372844 | N119: 0.1178255303 | O119: 0.1004366206 | P119: 0.1 | Q119: 0.1 | R119: 0.1 | S119: 0.1 | T119: 0.1 | U119: 0.1 | V119: 0.1 | W119: 0.1 | X119: 0.1 | Y119: 0.1 | Z119: 0.1 | AA119: 0.1 | AB119: 0.1
B121: 16 | C121: Accounts Receivable to Sales | H121: ='Master Scenario page'!J39 -> 0.08 | J121: =IF(J3,J11/J48,$H$121) -> 0.1036904899 | K121: =IF(K3,K11/K48,$H$121) -> 0.128385932 | L121: 0.08729455248 | M121: 0.08335873834 | N121: 0.0847803757 | O121: 0.08353026919 | P121: 0.08 | Q121: 0.08 | R121: 0.08 | S121: 0.08 | T121: 0.08 | U121: 0.08 | V121: 0.08 | W121: 0.08 | X121: 0.08 | Y121: 0.08 | Z121: 0.08 | AA121: 0.08 | AB121: 0.08
B123: 17 | C123: Other Curent Assets | J123: =IF(J3,J15,I123) -> 7948 | K123: 809 | L123: 2639 | M123: 3934 | N123: 6462 | O123: 0 | P123: 0 | Q123: 0 | R123: 0 | S123: 0 | T123: 0 | U123: 0 | V123: 0 | W123: 0 | X123: 0 | Y123: 0 | Z123: 0 | AA123: 0 | AB123: 0
B125: 18 | C125: Accounts Payable to COGS | H125: ='Master Scenario page'!K39 -> 0.22 | J125: =IF(J3,J31/J49,$H$125) -> 0.2220251855 | K125: 0.2461637254 | L125: 0.2207906836 | M125: 0.2544821843 | N125: 0.2220035065 | O125: 0.2524348408 | P125: 0.22 | Q125: 0.22 | R125: 0.22 | S125: 0.22 | T125: 0.22 | U125: 0.22 | V125: 0.22 | W125: 0.22 | X125: 0.22 | Y125: 0.22 | Z125: 0.22 | AA125: 0.22 | AB125: 0.22
B127: 19 | C127: Other Current Liabilities | J127: =IF(J3,J32,I127) -> 5637 | K127: 2995 | L127: 3036 | M127: 8339 | N127: 2532 | O127: 2462 | P127: 2462 | Q127: 2462 | R127: 2462 | S127: 2462 | T127: 2462 | U127: 2462 | V127: 2462 | W127: 2462 | X127: 2462 | Y127: 2462 | Z127: 2462 | AA127: 2462 | AB127: 2462
B129: 20 | C129: Provisions as Percent of Revenues | H129: ='Master Scenario page'!L39 -> 0.014 | J129: =IF(J3,J38/J48,$H$129) -> 0.01440665975 | K129: =IF(K3,K38/K48,$H$129) -> 0.01159841392 | L129: 0.01406869783 | M129: 0.01283755704 | N129: 0.01139370617 | O129: 0.01094916932 | P129: 0.014 | Q129: 0.014 | R129: 0.014 | S129: 0.014 | T129: 0.014 | U129: 0.014 | V129: 0.014 | W129: 0.014 | X129: 0.014 | Y129: 0.014 | Z129: 0.014 | AA129: 0.014 | AB129: 0.014
A131: Assumptions Part 3: Tax and Depreciation
B132: 5 | C132: Depreciation rate | H132: 0.0248 | J132: =IFERROR(IF(J3,J53/J17,H132),FALSE) -> FALSE | K132: FALSE | L132: FALSE | M132: 0.02423445775 | N132: 0.02466302498 | O132: 0.02486730092 | P132: 0.02466302498 | Q132: 0.02486730092 | R132: 0.02466302498 | S132: 0.02486730092 | T132: 0.02466302498 | U132: 0.02486730092 | V132: 0.02466302498 | W132: 0.02486730092 | X132: 0.02466302498 | Y132: 0.02486730092 | Z132: 0.02466302498 | AA132: 0.02486730092 | AB132: 0.02466302498
B134: 20 | C134: Amortisation Rate | H134: 0.15 | J134: =IF(J3,J54/J20,$H$134) -> 0.1339887605 | K134: 0.14482838 | L134: 0.1988268103 | M134: 0.1819442861 | N134: 0.2621437734 | O134: 0.4107249687 | P134: 0.15 | Q134: 0.15 | R134: 0.15 | S134: 0.15 | T134: 0.15 | U134: 0.15 | V134: 0.15 | W134: 0.15 | X134: 0.15 | Y134: 0.15 | Z134: 0.15 | AA134: 0.15 | AB134: 0.15
B136: 6 | C136: Income Tax Rate | H136: 0.2 | J136: =IF(J3,J62/J61,$H$136) -> 0.1957044516 | K136: 0.1846658532 | L136: 0.1618113986 | M136: 0.2468024985 | N136: 0.373671013 | O136: 0.05131530028 | P136: 0.2 | Q136: 0.2 | R136: 0.2 | S136: 0.2 | T136: 0.2 | U136: 0.2 | V136: 0.2 | W136: 0.2 | X136: 0.2 | Y136: 0.2 | Z136: 0.2 | AA136: 0.2 | AB136: 0.2
A138: Assumptions Part 4: Financing Assumptions
C139: Total Cash and Deposits | J139: =IF(J3,J10+J13+J23) -> 24373 | K139: 10384 | L139: 1096 | M139: 111291 | N139: 92964 | O139: 97347 | P139: FALSE | Q139: FALSE | R139: FALSE | S139: FALSE | T139: FALSE | U139: FALSE | V139: FALSE | W139: FALSE | X139: FALSE | Y139: FALSE | Z139: FALSE | AA139: FALSE | AB139: FALSE
B140: 7 | C140: Interest Income Rate | H140: 0.04 | J140: =IF(J59,J59/J139,$H$140) -> 0.5774832807 | K140: 0.8841486903 | L140: 7.126824818 | M140: 0.0307931459 | N140: 0.03923023966 | O140: 0.03465951699 | P140: 0.04 | Q140: 0.04 | R140: 0.04 | S140: 0.04 | T140: 0.04 | U140: 0.04 | V140: 0.04 | W140: 0.04 | X140: 0.04 | Y140: 0.04 | Z140: 0.04 | AA140: 0.04 | AB140: 0.04
J142: =J30+J35 -> 836576 | K142: 1035584 | L142: 1051402 | M142: 1070228 | N142: 1184733 | O142: 1094720 | P142: 0 | Q142: 0 | R142: 0 | S142: 0 | T142: 0 | U142: 0 | V142: 0 | W142: 0 | X142: 0 | Y142: 0 | Z142: 0 | AA142: 0 | AB142: 0
B143: 8 | C143: Interest Expense Rate | H143: 0.05 | J143: =IF(J3,J58/J142,$H$143) -> 0.06182821405 | K143: 0.05612968142 | L143: 0.04427802116 | M143: 0.04199852742 | N143: 0.04547775744 | O143: 0.04653153318 | P143: 0.05 | Q143: 0.05 | R143: 0.05 | S143: 0.05 | T143: 0.05 | U143: 0.05 | V143: 0.05 | W143: 0.05 | X143: 0.05 | Y143: 0.05 | Z143: 0.05 | AA143: 0.05 | AB143: 0.05
B145: 9 | C145: Dividend Payout Ratio | H145: 0.5 | J145: =IF(J3,,$H$145) -> 0 | K145: 0 | L145: 0 | M145: 0 | N145: 0 | O145: 0 | P145: 0.5 | Q145: 0.5 | R145: 0.5 | S145: 0.5 | T145: 0.5 | U145: 0.5 | V145: 0.5 | W145: 0.5 | X145: 0.5 | Y145: 0.5 | Z145: 0.5 | AA145: 0.5 | AB145: 0.5
B147: 9 | C147: Minimum Revenues as Percent of Sales | H147: 0.02 | J147: =$H$147 -> 0.02 | K147: 0.02 | L147: 0.02 | M147: 0.02 | N147: 0.02 | O147: 0.02 | P147: 0.02 | Q147: 0.02 | R147: 0.02 | S147: 0.02 | T147: 0.02 | U147: 0.02 | V147: 0.02 | W147: 0.02 | X147: 0.02 | Y147: 0.02 | Z147: 0.02 | AA147: 0.02 | AB147: 0.02
B149: 10 | C149: Retirement Rate | H149: 0.04 | J149: =IF(J3,,$H$149) -> 0 | K149: 0 | L149: 0 | M149: 0 | N149: 0 | O149: 0 | P149: 0.04 | Q149: 0.04 | R149: 0.04 | S149: 0.04 | T149: 0.04 | U149: 0.04 | V149: 0.04 | W149: 0.04 | X149: 0.04 | Y149: 0.04 | Z149: 0.04 | AA149: 0.04 | AB149: 0.04
B151: 11 | C151: Target debt/Capital Ratio | H151: 0.6 | J151: =$H$151 -> 0.6 | K151: 0.6 | L151: 0.6 | M151: 0.6 | N151: 0.6 | O151: 0.6 | P151: 0.6 | Q151: 0.6 | R151: 0.6 | S151: 0.6 | T151: 0.6 | U151: 0.6 | V151: 0.6 | W151: 0.6 | X151: 0.6 | Y151: 0.6 | Z151: 0.6 | AA151: 0.6 | AB151: 0.6
B153: 12 | C153: New equity issues or buy backs | P153: 0 | Q153: 0 | R153: 0 | S153: 0 | T153: 0 | U153: 0 | V153: 0 | W153: 0 | X153: 0 | Y153: 0 | Z153: 0 | AA153: 0 | AB153: 0
A155: Operating analysis
B156: Revenue
C157: Growth rate | J157: =J83 -> 0 | K157: 0.1076786171 | L157: -0.02408844552 | M157: 0.05231650409 | N157: 0.03212786579 | O157: 0.0007715159784 | P157: 0.05 | Q157: 0.06 | R157: 0.05 | S157: 0.045 | T157: 0.045 | U157: 0.045 | V157: 0.045 | W157: 0.045 | X157: 0.045 | Y157: 0.045 | Z157: 0.045 | AA157: 0.045 | AB157: 0.045
C158: Revenue | J158: =IF(J3,J48,I158*(1+J157)) -> 2445258 | K158: 2708560 | L158: 2643315 | M158: 2781604 | N158: 2870971 | O158: 2873186 | P158: 3016845.3 | Q158: 3197856.018 | R158: 3357748.819 | S158: 3508847.516 | T158: 3666745.654 | U158: 3831749.208 | V158: 4004177.923 | W158: 4184365.929 | X158: 4372662.396 | Y158: 4569432.204 | Z158: 4775056.653 | AA158: 4989934.202 | AB158: 5214481.242
B160: Operating costs
C161: COGS % | J161: =J93 -> 0.8957046659 | K161: 0.8997880793 | L161: 0.8996634907 | M161: 0.9078887577 | N161: 0.9162433198 | O161: 0.9277060378 | P161: 0.915 | Q161: 0.91 | R161: 0.9 | S161: 0.895 | T161: 0.89 | U161: 0.885 | V161: 0.88 | W161: 0.88 | X161: 0.88 | Y161: 0.88 | Z161: 0.88 | AA161: 0.88 | AB161: 0.88
C162: COGS | J162: =IF(J3,J86,J161*J158) -> 2190229 | K162: 2437130 | L162: 2378094 | M162: 2525387 | N162: 2630508 | O162: 2665472 | P162: 2760413.45 | Q162: 2910048.976 | R162: 3021973.937 | S162: 3140418.527 | T162: 3263403.632 | U162: 3391098.049 | V162: 3523676.572 | W162: 3682242.018 | X162: 3847942.909 | Y162: 4021100.339 | Z162: 4202049.855 | AA162: 4391142.098 | AB162: 4588743.493
C164: Admin Cost Percent | J164: =J102 -> 0.04723714226 | K164: 0.04072754526 | L164: 0.04159738813 | M164: 0.03581458755 | N164: 0.03373597295 | O164: 0.04539072653 | P164: 0.034 | Q164: 0.033 | R164: 0.03 | S164: 0.03 | T164: 0.03 | U164: 0.03 | V164: 0.03 | W164: 0.03 | X164: 0.03 | Y164: 0.03 | Z164: 0.03 | AA164: 0.03 | AB164: 0.03
C165: Admin Cost | J165: =J164*J158 -> 115507 | K165: =K164*K158 -> 110313 | L165: 109955 | M165: 99622 | N165: 96855 | O165: 130416 | P165: 102572.7402 | Q165: 105529.2486 | R165: 100732.4646 | S165: 105265.4255 | T165: 110002.3696 | U165: 114952.4763 | V165: 120125.3377 | W165: 125530.9779 | X165: 131179.8719 | Y165: 137082.9661 | Z165: 143251.6996 | AA165: 149698.0261 | AB165: 156434.4372
B167: EBITDA | J167: =J158-J162-J165 -> 139522 | K167: =K158-K162-K165 -> 161117 | L167: 155266 | M167: 156595 | N167: 143608 | O167: 77298 | P167: =P158-P162-P165 -> 153859.1103 | Q167: 182277.793 | R167: 235042.4173 | S167: 263163.5637 | T167: 293339.6523 | U167: 325698.6827 | V167: 360376.013 | W167: 376592.9336 | X167: 393539.6156 | Y167: 411248.8984 | Z167: 429755.0988 | AA167: 449094.0782 | AB167: 469303.3117
B169: Capital expenditures | J169: =J114*J158 -> 198605 | K169: 303618 | L169: 162154 | M169: 136396 | N169: 123530 | O169: 67720 | P169: 60336.906 | Q169: 63957.12036 | R169: 67154.97638 | S169: 70176.95032 | T169: 73334.91308 | U169: 76634.98417 | V169: 80083.55846 | W169: 83687.31859 | X169: 87453.24792 | Y169: 91388.64408 | Z169: 95501.13306 | AA169: 99798.68405 | AB169: 104289.6248
A171: Working capital analysis and Provisions
B172: Accounts Receivable
C173: A/R to Sales | J173: =J121 -> 0.1036904899 | K173: 0.128385932 | L173: 0.08729455248 | M173: 0.08335873834 | N173: 0.0847803757 | O173: 0.08353026919 | P173: 0.08 | Q173: 0.08 | R173: 0.08 | S173: 0.08 | T173: 0.08 | U173: 0.08 | V173: 0.08 | W173: 0.08 | X173: 0.08 | Y173: 0.08 | Z173: 0.08 | AA173: 0.08 | AB173: 0.08
C174: Level of A/R | J174: =J173*J158 -> 253550 | K174: =K173*K158 -> 347741 | L174: 230747 | M174: 231871 | N174: 243402 | O174: 239998 | P174: 241347.624 | Q174: 255828.4814 | R174: 268619.9055 | S174: 280707.8013 | T174: 293339.6523 | U174: 306539.9367 | V174: 320334.2338 | W174: 334749.2743 | X174: 349812.9917 | Y174: 365554.5763 | Z174: 382004.5322 | AA174: 399194.7362 | AB174: 417158.4993
B176: Inventories
C177: Inventories % COGS | J177: =J119 -> 0.1126745194 | K177: 0.1117671195 | L177: 0.122808434 | M177: 0.1275372844 | N177: 0.1178255303 | O177: 0.1004366206 | P177: 0.1 | Q177: 0.1 | R177: 0.1 | S177: 0.1 | T177: 0.1 | U177: 0.1 | V177: 0.1 | W177: 0.1 | X177: 0.1 | Y177: 0.1 | Z177: 0.1 | AA177: 0.1 | AB177: 0.1
C178: Level of inventories | J178: =J177*J162 -> 246783 | K178: 272391 | L178: 292050 | M178: 322081 | N178: 309941 | O178: 267711 | P178: 276041.345 | Q178: 291004.8976 | R178: 302197.3937 | S178: 314041.8527 | T178: 326340.3632 | U178: 339109.8049 | V178: 352367.6572 | W178: 368224.2018 | X178: 384794.2909 | Y178: 402110.0339 | Z178: 420204.9855 | AA178: 439114.2098 | AB178: 458874.3493
B180: Other Current Assets | J180: =J123 -> 7948 | K180: 809 | L180: 2639 | M180: 3934 | N180: 6462 | O180: 0 | P180: 0 | Q180: 0 | R180: 0 | S180: 0 | T180: 0 | U180: 0 | V180: 0 | W180: 0 | X180: 0 | Y180: 0 | Z180: 0 | AA180: 0 | AB180: 0
B182: Accounts Payable
C183: A/P to COGS | J183: =J125 -> 0.2220251855 | K183: 0.2461637254 | L183: 0.2207906836 | M183: 0.2544821843 | N183: 0.2220035065 | O183: 0.2524348408 | P183: 0.22 | Q183: 0.22 | R183: 0.22 | S183: 0.22 | T183: 0.22 | U183: 0.22 | V183: 0.22 | W183: 0.22 | X183: 0.22 | Y183: 0.22 | Z183: 0.22 | AA183: 0.22 | AB183: 0.22
C184: Level of A/P | J184: =J183*J162 -> 486286 | K184: =K183*K162 -> 599933 | L184: 525061 | M184: 642666 | N184: 583982 | O184: 672858 | P184: 607290.9589 | Q184: 640210.7748 | R184: 664834.2661 | S184: 690892.0759 | T184: 717948.799 | U184: 746041.5709 | V184: 775208.8458 | W184: 810093.2439 | X184: 846547.4399 | Y184: 884642.0747 | Z184: 924450.968 | AA184: 966051.2616 | AB184: 1009523.568
C186: Other Current Liabilities | J186: =J127 -> 5637 | K186: 2995 | L186: 3036 | M186: 8339 | N186: 2532 | O186: 2462 | P186: 2462 | Q186: 2462 | R186: 2462 | S186: 2462 | T186: 2462 | U186: 2462 | V186: 2462 | W186: 2462 | X186: 2462 | Y186: 2462 | Z186: 2462 | AA186: 2462 | AB186: 2462
C188: Total Working Capital | J188: =J174+J178+J180-J184-J186 -> 16358 | K188: =K174+K178+K180-K184-K186 -> 18013 | L188: -2661 | M188: -93119 | N188: -26709 | O188: -167611 | P188: =P174+P178+P180-P184-P186 -> -92363.98994 | Q188: -95839.39573 | R188: -96478.96693 | S188: -98604.42193 | T188: -100730.7835 | U188: -102853.8293 | V188: -104968.9548 | W188: -109581.7678 | X188: -114402.1573 | Y188: -119439.4644 | Z188: -124703.4503 | AA188: -130204.3156 | AB188: -135952.7198
C189: Investment in Working Capital | K189: =K188-J188 -> 1655 | L189: =L188-K188 -> -20674 | M189: -90458 | N189: 66410 | O189: -140902 | P189: =P188-O188 -> 75247.01006 | Q189: -3475.405786 | R189: -639.5712036 | S189: -2125.455002 | T189: -2126.361595 | U189: -2123.045734 | V189: -2115.125563 | W189: -4612.812967 | X189: -4820.389551 | Y189: -5037.30708 | Z189: -5263.985899 | AA189: -5500.865264 | AB189: -5748.404201
B191: Provisions
C192: Provisions as Percent of Revenues | J192: =J129 -> 0.01440665975 | K192: 0.01159841392 | L192: 0.01406869783 | M192: 0.01283755704 | N192: 0.01139370617 | O192: 0.01094916932 | P192: 0.014 | Q192: 0.014 | R192: 0.014 | S192: 0.014 | T192: 0.014 | U192: 0.014 | V192: 0.014 | W192: 0.014 | X192: 0.014 | Y192: 0.014 | Z192: 0.014 | AA192: 0.014 | AB192: 0.014
C193: Total Provisions | J193: =IF(J3,J38,J192*J158) -> 35228 | K193: 31415 | L193: 37188 | M193: 35709 | N193: 32711 | O193: 31459 | P193: 42235.8342 | Q193: 44769.98425 | R193: 47008.48346 | S193: 49123.86522 | T193: 51334.43916 | U193: 53644.48892 | V193: 56058.49092 | W193: 58581.12301 | X193: 61217.27355 | Y193: 63972.05086 | Z193: 66850.79314 | AA193: 69859.07883 | AB193: 73002.73738
C194: Change in Provisions | K194: =K193-J193 -> -3813 | L194: =L193-K193 -> 5773 | M194: -1479 | N194: -2998 | O194: -1252 | P194: 10776.8342 | Q194: 2534.150052 | R194: 2238.499213 | S194: 2115.381756 | T194: 2210.573935 | U194: 2310.049762 | V194: 2414.002001 | W194: 2522.632091 | X194: 2636.150535 | Y194: 2754.77731 | Z194: 2878.742288 | AA194: 3008.285691 | AB194: 3143.658548
C196: Pre-tax cash flow | J196: =(J167-J169-J189+J194)*J4 -> 0 | K196: 0 | L196: 0 | M196: 0 | N196: 0 | O196: 0 | P196: 29052.02844 | Q196: 124330.2285 | R196: 170765.5114 | S196: 197227.4501 | T196: 224341.6748 | U196: 0 | V196: 0 | W196: 0 | X196: 0 | Y196: 0 | Z196: 0 | AA196: 0 | AB196: 0
A198: Depreciation and Plant Module
C199: Level of Accumulated Depreciation to Plant | J199: =IF(J212,J228/J212) -> FALSE | K199: FALSE | L199: FALSE | M199: 0.3441917804 | N199: 0.3462461645 | O199: 0.3720166575 | P199: 0.3903021042 | Q199: 0.409190003 | R199: 0.4283051619 | S199: 0.4481262902 | T199: 0.4682643378 | U199: 0.4892294498 | V199: 0.5106238605 | W199: 0.5329974901 | X199: 0.5559450587 | Y199: 0.5800655969 | Z199: 0.6049488351 | AA199: 0.6312555868 | AB199: 0.6585753595
C200: Age from Depreciation Rate | J200: =IF(J132,1/J132) -> FALSE | K200: =IF(K132,1/K132) -> FALSE | L200: FALSE | M200: 41.26355995 | N200: 40.54652667 | O200: 40.21345151 | P200: 40.54652667 | Q200: 40.21345151 | R200: 40.54652667 | S200: 40.21345151 | T200: 40.54652667 | U200: 40.21345151 | V200: 40.54652667 | W200: 40.21345151 | X200: 40.54652667 | Y200: 40.21345151 | Z200: 40.54652667 | AA200: 40.21345151 | AB200: 40.54652667
C201: Last Historic Period | H201: Find Growth | J201: =J2=$F$3 -> FALSE | K201: FALSE | L201: FALSE | M201: FALSE | N201: FALSE | O201: TRUE | P201: FALSE | Q201: FALSE | R201: FALSE | S201: FALSE | T201: FALSE | U201: FALSE | V201: FALSE | W201: FALSE | X201: FALSE | Y201: FALSE | Z201: FALSE | AA201: FALSE | AB201: FALSE
C202: Implied Historic Growth Rate | F202: =SUMIF(201:201,TRUE,199:199) -> 0.3720166575 | G202: =SUMIF(201:201,TRUE,200:200) -> 40.21345151 | H202: =Growth_Find(F202,G202,2) -> 0.04014454844 | J202: =$H$202*NOT(J3) -> 0 | K202: 0 | L202: 0 | M202: 0 | N202: 0 | O202: 0 | P202: 0.04014454844 | Q202: 0.04014454844 | R202: 0.04014454844 | S202: 0.04014454844 | T202: 0.04014454844 | U202: 0.04014454844 | V202: 0.04014454844 | W202: 0.04014454844 | X202: 0.04014454844 | Y202: 0.04014454844 | Z202: 0.04014454844 | AA202: 0.04014454844 | AB202: 0.04014454844
C203: Base Retirements | F203: =find_base(H202,G202) -> 0.01048767165 | J203: =$F$203*NOT(J3) -> 0 | K203: 0 | L203: 0 | M203: 0 | N203: 0 | O203: 0 | P203: 0.01048767165 | Q203: 0.01048767165 | R203: 0.01048767165 | S203: 0.01048767165 | T203: 0.01048767165 | U203: 0.01048767165 | V203: 0.01048767165 | W203: 0.01048767165 | X203: 0.01048767165 | Y203: 0.01048767165 | Z203: 0.01048767165 | AA203: 0.01048767165 | AB203: 0.01048767165
C204: Percent of Base Plant for Returements | F204: =F203 -> 0.01048767165 | G204: Find Base | J204: =IF(J201,$F$204,I204*(1+J202)) -> 0 | K204: 0 | L204: 0 | M204: 0 | N204: 0 | O204: 0.01048767165 | P204: 0.0109086945 | Q204: 0.01134661911 | R204: 0.01180212401 | S204: 0.01227591495 | T204: 0.01276872601 | U204: 0.01328132075 | V204: 0.01381449338 | W204: 0.01436906998 | X204: 0.0149459098 | Y204: 0.0155459066 | Z204: 0.01616999 | AA204: 0.01681912695 | AB204: 0.01749432321
C205: Base Gross Plant For Comuting Retirements | J205: =IF(J3,J209,I205) -> 0 | K205: 0 | L205: 0 | M205: 0 | N205: 2852096 | O205: 2915498 | P205: 2915498 | Q205: 2915498 | R205: 2915498 | S205: 2915498 | T205: 2915498 | U205: 2915498 | V205: 2915498 | W205: 2915498 | X205: 2915498 | Y205: 2915498 | Z205: 2915498 | AA205: 2915498 | AB205: 2915498
C206: Retirements | J206: =J205*J204*NOT(J3) -> 0 | K206: 0 | L206: 0 | M206: 0 | N206: 0 | O206: 0 | P206: 31804.27699 | Q206: 33081.04533 | R206: 34409.06895 | S206: 35790.40549 | T206: 37227.19516 | U206: 38721.66409 | V206: 40276.12781 | W206: 41892.99478 | X206: 43574.77014 | Y206: 45324.05961 | Z206: 47143.57351 | AA206: 49036.13098 | AB206: 51004.66432
C208: Existing Plant
D209: Opening PPE balance | K209: =J212 -> 0 | L209: =K212 -> 0 | M209: 0 | N209: 2852096 | O209: 2915498 | P209: 2985326 | Q209: 2953521.723 | R209: 2920440.678 | S209: 2886031.609 | T209: 2850241.203 | U209: 2813014.008 | V209: 2774292.344 | W209: 2734016.216 | X209: 2692123.221 | Y209: 2648548.451 | Z209: 2603224.392 | AA209: 2556080.818 | AB209: 2507044.687
D210: Add: CAPEX | J210: =IF(J3,J169) -> 198605 | K210: 303618 | L210: 162154 | M210: 136396 | N210: 123530 | O210: 67720 | P210: FALSE | Q210: FALSE | R210: FALSE | S210: FALSE | T210: FALSE | U210: FALSE | V210: FALSE | W210: FALSE | X210: FALSE | Y210: FALSE | Z210: FALSE | AA210: FALSE | AB210: FALSE
D211: Less: retirement | J211: =J206 -> 0 | K211: =K206 -> 0 | L211: 0 | M211: 0 | N211: 0 | O211: 0 | P211: 31804.27699 | Q211: 33081.04533 | R211: 34409.06895 | S211: 35790.40549 | T211: 37227.19516 | U211: 38721.66409 | V211: 40276.12781 | W211: 41892.99478 | X211: 43574.77014 | Y211: 45324.05961 | Z211: 47143.57351 | AA211: 49036.13098 | AB211: 51004.66432
D212: Closing balance | J212: =IF(J3,J17,J209+J210-J211) -> 0 | K212: 0 | L212: 0 | M212: 2852096 | N212: 2915498 | O212: 2985326 | P212: 2953521.723 | Q212: 2920440.678 | R212: 2886031.609 | S212: 2850241.203 | T212: 2813014.008 | U212: 2774292.344 | V212: 2734016.216 | W212: 2692123.221 | X212: 2648548.451 | Y212: 2603224.392 | Z212: 2556080.818 | AA212: 2507044.687 | AB212: 2456040.023
C214: =C132 -> Depreciation rate | J214: =J132 -> FALSE | K214: FALSE | L214: FALSE | M214: 0.02423445775 | N214: 0.02466302498 | O214: 0.02486730092 | P214: 0.02466302498 | Q214: 0.02486730092 | R214: 0.02466302498 | S214: 0.02486730092 | T214: 0.02466302498 | U214: 0.02486730092 | V214: 0.02466302498 | W214: 0.02486730092 | X214: 0.02466302498 | Y214: 0.02486730092 | Z214: 0.02466302498 | AA214: 0.02486730092 | AB214: 0.02466302498
C215: Existing Depreciation | J215: =IF(J3,J53,AVERAGE(J209,J212)*J214) -> 70338 | K215: 82729 | L215: 85674 | M215: 69119 | N215: 71905 | O215: 74237 | P215: 73234.97487 | Q215: 73034.79532 | R215: 71602.58552 | S215: 71322.8111 | T215: 69836.50237 | U215: 69470.61421 | V215: 67925.77581 | W215: 67466.72113 | X215: 65858.55943 | Y215: 65298.70784 | Z215: 63622.03663 | AA215: 62953.13278 | AB215: 61202.34109
C217: New Plant
D218: Opening Balance | J218: =I220 -> 0 | K218: =J220 -> 0 | L218: 0 | M218: 0 | N218: 0 | O218: 0 | P218: 0 | Q218: 60336.906 | R218: 124294.0264 | S218: 191449.0027 | T218: 261625.9531 | U218: 334960.8661 | V218: 411595.8503 | W218: 491679.4088 | X218: 575366.7273 | Y218: 662819.9753 | Z218: 754208.6193 | AA218: 849709.7524 | AB218: 949508.4365
D219: Add: Capital Expenditures | J219: =IF(NOT(J3),J169) -> FALSE | K219: FALSE | L219: FALSE | M219: FALSE | N219: FALSE | O219: FALSE | P219: 60336.906 | Q219: 63957.12036 | R219: 67154.97638 | S219: 70176.95032 | T219: 73334.91308 | U219: 76634.98417 | V219: 80083.55846 | W219: 83687.31859 | X219: 87453.24792 | Y219: 91388.64408 | Z219: 95501.13306 | AA219: 99798.68405 | AB219: 104289.6248
D220: Closing Plant | J220: =J218+J219 -> 0 | K220: =K218+K219 -> 0 | L220: 0 | M220: 0 | N220: 0 | O220: 0 | P220: 60336.906 | Q220: 124294.0264 | R220: 191449.0027 | S220: 261625.9531 | T220: 334960.8661 | U220: 411595.8503 | V220: 491679.4088 | W220: 575366.7273 | X220: 662819.9753 | Y220: 754208.6193 | Z220: 849709.7524 | AA220: 949508.4365 | AB220: 1053798.061
C222: Depreciation Rate | J222: =J214 -> FALSE | K222: =K214 -> FALSE | L222: FALSE | M222: 0.02423445775 | N222: 0.02466302498 | O222: 0.02486730092 | P222: 0.02466302498 | Q222: 0.02486730092 | R222: 0.02466302498 | S222: 0.02486730092 | T222: 0.02466302498 | U222: 0.02486730092 | V222: 0.02466302498 | W222: 0.02486730092 | X222: 0.02466302498 | Y222: 0.02486730092 | Z222: 0.02466302498 | AA222: 0.02486730092 | AB222: 0.02466302498
C223: Depreciation on New Plant | J223: =J222*AVERAGE(J218,J220) -> 0 | K223: =K222*AVERAGE(K218,K220) -> 0 | L223: 0 | M223: 0 | N223: 0 | O223: 0 | P223: 744.0453099 | Q223: 2295.636477 | R223: 3893.589107 | S223: 5633.375634 | T223: 7356.817812 | U223: 9282.425262 | V223: 11138.75014 | W223: 13267.27868 | X223: 15268.71479 | Y223: 17618.83824 | Z223: 19778.73943 | AA223: 22370.85007 | AB223: 24703.7991
C225: Depreciation expense | J225: =J223+J215 -> 70338 | K225: =K223+K215 -> 82729 | L225: 85674 | M225: 69119 | N225: 71905 | O225: 74237 | P225: 73979.02018 | Q225: 75330.4318 | R225: 75496.17463 | S225: 76956.18673 | T225: 77193.32018 | U225: 78753.03947 | V225: 79064.52594 | W225: 80733.99981 | X225: 81127.27422 | Y225: 82917.54608 | Z225: 83400.77606 | AA225: 85323.98285 | AB225: 85906.14018
C227: Gross Plant | J227: =J212+J220 -> 0 | K227: =K212+K220 -> 0 | L227: 0 | M227: 2852096 | N227: 2915498 | O227: 2985326 | P227: =P212+P220 -> 3013858.629 | Q227: 3044734.704 | R227: 3077480.611 | S227: 3111867.156 | T227: 3147974.874 | U227: 3185888.194 | V227: 3225695.625 | W227: 3267489.949 | X227: 3311368.427 | Y227: 3357433.011 | Z227: 3405790.571 | AA227: 3456553.124 | AB227: 3509838.084
C228: Accumulated depreciation | J228: =IF(J3,J18,I228+J225-J211) -> 0 | K228: 0 | L228: 0 | M228: 981668 | N228: 1009480 | O228: 1110591 | P228: 1152765.743 | Q228: 1195015.13 | R228: 1236102.235 | S228: 1277268.017 | T228: 1317234.142 | U228: 1357265.517 | V228: 1396053.915 | W228: 1434894.92 | X228: 1472447.424 | Y228: 1510040.911 | Z228: 1546298.113 | AA228: 1582585.965 | AB228: 1617487.441
C229: Net Plant | J229: =IF(J3,J19,J212+J220-J228) -> 1402398 | K229: 1771963 | L229: 1863291 | M229: 1870428 | N229: 1906018 | O229: 1874735 | P229: 1861092.886 | Q229: 1849719.574 | R229: 1841378.376 | S229: 1834599.14 | T229: 1830740.733 | U229: 1828622.677 | V229: 1829641.71 | W229: 1832595.029 | X229: 1838921.002 | Y229: 1847392.1 | Z229: 1859492.457 | AA229: 1873967.159 | AB229: 1892350.643
C231: Depreciation Rate on Net Plant | J231: =J225/J229 -> 0.05015551933 | K231: =K225/K229 -> 0.04668776944 | L231: 0.0459799355 | M231: 0.03695357426 | N231: 0.03772524709 | O231: 0.03959866328 | P231: 0.03975031055 | Q231: 0.04072532552 | R231: 0.04099981601 | S231: 0.04194713988 | T231: 0.04216507494 | U231: 0.04306686144 | V231: 0.04321311955 | W231: 0.04405446842 | X231: 0.0441167805 | Y231: 0.04488356644 | Z231: 0.04485136562 | AA231: 0.04553120499 | AB231: 0.04539652336
C233: Intangible Assets
D234: Opening Balance | K234: =J237 -> 16476 | L234: =K237 -> 9563 | M234: 4127 | N234: 3894 | O234: 3450 | P234: 3194 | Q234: 1882.14445 | R234: 1109.10073 | S234: 653.5653671 | T234: 385.1297521 | U234: 226.9473467 | V234: 133.7344048 | W234: 78.8063456 | X234: 46.43861177 | Y234: 27.3651144 | Z234: 16.12557864 | AA234: 9.50240086 | AB234: 5.599527564
D235: Less: Amortisation Expense | K235: =MIN(K240,K234) -> 11325 | L235: =MIN(L240,L234) -> 9563 | M235: 4127 | N235: 3894 | O235: 3450 | P235: 1311.85555 | Q235: 773.0437203 | R235: 455.5353625 | S235: 268.435615 | T235: 158.1824054 | U235: 93.21294189 | V235: 54.92805925 | W235: 32.36773383 | X235: 19.07349737 | Y235: 11.23953576 | Z235: 6.623177784 | AA235: 3.902873296 | AB235: 2.299865784
D236: Add: New Intangible Asets
D237: Closing Balance | J237: =IF(J3,J21,J234-J235+J236) -> 16476 | K237: 9563 | L237: 4127 | M237: 3894 | N237: 3450 | O237: 3194 | P237: 1882.14445 | Q237: 1109.10073 | R237: 653.5653671 | S237: 385.1297521 | T237: 226.9473467 | U237: 133.7344048 | V237: 78.8063456 | W237: 46.43861177 | X237: 27.3651144 | Y237: 16.12557864 | Z237: 9.50240086 | AA237: 5.599527564 | AB237: 3.29966178
D239: Amortisation Rate | J239: =IF(J3,J134,I239) -> 0.1339887605 | K239: 0.14482838 | L239: 0.1988268103 | M239: 0.1819442861 | N239: 0.2621437734 | O239: 0.4107249687 | P239: 0.4107249687 | Q239: 0.4107249687 | R239: 0.4107249687 | S239: 0.4107249687 | T239: 0.4107249687 | U239: 0.4107249687 | V239: 0.4107249687 | W239: 0.4107249687 | X239: 0.4107249687 | Y239: 0.4107249687 | Z239: 0.4107249687 | AA239: 0.4107249687 | AB239: 0.4107249687
D240: Amortisation Expense | J240: =IF(J3,J54,J239*J234) -> 10753 | K240: 11325 | L240: 10338 | M240: 9575 | N240: 9401 | O240: 7552 | P240: 1311.85555 | Q240: 773.0437203 | R240: 455.5353625 | S240: 268.435615 | T240: 158.1824054 | U240: 93.21294189 | V240: 54.92805925 | W240: 32.36773383 | X240: 19.07349737 | Y240: 11.23953576 | Z240: 6.623177784 | AA240: 3.902873296 | AB240: 2.299865784
C242: After Tax Free Cash Flow
D243: Income tax rate | J243: =J136 -> 0.1957044516 | K243: 0.1846658532 | L243: 0.1618113986 | M243: 0.2468024985 | N243: 0.373671013 | O243: 0.05131530028 | P243: 0.2 | Q243: 0.2 | R243: 0.2 | S243: 0.2 | T243: 0.2 | U243: 0.2 | V243: 0.2 | W243: 0.2 | X243: 0.2 | Y243: 0.2 | Z243: 0.2 | AA243: 0.2 | AB243: 0.2
D244: EBIT | J244: =J167-J225-J240 -> 58431 | K244: 67063 | L244: 59254 | M244: 77901 | N244: 62302 | O244: -4491 | P244: 78568.23457 | Q244: 106174.3175 | R244: 159090.7073 | S244: 185938.9413 | T244: 215988.1497 | U244: 246852.4303 | V244: 281256.559 | W244: 295826.5661 | X244: 312393.2679 | Y244: 328320.1127 | Z244: 346347.6995 | AA244: 363766.1925 | AB244: 383394.8717
D245: EBIT*tax rate | J245: =J244*$H$136 -> 11686.2 | K245: 13412.6 | L245: 11850.8 | M245: 15580.2 | N245: 12460.4 | O245: -898.2 | P245: 15713.64691 | Q245: 21234.8635 | R245: 31818.14147 | S245: 37187.78827 | T245: 43197.62995 | U245: 49370.48606 | V245: 56251.31181 | W245: 59165.31322 | X245: 62478.65359 | Y245: 65664.02255 | Z245: 69269.53991 | AA245: 72753.2385 | AB245: 76678.97434
B247: Free cash flow | J247: =(J196-J245)*J4 -> 0 | K247: 0 | L247: 0 | M247: 0 | N247: 0 | O247: 0 | P247: 13338.38153 | Q247: 103095.365 | R247: 138947.3699 | S247: 160039.6619 | T247: 181144.0448 | U247: 0 | V247: 0 | W247: 0 | X247: 0 | Y247: 0 | Z247: 0 | AA247: 0 | AB247: 0
A249: Financing
B250: Cash, Loans and Deposits | J250: =IF(J3,J10+J13+J23+J24) -> 48608 | K250: 15208 | L250: 6569 | M250: 115250 | N250: 95592 | O250: 98416 | P250: FALSE | Q250: FALSE | R250: FALSE | S250: FALSE | T250: FALSE | U250: FALSE | V250: FALSE | W250: FALSE | X250: FALSE | Y250: FALSE | Z250: FALSE | AA250: FALSE | AB250: FALSE
B251: Cash Balance as Percent of Revenues | J251: =J147 -> 0.02 | K251: 0.02 | L251: 0.02 | M251: 0.02 | N251: 0.02 | O251: 0.02 | P251: 0.02 | Q251: 0.02 | R251: 0.02 | S251: 0.02 | T251: 0.02 | U251: 0.02 | V251: 0.02 | W251: 0.02 | X251: 0.02 | Y251: 0.02 | Z251: 0.02 | AA251: 0.02 | AB251: 0.02
B252: Minimum Cash Balance | J252: =J251*J158 -> 48905.16 | K252: 54171.2 | L252: 52866.3 | M252: 55632.08 | N252: 57419.42 | O252: 57463.72 | P252: 60336.906 | Q252: 63957.12036 | R252: 67154.97638 | S252: 70176.95032 | T252: 73334.91308 | U252: 76634.98417 | V252: 80083.55846 | W252: 83687.31859 | X252: 87453.24792 | Y252: 91388.64408 | Z252: 95501.13306 | AA252: 99798.68405 | AB252: 104289.6248
B253: Opening Balance | J253: =J257 -> 0 | K253: =K257 -> 48608 | L253: 15208 | M253: 6569 | N253: 115250 | O253: 95592 | P253: 98416 | Q253: 70544.37183 | R253: 70544.37183 | S253: 70544.37183 | T253: 70544.37183 | U253: 73334.91308 | V253: 76634.98417 | W253: 80083.55846 | X253: 83687.31859 | Y253: 87453.24792 | Z253: 91388.64408 | AA253: 95501.13306 | AB253: 99798.68405
B254: Available for Drawdowns | J254: =J253-J252 -> -48905.16 | K254: =K253-K252 -> -5563.2 | L254: -37658.3 | M254: -49063.08 | N254: 57830.58 | O254: 38128.28 | P254: 38079.094 | Q254: 6587.251473 | R254: 3389.395455 | S254: 367.4215183 | T254: -2790.541246 | U254: -3300.071089 | V254: -3448.574288 | W254: -3603.76013 | X254: -3765.929336 | Y254: -3935.396156 | Z254: -4112.488984 | AA254: -4297.550988 | AB254: -4490.940782
B256: Cash accounts
C257: Opening balance | J257: =I260 -> 0 | K257: =J260 -> 48608 | L257: =K260 -> 15208 | M257: 6569 | N257: 115250 | O257: 95592 | P257: 98416 | Q257: 70544.37183 | R257: 70544.37183 | S257: 70544.37183 | T257: 70544.37183 | U257: 73334.91308 | V257: 76634.98417 | W257: 80083.55846 | X257: 83687.31859 | Y257: 87453.24792 | Z257: 91388.64408 | AA257: 95501.13306 | AB257: 99798.68405
C258: Add: positive cash | J258: =J326 -> 0 | K258: =K326 -> 0 | L258: 0 | M258: 0 | N258: 0 | O258: 0 | P258: 0 | Q258: 0 | R258: 0 | S258: 0 | T258: 0 | U258: 0 | V258: 0 | W258: 0 | X258: 0 | Y258: 0 | Z258: 0 | AA258: 0 | AB258: 133798.5313
C259: Less: cash used (for funding negative cash flow) | J259: =J323 -> -48905.16 | K259: =K323 -> -5563.2 | L259: -37658.3 | M259: -49063.08 | N259: 57830.58 | O259: 0 | P259: 27871.62817 | Q259: 0 | R259: 0 | S259: 0 | T259: -2790.541246 | U259: -3300.071089 | V259: -3448.574288 | W259: -3603.76013 | X259: -3765.929336 | Y259: -3935.396156 | Z259: -4112.488984 | AA259: -4297.550988 | AB259: -4490.940782
C260: Closing balance | J260: =IF(J3,J250,J257+J258-J259) -> 48608 | K260: 15208 | L260: 6569 | M260: 115250 | N260: 95592 | O260: 98416 | P260: 70544.37183 | Q260: 70544.37183 | R260: 70544.37183 | S260: 70544.37183 | T260: 73334.91308 | U260: 76634.98417 | V260: 80083.55846 | W260: 83687.31859 | X260: 87453.24792 | Y260: 91388.64408 | Z260: 95501.13306 | AA260: 99798.68405 | AB260: 238088.1561
... 201 more rows

Sheet Transation Assumptions
A2: Transaction Assumptions
B3: Acquisition Year | E3: 2016 | G3: IRR | H3: ='Acquisition model'!H165 -> 0.2890619645
B4: Match column number acquisition year | E4: =MATCH(E3,'Financial model'!2:2) -> 19
B5: Current Stock Price | E5: 140
B6: Shares | E6: =INDEX('Financial model'!427:427,'Transation Assumptions'!E4) -> 3720.818505
B7: Market Capitalisation | E7: =E6*E5 -> 520914.5907
B8: Consideration in Earn Out
B10: Equity Book Value | E10: =INDEX('Financial model'!334:334,'Transation Assumptions'!E4) -> 832450.9211
B11: EBITDA | E11: =INDEX('Financial model'!307:307,'Transation Assumptions'!E4+1) -> 293339.6523
B12: Earnings | E12: =INDEX('Financial model'!299:299,'Transation Assumptions'!E4+1) -> 152593.3147
B14: Consideration | E14: =F14*1000 -> 630000 | F14: 630
B15: Synergies | E15: =F15*1000 -> 43000 | F15: 43
B16: Cost ot Achieve | E16: 20000
B17: Synergy Timing | F17: 1 | G17: 2 | H17: 3 | I17: 4 | J17: 5 | K17: 6
B18: Timing Factor | F18: 0.4 | G18: 0.7 | H18: 0.9 | I18: 1 | J18: 1.02 | K18: 1.02
B20: Premium | E20: =E14/E7-1 -> 0.2094113146
B22: EV/EBITDA | E22: =E61/E11 -> 4.958756815
B23: P/E Ratio | E23: =E14/E12 -> 4.128621239
B25: Holding Period | E25: 10
B26: Exit period | E26: =E3+E25 -> 2026
B27: Exit EV/EBITDA Multiple | E27: 5
B29: Exchange of shares (tax shield advantage) | E29: TRUE | H29: If true than tax rate is applicable on higher acquired assets (FV in PPA)
B31: EBITDA Sensitivity
C32: Beginning Period of Sensitivity | E32: 4
C33: EBITDA Sensitivity Factor | E33: 1
A35: Financing Assumptions | E35: Amount | F35: Tenor | G35: Rate | H35: Fee | I35: cash sweep % | J35: Debt/EBITDA
B36: Existing Debt | E36: =INDEX('Financial model'!442:442,'Transation Assumptions'!E4) -> 906043.433
B38: Debt retired in transaction | E38: 800000 | M38: portion of existing debt repaid to existing banks before transaction concludes
B40: Senior debt A | E40: =K40*100000 -> 500000 | F40: 5 | G40: 0.05 | H40: 0.0125 | J40: =E40/$E$11 -> 1.704508736 | K40: 5
B41: Senior debt B | E41: =K41*100000 -> 300000 | F41: 6 | G41: 0.06 | H41: 0.0125 | I41: 0.8 | J41: =E41/$E$11 -> 1.022705242 | K41: 3
B42: Subordinated debt C | E42: =K42*100000 -> 200000 | F42: =E25 -> 10 | G42: 0.11 | H42: 0.01 | J42: =E42/$E$11 -> 0.6818034944 | K42: 2
C43: Total | E43: =SUM(E40:E42) -> 1000000 | J43: =SUM(J40:J42) -> 3.409017472
B44: Total Debt Fees | F44: =SUMPRODUCT(E40:E42,H40:H42) -> 12000
B45: Advisory fees | E45: 0.02 | F45: =E14*E45 -> 12600
A47: Assumptions for Acquiring Company
B48: Market Capital | E48: 2000000
B49: Shares | E49: 200000
B50: Implied Price | E50: =E48/E49 -> 10
B51: P/E Ratio | E51: 11
B52: Implied Earnings | E52: =E48/E51 -> 181818.1818
B53: Assumed Growth for Acquiring Company | E53: =G53/100 -> 0.06 | G53: 6
A55: Sources and Use of funds
B56: Uses of funds
C57: Consideration | E57: =E14 -> 630000
C58: debt retired | E58: =E38 -> 800000
C59: debt fees | E59: =F44 -> 12000
C60: advisory fees | E60: =F45 -> 12600
D61: Total uses of funds | E61: =SUM(E57:E60) -> 1454600
C63: senior debt A (Amortising) | E63: =E40 -> 500000
C64: senior debt B (Bullit) | E64: =E41 -> 300000
C65: senior debt C (Capitalizing debt) | E65: =E42 -> 200000
C66: equity | E66: =E61-SUM(E63:E65) -> 454600
D67: Total sources of funds | E67: =SUM(E63:E66) -> 1454600
E69: =E61=E67 -> TRUE
C71: Shares of Acquiring Company Issued | E71: =E66/E50 -> 45460
A73: Accounting (PPA accounting)
B74: Intangibles | E74: 3000
B75: Inventory write down | E75: -70000
B76: PPE write down | E76: -200000
A79: Goodwill analysis
B80: Consideration | E80: =F14*1000 -> 630000
B81: less existing bookvalue Equity | E81: =-E10 -> -832450.9211
B82: Net amount totalised | E82: =SUM(E80:E81) -> -202450.9211
B83: less intangibles | E83: =-E74 -> -3000
B84: add Inventory write down | E84: =-E75 -> 70000
B85: less PP write up | E85: =-E76 -> 200000
B86: Total goodwill | E86: =SUM(E82:E85) -> 64549.07889
A88: Enterprise Value Reconciliation (Items should be at Market Value)
B89: Consideration | E89: =E57 -> 630000
B90: Less: Cash | E90: =-G113 -> -70544.37183
B91: Less: Investment Property | E91: =-G122 -> -18387
B92: Less: Derivative Assets | E92: =-G125 -> -1
B93: Add: Existing Debt | E93: =G132 -> 906043.433
B94: Add: Derivative Liabilities | E94: =G136 -> 58072
B95: Add: Pensions | E95: =G137 -> 0
B96: Add: Fees | E96: =E59+E60 -> 24600
C97: Total | E97: =SUM(E89:E96) -> 1529783.061
A99: Enterprise Value from Equity Issues
B100: Equity Issued | E100: =E66 -> 454600
B101: Add: Debt Issued | E101: =SUM(E63:E65) -> 1000000
B102: Add: Remaining Debt | E102: =O132 -> 106043.433
B103: Less: Cash | E103: =E90 -> -70544.37183
B104: Less: Investment Property | E104: =E91 -> -18387
B105: Less: Derivative Assets | E105: =E92 -> -1
B106: Add: Derivative Liabilities | E106: =E94 -> 58072
B107: Add: Pensions | E107: =E95 -> 0
C108: Total Enterprise Value | E108: =SUM(E100:E107) -> 1529783.061
A111: Proforma Balance Sheet | G111: Existing | H111: Write up/down | I111: Goodwill | J111: Debt Retirement | K111: New debt | L111: Equity eliminated | M111: New Equity | N111: Total Adjustments | O111: Pro-Forma
B112: Assets
C113: Cash, Loans and Depoists | G113: =INDEX('Financial model'!337:337,'Transation Assumptions'!$E$4) -> 70544.37183 | N113: =SUM(H113:M113) -> 0 | O113: =N113+G113 -> 70544.37183
C114: Accounts Receivable | G114: =INDEX('Financial model'!338:338,'Transation Assumptions'!$E$4) -> 280707.8013 | N114: =SUM(H114:M114) -> 0 | O114: =N114+G114 -> 280707.8013
C115: Inventories | G115: =INDEX('Financial model'!339:339,'Transation Assumptions'!$E$4) -> 314041.8527 | H115: =E75 -> -70000 | N115: -70000 | O115: 244041.8527
C116: Other Current Assets | G116: =INDEX('Financial model'!340:340,'Transation Assumptions'!$E$4) -> 0 | N116: 0 | O116: 0
C117: Gross PPE | G117: =INDEX('Financial model'!341:341,'Transation Assumptions'!$E$4) -> 3111867.156 | H117: =E76 -> -200000 | N117: -200000 | O117: =N117+G117 -> 2911867.156
C118: Accumulated Depreciation | G118: =INDEX('Financial model'!342:342,'Transation Assumptions'!$E$4) -> 1277268.017 | N118: 0 | O118: 1277268.017
C119: Net Plant | G119: =INDEX('Financial model'!343:343,'Transation Assumptions'!$E$4) -> 1834599.14 | N119: =N117 -> -200000 | O119: 1634599.14
C120: Intangible Assets | G120: =INDEX('Financial model'!344:344,'Transation Assumptions'!$E$4) -> 385.1297521 | H120: =E74 -> 3000 | N120: 3000 | O120: 3385.129752
C121: Goodwill | I121: =MAX(E86,0) -> 64549.07889 | N121: 64549.07889 | O121: 64549.07889
C122: Investment Property | G122: =INDEX('Financial model'!345:345,'Transation Assumptions'!$E$4) -> 18387 | N122: 0 | O122: 18387
C123: Deferred Tax Assets | G123: =INDEX('Financial model'!346:346,'Transation Assumptions'!$E$4) -> 20378 | N123: 0 | O123: 20378
C124: Unamortised Debt Issuance Costs | K124: =E59 -> 12000 | N124: 12000 | O124: 12000
C125: Derivative assets | G125: =INDEX('Financial model'!347:347,'Transation Assumptions'!$E$4) -> 1 | N125: 0 | O125: 1
C126: Total assets | G126: =INDEX('Financial model'!348:348,'Transation Assumptions'!$E$4) -> 2539044.295 | N126: =SUM(N113:N125) -> -390450.9211 | O126: 2148593.374
G128: =INDEX('Financial model'!350:350,'Transation Assumptions'!$E$4) -> 0
B129: Liabilities | G129: =INDEX('Financial model'!351:351,'Transation Assumptions'!$E$4) -> 0
C130: Accounts Payable | G130: =INDEX('Financial model'!352:352,'Transation Assumptions'!$E$4) -> 690892.0759 | N130: =SUM(H130:M130) -> 0 | O130: =N130+G130 -> 690892.0759
C131: Other Current Liabilities | G131: =INDEX('Financial model'!353:353,'Transation Assumptions'!$E$4) -> 2462 | N131: =SUM(H131:M131) -> 0 | O131: 2462
C132: Total debt | G132: =INDEX('Financial model'!354:354,'Transation Assumptions'!$E$4) -> 906043.433 | J132: =-E58 -> -800000 | N132: -800000 | O132: 106043.433
C133: Senior A | K133: =E63 -> 500000 | N133: 500000 | O133: 500000
C134: Senior B | K134: =E64 -> 300000 | N134: 300000 | O134: 300000
C135: Capitalised C | K135: =E65 -> 200000 | N135: 200000 | O135: 200000
C136: Derivative Liabilities | G136: =INDEX('Financial model'!355:355,'Transation Assumptions'!$E$4) -> 58072 | N136: 0 | O136: 58072
C137: Unfunded pensions | G137: =INDEX('Financial model'!356:356,'Transation Assumptions'!$E$4) -> 0 | N137: 0 | O137: 0
C138: Provisions | G138: =INDEX('Financial model'!357:357,'Transation Assumptions'!$E$4) -> 49123.86522 | N138: 0 | O138: 49123.86522
C139: Equity | G139: =INDEX('Financial model'!358:358,'Transation Assumptions'!$E$4) -> 832450.9211 | L139: =-G139 -> -832450.9211 | M139: =E66-E60+MAX(-E86,0) -> 442000 | N139: -390450.9211 | O139: 442000
C140: Total liabilities and equity | G140: =INDEX('Financial model'!359:359,'Transation Assumptions'!$E$4) -> 2539044.295 | N140: =SUM(N130:N139) -> -190450.9211 | O140: 2348593.374
C142: Difference | N142: =N140-N126 -> 200000 | O142: =O140-O126 -> 200000
C143: Test | N143: =N142=0 -> FALSE | O143: =O142=0 -> FALSE
F150: =IFERROR('Acquisition model'!H165,FALSE) -> 0.2890619645 | G150: 4 | H150: 5 | I150: 6 | J150: 7 | K150: 8
F151: 2 | G151: FALSE | H151: -0.7701176957 | I151: -0.2748598818 | J151: -0.0005949228875 | K151: 0.2131746887
F152: 3 | G152: FALSE | H152: -0.30163768 | I152: -0.05556228977 | J152: 0.1036265899 | K152: 0.2267184739
F153: 4 | G153: -0.4660004638 | H153: -0.1183738535 | I153: 0.03033346164 | J153: 0.1333326825 | K153: 0.2140762543
F154: 5 | G154: -0.2094004095 | H154: -0.03276392778 | I154: 0.06719487273 | J154: 0.1395902876 | K154: 0.197222038
F155: 6 | G155: -0.09739353763 | H155: 0.01478680544 | I155: 0.08631741255 | J155: 0.1399774879 | K155: 0.1833622229
F156: 7 | G156: -0.03405961112 | H156: 0.04380090631 | I156: 0.09728772402 | J156: 0.1385904585 | K156: 0.172479756
F157: 8 | G157: 0.005087063344 | H157: 0.06226097273 | I157: 0.1036445802 | J157: 0.1363784635 | K157: 0.163600523
F158: 9 | G158: 0.03054854405 | H158: 0.07428261208 | I158: 0.1071962185 | J158: 0.1337588506 | K158: 0.1561164226
F159: 10 | G159: 0.0435419055 | H159: 0.07834913505 | I159: 0.1052758612 | J159: 0.1273426177 | K159: 0.1460957925
G162: EV/EBITDA | H162: EV/EBITDA | I162: EV/EBITDA | J162: EV/EBITDA | K162: EV/EBITDA
G163: 4 | H163: 5 | I163: 6 | J163: 7 | K163: 8
F164: 2 | G164: =G151 -> FALSE | H164: -0.7701176957 | I164: -0.2748598818 | J164: -0.0005949228875 | K164: 0.2131746887
F165: 3 | G165: FALSE | H165: -0.30163768 | I165: -0.05556228977 | J165: 0.1036265899 | K165: 0.2267184739
F166: 4 | G166: -0.4660004638 | H166: -0.1183738535 | I166: 0.03033346164 | J166: 0.1333326825 | K166: 0.2140762543
F167: 5 | G167: -0.2094004095 | H167: -0.03276392778 | I167: 0.06719487273 | J167: 0.1395902876 | K167: 0.197222038
F168: 6 | G168: -0.09739353763 | H168: 0.01478680544 | I168: 0.08631741255 | J168: 0.1399774879 | K168: 0.1833622229
F169: 7 | G169: -0.03405961112 | H169: 0.04380090631 | I169: 0.09728772402 | J169: 0.1385904585 | K169: 0.172479756
F170: 8 | G170: 0.005087063344 | H170: 0.06226097273 | I170: 0.1036445802 | J170: 0.1363784635 | K170: 0.163600523
F171: 9 | G171: 0.03054854405 | H171: 0.07428261208 | I171: 0.1071962185 | J171: 0.1337588506 | K171: 0.1561164226
F172: 10 | G172: 0.0435419055 | H172: 0.07834913505 | I172: 0.1052758612 | J172: 0.1273426177 | K172: 0.1460957925

Sheet Acquisition model
A1: Timing | H1: ='Transation Assumptions'!E3 -> 2016 | I1: =H1+1 -> 2017 | J1: =I1+1 -> 2018 | K1: 2019 | L1: 2020 | M1: 2021 | N1: 2022 | O1: 2023 | P1: 2024 | Q1: 2025 | R1: 2026
A2: Holding period | G2: ='Transation Assumptions'!E26 -> 2026 | I2: =I1<=$G$2 -> TRUE | J2: =J1<=$G$2 -> TRUE | K2: TRUE | L2: TRUE | M2: TRUE | N2: TRUE | O2: TRUE | P2: TRUE | Q2: TRUE | R2: TRUE
A3: Exit year switch | I3: =I1=$G$2 -> FALSE | J3: =J1=$G$2 -> FALSE | K3: FALSE | L3: FALSE | M3: FALSE | N3: FALSE | O3: FALSE | P3: FALSE | Q3: FALSE | R3: TRUE
D4: Transaction Age | I4: =H4+I2 -> 1 | J4: =I4+J2 -> 2 | K4: 3 | L4: 4 | M4: 5 | N4: 6 | O4: 7 | P4: 8 | Q4: 9 | R4: 10
A6: Data Transferred with Match and Index
D7: Column number in Financial model | H7: =MATCH(H1,'Financial model'!2:2) -> 19 | I7: =MATCH(I1,'Financial model'!2:2) -> 20 | J7: =MATCH(J1,'Financial model'!2:2) -> 21 | K7: =MATCH(K1,'Financial model'!2:2) -> 22 | L7: =MATCH(L1,'Financial model'!2:2) -> 23 | M7: =MATCH(M1,'Financial model'!2:2) -> 24 | N7: =MATCH(N1,'Financial model'!2:2) -> 25 | O7: =MATCH(O1,'Financial model'!2:2) -> 26 | P7: =MATCH(P1,'Financial model'!2:2) -> 27 | Q7: =MATCH(Q1,'Financial model'!2:2) -> 28 | R7: =MATCH(R1,'Financial model'!2:2) -> 28
C8: EBITDA
D9: EBITDA Before Synergies | I9: =INDEX('Financial model'!288:288,'Acquisition model'!I7) -> 293339.6523 | J9: =INDEX('Financial model'!288:288,'Acquisition model'!J7) -> 325698.6827 | K9: =INDEX('Financial model'!288:288,'Acquisition model'!K7) -> 360376.013 | L9: =INDEX('Financial model'!288:288,'Acquisition model'!L7) -> 376592.9336 | M9: =INDEX('Financial model'!288:288,'Acquisition model'!M7) -> 393539.6156 | N9: =INDEX('Financial model'!288:288,'Acquisition model'!N7) -> 411248.8984 | O9: =INDEX('Financial model'!288:288,'Acquisition model'!O7) -> 429755.0988 | P9: =INDEX('Financial model'!288:288,'Acquisition model'!P7) -> 449094.0782 | Q9: =INDEX('Financial model'!288:288,'Acquisition model'!Q7) -> 469303.3117 | R9: =INDEX('Financial model'!288:288,'Acquisition model'!R7) -> 469303.3117
D10: Base Synergies | G10: ='Transation Assumptions'!E15 -> 43000 | I10: =$G$10 -> 43000 | J10: =$G$10 -> 43000 | K10: 43000 | L10: 43000 | M10: 43000 | N10: 43000 | O10: 43000 | P10: 43000 | Q10: 43000 | R10: 43000
D11: Timing Factor | I11: =LOOKUP(I4,'Transation Assumptions'!$F$17:$K$17,'Transation Assumptions'!$F$18:$K$18) -> 0.4 | J11: =LOOKUP(J4,'Transation Assumptions'!$F$17:$K$17,'Transation Assumptions'!$F$18:$K$18) -> 0.7 | K11: =LOOKUP(K4,'Transation Assumptions'!$F$17:$K$17,'Transation Assumptions'!$F$18:$K$18) -> 0.9 | L11: =LOOKUP(L4,'Transation Assumptions'!$F$17:$K$17,'Transation Assumptions'!$F$18:$K$18) -> 1 | M11: =LOOKUP(M4,'Transation Assumptions'!$F$17:$K$17,'Transation Assumptions'!$F$18:$K$18) -> 1.02 | N11: =LOOKUP(N4,'Transation Assumptions'!$F$17:$K$17,'Transation Assumptions'!$F$18:$K$18) -> 1.02 | O11: =LOOKUP(O4,'Transation Assumptions'!$F$17:$K$17,'Transation Assumptions'!$F$18:$K$18) -> 1.02 | P11: =LOOKUP(P4,'Transation Assumptions'!$F$17:$K$17,'Transation Assumptions'!$F$18:$K$18) -> 1.02 | Q11: =LOOKUP(Q4,'Transation Assumptions'!$F$17:$K$17,'Transation Assumptions'!$F$18:$K$18) -> 1.02 | R11: =LOOKUP(R4,'Transation Assumptions'!$F$17:$K$17,'Transation Assumptions'!$F$18:$K$18) -> 1.02
D12: Synergies Net of Costs to Achieve | G12: ='Transation Assumptions'!E16 -> 20000 | I12: =I10*I11-G12 -> -2800 | J12: =J10*J11 -> 30100 | K12: =K10*K11 -> 38700 | L12: 43000 | M12: 43860 | N12: 43860 | O12: 43860 | P12: 43860 | Q12: 43860 | R12: 43860
D13: Adjusted EBITDA | G13: ='Transation Assumptions'!F15 -> 43 | I13: =I9+I12 -> 290539.6523 | J13: =J9+J12 -> 355798.6827 | K13: 399076.013 | L13: 419592.9336 | M13: 437399.6156 | N13: 455108.8984 | O13: 473615.0988 | P13: 492954.0782 | Q13: 513163.3117 | R13: 513163.3117
C15: Working Capital and Cap Exp
D16: CAPEX | I16: =INDEX('Financial model'!169:169,'Acquisition model'!I7) -> 73334.91308 | J16: =INDEX('Financial model'!169:169,'Acquisition model'!J7) -> 76634.98417 | K16: =INDEX('Financial model'!169:169,'Acquisition model'!K7) -> 80083.55846 | L16: =INDEX('Financial model'!169:169,'Acquisition model'!L7) -> 83687.31859 | M16: =INDEX('Financial model'!169:169,'Acquisition model'!M7) -> 87453.24792 | N16: =INDEX('Financial model'!169:169,'Acquisition model'!N7) -> 91388.64408 | O16: =INDEX('Financial model'!169:169,'Acquisition model'!O7) -> 95501.13306 | P16: =INDEX('Financial model'!169:169,'Acquisition model'!P7) -> 99798.68405 | Q16: =INDEX('Financial model'!169:169,'Acquisition model'!Q7) -> 104289.6248 | R16: =INDEX('Financial model'!169:169,'Acquisition model'!R7) -> 104289.6248
D17: Working capital movement | I17: =INDEX('Financial model'!189:189,'Acquisition model'!I7) -> -2126.361595 | J17: =INDEX('Financial model'!189:189,'Acquisition model'!J7) -> -2123.045734 | K17: =INDEX('Financial model'!189:189,'Acquisition model'!K7) -> -2115.125563 | L17: =INDEX('Financial model'!189:189,'Acquisition model'!L7) -> -4612.812967 | M17: =INDEX('Financial model'!189:189,'Acquisition model'!M7) -> -4820.389551 | N17: =INDEX('Financial model'!189:189,'Acquisition model'!N7) -> -5037.30708 | O17: =INDEX('Financial model'!189:189,'Acquisition model'!O7) -> -5263.985899 | P17: =INDEX('Financial model'!189:189,'Acquisition model'!P7) -> -5500.865264 | Q17: =INDEX('Financial model'!189:189,'Acquisition model'!Q7) -> -5748.404201 | R17: =INDEX('Financial model'!189:189,'Acquisition model'!R7) -> -5748.404201
C19: Depreciation and Other Income
D20: Depreciation expense | I20: =INDEX('Financial model'!225:225,'Acquisition model'!I7) -> 77193.32018 | J20: =INDEX('Financial model'!225:225,'Acquisition model'!J7) -> 78753.03947 | K20: =INDEX('Financial model'!225:225,'Acquisition model'!K7) -> 79064.52594 | L20: =INDEX('Financial model'!225:225,'Acquisition model'!L7) -> 80733.99981 | M20: =INDEX('Financial model'!225:225,'Acquisition model'!M7) -> 81127.27422 | N20: =INDEX('Financial model'!225:225,'Acquisition model'!N7) -> 82917.54608 | O20: =INDEX('Financial model'!225:225,'Acquisition model'!O7) -> 83400.77606 | P20: =INDEX('Financial model'!225:225,'Acquisition model'!P7) -> 85323.98285 | Q20: =INDEX('Financial model'!225:225,'Acquisition model'!Q7) -> 85906.14018 | R20: =INDEX('Financial model'!225:225,'Acquisition model'!R7) -> 85906.14018
D21: Amortisation Expense | I21: =INDEX('Financial model'!290:290,'Acquisition model'!I7) -> 158.1824054 | J21: =INDEX('Financial model'!290:290,'Acquisition model'!J7) -> 93.21294189 | K21: =INDEX('Financial model'!290:290,'Acquisition model'!K7) -> 54.92805925 | L21: =INDEX('Financial model'!290:290,'Acquisition model'!L7) -> 32.36773383 | M21: =INDEX('Financial model'!290:290,'Acquisition model'!M7) -> 19.07349737 | N21: =INDEX('Financial model'!290:290,'Acquisition model'!N7) -> 11.23953576 | O21: =INDEX('Financial model'!290:290,'Acquisition model'!O7) -> 6.623177784 | P21: =INDEX('Financial model'!290:290,'Acquisition model'!P7) -> 3.902873296 | Q21: =INDEX('Financial model'!290:290,'Acquisition model'!Q7) -> 2.299865784 | R21: =INDEX('Financial model'!290:290,'Acquisition model'!R7) -> 2.299865784
D22: Other Income | I22: =INDEX('Financial model'!295:295,'Acquisition model'!I7) -> 30000 | J22: =INDEX('Financial model'!295:295,'Acquisition model'!J7) -> 30000 | K22: =INDEX('Financial model'!295:295,'Acquisition model'!K7) -> 30000 | L22: =INDEX('Financial model'!295:295,'Acquisition model'!L7) -> 30000 | M22: =INDEX('Financial model'!295:295,'Acquisition model'!M7) -> 30000 | N22: =INDEX('Financial model'!295:295,'Acquisition model'!N7) -> 30000 | O22: =INDEX('Financial model'!295:295,'Acquisition model'!O7) -> 30000 | P22: =INDEX('Financial model'!295:295,'Acquisition model'!P7) -> 30000 | Q22: =INDEX('Financial model'!295:295,'Acquisition model'!Q7) -> 30000 | R22: =INDEX('Financial model'!295:295,'Acquisition model'!R7) -> 30000
D23: Translation and Other | I23: =INDEX('Financial model'!296:296,'Acquisition model'!I7) -> 50 | J23: =INDEX('Financial model'!296:296,'Acquisition model'!J7) -> 50 | K23: =INDEX('Financial model'!296:296,'Acquisition model'!K7) -> 50 | L23: =INDEX('Financial model'!296:296,'Acquisition model'!L7) -> 50 | M23: =INDEX('Financial model'!296:296,'Acquisition model'!M7) -> 50 | N23: =INDEX('Financial model'!296:296,'Acquisition model'!N7) -> 50 | O23: =INDEX('Financial model'!296:296,'Acquisition model'!O7) -> 50 | P23: =INDEX('Financial model'!296:296,'Acquisition model'!P7) -> 50 | Q23: =INDEX('Financial model'!296:296,'Acquisition model'!Q7) -> 50 | R23: =INDEX('Financial model'!296:296,'Acquisition model'!R7) -> 50
D24: Increase in Provisions | I24: =INDEX('Financial model'!309:309,'Acquisition model'!I7) -> 2210.573935 | J24: =INDEX('Financial model'!309:309,'Acquisition model'!J7) -> 2310.049762 | K24: =INDEX('Financial model'!309:309,'Acquisition model'!K7) -> 2414.002001 | L24: =INDEX('Financial model'!309:309,'Acquisition model'!L7) -> 2522.632091 | M24: =INDEX('Financial model'!309:309,'Acquisition model'!M7) -> 2636.150535 | N24: =INDEX('Financial model'!309:309,'Acquisition model'!N7) -> 2754.77731 | O24: =INDEX('Financial model'!309:309,'Acquisition model'!O7) -> 2878.742288 | P24: =INDEX('Financial model'!309:309,'Acquisition model'!P7) -> 3008.285691 | Q24: =INDEX('Financial model'!309:309,'Acquisition model'!Q7) -> 3143.658548 | R24: =INDEX('Financial model'!309:309,'Acquisition model'!R7) -> 3143.658548
D26: Tax rate | I26: =INDEX('Financial model'!136:136,'Acquisition model'!I7) -> 0.2 | J26: =INDEX('Financial model'!136:136,'Acquisition model'!J7) -> 0.2 | K26: =INDEX('Financial model'!136:136,'Acquisition model'!K7) -> 0.2 | L26: =INDEX('Financial model'!136:136,'Acquisition model'!L7) -> 0.2 | M26: =INDEX('Financial model'!136:136,'Acquisition model'!M7) -> 0.2 | N26: =INDEX('Financial model'!136:136,'Acquisition model'!N7) -> 0.2 | O26: =INDEX('Financial model'!136:136,'Acquisition model'!O7) -> 0.2 | P26: =INDEX('Financial model'!136:136,'Acquisition model'!P7) -> 0.2 | Q26: =INDEX('Financial model'!136:136,'Acquisition model'!Q7) -> 0.2 | R26: =INDEX('Financial model'!136:136,'Acquisition model'!R7) -> 0.2
D27: Exit proceeds | G27: ='Transation Assumptions'!E27 -> 5 | I27: =I13*$G$27*I3 -> 0 | J27: 0 | K27: 0 | L27: 0 | M27: 0 | N27: 0 | O27: 0 | P27: 0 | Q27: 0 | R27: 2565816.559
H29: =H1 -> 2016 | I29: 2017 | J29: 2018 | K29: 2019 | L29: 2020 | M29: 2021 | N29: 2022 | O29: 2023 | P29: 2024 | Q29: 2025 | R29: 2026
A30: Assets
B31: Cash, Loans and Depoists | H31: ='Transation Assumptions'!O113 -> 70544.37183
B32: Accounts Receivable | H32: ='Transation Assumptions'!O114 -> 280707.8013
B33: Inventories | H33: ='Transation Assumptions'!O115 -> 244041.8527
B34: Other Current Assets | H34: ='Transation Assumptions'!O116 -> 0
B35: Gross PPE | H35: ='Transation Assumptions'!O117 -> 2911867.156
B36: Accumulated Depreciation | H36: ='Transation Assumptions'!O118 -> 1277268.017
B37: Net Plant | H37: ='Transation Assumptions'!O119 -> 1634599.14
B38: Intangible Assets | H38: ='Transation Assumptions'!O120 -> 3385.129752
B39: Goodwill | H39: ='Transation Assumptions'!O121 -> 64549.07889
B40: Investment Property | H40: ='Transation Assumptions'!O122 -> 18387
B41: Deferred Tax Assets | H41: ='Transation Assumptions'!O123 -> 20378
B42: Unamortised Debt Issuance Costs | H42: ='Transation Assumptions'!O124 -> 12000
B43: Derivative assets | H43: ='Transation Assumptions'!O125 -> 1
B44: Total assets | H44: =SUM(H31:H34)+SUM(H37:H43) -> 2348593.374
A46: Liabilities
B47: Accounts Payable | H47: ='Transation Assumptions'!O130 -> 690892.0759
B48: Other Current Liabilities | H48: ='Transation Assumptions'!O131 -> 2462
B49: Total debt | H49: ='Transation Assumptions'!O132 -> 106043.433
B50: Senior A | H50: ='Transation Assumptions'!O133 -> 500000
B51: Senior B | H51: ='Transation Assumptions'!O134 -> 300000
B52: Capitalised C | H52: ='Transation Assumptions'!O135 -> 200000
B53: Derivative Liabilities | H53: ='Transation Assumptions'!O136 -> 58072
B54: Unfunded pensions | H54: ='Transation Assumptions'!O137 -> 0
B55: Provisions | H55: ='Transation Assumptions'!O138 -> 49123.86522
B56: Equity | H56: ='Transation Assumptions'!O139 -> 442000
B57: Total liabilities and equity | H57: ='Transation Assumptions'!O140 -> 2348593.374
A61: Debt schedule | H61: =H29 -> 2016 | I61: 2017 | J61: 2018 | K61: 2019 | L61: 2020 | M61: 2021 | N61: 2022 | O61: 2023 | P61: 2024 | Q61: 2025 | R61: 2026
B62: Existing debt
C63: Opening balance | H63: =G65 -> 0 | I63: =H65 -> 106043.433 | J63: =I65 -> 95439.08974 | K63: 84834.74644 | L63: 74230.40313 | M63: 63626.05983 | N63: 53021.71652 | O63: 42417.37322 | P63: 31813.02991 | Q63: 21208.68661 | R63: 10604.3433
C64: Scheduled repayments | F64: Term | G64: 10 | I64: =MIN(H65,IF(I3,H65,$H$65/$G$64)) -> 10604.3433 | J64: 10604.3433 | K64: 10604.3433 | L64: 10604.3433 | M64: 10604.3433 | N64: 10604.3433 | O64: 10604.3433 | P64: 10604.3433 | Q64: 10604.3433 | R64: 10604.3433
C65: Closing balance | H65: =H49 -> 106043.433 | I65: =I63-I64 -> 95439.08974 | J65: =J63-J64 -> 84834.74644 | K65: 74230.40313 | L65: 63626.05983 | M65: 53021.71652 | N65: 42417.37322 | O65: 31813.02991 | P65: 21208.68661 | Q65: 10604.3433 | R65: 0
C66: Interest rate | G66: ='Transation Assumptions'!G40 -> 0.05 | H66: =$G$66*AVERAGE(H63,H65) -> 2651.085826 | I66: =$G$66*AVERAGE(I63,I65) -> 5037.06307 | J66: 4506.845904 | K66: 3976.628739 | L66: 3446.411574 | M66: 2916.194409 | N66: =$G$66*AVERAGE(N63,N65) -> 2385.977243 | O66: 1855.760078 | P66: 1325.542913 | Q66: 795.3257478 | R66: 265.1085826
C67: Interest expense
B69: Senior Debt A
C70: Opening balance | I70: =H73 -> 500000 | J70: =I73 -> 400000 | K70: 300000 | L70: 200000 | M70: 100000 | N70: 0 | O70: 0 | P70: 0 | Q70: 0 | R70: 0
C71: Scheduled repayments | F71: Term | G71: ='Transation Assumptions'!F40 -> 5 | I71: =MIN(I70,$H$73/$G$71) -> 100000 | J71: 100000 | K71: 100000 | L71: 100000 | M71: 100000 | N71: 0 | O71: 0 | P71: 0 | Q71: 0 | R71: 0
C72: Repayments at exit | I72: =(I70-I71)*I3 -> 0 | J72: 0 | K72: 0 | L72: 0 | M72: 0 | N72: 0 | O72: 0 | P72: 0 | Q72: 0 | R72: 0
C73: Closing balance | H73: =H50 -> 500000 | I73: =I70-I71-I72 -> 400000 | J73: 300000 | K73: 200000 | L73: 100000 | M73: 0 | N73: 0 | O73: 0 | P73: 0 | Q73: 0 | R73: 0
C74: Interest rate | F74: Rate | G74: ='Transation Assumptions'!G40 -> 0.05
C75: Interest expense | I75: =$G$74*AVERAGE(I70,I73) -> 22500 | J75: 17500 | K75: 12500 | L75: 7500 | M75: 2500 | N75: 0 | O75: 0 | P75: 0 | Q75: 0 | R75: 0
B77: Senior Debt B
C78: Opening balance | I78: =H81 -> 300000 | J78: =I81 -> 253856.3921 | K78: 163183.176 | L78: 40539.90567 | M78: 0 | N78: 0 | O78: 0 | P78: 0 | Q78: 0 | R78: 0
C79: Scheduled repayments | F79: Term | G79: ='Transation Assumptions'!F41 -> 6 | H79: ='Transation Assumptions'!E26 -> 2026 | I79: =I78*(I1=$H$79) -> 0 | J79: 0 | K79: 0 | L79: 0 | M79: 0 | N79: 0 | O79: 0 | P79: 0 | Q79: 0 | R79: 0
C80: Cash flow sweep | I80: =I154 -> 46143.60785 | J80: =J154 -> 90673.21616 | K80: 122643.2703 | L80: 40539.90567 | M80: 0 | N80: 0 | O80: 0 | P80: 0 | Q80: 0 | R80: 0
C81: Closing balance | H81: =H51 -> 300000 | I81: =I78-I79-I80 -> 253856.3921 | J81: =J78-J79-J80 -> 163183.176 | K81: 40539.90567 | L81: 0 | M81: 0 | N81: 0 | O81: 0 | P81: 0 | Q81: 0 | R81: 0
C82: Interest rate | G82: ='Transation Assumptions'!G41 -> 0.06 | I82: =$G$82 -> 0.06 | J82: =$G$82 -> 0.06 | K82: 0.06 | L82: 0.06 | M82: 0.06 | N82: 0.06 | O82: 0.06 | P82: 0.06 | Q82: 0.06 | R82: 0.06
C83: Interest expense | I83: =I78*I82 -> 18000 | J83: =J78*J82 -> 15231.38353 | K83: 9790.990559 | L83: 2432.39434 | M83: 0 | N83: 0 | O83: 0 | P83: 0 | Q83: 0 | R83: 0
B85: Default on Senior Debt
C86: Opening Balance | I86: =H89 -> 0 | J86: =I89 -> 0 | K86: 0 | L86: 0 | M86: 0 | N86: 0 | O86: 0 | P86: 0 | Q86: 0 | R86: 0
C87: Add: Defaults | I87: =I156 -> 0 | J87: =J156 -> 0 | K87: 0 | L87: 0 | M87: 0 | N87: 0 | O87: 0 | P87: 0 | Q87: 0 | R87: 0
C88: Less: Repayment of Default | I88: =I157 -> 0 | J88: =J157 -> 0 | K88: 0 | L88: 0 | M88: 0 | N88: 0 | O88: 0 | P88: 0 | Q88: 0 | R88: 0
C89: Closing Balance | I89: =I86+I87-I88 -> 0 | J89: =J86+J87-J88 -> 0 | K89: 0 | L89: 0 | M89: 0 | N89: 0 | O89: 0 | P89: 0 | Q89: 0 | R89: 0
C91: Interest | G91: =G82 -> 0.06 | I91: =$G$91*I86 -> 0 | J91: =$G$91*J86 -> 0 | K91: 0 | L91: 0 | M91: 0 | N91: 0 | O91: 0 | P91: 0 | Q91: 0 | R91: 0
B93: Sub debt C
C94: Opening balance | I94: =H98 -> 200000 | J94: =I98 -> 210464.098 | K94: 210946.8448 | L94: 203490.1801 | M94: 87372.62292 | N94: 0 | O94: 0 | P94: 0 | Q94: 0 | R94: 0
C95: Capitalised interest | I95: =I100 -> 22000 | J95: =J100 -> 23151.05078 | K95: 23204.15293 | L95: 22383.91981 | M95: 9610.988521 | N95: 0 | O95: 0 | P95: 0 | Q95: 0 | R95: 0
C96: Scheduled repayments | G96: ='Transation Assumptions'!F42 -> 10
C97: Cash flow sweep | I97: =I159 -> 11535.90196 | J97: =J159 -> 22668.30404 | K97: 30660.81758 | L97: 138501.477 | M97: 96983.61144 | N97: 0 | O97: 0 | P97: 0 | Q97: 0 | R97: 0
C98: Closing balance | H98: =H52 -> 200000 | I98: =I94+I95-I96-I97 -> 210464.098 | J98: =J94+J95-J96-J97 -> 210946.8448 | K98: 203490.1801 | L98: 87372.62292 | M98: 0 | N98: 0 | O98: 0 | P98: 0 | Q98: 0 | R98: 0
C99: Interest rate | G99: ='Transation Assumptions'!G42 -> 0.11 | I99: =$G$99 -> 0.11 | J99: =$G$99 -> 0.11 | K99: 0.11 | L99: 0.11 | M99: 0.11 | N99: 0.11 | O99: 0.11 | P99: 0.11 | Q99: 0.11 | R99: 0.11
C100: Interest expense | I100: =I99*I94 -> 22000 | J100: =J99*J94 -> 23151.05078 | K100: 23204.15293 | L100: 22383.91981 | M100: 9610.988521 | N100: 0 | O100: 0 | P100: 0 | Q100: 0 | R100: 0
B102: Cash Balance
C103: Required Cash Balance | I103: =INDEX('Financial model'!252:252,'Acquisition model'!I7)*I2 -> 73334.91308 | J103: =INDEX('Financial model'!252:252,'Acquisition model'!J7)*J2 -> 76634.98417 | K103: =INDEX('Financial model'!252:252,'Acquisition model'!K7)*K2 -> 80083.55846 | L103: =INDEX('Financial model'!252:252,'Acquisition model'!L7)*L2 -> 83687.31859 | M103: =INDEX('Financial model'!252:252,'Acquisition model'!M7)*M2 -> 87453.24792 | N103: =INDEX('Financial model'!252:252,'Acquisition model'!N7)*N2 -> 91388.64408 | O103: =INDEX('Financial model'!252:252,'Acquisition model'!O7)*O2 -> 95501.13306 | P103: =INDEX('Financial model'!252:252,'Acquisition model'!P7)*P2 -> 99798.68405 | Q103: =INDEX('Financial model'!252:252,'Acquisition model'!Q7)*Q2 -> 104289.6248 | R103: =INDEX('Financial model'!252:252,'Acquisition model'!R7)*R2 -> 104289.6248
C104: New Cash Required | I104: =I103-I106 -> 2790.541246 | J104: =J103-J106 -> 3300.071089 | K104: 3448.574288 | L104: 3603.76013 | M104: 3765.929336 | N104: 3935.396156 | O104: 4112.488984 | P104: 4297.550988 | Q104: 4490.940782 | R104: 0
C106: Opening Balance | I106: =H108 -> 70544.37183 | J106: =I108 -> 73334.91308 | K106: 76634.98417 | L106: 80083.55846 | M106: 83687.31859 | N106: 87453.24792 | O106: 91388.64408 | P106: 95501.13306 | Q106: 99798.68405 | R106: 104289.6248
C107: Add: New Cash | I107: =I104 -> 2790.541246 | J107: =J104 -> 3300.071089 | K107: 3448.574288 | L107: 3603.76013 | M107: 3765.929336 | N107: 3935.396156 | O107: 4112.488984 | P107: 4297.550988 | Q107: 4490.940782 | R107: 0
C108: Closing Balance | H108: =H31 -> 70544.37183 | I108: =SUM(I106:I107) -> 73334.91308 | J108: =SUM(J106:J107) -> 76634.98417 | K108: 80083.55846 | L108: 83687.31859 | M108: 87453.24792 | N108: 91388.64408 | O108: 95501.13306 | P108: 99798.68405 | Q108: 104289.6248 | R108: 104289.6248
C110: Interest Income Rate | I110: =INDEX('Financial model'!262:262,'Acquisition model'!I7) -> 0.04 | J110: =INDEX('Financial model'!262:262,'Acquisition model'!J7) -> 0.04 | K110: =INDEX('Financial model'!262:262,'Acquisition model'!K7) -> 0.04 | L110: =INDEX('Financial model'!262:262,'Acquisition model'!L7) -> 0.04 | M110: =INDEX('Financial model'!262:262,'Acquisition model'!M7) -> 0.04 | N110: =INDEX('Financial model'!262:262,'Acquisition model'!N7) -> 0.04 | O110: =INDEX('Financial model'!262:262,'Acquisition model'!O7) -> 0.04 | P110: =INDEX('Financial model'!262:262,'Acquisition model'!P7) -> 0.04 | Q110: =INDEX('Financial model'!262:262,'Acquisition model'!Q7) -> 0.04 | R110: =INDEX('Financial model'!262:262,'Acquisition model'!R7) -> 0.04
C111: Interest Income | I111: =I110*I106*I2 -> 2821.774873 | J111: =J110*J106*J2 -> 2933.396523 | K111: 3065.399367 | L111: 3203.342338 | M111: 3347.492743 | N111: 3498.129917 | O111: 3655.545763 | P111: 3820.045322 | Q111: 3991.947362 | R111: 4171.584993
B113: Debt Issuance Costs
C114: Opening Balance | I114: =H116 -> 12000 | J114: =I116 -> 10800 | K114: 9600 | L114: 8400 | M114: 7200 | N114: 6000 | O114: 4800 | P114: 3600 | Q114: 2400 | R114: 1200
C115: Less: Amortisation | G115: =G96 -> 10 | I115: =MIN($H$116/$G$115,I114) -> 1200 | J115: =MIN($H$116/$G$115,J114) -> 1200 | K115: 1200 | L115: 1200 | M115: 1200 | N115: 1200 | O115: 1200 | P115: 1200 | Q115: 1200 | R115: 1200
C116: Closing Balance | H116: =H42 -> 12000 | I116: =I114-I115 -> 10800 | J116: =J114-J115 -> 9600 | K116: 8400 | L116: 7200 | M116: 6000 | N116: 4800 | O116: 3600 | P116: 2400 | Q116: 1200 | R116: 0
A119: Income Statement
C120: EBITDA | I120: =I13*I2 -> 290539.6523 | J120: 355798.6827 | K120: 399076.013 | L120: 419592.9336 | M120: 437399.6156 | N120: 455108.8984 | O120: 473615.0988 | P120: 492954.0782 | Q120: 513163.3117 | R120: 513163.3117
C121: Less Depreciation | I121: =I20*I2 -> 77193.32018 | J121: 78753.03947 | K121: 79064.52594 | L121: 80733.99981 | M121: 81127.27422 | N121: 82917.54608 | O121: 83400.77606 | P121: 85323.98285 | Q121: 85906.14018 | R121: 85906.14018
C122: Less: Amortisation | I122: =I21*I2 -> 158.1824054 | J122: 93.21294189 | K122: 54.92805925 | L122: 32.36773383 | M122: 19.07349737 | N122: 11.23953576 | O122: 6.623177784 | P122: 3.902873296 | Q122: 2.299865784 | R122: 2.299865784
C123: Less: Amortisation of Debt Issue Costs | I123: =I115 -> 1200 | J123: 1200 | K123: 1200 | L123: 1200 | M123: 1200 | N123: 1200 | O123: 1200 | P123: 1200 | Q123: 1200 | R123: 1200
D124: EBIT | I124: =I120-I121-I122-I123 -> 211988.1497 | J124: =J120-J121-J122-J123 -> 275752.4303 | K124: 318756.559 | L124: 337626.5661 | M124: 355053.2679 | N124: 370980.1127 | O124: 389007.6995 | P124: 406426.1925 | Q124: 426054.8717 | R124: 426054.8717
B125: Add: Other Income | I125: =-I2*I22 -> -30000 | J125: -30000 | K125: -30000 | L125: -30000 | M125: -30000 | N125: -30000 | O125: -30000 | P125: -30000 | Q125: -30000 | R125: -30000
B126: Less: Translation | I126: =I23*I2 -> 50 | J126: 50 | K126: 50 | L126: 50 | M126: 50 | N126: 50 | O126: 50 | P126: 50 | Q126: 50 | R126: 50
B127: less Interest expenses existing debt | I127: =I66*I2 -> 5037.06307 | J127: 4506.845904 | K127: 3976.628739 | L127: 3446.411574 | M127: 2916.194409 | N127: 2385.977243 | O127: 1855.760078 | P127: 1325.542913 | Q127: 795.3257478 | R127: 265.1085826
B128: less Interest expenses Debt A | I128: =I75*I2 -> 22500 | J128: 17500 | K128: 12500 | L128: 7500 | M128: 2500 | N128: 0 | O128: 0 | P128: 0 | Q128: 0 | R128: 0
B129: less Interest expenses Debt B | I129: =I83*I2+I91 -> 18000 | J129: 15231.38353 | K129: 9790.990559 | L129: 2432.39434 | M129: 0 | N129: 0 | O129: 0 | P129: 0 | Q129: 0 | R129: 0
B130: less Interest expense Sub debt | I130: =I100*I2 -> 22000 | J130: 23151.05078 | K130: 23204.15293 | L130: 22383.91981 | M130: 9610.988521 | N130: 0 | O130: 0 | P130: 0 | Q130: 0 | R130: 0
C131: EBT | I131: =I124-SUM(I125:I130) -> 174401.0867 | J131: =J124-SUM(J125:J130) -> 245313.1501 | K131: 299234.7868 | L131: 331813.8404 | M131: 369976.085 | N131: 398544.1355 | O131: 417101.9395 | P131: 435050.6496 | Q131: 455209.5459 | R131: 455739.7631
B132: less taxes | I132: =I26*I131*I2 -> 34880.21733 | J132: 49062.63002 | K132: 59846.95736 | L132: 66362.76807 | M132: 73995.217 | N132: 79708.8271 | O132: 83420.38789 | P132: 87010.12992 | Q132: 91041.90919 | R132: 91147.95262
C133: Earnings | I133: =I131-I132 -> 139520.8693 | J133: =J131-J132 -> 196250.5201 | K133: 239387.8295 | L133: 265451.0723 | M133: 295980.868 | N133: 318835.3084 | O133: 333681.5516 | P133: 348040.5197 | Q133: 364167.6368 | R133: 364591.8105
C134: Number of shares
A136: Cash Flow Statement
C137: EBITDA | I137: =I120 -> 290539.6523 | J137: =J120 -> 355798.6827 | K137: 399076.013 | L137: 419592.9336 | M137: 437399.6156 | N137: 455108.8984 | O137: 473615.0988 | P137: 492954.0782 | Q137: 513163.3117 | R137: 513163.3117
C138: less Working Capital Changes | I138: =I17*I2 -> -2126.361595 | J138: -2123.045734 | K138: -2115.125563 | L138: -4612.812967 | M138: -4820.389551 | N138: -5037.30708 | O138: -5263.985899 | P138: -5500.865264 | Q138: -5748.404201 | R138: -5748.404201
C139: add: Changes in Provisions | I139: =I24*I2 -> 2210.573935 | J139: 2310.049762 | K139: 2414.002001 | L139: 2522.632091 | M139: 2636.150535 | N139: 2754.77731 | O139: 2878.742288 | P139: 3008.285691 | Q139: 3143.658548 | R139: 3143.658548
C140: Less: Taxes | I140: =I132 -> 34880.21733 | J140: =J132 -> 49062.63002 | K140: 59846.95736 | L140: 66362.76807 | M140: 73995.217 | N140: 79708.8271 | O140: 83420.38789 | P140: 87010.12992 | Q140: 91041.90919 | R140: 91147.95262
D141: Operating cash flows | I141: =I137-I138-I140+I139 -> 259996.3705 | J141: =J137-J138-J140+J139 -> 311169.1482 | K141: 343758.1832 | L141: 360365.6106 | M141: 370860.9387 | N141: 383192.1556 | O141: 398337.4391 | P141: 414453.0993 | Q141: 431013.4653 | R141: 430907.4219
C142: less CAPEX | I142: =I16*I2 -> 73334.91308 | J142: 76634.98417 | K142: 80083.55846 | L142: 83687.31859 | M142: 87453.24792 | N142: 91388.64408 | O142: 95501.13306 | P142: 99798.68405 | Q142: 104289.6248 | R142: 104289.6248
C143: Exit proceeds | I143: =I27 -> 0 | J143: 0 | K143: 0 | L143: 0 | M143: 0 | N143: 0 | O143: 0 | P143: 0 | Q143: 0 | R143: 2565816.559
C144: Less: Required Operating Cash | I144: =I107*I2 -> 2790.541246 | J144: 3300.071089 | K144: 3448.574288 | L144: 3603.76013 | M144: 3765.929336 | N144: 3935.396156 | O144: 4112.488984 | P144: 4297.550988 | Q144: 4490.940782 | R144: 0
C145: Add: Other Income | I145: =-I125-I126 -> 29950 | J145: =-J125-J126 -> 29950 | K145: 29950 | L145: 29950 | M145: 29950 | N145: 29950 | O145: 29950 | P145: 29950 | Q145: 29950 | R145: 29950
D146: Cash flow before financing | I146: =I141-I142+I143-I144+I145 -> 213820.9162 | J146: =J141-J142+J143-J144+J145 -> 261184.0929 | K146: 290176.0505 | L146: 303024.5319 | M146: 309591.7615 | N146: 317818.1154 | O146: 328673.817 | P146: 340306.8642 | Q146: 352182.8997 | R146: 2922384.356
C147: less repayments on existing debt | I147: =I64 -> 10604.3433 | J147: 10604.3433 | K147: 10604.3433 | L147: 10604.3433 | M147: 10604.3433 | N147: 10604.3433 | O147: 10604.3433 | P147: 10604.3433 | Q147: 10604.3433 | R147: 10604.3433
C148: less interest expense | I148: =I66 -> 5037.06307 | J148: 4506.845904 | K148: 3976.628739 | L148: 3446.411574 | M148: 2916.194409 | N148: 2385.977243 | O148: 1855.760078 | P148: 1325.542913 | Q148: 795.3257478 | R148: 265.1085826
C149: less repayments on senior debt A | I149: =I71+I72 -> 100000 | J149: 100000 | K149: 100000 | L149: 100000 | M149: 100000 | N149: 0 | O149: 0 | P149: 0 | Q149: 0 | R149: 0
C150: less interest expense | I150: =I75 -> 22500 | J150: 17500 | K150: 12500 | L150: 7500 | M150: 2500 | N150: 0 | O150: 0 | P150: 0 | Q150: 0 | R150: 0
C151: less repayments on senior debt B | I151: =I79 -> 0 | J151: 0 | K151: 0 | L151: 0 | M151: 0 | N151: 0 | O151: 0 | P151: 0 | Q151: 0 | R151: 0
C152: less interest expense | I152: =I129 -> 18000 | J152: =J129 -> 15231.38353 | K152: 9790.990559 | L152: 2432.39434 | M152: 0 | N152: 0 | O152: 0 | P152: 0 | Q152: 0 | R152: 0
D153: Cash flow after repayment senior debt | I153: =I146-SUM(I147:I152) -> 57679.50982 | J153: =J146-SUM(J147:J152) -> 113341.5202 | K153: 153304.0879 | L153: 179041.3827 | M153: 193571.2238 | N153: 304827.7949 | O153: 316213.7136 | P153: 328376.978 | Q153: 340783.2306 | R153: 2911514.904
C154: cash sweep | G154: ='Transation Assumptions'!I41 -> 0.8 | I154: =MIN(I78-I79,MAX(I153,0)*$G$154) -> 46143.60785 | J154: 90673.21616 | K154: 122643.2703 | L154: 40539.90567 | M154: 0 | N154: 0 | O154: 0 | P154: 0 | Q154: 0 | R154: 0
D155: Cash flow after sweep / available for sub | I155: =I153-I154 -> 11535.90196 | J155: =J153-J154 -> 22668.30404 | K155: 30660.81758 | L155: 138501.477 | M155: 193571.2238 | N155: 304827.7949 | O155: 316213.7136 | P155: 328376.978 | Q155: 340783.2306 | R155: 2911514.904
C156: Add: Default on Senior Debt | I156: =MAX(-I155,0) -> 0 | J156: =MAX(-J155,0) -> 0 | K156: 0 | L156: 0 | M156: 0 | N156: 0 | O156: 0 | P156: 0 | Q156: 0 | R156: 0
C157: Less: Repayments of Senior Default | I157: =MIN(I86,MAX(I155,0)) -> 0 | J157: 0 | K157: 0 | L157: 0 | M157: 0 | N157: 0 | O157: 0 | P157: 0 | Q157: 0 | R157: 0
D158: Cash Available to Sub Debt | I158: =I155+I156-I157 -> 11535.90196 | J158: =J155+J156-J157 -> 22668.30404 | K158: 30660.81758 | L158: 138501.477 | M158: 193571.2238 | N158: 304827.7949 | O158: 316213.7136 | P158: 328376.978 | Q158: 340783.2306 | R158: 2911514.904
C159: less repayments on sub debt | I159: =MIN((I94+I95),MAX(I158,0)) -> 11535.90196 | J159: 22668.30404 | K159: 30660.81758 | L159: 138501.477 | M159: 96983.61144 | N159: 0 | O159: 0 | P159: 0 | Q159: 0 | R159: 0
D160: Cash flow available for equity holders | I160: =I158-I159 -> 0 | J160: =J158-J159 -> 0 | K160: 0 | L160: 0 | M160: 96587.61232 | N160: 304827.7949 | O160: 316213.7136 | P160: 328376.978 | Q160: 340783.2306 | R160: 2911514.904
C161: cash flow bonus to management
C162: cash flow to equity
C164: Net cash flow | H164: =-'Transation Assumptions'!E66 -> -454600 | I164: =I160 -> 0 | J164: =J160 -> 0 | K164: 0 | L164: 0 | M164: 96587.61232 | N164: 304827.7949 | O164: 316213.7136 | P164: 328376.978 | Q164: 340783.2306 | R164: 2911514.904
C165: Equity IRR | H165: =IRR(164:164) -> 0.2890619645
H166: =N164/-H164 -> 0.6705406838
C167: CAGR | H167: =H166^(1/(G2-H1))-1 -> -0.03917894087
C170: Free Cash Flow
D171: EBITDA | I171: =I137 -> 290539.6523 | J171: =J137 -> 355798.6827 | K171: 399076.013 | L171: 419592.9336 | M171: 437399.6156 | N171: 455108.8984 | O171: 473615.0988 | P171: 492954.0782 | Q171: 513163.3117 | R171: 513163.3117
D172: Less: Capital Expenditures | I172: =I142 -> 73334.91308 | J172: =J142 -> 76634.98417 | K172: 80083.55846 | L172: 83687.31859 | M172: 87453.24792 | N172: 91388.64408 | O172: 95501.13306 | P172: 99798.68405 | Q172: 104289.6248 | R172: 104289.6248
D173: Less: WC Changes | I173: =I138 -> -2126.361595 | J173: =J138 -> -2123.045734 | K173: -2115.125563 | L173: -4612.812967 | M173: -4820.389551 | N173: -5037.30708 | O173: -5263.985899 | P173: -5500.865264 | Q173: -5748.404201 | R173: -5748.404201
D174: Add: Provision Changes | I174: =I139 -> 2210.573935 | J174: =J139 -> 2310.049762 | K174: 2414.002001 | L174: 2522.632091 | M174: 2636.150535 | N174: 2754.77731 | O174: 2878.742288 | P174: 3008.285691 | Q174: 3143.658548 | R174: 3143.658548
D175: Add: Terminal Proceeds | I175: =I143 -> 0 | J175: =J143 -> 0 | K175: 0 | L175: 0 | M175: 0 | N175: 0 | O175: 0 | P175: 0 | Q175: 0 | R175: 2565816.559
D176: Less: EBIT x Tax Rate | G176: =I26 -> 0.2 | I176: =I124*$G$176 -> 42397.62995 | J176: =J124*$G$176 -> 55150.48606 | K176: 63751.31181 | L176: 67525.31322 | M176: 71010.65359 | N176: 74196.02255 | O176: 77801.53991 | P176: 81285.2385 | Q176: 85210.97434 | R176: 85210.97434
D177: Free Cash Flow | I177: =I171-I172-I173+I174+I175-I176 -> 179144.0448 | J177: =J171-J172-J173+J174+J175-J176 -> 228446.308 | K177: 259770.2703 | L177: 275515.7469 | M177: 286392.2542 | N177: 297316.3161 | O177: 308455.154 | P177: 320379.3066 | Q177: 332554.7753 | R177: 2898371.334
D179: Net Free Cash Flow | H179: =-'Transation Assumptions'!E108 -> -1529783.061 | I179: =I177 -> 179144.0448 | J179: =J177 -> 228446.308 | K179: 259770.2703 | L179: 275515.7469 | M179: 286392.2542 | N179: 297316.3161 | O179: 308455.154 | P179: 320379.3066 | Q179: 332554.7753 | R179: 2898371.334
D180: Un-Geared IRR | H180: =IRR(179:179) -> 0.1959853668
D182: Pre-tax | H182: =H179 -> -1529783.061 | I182: =I179+I176 -> 221541.6748 | J182: =J179+J176 -> 283596.794 | K182: 323521.5822 | L182: 343041.0601 | M182: 357402.9078 | N182: 371512.3387 | O182: 386256.6939 | P182: 401664.5451 | Q182: 417765.7497 | R182: 2983582.308
D183: Pre-tax IRR | H183: =IRR(182:182) -> 0.2306298392
B185: Senior Debt IRR
D186: Debt Service | I186: =SUM(I149:I152) -> 140500 | J186: =SUM(J149:J152) -> 132731.3835 | K186: 122290.9906 | L186: 109932.3943 | M186: 102500 | N186: 0 | O186: 0 | P186: 0 | Q186: 0 | R186: 0
D187: Sweep | I187: =I154 -> 46143.60785 | J187: =J154 -> 90673.21616 | K187: 122643.2703 | L187: 40539.90567 | M187: 0 | N187: 0 | O187: 0 | P187: 0 | Q187: 0 | R187: 0
D188: Less: Net Defaults | I188: =-I156+I157 -> 0 | J188: =-J156+J157 -> 0 | K188: 0 | L188: 0 | M188: 0 | N188: 0 | O188: 0 | P188: 0 | Q188: 0 | R188: 0
D189: Fees | H189: =SUMPRODUCT('Transation Assumptions'!H40:H41*'Transation Assumptions'!E40:E41) -> 10000
D190: Cash Outflows | H190: =-H50-H51 -> -800000
D191: Net Cash Flow | H191: =H189+H190 -> -790000 | I191: =SUM(I186:I189) -> 186643.6079 | J191: =SUM(J186:J189) -> 223404.5997 | K191: 244934.2609 | L191: 150472.3 | M191: 102500 | N191: 0 | O191: 0 | P191: 0 | Q191: 0 | R191: 0
D193: Debt IRR Pre-Tax | H193: =IRR(191:191) -> 0.05303731504
D195: Interest | I195: =I150+I152 -> 40500 | J195: =J150+J152 -> 32731.38353 | K195: 22290.99056 | L195: 9932.39434 | M195: 2500 | N195: 0 | O195: 0 | P195: 0 | Q195: 0 | R195: 0
D196: Tax Shield | G196: =G176 -> 0.2 | I196: =I195*$G$196 -> 8100 | J196: =J195*$G$196 -> 6546.276706 | K196: 4458.198112 | L196: 1986.478868 | M196: 500 | N196: 0 | O196: 0 | P196: 0 | Q196: 0 | R196: 0
D198: After-tax Debt Cash Flow | H198: =H191+H196 -> -790000 | I198: =I191-I196 -> 178543.6079 | J198: =J191-J196 -> 216858.323 | K198: 240476.0628 | L198: 148485.8211 | M198: 102000 | N198: 0 | O198: 0 | P198: 0 | Q198: 0 | R198: 0
D200: After-tax Senior Debt IRR | H200: =IRR(198:198) -> 0.04328624847
B202: Sub Debt
D203: Debt Service | I203: =I159 -> 11535.90196 | J203: =J159 -> 22668.30404 | K203: 30660.81758 | L203: 138501.477 | M203: 96983.61144 | N203: 0 | O203: 0 | P203: 0 | Q203: 0 | R203: 0
D204: Fees | H204: ='Transation Assumptions'!E42*'Transation Assumptions'!H42 -> 2000
D205: Cash Outflow | H205: =-'Transation Assumptions'!E42 -> -200000
D206: Net Cash Flow | H206: =SUM(H203:H205) -> -198000 | I206: =SUM(I203:I205) -> 11535.90196 | J206: 22668.30404 | K206: 30660.81758 | L206: 138501.477 | M206: 96983.61144 | N206: 0 | O206: 0 | P206: 0 | Q206: 0 | R206: 0
D208: Sub Debt Pre-tax IRR | H208: =IRR(206:206) -> 0.1129133686
D210: Interest Expense Deductible | I210: =I130 -> 22000 | J210: =J130 -> 23151.05078 | K210: 23204.15293 | L210: 22383.91981 | M210: 9610.988521 | N210: 0 | O210: 0 | P210: 0 | Q210: 0 | R210: 0
D211: Intrest Shield | G211: =G196 -> 0.2 | I211: =$G$211*I210 -> 4400 | J211: =$G$211*J210 -> 4630.210157 | K211: 4640.830585 | L211: 4476.783963 | M211: 1922.197704 | N211: 0 | O211: 0 | P211: 0 | Q211: 0 | R211: 0
D212: Sub-debt After Tax | H212: =H206 -> -198000 | I212: =I206-I211 -> 7135.901963 | J212: =J206-J211 -> 18038.09388 | K212: 26019.987 | L212: 134024.6931 | M212: 95061.41374 | N212: 0 | O212: 0 | P212: 0 | Q212: 0 | R212: 0
D214: Sub-debt After Tax IRR | H214: =IRR(212:212) -> 0.09076571822
A216: Other Balances
B217: Plant Balance
D218: Opening Net Plant | I218: =H222 -> 1634599.14 | J218: =I222 -> 1630740.733 | K218: 1628622.677 | L218: 1629641.71 | M218: 1632595.029 | N218: 1638921.002 | O218: 1647392.1 | P218: 1659492.457 | Q218: 1673967.159 | R218: 1692350.643
D219: Add: Capital Expenditures | I219: =I142 -> 73334.91308 | J219: 76634.98417 | K219: 80083.55846 | L219: 83687.31859 | M219: 87453.24792 | N219: 91388.64408 | O219: 95501.13306 | P219: 99798.68405 | Q219: 104289.6248 | R219: 104289.6248
D220: Less: Depreciation | I220: =I121 -> 77193.32018 | J220: 78753.03947 | K220: 79064.52594 | L220: 80733.99981 | M220: 81127.27422 | N220: 82917.54608 | O220: 83400.77606 | P220: 85323.98285 | Q220: 85906.14018 | R220: 85906.14018
D221: Less: Terminal Proceeds | I221: =I143 -> 0 | J221: =J143 -> 0 | K221: 0 | L221: 0 | M221: 0 | N221: 0 | O221: 0 | P221: 0 | Q221: 0 | R221: 2565816.559
D222: Closing Balance | H222: =H37 -> 1634599.14 | I222: =I218+I219-I220-I221 -> 1630740.733 | J222: =J218+J219-J220-J221 -> 1628622.677 | K222: 1629641.71 | L222: 1632595.029 | M222: 1638921.002 | N222: 1647392.1 | O222: 1659492.457 | P222: 1673967.159 | Q222: 1692350.643 | R222: -855082.4309
B224: Intangible Assets
D225: Opening Balance | I225: =H227 -> 3385.129752 | J225: =I227 -> 3226.947347 | K225: 3133.734405 | L225: 3078.806346 | M225: 3046.438612 | N225: 3027.365114 | O225: 3016.125579 | P225: 3009.502401 | Q225: 3005.599528 | R225: 3003.299662
D226: Less: Amortisation | I226: =I122 -> 158.1824054 | J226: 93.21294189 | K226: 54.92805925 | L226: 32.36773383 | M226: 19.07349737 | N226: 11.23953576 | O226: 6.623177784 | P226: 3.902873296 | Q226: 2.299865784 | R226: 2.299865784
D227: Closing Balance | H227: =H38 -> 3385.129752 | I227: =I225-I226 -> 3226.947347 | J227: =J225-J226 -> 3133.734405 | K227: 3078.806346 | L227: 3046.438612 | M227: 3027.365114 | N227: 3016.125579 | O227: 3009.502401 | P227: 3005.599528 | Q227: 3003.299662 | R227: 3000.999796
D229: Goodwill | H229: =H39 -> 64549.07889 | I229: =H229 -> 64549.07889 | J229: =I229 -> 64549.07889 | K229: 64549.07889 | L229: 64549.07889 | M229: 64549.07889 | N229: 64549.07889 | O229: 64549.07889 | P229: 64549.07889 | Q229: 64549.07889 | R229: 64549.07889
D230: Investment Property | H230: =H40 -> 18387 | I230: =H230 -> 18387 | J230: =I230 -> 18387 | K230: 18387 | L230: 18387 | M230: 18387 | N230: 18387 | O230: 18387 | P230: 18387 | Q230: 18387 | R230: 18387
D231: Net Derivative Liabilities | H231: =H53-H43 -> 58071 | I231: =H231 -> 58071 | J231: =I231 -> 58071 | K231: 58071 | L231: 58071 | M231: 58071 | N231: 58071 | O231: 58071 | P231: 58071 | Q231: 58071 | R231: 58071
D232: Deferred Tax Assets | H232: =H41 -> 20378 | I232: =H232 -> 20378 | J232: =I232 -> 20378 | K232: 20378 | L232: 20378 | M232: 20378 | N232: 20378 | O232: 20378 | P232: 20378 | Q232: 20378 | R232: 20378
B234: Provisions
C235: Opening Balance | I235: =H237 -> 49123.86522 | J235: =I237 -> 51334.43916 | K235: 53644.48892 | L235: 56058.49092 | M235: 58581.12301 | N235: 61217.27355 | O235: 63972.05086 | P235: 66850.79314 | Q235: 69859.07883 | R235: 73002.73738
C236: Add: New Provisions | I236: =I24 -> 2210.573935 | J236: 2310.049762 | K236: 2414.002001 | L236: 2522.632091 | M236: 2636.150535 | N236: 2754.77731 | O236: 2878.742288 | P236: 3008.285691 | Q236: 3143.658548 | R236: 3143.658548
C237: Closing Balance | H237: =H55 -> 49123.86522 | I237: =SUM(I235:I236) -> 51334.43916 | J237: =SUM(J235:J236) -> 53644.48892 | K237: 56058.49092 | L237: 58581.12301 | M237: 61217.27355 | N237: 63972.05086 | O237: 66850.79314 | P237: 69859.07883 | Q237: 73002.73738 | R237: 76146.39593
B239: Equity Balance
C240: Opening Balance | I240: =H243 -> 442000 | J240: =I243 -> 581520.8693 | K240: 777771.3894 | L240: 1017159.219 | M240: 1282610.291 | N240: 1482003.547 | O240: 1496011.06 | P240: 1513478.898 | Q240: 1533142.44 | R240: 1556526.846
... 38 more rows

Sheet Transaction Value
B2: Waterfall Chart
E4: Equity Stand Alone | F4: ='Valuation Summary'!D18 -> 1413550.287
E5: Pre-tax Synergies | F5: =G5/0.1 -> 430000 | G5: ='Acquisition Summary'!D5 -> 43000
E6: Tax on Synergies | F6: =-F5*0.25 -> -107500
E7: Sub Total
E8: Transaction Costs | F8: =-'Acquisition Summary'!D15 -> -24600
E9: Total Equity Value | F9: 0

Sheet Waterfall Chartdata
A1: Equity Stand Alone 326 794,17 | B1: 326794.1718 | E1: 32679.41718 | F1: 326794.1718 | M1: 326794.1718 | N1: =M1 -> 326794.1718 | P1: =N1 -> 326794.1718 | Q1: =ABS(O1) -> 0 | AZ1: =waterfall_graph_data -> Equity Stand Alone | BA1: 1413550.287 | BB1: =BA1 -> 1413550.287 | BD1: =BB1 -> 1413550.287 | BE1: =ABS(BC1) -> 0 | BF1: 32679.41718 | BG1: =BD1 -> 1413550.287 | BH1: =IF(BC1>=0,0,BF1) -> 0 | BI1: =IF(BC1<0,0,BF1) -> 32679.41718 | BJ1: =BA1 -> 1413550.287 | BQ1: =AZ1 -> Equity Stand Alone | BS1: =BB1 -> 1413550.287 | BT1: =BQ1&BR1&TEXT(BS1,"*,#,##0.00;(*,(#,##0.00);(* ??_);_(@_)") -> Equity Stand Alone 1,413,550.29 | BU1: =BG1 -> 1413550.287 | BV1: 0 | BW1: =BE1 -> 0 | BX1: =BI1 -> 32679.41718 | BY1: =BB1 -> 1413550.287
A2: Pre-tax Synergies 756 794,17 | B2: 326794.1718 | D2: 430000 | E2: 32679.41718 | F2: 326794.1718 | G2: 756794.1718 | M2: 430000 | N2: =IF(M2<>0,N1+M2,N1) -> 756794.1718 | O2: =N2-N1 -> 430000 | P2: =IF(O2>=0,N2-O2,N1+O2) -> 326794.1718 | Q2: 430000 | AZ2: Pre-tax Synergies | BA2: 430000 | BB2: =IF(BA2<>0,BB1+BA2,BB1) -> 1843550.287 | BC2: =BB2-BB1 -> 430000 | BD2: =IF(BC2>=0,BB2-BC2,BB1+BC2) -> 1413550.287 | BE2: 430000 | BF2: 32679.41718 | BG2: =IF(BC2>=0,BD2,BD2-BF2) -> 1413550.287 | BH2: 0 | BI2: 32679.41718 | BJ2: =IF(BC2<>0,BC2,BB2) -> 430000 | BQ2: Pre-tax Synergies | BS2: 1843550.287 | BT2: Pre-tax Synergies 1,843,550.29 | BU2: 1413550.287 | BV2: 0 | BW2: 430000 | BX2: 32679.41718 | BY2: =BB1 -> 1413550.287 | BZ2: =BB2 -> 1843550.287
A3: Tax on Synergies 649 294,17 | B3: 616614.7546 | C3: 32679.41718 | D3: 107500 | G3: 756794.1718 | H3: 649294.1718 | M3: -107500 | N3: =IF(M3<>0,N2+M3,N2) -> 649294.1718 | O3: =N3-N2 -> -107500 | P3: =IF(O3>=0,N3-O3,N2+O3) -> 649294.1718 | Q3: 107500 | AZ3: Tax on Synergies | BA3: -107500 | BB3: =IF(BA3<>0,BB2+BA3,BB2) -> 1736050.287 | BC3: =BB3-BB2 -> -107500 | BD3: =IF(BC3>=0,BB3-BC3,BB2+BC3) -> 1736050.287 | BE3: 107500 | BF3: 32679.41718 | BG3: =IF(BC3>=0,BD3,BD3-BF3) -> 1703370.87 | BH3: 32679.41718 | BI3: 0 | BJ3: =IF(BC3<>0,BC3,BB3) -> -107500 | BQ3: Tax on Synergies | BS3: 1736050.287 | BT3: Tax on Synergies 1,736,050.29 | BU3: 1703370.87 | BV3: 32679.41718 | BW3: 107500 | BX3: 0 | BZ3: =BB2 -> 1843550.287 | CA3: =BB3 -> 1736050.287
A4: Sub Total 649 294,17 | B4: 649294.1718 | D4: 0 | E4: 32679.41718 | H4: 649294.1718 | I4: 649294.1718 | N4: =IF(M4<>0,N3+M4,N3) -> 649294.1718 | O4: =N4-N3 -> 0 | P4: =IF(O4>=0,N4-O4,N3+O4) -> 649294.1718 | Q4: 0 | AZ4: Sub Total | BA4: 0 | BB4: =IF(BA4<>0,BB3+BA4,BB3) -> 1736050.287 | BC4: =BB4-BB3 -> 0 | BD4: =IF(BC4>=0,BB4-BC4,BB3+BC4) -> 1736050.287 | BE4: 0 | BF4: 32679.41718 | BG4: =IF(BC4>=0,BD4,BD4-BF4) -> 1736050.287 | BH4: 0 | BI4: 32679.41718 | BJ4: =IF(BC4<>0,BC4,BB4) -> 1736050.287 | BQ4: Sub Total | BS4: 1736050.287 | BT4: Sub Total 1,736,050.29 | BU4: 1736050.287 | BV4: 0 | BW4: 0 | BX4: 32679.41718 | CA4: =BB3 -> 1736050.287 | CB4: =BB4 -> 1736050.287
A5: Transaction Costs 628 094,17 | B5: 595414.7546 | C5: 32679.41718 | D5: 21200 | I5: 649294.1718 | J5: 628094.1718 | M5: -21200 | N5: =IF(M5<>0,N4+M5,N4) -> 628094.1718 | O5: =N5-N4 -> -21200 | P5: =IF(O5>=0,N5-O5,N4+O5) -> 628094.1718 | Q5: 21200 | AZ5: Transaction Costs | BA5: -24600 | BB5: =IF(BA5<>0,BB4+BA5,BB4) -> 1711450.287 | BC5: =BB5-BB4 -> -24600 | BD5: =IF(BC5>=0,BB5-BC5,BB4+BC5) -> 1711450.287 | BE5: 24600 | BF5: 32679.41718 | BG5: =IF(BC5>=0,BD5,BD5-BF5) -> 1678770.87 | BH5: 32679.41718 | BI5: 0 | BJ5: =IF(BC5<>0,BC5,BB5) -> -24600 | BQ5: Transaction Costs | BS5: 1711450.287 | BT5: Transaction Costs 1,711,450.29 | BU5: 1678770.87 | BV5: 32679.41718 | BW5: 24600 | BX5: 0 | CB5: =BB4 -> 1736050.287 | CC5: =BB5 -> 1711450.287
A6: Total Equity Value 628 094,17 | B6: 628094.1718 | D6: 0 | E6: 32679.41718 | J6: 628094.1718 | K6: 628094.1718 | M6: 0 | N6: =IF(M6<>0,N5+M6,N5) -> 628094.1718 | O6: =N6-N5 -> 0 | P6: =IF(O6>=0,N6-O6,N5+O6) -> 628094.1718 | Q6: 0 | AZ6: Total Equity Value | BA6: 0 | BB6: =IF(BA6<>0,BB5+BA6,BB5) -> 1711450.287 | BC6: =BB6-BB5 -> 0 | BD6: =IF(BC6>=0,BB6-BC6,BB5+BC6) -> 1711450.287 | BE6: 0 | BF6: 32679.41718 | BG6: =IF(BC6>=0,BD6,BD6-BF6) -> 1711450.287 | BH6: 0 | BI6: 32679.41718 | BJ6: =IF(BC6<>0,BC6,BB6) -> 1711450.287 | BQ6: Total Equity Value | BS6: 1711450.287 | BT6: Total Equity Value 1,711,450.29 | BU6: 1711450.287 | BV6: 0 | BW6: 0 | BX6: 32679.41718 | CC6: =BB5 -> 1711450.287
A7: =COLUMN() -> 1 | B7: =COLUMN() -> 2 | C7: =COLUMN() -> 3 | D7: =COLUMN() -> 4 | E7: =COLUMN() -> 5 | F7: =COLUMN() -> 6 | G7: =COLUMN() -> 7 | H7: =COLUMN() -> 8 | I7: =COLUMN() -> 9 | J7: =COLUMN() -> 10 | K7: =COLUMN() -> 11 | L7: =COLUMN() -> 12 | M7: =COLUMN() -> 13 | N7: =COLUMN() -> 14 | O7: =COLUMN() -> 15 | P7: =COLUMN() -> 16 | Q7: =COLUMN() -> 17 | BB7: =COLUMN() -> 54 | BC7: =COLUMN() -> 55 | BD7: =COLUMN() -> 56 | BE7: =COLUMN() -> 57 | BF7: =COLUMN() -> 58 | BG7: =COLUMN() -> 59 | BH7: =COLUMN() -> 60 | BI7: =COLUMN() -> 61 | BJ7: =COLUMN() -> 62 | BK7: =COLUMN() -> 63 | BL7: =COLUMN() -> 64 | BM7: =COLUMN() -> 65 | BN7: =COLUMN() -> 66 | BO7: =COLUMN() -> 67 | BP7: =COLUMN() -> 68 | BQ7: =COLUMN() -> 69 | BR7: =COLUMN() -> 70 | BS7: =COLUMN() -> 71 | BT7: =COLUMN() -> 72 | BU7: =COLUMN() -> 73 | BV7: =COLUMN() -> 74 | BW7: =COLUMN() -> 75 | BX7: =COLUMN() -> 76 | BY7: =COLUMN() -> 77 | BZ7: =COLUMN() -> 78 | CA7: =COLUMN() -> 79 | CB7: =COLUMN() -> 80 | CC7: =COLUMN() -> 81 | CD7: =COLUMN() -> 82
A8: Fixed Graph: Graph Titles | D8: Fixed Graph: Increment (absolute Value) | F8: Fixed Graph: Connectors | BB8: CALCULATION: BASE VALUE: If not zero accumulate; if zero Last Value | BT8: GRAPH: Link to the Title
B9: Fixed Graph: Base of Stacked Bar | E9: Fixed Graph: Space for Increment | BB9: CALCULATION: ACCUMULATED VALUE: Formula is accumulation | BU9: GRAPH: Adjusted Base of Stack from calculation
C10: Fixed Graph: Space for Negative Label (Not Graphed | BC10: CALCULATION: INCREMENT: Formula is difference between accumulated value | BV10: GRAPH: Space for Value in Negative Case
A11: TO MAKE GRAPH BY YOURSELF | L11: Chart Title | M11: =AZ1 -> Equity Stand Alone | N11: =BB1 -> 1413550.287 | O11: Waterfall Chart | BD11: CALCULATION: BASE OF STACK BAR WITHOUT ADJUSTMENT: Base of Stacked Bar: Formula depends on the increment. If positive then ACC - Incr if negative Last ACC + Incr | BW11: GRAPH: Absolute Value of Increment
A12: 1. PRESS ALT F1 on the yellow AREA | BE12: CALCULATION: ABS VALUE OF INCREMENT: This is enough to make graph without fancy stuff | BX12: GRAPH: Space for Value in Positive Case
A13: 2. CHANGE TO STACKED BAR AND SWITCH AROUND ROW AND COLUMN | BF13: INPUT: LABEL SPACE: This is enough to make graph without fancy stuff
A14: 3. SELECT DATA SERIES AND NO FILL EVERYTHING EXCEPT INCREMENTS | BG14: CALCULATION: ADJUSTED BASE VALUE: This is base of the stacked bar minus the label space if the increment is negative
A15: 4. SELECT DATA PONTS FOR BASE BAR AND FILL STARTING, ENDING AND SUBTOTALS | BH15: CALCULATION: NEGATIVE SPACE: This is the label space if the increment is negative
A16: 5. CHANGE THE CHART TYPE OF THE CONNECTOR LINES | BI16: CALCULATION: POSITIVE SPACE: This is label space if the increment is positive

Sheet Data Tables
M1: Row Input | N1: Terminal
M2: Col Input | N2: Holding
M3: Output Range | N3: Sc_output
M4: Row Start 1 | N4: =ROW(N11) -> 11
M5: Rows 1 | N5: =COUNTA(N11:N19) -> 9
A6: Input Range | B6: Scenario | F6: ='Master Scenario page'!N9 -> 1 | G6: 87.82857088 | H6: 56.25572519 | I6: 71.44634472 | J6: 182.1622888 | M6: Column Start 1 | N6: =COLUMN(O10) -> 15
A7: Output_Range | B7: Sc_Output | F7: 2 | G7: -387.6426362 | H7: -265.5020712 | I7: -377.3273037 | J7: -136.9509258 | M7: Columns 1 | N7: =COUNTA(O10:S10) -> 5
A8: Row Start | B8: =ROW(F6) -> 6 | F8: 3 | G8: 379.9030469 | H8: 240.5987343 | I8: 337.6512123 | J8: 309.5579745
A9: Rows | B9: =ROW(F32)-Row_Start -> 26 | F9: 4 | G9: FALSE | H9: FALSE | I9: FALSE | J9: FALSE
A10: Column Start | B10: =COLUMN(G6) -> 7 | F10: 5 | G10: -23.60269358 | H10: -9.026325895 | I10: -28.35091717 | J10: 124.9274135 | O10: 4 | P10: 5 | Q10: 6 | R10: 7 | S10: 8
A11: Columns | B11: 4 | F11: 6 | G11: -223.5805648 | H11: -137.4619554 | I11: -210.340508 | J11: -20.39171097 | N11: 2
F12: 7 | G12: 44.17286367 | H12: 24.74880428 | I12: 30.8288198 | J12: 145.532177 | N12: 3
F13: 8 | G13: 87.82857088 | H13: 56.25572519 | I13: 71.44634472 | J13: 163.7528439 | N13: 4
F14: 9 | G14: 87.82857088 | H14: 56.25572519 | I14: 71.44634472 | J14: 175.2587469 | N14: 5
F15: 10 | G15: 80.67978497 | H15: 48.98405521 | I15: 64.17467475 | J15: 179.0947275 | N15: 6
F16: 11 | G16: 71.60534946 | H16: 40.11251078 | I16: 55.30313031 | J16: 175.3475165 | N16: 7
F17: 12 | G17: 101.3461509 | H17: 70.79906514 | I17: 85.98968467 | J17: 188.2974114 | N17: 8
F18: 13 | G18: 85.40708872 | H18: 53.83424303 | I18: 69.02486256 | J18: 181.1400729 | N18: 9
F19: 14 | G19: 16.1174659 | H19: -10.89072233 | I19: -11.19582767 | J19: 160.8632865 | N19: 10
F20: 15 | G20: FALSE | H20: FALSE | I20: FALSE | J20: FALSE
F21: 16 | G21: 160.2074894 | H21: 98.71883054 | I21: 136.2819527 | J21: 221.7915515
F22: 17 | G22: 173.3812042 | H22: 101.2886233 | I22: 146.8479229 | J22: 181.3089396 | O22: Code for a data table
F23: 18 | G23: 139.5117217 | H23: 87.69203234 | I23: 118.0669919 | J23: 216.6713636
F24: 19 | G24: 87.82857088 | H24: 56.25572519 | I24: 71.44634472 | J24: 205.1740949 | O24: Sub table2()
F25: 20 | G25: 87.82857088 | H25: 56.25572519 | I25: 71.44634472 | J25: 191.2519522
F26: 21 | G26: 101.3461509 | H26: 70.79906514 | I26: 85.98968467 | J26: 188.2974114 | O26: For row = 6 To 10
F27: 22 | G27: 102.7678551 | H27: 72.3989396 | I27: 87.58955913 | J27: 188.9770611 | O27: Output = Range("IRR")
F28: 23 | G28: 73.27100179 | H28: 41.71238524 | I28: 56.90300477 | J28: 176.0271661 | O28: Input1 = Range("Cash_flow")
F29: 24 | G29: 89.44289232 | H29: 57.87004663 | I29: 73.06066616 | J29: 182.843766
F30: 25 | G30: 116.6562264 | H30: 89.82894895 | I30: 112.7674309 | J30: 192.8117899 | O30: Range("Cash_flow") = Cells(row, 6)
F31: 26 | G31: FALSE | H31: FALSE | I31: FALSE | J31: FALSE
F32: 27 | G32: 87.82857088 | H32: 56.25572519 | I32: 71.44634472 | J32: 182.1622888 | O32: Cells(row, 7) = Output
O33: Next row
O35: End Sub

Sheet EPS dilution
A1: USD
B2: Google buys Apple | D2: share price | E2: # shares | F2: market cap | G2: EPS 1 | H2: EPS 2 | I2: EPS 3 | K2: PE ratio
E3: (in mln)
B4: Google | D4: 1021 | E4: 334 | F4: =D4*E4 -> 341014 | G4: 36 | H4: 43 | I4: 64 | K4: =D4/G4 -> 28.36111111
B5: Apple | D5: 489 | E5: 908 | F5: =D5*E5 -> 444012 | G5: 39 | H5: 40 | I5: 65 | K5: =D5/G5 -> 12.53846154
B7: premium paid (%) | D7: 0.3
B8: synergies (%) | D8: 0
B10: exchange ratio without premium | D10: =D5/D4 -> 0.4789422135 | J10: (share price target company/acquiring company)
B11: exchange ratio with premium | D11: =D10*(1+D7) -> 0.6226248776
B12: new shares issued by Google | D12: =E5*D11 -> 565.3433888
B14: total Google earnings without transaction | G14: =$E$4*G4 -> 12024 | H14: =$E$4*H4 -> 14362 | I14: =$E$4*I4 -> 21376
B15: total Apple earnings without transaction | G15: =$E$5*G5 -> 35412 | H15: =$E$5*H5 -> 36320 | I15: =$E$5*I5 -> 59020
B16: synergies | G16: 0 | H16: 0 | I16: 0
B17: total earnings of new consolidated company | G17: =SUM(G14:G16) -> 47436 | H17: =SUM(H14:H16) -> 50682 | I17: =SUM(I14:I16) -> 80396
B18: total shares of Google (acquiring company) after issue | D18: =E4+D12 -> 899.3433888 | G18: =$D$18 -> 899.3433888 | H18: =$D$18 -> 899.3433888 | I18: =$D$18 -> 899.3433888
B19: EPS combination | G19: =G17/G18 -> 52.74514784 | H19: =H17/H18 -> 56.35444773 | I19: =I17/I18 -> 89.39410797
B20: Accretion (+) / Dilution (-) | G20: =G19-G4 -> 16.74514784 | H20: =H19-H4 -> 13.35444773 | I20: =I19-I4 -> 25.39410797
B22: If earnings go up after aquisition (accretion) or go down (dilution)

Sheet Audit Sheet
B2: Historic balance sheet | E2: ='Financial model'!H45 -> TRUE | F2: =IF(E2,"",B2) -> 
B3: Income Statement | E3: ='Financial model'!I301 -> TRUE | F3: =IF(E3,"",B3) -> 
B4: Assets | E4: ='Financial model'!D349 -> TRUE | F4: =IF(E4,"",B4) -> 
B5: Balance Sheet | E5: ='Financial model'!I362 -> TRUE | F5: =IF(E5,"",B5) -> 
B8: Corporate Model Check | E8: =AND(E2:E5) -> TRUE | F8: =IF(E8,add_text(F2:F5),"Model OK ") -> 
B10: Pro-Forma Adjustments
B11: Pro-Forma Balance Sheet
B12: Acquistion Balance Sheet

Sheet Long-term analysis
A2: Timing
F3: 0 | G3: =F3+1 -> 1 | H3: =G3+1 -> 2 | I3: 3 | J3: 4 | K3: 5 | L3: 6 | M3: 7 | N3: 8 | O3: 9 | P3: 10 | Q3: 11 | R3: 12 | S3: 13 | T3: 14 | U3: 15 | V3: 16 | W3: 17 | X3: 18 | Y3: 19 | Z3: 20 | AA3: 21 | AB3: 22 | AC3: 23 | AD3: 24 | AE3: 25 | AF3: 26 | AG3: 27 | AH3: 28 | AI3: 29 | AJ3: 30 | AK3: 31 | AL3: 32 | AM3: 33 | AN3: 34 | AO3: 35 | AP3: 36 | AQ3: 37 | AR3: 38 | AS3: 39 | AT3: 40 | AU3: 41 | AV3: 42 | AW3: 43 | AX3: 44 | AY3: 45 | AZ3: 46 | BA3: 47 | BB3: 48 | BC3: 49 | BD3: 50 | BE3: 51 | BF3: 52 | BG3: 53 | BH3: 54 | BI3: 55 | BJ3: 56 | BK3: 57 | BL3: 58 | BM3: 59 | BN3: 60 | BO3: 61 | BP3: 62 | BQ3: 63 | BR3: 64 | BS3: 65 | BT3: =BS3+1 -> 66 | BU3: 67 | BV3: 68 | BW3: 69 | BX3: 70 | BY3: 71 | BZ3: 72 | CA3: 73 | CB3: 74 | CC3: 75 | CD3: 76 | CE3: 77 | CF3: 78 | CG3: 79 | CH3: 80 | CI3: 81 | CJ3: 82 | CK3: 83 | CL3: 84 | CM3: 85 | CN3: 86 | CO3: 87 | CP3: 88 | CQ3: 89 | CR3: 90 | CS3: 91 | CT3: 92 | CU3: 93 | CV3: 94 | CW3: 95 | CX3: 96 | CY3: 97 | CZ3: 98 | DA3: 99 | DB3: 100 | DC3: 101 | DD3: 102 | DE3: 103 | DF3: 104 | DG3: 105 | DH3: 106 | DI3: 107 | DJ3: 108 | DK3: 109 | DL3: 110 | DM3: 111 | DN3: 112 | DO3: 113 | DP3: 114 | DQ3: 115 | DR3: 116 | DS3: 117 | DT3: 118 | DU3: 119 | DV3: 120 | DW3: 121 | DX3: 122 | DY3: 123 | DZ3: 124 | EA3: 125 | EB3: 126 | EC3: 127 | ED3: 128 | EE3: 129 | EF3: =EE3+1 -> 130 | EG3: 131 | EH3: 132 | EI3: 133 | EJ3: 134 | EK3: 135 | EL3: 136 | EM3: 137 | EN3: 138 | EO3: 139 | EP3: 140 | EQ3: 141 | ER3: 142 | ES3: 143 | ET3: 144 | EU3: 145 | EV3: 146 | EW3: 147 | EX3: 148 | EY3: 149 | EZ3: 150 | FA3: 151 | FB3: 152 | FC3: 153 | FD3: 154 | FE3: 155 | FF3: 156 | FG3: 157 | FH3: 158 | FI3: 159 | FJ3: 160 | FK3: 161 | FL3: 162 | FM3: 163 | FN3: 164 | FO3: 165 | FP3: 166 | FQ3: 167 | FR3: 168 | FS3: 169 | FT3: 170 | FU3: 171 | FV3: 172 | FW3: 173 | FX3: 174 | FY3: 175 | FZ3: 176 | GA3: 177 | GB3: 178 | GC3: 179 | GD3: 180 | GE3: 181 | GF3: 182 | GG3: 183 | GH3: 184 | GI3: 185 | GJ3: 186 | GK3: 187 | GL3: 188 | GM3: 189 | GN3: 190 | GO3: 191 | GP3: 192 | GQ3: 193 | GR3: =GQ3+1 -> 194 | GS3: 195 | GT3: 196 | GU3: 197 | GV3: 198 | GW3: 199 | GX3: 200 | GY3: 201 | GZ3: 202 | HA3: 203 | HB3: 204 | HC3: 205 | HD3: 206 | HE3: 207 | HF3: 208 | HG3: 209 | HH3: 210 | HI3: 211 | HJ3: 212 | HK3: 213 | HL3: 214 | HM3: 215 | HN3: 216 | HO3: 217 | HP3: 218 | HQ3: 219 | HR3: 220 | HS3: 221 | HT3: 222 | HU3: 223 | HV3: 224 | HW3: 225 | HX3: 226 | HY3: 227 | HZ3: 228 | IA3: 229 | IB3: 230 | IC3: 231 | ID3: 232 | IE3: 233 | IF3: 234 | IG3: 235 | IH3: 236 | II3: 237 | IJ3: 238 | IK3: 239 | IL3: 240 | IM3: 241 | IN3: 242 | IO3: 243 | IP3: 244 | IQ3: 245 | IR3: 246 | IS3: 247 | IT3: 248 | IU3: 249 | IV3: 250 | IW3: 251 | IX3: 252 | IY3: 253 | IZ3: 254 | JA3: 255 | JB3: 256 | JC3: 257 | JD3: =JC3+1 -> 258 | JE3: 259 | JF3: 260 | JG3: 261 | JH3: 262 | JI3: 263 | JJ3: 264 | JK3: 265 | JL3: 266 | JM3: 267 | JN3: 268 | JO3: 269 | JP3: 270 | JQ3: 271 | JR3: 272 | JS3: 273 | JT3: 274 | JU3: 275 | JV3: 276 | JW3: 277 | JX3: 278 | JY3: 279 | JZ3: 280 | KA3: 281 | KB3: 282 | KC3: 283 | KD3: 284 | KE3: 285 | KF3: 286 | KG3: 287 | KH3: 288 | KI3: 289 | KJ3: 290 | KK3: 291 | KL3: 292 | KM3: 293 | KN3: 294 | KO3: 295 | KP3: 296 | KQ3: 297 | KR3: 298 | KS3: 299 | KT3: 300
B4: Explicit period switch | G4: =G3<=$E$12 -> TRUE | H4: =H3<=$E$12 -> TRUE | I4: TRUE | J4: TRUE | K4: TRUE | L4: TRUE | M4: TRUE | N4: TRUE | O4: TRUE | P4: TRUE | Q4: FALSE | R4: FALSE | S4: FALSE | T4: FALSE | U4: FALSE | V4: FALSE | W4: FALSE | X4: FALSE | Y4: FALSE | Z4: FALSE | AA4: FALSE | AB4: FALSE | AC4: FALSE | AD4: FALSE | AE4: FALSE | AF4: FALSE | AG4: FALSE | AH4: FALSE | AI4: FALSE | AJ4: FALSE | AK4: FALSE | AL4: FALSE | AM4: FALSE | AN4: FALSE | AO4: FALSE | AP4: FALSE | AQ4: FALSE | AR4: FALSE | AS4: FALSE | AT4: FALSE | AU4: FALSE | AV4: FALSE | AW4: FALSE | AX4: FALSE | AY4: FALSE | AZ4: FALSE | BA4: FALSE | BB4: FALSE | BC4: FALSE | BD4: FALSE | BE4: FALSE | BF4: FALSE | BG4: FALSE | BH4: FALSE | BI4: FALSE | BJ4: FALSE | BK4: FALSE | BL4: FALSE | BM4: FALSE | BN4: FALSE | BO4: FALSE | BP4: FALSE | BQ4: FALSE | BR4: FALSE | BS4: FALSE | BT4: =BT3<=$E$12 -> FALSE | BU4: FALSE | BV4: FALSE | BW4: FALSE | BX4: FALSE | BY4: FALSE | BZ4: FALSE | CA4: FALSE | CB4: FALSE | CC4: FALSE | CD4: FALSE | CE4: FALSE | CF4: FALSE | CG4: FALSE | CH4: FALSE | CI4: FALSE | CJ4: FALSE | CK4: FALSE | CL4: FALSE | CM4: FALSE | CN4: FALSE | CO4: FALSE | CP4: FALSE | CQ4: FALSE | CR4: FALSE | CS4: FALSE | CT4: FALSE | CU4: FALSE | CV4: FALSE | CW4: FALSE | CX4: FALSE | CY4: FALSE | CZ4: FALSE | DA4: FALSE | DB4: FALSE | DC4: FALSE | DD4: FALSE | DE4: FALSE | DF4: FALSE | DG4: FALSE | DH4: FALSE | DI4: FALSE | DJ4: FALSE | DK4: FALSE | DL4: FALSE | DM4: FALSE | DN4: FALSE | DO4: FALSE | DP4: FALSE | DQ4: FALSE | DR4: FALSE | DS4: FALSE | DT4: FALSE | DU4: FALSE | DV4: FALSE | DW4: FALSE | DX4: FALSE | DY4: FALSE | DZ4: FALSE | EA4: FALSE | EB4: FALSE | EC4: FALSE | ED4: FALSE | EE4: FALSE | EF4: =EF3<=$E$12 -> FALSE | EG4: FALSE | EH4: FALSE | EI4: FALSE | EJ4: FALSE | EK4: FALSE | EL4: FALSE | EM4: FALSE | EN4: FALSE | EO4: FALSE | EP4: FALSE | EQ4: FALSE | ER4: FALSE | ES4: FALSE | ET4: FALSE | EU4: FALSE | EV4: FALSE | EW4: FALSE | EX4: FALSE | EY4: FALSE | EZ4: FALSE | FA4: FALSE | FB4: FALSE | FC4: FALSE | FD4: FALSE | FE4: FALSE | FF4: FALSE | FG4: FALSE | FH4: FALSE | FI4: FALSE | FJ4: FALSE | FK4: FALSE | FL4: FALSE | FM4: FALSE | FN4: FALSE | FO4: FALSE | FP4: FALSE | FQ4: FALSE | FR4: FALSE | FS4: FALSE | FT4: FALSE | FU4: FALSE | FV4: FALSE | FW4: FALSE | FX4: FALSE | FY4: FALSE | FZ4: FALSE | GA4: FALSE | GB4: FALSE | GC4: FALSE | GD4: FALSE | GE4: FALSE | GF4: FALSE | GG4: FALSE | GH4: FALSE | GI4: FALSE | GJ4: FALSE | GK4: FALSE | GL4: FALSE | GM4: FALSE | GN4: FALSE | GO4: FALSE | GP4: FALSE | GQ4: FALSE | GR4: =GR3<=$E$12 -> FALSE | GS4: FALSE | GT4: FALSE | GU4: FALSE | GV4: FALSE | GW4: FALSE | GX4: FALSE | GY4: FALSE | GZ4: FALSE | HA4: FALSE | HB4: FALSE | HC4: FALSE | HD4: FALSE | HE4: FALSE | HF4: FALSE | HG4: FALSE | HH4: FALSE | HI4: FALSE | HJ4: FALSE | HK4: FALSE | HL4: FALSE | HM4: FALSE | HN4: FALSE | HO4: FALSE | HP4: FALSE | HQ4: FALSE | HR4: FALSE | HS4: FALSE | HT4: FALSE | HU4: FALSE | HV4: FALSE | HW4: FALSE | HX4: FALSE | HY4: FALSE | HZ4: FALSE | IA4: FALSE | IB4: FALSE | IC4: FALSE | ID4: FALSE | IE4: FALSE | IF4: FALSE | IG4: FALSE | IH4: FALSE | II4: FALSE | IJ4: FALSE | IK4: FALSE | IL4: FALSE | IM4: FALSE | IN4: FALSE | IO4: FALSE | IP4: FALSE | IQ4: FALSE | IR4: FALSE | IS4: FALSE | IT4: FALSE | IU4: FALSE | IV4: FALSE | IW4: FALSE | IX4: FALSE | IY4: FALSE | IZ4: FALSE | JA4: FALSE | JB4: FALSE | JC4: FALSE | JD4: =JD3<=$E$12 -> FALSE | JE4: FALSE | JF4: FALSE | JG4: FALSE | JH4: FALSE | JI4: FALSE | JJ4: FALSE | JK4: FALSE | JL4: FALSE | JM4: FALSE | JN4: FALSE | JO4: FALSE | JP4: FALSE | JQ4: FALSE | JR4: FALSE | JS4: FALSE | JT4: FALSE | JU4: FALSE | JV4: FALSE | JW4: FALSE | JX4: FALSE | JY4: FALSE | JZ4: FALSE | KA4: FALSE | KB4: FALSE | KC4: FALSE | KD4: FALSE | KE4: FALSE | KF4: FALSE | KG4: FALSE | KH4: FALSE | KI4: FALSE | KJ4: FALSE | KK4: FALSE | KL4: FALSE | KM4: FALSE | KN4: FALSE | KO4: FALSE | KP4: FALSE | KQ4: FALSE | KR4: FALSE | KS4: FALSE | KT4: FALSE
B5: Terminal period switch | G5: =G3=$E$12 -> FALSE | H5: =H3=$E$12 -> FALSE | I5: FALSE | J5: FALSE | K5: FALSE | L5: FALSE | M5: FALSE | N5: FALSE | O5: FALSE | P5: TRUE | Q5: FALSE | R5: FALSE | S5: FALSE | T5: FALSE | U5: FALSE | V5: FALSE | W5: FALSE | X5: FALSE | Y5: FALSE | Z5: FALSE | AA5: FALSE | AB5: FALSE | AC5: FALSE | AD5: FALSE | AE5: FALSE | AF5: FALSE | AG5: FALSE | AH5: FALSE | AI5: FALSE | AJ5: FALSE | AK5: FALSE | AL5: FALSE | AM5: FALSE | AN5: FALSE | AO5: FALSE | AP5: FALSE | AQ5: FALSE | AR5: FALSE | AS5: FALSE | AT5: FALSE | AU5: FALSE | AV5: FALSE | AW5: FALSE | AX5: FALSE | AY5: FALSE | AZ5: FALSE | BA5: FALSE | BB5: FALSE | BC5: FALSE | BD5: FALSE | BE5: FALSE | BF5: FALSE | BG5: FALSE | BH5: FALSE | BI5: FALSE | BJ5: FALSE | BK5: FALSE | BL5: FALSE | BM5: FALSE | BN5: FALSE | BO5: FALSE | BP5: FALSE | BQ5: FALSE | BR5: FALSE | BS5: FALSE | BT5: =BT3=$E$12 -> FALSE | BU5: FALSE | BV5: FALSE | BW5: FALSE | BX5: FALSE | BY5: FALSE | BZ5: FALSE | CA5: FALSE | CB5: FALSE | CC5: FALSE | CD5: FALSE | CE5: FALSE | CF5: FALSE | CG5: FALSE | CH5: FALSE | CI5: FALSE | CJ5: FALSE | CK5: FALSE | CL5: FALSE | CM5: FALSE | CN5: FALSE | CO5: FALSE | CP5: FALSE | CQ5: FALSE | CR5: FALSE | CS5: FALSE | CT5: FALSE | CU5: FALSE | CV5: FALSE | CW5: FALSE | CX5: FALSE | CY5: FALSE | CZ5: FALSE | DA5: FALSE | DB5: FALSE | DC5: FALSE | DD5: FALSE | DE5: FALSE | DF5: FALSE | DG5: FALSE | DH5: FALSE | DI5: FALSE | DJ5: FALSE | DK5: FALSE | DL5: FALSE | DM5: FALSE | DN5: FALSE | DO5: FALSE | DP5: FALSE | DQ5: FALSE | DR5: FALSE | DS5: FALSE | DT5: FALSE | DU5: FALSE | DV5: FALSE | DW5: FALSE | DX5: FALSE | DY5: FALSE | DZ5: FALSE | EA5: FALSE | EB5: FALSE | EC5: FALSE | ED5: FALSE | EE5: FALSE | EF5: =EF3=$E$12 -> FALSE | EG5: FALSE | EH5: FALSE | EI5: FALSE | EJ5: FALSE | EK5: FALSE | EL5: FALSE | EM5: FALSE | EN5: FALSE | EO5: FALSE | EP5: FALSE | EQ5: FALSE | ER5: FALSE | ES5: FALSE | ET5: FALSE | EU5: FALSE | EV5: FALSE | EW5: FALSE | EX5: FALSE | EY5: FALSE | EZ5: FALSE | FA5: FALSE | FB5: FALSE | FC5: FALSE | FD5: FALSE | FE5: FALSE | FF5: FALSE | FG5: FALSE | FH5: FALSE | FI5: FALSE | FJ5: FALSE | FK5: FALSE | FL5: FALSE | FM5: FALSE | FN5: FALSE | FO5: FALSE | FP5: FALSE | FQ5: FALSE | FR5: FALSE | FS5: FALSE | FT5: FALSE | FU5: FALSE | FV5: FALSE | FW5: FALSE | FX5: FALSE | FY5: FALSE | FZ5: FALSE | GA5: FALSE | GB5: FALSE | GC5: FALSE | GD5: FALSE | GE5: FALSE | GF5: FALSE | GG5: FALSE | GH5: FALSE | GI5: FALSE | GJ5: FALSE | GK5: FALSE | GL5: FALSE | GM5: FALSE | GN5: FALSE | GO5: FALSE | GP5: FALSE | GQ5: FALSE | GR5: =GR3=$E$12 -> FALSE | GS5: FALSE | GT5: FALSE | GU5: FALSE | GV5: FALSE | GW5: FALSE | GX5: FALSE | GY5: FALSE | GZ5: FALSE | HA5: FALSE | HB5: FALSE | HC5: FALSE | HD5: FALSE | HE5: FALSE | HF5: FALSE | HG5: FALSE | HH5: FALSE | HI5: FALSE | HJ5: FALSE | HK5: FALSE | HL5: FALSE | HM5: FALSE | HN5: FALSE | HO5: FALSE | HP5: FALSE | HQ5: FALSE | HR5: FALSE | HS5: FALSE | HT5: FALSE | HU5: FALSE | HV5: FALSE | HW5: FALSE | HX5: FALSE | HY5: FALSE | HZ5: FALSE | IA5: FALSE | IB5: FALSE | IC5: FALSE | ID5: FALSE | IE5: FALSE | IF5: FALSE | IG5: FALSE | IH5: FALSE | II5: FALSE | IJ5: FALSE | IK5: FALSE | IL5: FALSE | IM5: FALSE | IN5: FALSE | IO5: FALSE | IP5: FALSE | IQ5: FALSE | IR5: FALSE | IS5: FALSE | IT5: FALSE | IU5: FALSE | IV5: FALSE | IW5: FALSE | IX5: FALSE | IY5: FALSE | IZ5: FALSE | JA5: FALSE | JB5: FALSE | JC5: FALSE | JD5: =JD3=$E$12 -> FALSE | JE5: FALSE | JF5: FALSE | JG5: FALSE | JH5: FALSE | JI5: FALSE | JJ5: FALSE | JK5: FALSE | JL5: FALSE | JM5: FALSE | JN5: FALSE | JO5: FALSE | JP5: FALSE | JQ5: FALSE | JR5: FALSE | JS5: FALSE | JT5: FALSE | JU5: FALSE | JV5: FALSE | JW5: FALSE | JX5: FALSE | JY5: FALSE | JZ5: FALSE | KA5: FALSE | KB5: FALSE | KC5: FALSE | KD5: FALSE | KE5: FALSE | KF5: FALSE | KG5: FALSE | KH5: FALSE | KI5: FALSE | KJ5: FALSE | KK5: FALSE | KL5: FALSE | KM5: FALSE | KN5: FALSE | KO5: FALSE | KP5: FALSE | KQ5: FALSE | KR5: FALSE | KS5: FALSE | KT5: FALSE
B6: Revenue | E6: 100
B7: COGS % | E7: 0.8
B8: Account receivables % | E8: 0.25
B9: Explicit period growth | E9: 0.3
B10: Terminal period growth | E10: 0.02
B11: WACC | E11: 0.1
B12: High growth period | E12: 10
B13: Expllicit column | E13: =MATCH(E12,3:3,) -> 16
A15: Long-term value
B16: Growth rate | G16: =IF(G4,$E$9,$E$10) -> 0.3 | H16: =IF(H4,$E$9,$E$10) -> 0.3 | I16: 0.3 | J16: 0.3 | K16: 0.3 | L16: 0.3 | M16: 0.3 | N16: 0.3 | O16: 0.3 | P16: 0.3 | Q16: 0.02 | R16: 0.02 | S16: 0.02 | T16: 0.02 | U16: 0.02 | V16: 0.02 | W16: 0.02 | X16: 0.02 | Y16: 0.02 | Z16: 0.02 | AA16: 0.02 | AB16: 0.02 | AC16: 0.02 | AD16: 0.02 | AE16: 0.02 | AF16: 0.02 | AG16: 0.02 | AH16: 0.02 | AI16: 0.02 | AJ16: 0.02 | AK16: 0.02 | AL16: 0.02 | AM16: 0.02 | AN16: 0.02 | AO16: 0.02 | AP16: 0.02 | AQ16: 0.02 | AR16: 0.02 | AS16: 0.02 | AT16: 0.02 | AU16: 0.02 | AV16: 0.02 | AW16: 0.02 | AX16: 0.02 | AY16: 0.02 | AZ16: 0.02 | BA16: 0.02 | BB16: 0.02 | BC16: 0.02 | BD16: 0.02 | BE16: 0.02 | BF16: 0.02 | BG16: 0.02 | BH16: 0.02 | BI16: 0.02 | BJ16: 0.02 | BK16: 0.02 | BL16: 0.02 | BM16: 0.02 | BN16: 0.02 | BO16: 0.02 | BP16: 0.02 | BQ16: 0.02 | BR16: 0.02 | BS16: 0.02 | BT16: =IF(BT4,$E$9,$E$10) -> 0.02 | BU16: 0.02 | BV16: 0.02 | BW16: 0.02 | BX16: 0.02 | BY16: 0.02 | BZ16: 0.02 | CA16: 0.02 | CB16: 0.02 | CC16: 0.02 | CD16: 0.02 | CE16: 0.02 | CF16: 0.02 | CG16: 0.02 | CH16: 0.02 | CI16: 0.02 | CJ16: 0.02 | CK16: 0.02 | CL16: 0.02 | CM16: 0.02 | CN16: 0.02 | CO16: 0.02 | CP16: 0.02 | CQ16: 0.02 | CR16: 0.02 | CS16: 0.02 | CT16: 0.02 | CU16: 0.02 | CV16: 0.02 | CW16: 0.02 | CX16: 0.02 | CY16: 0.02 | CZ16: 0.02 | DA16: 0.02 | DB16: 0.02 | DC16: 0.02 | DD16: 0.02 | DE16: 0.02 | DF16: 0.02 | DG16: 0.02 | DH16: 0.02 | DI16: 0.02 | DJ16: 0.02 | DK16: 0.02 | DL16: 0.02 | DM16: 0.02 | DN16: 0.02 | DO16: 0.02 | DP16: 0.02 | DQ16: 0.02 | DR16: 0.02 | DS16: 0.02 | DT16: 0.02 | DU16: 0.02 | DV16: 0.02 | DW16: 0.02 | DX16: 0.02 | DY16: 0.02 | DZ16: 0.02 | EA16: 0.02 | EB16: 0.02 | EC16: 0.02 | ED16: 0.02 | EE16: 0.02 | EF16: =IF(EF4,$E$9,$E$10) -> 0.02 | EG16: 0.02 | EH16: 0.02 | EI16: 0.02 | EJ16: 0.02 | EK16: 0.02 | EL16: 0.02 | EM16: 0.02 | EN16: 0.02 | EO16: 0.02 | EP16: 0.02 | EQ16: 0.02 | ER16: 0.02 | ES16: 0.02 | ET16: 0.02 | EU16: 0.02 | EV16: 0.02 | EW16: 0.02 | EX16: 0.02 | EY16: 0.02 | EZ16: 0.02 | FA16: 0.02 | FB16: 0.02 | FC16: 0.02 | FD16: 0.02 | FE16: 0.02 | FF16: 0.02 | FG16: 0.02 | FH16: 0.02 | FI16: 0.02 | FJ16: 0.02 | FK16: 0.02 | FL16: 0.02 | FM16: 0.02 | FN16: 0.02 | FO16: 0.02 | FP16: 0.02 | FQ16: 0.02 | FR16: 0.02 | FS16: 0.02 | FT16: 0.02 | FU16: 0.02 | FV16: 0.02 | FW16: 0.02 | FX16: 0.02 | FY16: 0.02 | FZ16: 0.02 | GA16: 0.02 | GB16: 0.02 | GC16: 0.02 | GD16: 0.02 | GE16: 0.02 | GF16: 0.02 | GG16: 0.02 | GH16: 0.02 | GI16: 0.02 | GJ16: 0.02 | GK16: 0.02 | GL16: 0.02 | GM16: 0.02 | GN16: 0.02 | GO16: 0.02 | GP16: 0.02 | GQ16: 0.02 | GR16: =IF(GR4,$E$9,$E$10) -> 0.02 | GS16: 0.02 | GT16: 0.02 | GU16: 0.02 | GV16: 0.02 | GW16: 0.02 | GX16: 0.02 | GY16: 0.02 | GZ16: 0.02 | HA16: 0.02 | HB16: 0.02 | HC16: 0.02 | HD16: 0.02 | HE16: 0.02 | HF16: 0.02 | HG16: 0.02 | HH16: 0.02 | HI16: 0.02 | HJ16: 0.02 | HK16: 0.02 | HL16: 0.02 | HM16: 0.02 | HN16: 0.02 | HO16: 0.02 | HP16: 0.02 | HQ16: 0.02 | HR16: 0.02 | HS16: 0.02 | HT16: 0.02 | HU16: 0.02 | HV16: 0.02 | HW16: 0.02 | HX16: 0.02 | HY16: 0.02 | HZ16: 0.02 | IA16: 0.02 | IB16: 0.02 | IC16: 0.02 | ID16: 0.02 | IE16: 0.02 | IF16: 0.02 | IG16: 0.02 | IH16: 0.02 | II16: 0.02 | IJ16: 0.02 | IK16: 0.02 | IL16: 0.02 | IM16: 0.02 | IN16: 0.02 | IO16: 0.02 | IP16: 0.02 | IQ16: 0.02 | IR16: 0.02 | IS16: 0.02 | IT16: 0.02 | IU16: 0.02 | IV16: 0.02 | IW16: 0.02 | IX16: 0.02 | IY16: 0.02 | IZ16: 0.02 | JA16: 0.02 | JB16: 0.02 | JC16: 0.02 | JD16: =IF(JD4,$E$9,$E$10) -> 0.02 | JE16: 0.02 | JF16: 0.02 | JG16: 0.02 | JH16: 0.02 | JI16: 0.02 | JJ16: 0.02 | JK16: 0.02 | JL16: 0.02 | JM16: 0.02 | JN16: 0.02 | JO16: 0.02 | JP16: 0.02 | JQ16: 0.02 | JR16: 0.02 | JS16: 0.02 | JT16: 0.02 | JU16: 0.02 | JV16: 0.02 | JW16: 0.02 | JX16: 0.02 | JY16: 0.02 | JZ16: 0.02 | KA16: 0.02 | KB16: 0.02 | KC16: 0.02 | KD16: 0.02 | KE16: 0.02 | KF16: 0.02 | KG16: 0.02 | KH16: 0.02 | KI16: 0.02 | KJ16: 0.02 | KK16: 0.02 | KL16: 0.02 | KM16: 0.02 | KN16: 0.02 | KO16: 0.02 | KP16: 0.02 | KQ16: 0.02 | KR16: 0.02 | KS16: 0.02 | KT16: 0.02
B18: Revenues | F18: =E6 -> 100 | G18: =F18*(1+G16) -> 130 | H18: =G18*(1+H16) -> 169 | I18: 219.7 | J18: 285.61 | K18: 371.293 | L18: 482.6809 | M18: 627.48517 | N18: 815.730721 | O18: 1060.449937 | P18: 1378.584918 | Q18: 1406.156617 | R18: 1434.279749 | S18: 1462.965344 | T18: 1492.224651 | U18: 1522.069144 | V18: 1552.510527 | W18: 1583.560738 | X18: 1615.231952 | Y18: 1647.536591 | Z18: 1680.487323 | AA18: 1714.09707 | AB18: 1748.379011 | AC18: 1783.346591 | AD18: 1819.013523 | AE18: 1855.393793 | AF18: 1892.501669 | AG18: 1930.351703 | AH18: 1968.958737 | AI18: 2008.337912 | AJ18: 2048.50467 | AK18: 2089.474763 | AL18: 2131.264258 | AM18: 2173.889544 | AN18: 2217.367334 | AO18: 2261.714681 | AP18: 2306.948975 | AQ18: 2353.087954 | AR18: 2400.149713 | AS18: 2448.152708 | AT18: 2497.115762 | AU18: 2547.058077 | AV18: 2597.999239 | AW18: 2649.959223 | AX18: 2702.958408 | AY18: 2757.017576 | AZ18: 2812.157927 | BA18: 2868.401086 | BB18: 2925.769108 | BC18: 2984.28449 | BD18: 3043.97018 | BE18: 3104.849583 | BF18: 3166.946575 | BG18: 3230.285506 | BH18: 3294.891217 | BI18: 3360.789041 | BJ18: 3428.004822 | BK18: 3496.564918 | BL18: 3566.496217 | BM18: 3637.826141 | BN18: 3710.582664 | BO18: 3784.794317 | BP18: 3860.490203 | BQ18: 3937.700007 | BR18: 4016.454007 | BS18: 4096.783088 | BT18: =BS18*(1+BT16) -> 4178.718749 | BU18: 4262.293124 | BV18: 4347.538987 | BW18: 4434.489767 | BX18: 4523.179562 | BY18: 4613.643153 | BZ18: 4705.916016 | CA18: 4800.034337 | CB18: 4896.035023 | CC18: 4993.955724 | CD18: 5093.834838 | CE18: 5195.711535 | CF18: 5299.625766 | CG18: 5405.618281 | CH18: 5513.730647 | CI18: 5624.00526 | CJ18: 5736.485365 | CK18: 5851.215072 | CL18: 5968.239374 | CM18: 6087.604161 | CN18: 6209.356244 | CO18: 6333.543369 | CP18: 6460.214236 | CQ18: 6589.418521 | CR18: 6721.206892 | CS18: 6855.631029 | CT18: 6992.74365 | CU18: 7132.598523 | CV18: 7275.250493 | CW18: 7420.755503 | CX18: 7569.170613 | CY18: 7720.554026 | CZ18: 7874.965106 | DA18: 8032.464408 | DB18: 8193.113697 | DC18: 8356.97597 | DD18: 8524.11549 | DE18: 8694.5978 | DF18: 8868.489756 | DG18: 9045.859551 | DH18: 9226.776742 | DI18: 9411.312277 | DJ18: 9599.538522 | DK18: 9791.529293 | DL18: 9987.359878 | DM18: 10187.10708 | DN18: 10390.84922 | DO18: 10598.6662 | DP18: 10810.63953 | DQ18: 11026.85232 | DR18: 11247.38936 | DS18: 11472.33715 | DT18: 11701.78389 | DU18: 11935.81957 | DV18: 12174.53596 | DW18: 12418.02668 | DX18: 12666.38722 | DY18: 12919.71496 | DZ18: 13178.10926 | EA18: 13441.67144 | EB18: 13710.50487 | EC18: 13984.71497 | ED18: 14264.40927 | EE18: 14549.69745 | EF18: =EE18*(1+EF16) -> 14840.6914 | EG18: 15137.50523 | EH18: 15440.25534 | EI18: 15749.06044 | EJ18: 16064.04165 | EK18: 16385.32249 | EL18: 16713.02894 | EM18: 17047.28951 | EN18: 17388.2353 | EO18: 17736.00001 | EP18: 18090.72001 | EQ18: 18452.53441 | ER18: 18821.5851 | ES18: 19198.0168 | ET18: 19581.97714 | EU18: 19973.61668 | EV18: 20373.08901 | EW18: 20780.55079 | EX18: 21196.16181 | EY18: 21620.08505 | EZ18: 22052.48675 | FA18: 22493.53648 | FB18: 22943.40721 | FC18: 23402.27536 | FD18: 23870.32086 | FE18: 24347.72728 | FF18: 24834.68183 | FG18: 25331.37546 | FH18: 25838.00297 | FI18: 26354.76303 | FJ18: 26881.85829 | FK18: 27419.49546 | FL18: 27967.88537 | FM18: 28527.24307 | FN18: 29097.78793 | FO18: 29679.74369 | FP18: 30273.33857 | FQ18: 30878.80534 | FR18: 31496.38145 | FS18: 32126.30907 | FT18: 32768.83526 | FU18: 33424.21196 | FV18: 34092.6962 | FW18: 34774.55012 | FX18: 35470.04113 | FY18: 36179.44195 | FZ18: 36903.03079 | GA18: 37641.0914 | GB18: 38393.91323 | GC18: 39161.7915 | GD18: 39945.02733 | GE18: 40743.92787 | GF18: 41558.80643 | GG18: 42389.98256 | GH18: 43237.78221 | GI18: 44102.53785 | GJ18: 44984.58861 | GK18: 45884.28038 | GL18: 46801.96599 | GM18: 47738.00531 | GN18: 48692.76542 | GO18: 49666.62073 | GP18: 50659.95314 | GQ18: 51673.1522 | GR18: =GQ18*(1+GR16) -> 52706.61525 | GS18: 53760.74755 | GT18: 54835.9625 | GU18: 55932.68175 | GV18: 57051.33539 | GW18: 58192.3621 | GX18: 59356.20934 | GY18: 60543.33352 | GZ18: 61754.2002 | HA18: 62989.2842 | HB18: 64249.06988 | HC18: 65534.05128 | HD18: 66844.73231 | HE18: 68181.62695 | HF18: 69545.25949 | HG18: 70936.16468 | HH18: 72354.88797 | HI18: 73801.98573 | HJ18: 75278.02545 | HK18: 76783.58596 | HL18: 78319.25768 | HM18: 79885.64283 | HN18: 81483.35569 | HO18: 83113.0228 | HP18: 84775.28326 | HQ18: 86470.78892 | HR18: 88200.2047 | HS18: 89964.20879 | HT18: 91763.49297 | HU18: 93598.76283 | HV18: 95470.73809 | HW18: 97380.15285 | HX18: 99327.75591 | HY18: 101314.311 | HZ18: 103340.5972 | IA18: 105407.4092 | IB18: 107515.5574 | IC18: 109665.8685 | ID18: 111859.1859 | IE18: 114096.3696 | IF18: 116378.297 | IG18: 118705.8629 | IH18: 121079.9802 | II18: 123501.5798 | IJ18: 125971.6114 | IK18: 128491.0436 | IL18: 131060.8645 | IM18: 133682.0818 | IN18: 136355.7234 | IO18: 139082.8379 | IP18: 141864.4947 | IQ18: 144701.7845 | IR18: 147595.8202 | IS18: 150547.7366 | IT18: 153558.6914 | IU18: 156629.8652 | IV18: 159762.4625 | IW18: 162957.7118 | IX18: 166216.866 | IY18: 169541.2033 | IZ18: 172932.0274 | JA18: 176390.6679 | JB18: 179918.4813 | JC18: 183516.8509 | JD18: =JC18*(1+JD16) -> 187187.1879 | JE18: 190930.9317 | JF18: 194749.5503 | JG18: 198644.5413 | JH18: 202617.4322 | JI18: 206669.7808 | JJ18: 210803.1764 | JK18: 215019.2399 | JL18: 219319.6247 | JM18: 223706.0172 | JN18: 228180.1376 | JO18: 232743.7403 | JP18: 237398.6151 | JQ18: 242146.5874 | JR18: 246989.5192 | JS18: 251929.3096 | JT18: 256967.8958 | JU18: 262107.2537 | JV18: 267349.3987 | JW18: 272696.3867 | JX18: 278150.3145 | JY18: 283713.3207 | JZ18: 289387.5872 | KA18: 295175.3389 | KB18: 301078.8457 | KC18: 307100.4226 | KD18: 313242.431 | KE18: 319507.2797 | KF18: 325897.4253 | KG18: 332415.3738 | KH18: 339063.6812 | KI18: 345844.9549 | KJ18: 352761.854 | KK18: 359817.091 | KL18: 367013.4329 | KM18: 374353.7015 | KN18: 381840.7756 | KO18: 389477.5911 | KP18: 397267.1429 | KQ18: 405212.4857 | KR18: 413316.7355 | KS18: 421583.0702 | KT18: 430014.7316
B19: Cash COGS | F19: =F18*$E$7 -> 80 | G19: =G18*$E$7 -> 104 | H19: =H18*$E$7 -> 135.2 | I19: 175.76 | J19: 228.488 | K19: 297.0344 | L19: 386.14472 | M19: 501.988136 | N19: 652.5845768 | O19: 848.3599498 | P19: 1102.867935 | Q19: 1124.925293 | R19: 1147.423799 | S19: 1170.372275 | T19: 1193.779721 | U19: 1217.655315 | V19: 1242.008422 | W19: 1266.84859 | X19: 1292.185562 | Y19: 1318.029273 | Z19: 1344.389859 | AA19: 1371.277656 | AB19: 1398.703209 | AC19: 1426.677273 | AD19: 1455.210818 | AE19: 1484.315035 | AF19: 1514.001335 | AG19: 1544.281362 | AH19: 1575.166989 | AI19: 1606.670329 | AJ19: 1638.803736 | AK19: 1671.579811 | AL19: 1705.011407 | AM19: 1739.111635 | AN19: 1773.893868 | AO19: 1809.371745 | AP19: 1845.55918 | AQ19: 1882.470363 | AR19: 1920.119771 | AS19: 1958.522166 | AT19: 1997.692609 | AU19: 2037.646462 | AV19: 2078.399391 | AW19: 2119.967379 | AX19: 2162.366726 | AY19: 2205.614061 | AZ19: 2249.726342 | BA19: 2294.720869 | BB19: 2340.615286 | BC19: 2387.427592 | BD19: 2435.176144 | BE19: 2483.879667 | BF19: 2533.55726 | BG19: 2584.228405 | BH19: 2635.912973 | BI19: 2688.631233 | BJ19: 2742.403857 | BK19: 2797.251935 | BL19: 2853.196973 | BM19: 2910.260913 | BN19: 2968.466131 | BO19: 3027.835454 | BP19: 3088.392163 | BQ19: 3150.160006 | BR19: 3213.163206 | BS19: 3277.42647 | BT19: =BT18*$E$7 -> 3342.975 | BU19: 3409.8345 | BV19: 3478.031189 | BW19: 3547.591813 | BX19: 3618.54365 | BY19: 3690.914523 | BZ19: 3764.732813 | CA19: 3840.027469 | CB19: 3916.828019 | CC19: 3995.164579 | CD19: 4075.067871 | CE19: 4156.569228 | CF19: 4239.700613 | CG19: 4324.494625 | CH19: 4410.984517 | CI19: 4499.204208 | CJ19: 4589.188292 | CK19: 4680.972058 | CL19: 4774.591499 | CM19: 4870.083329 | CN19: 4967.484995 | CO19: 5066.834695 | CP19: 5168.171389 | CQ19: 5271.534817 | CR19: 5376.965513 | CS19: 5484.504824 | CT19: 5594.19492 | CU19: 5706.078818 | CV19: 5820.200395 | CW19: 5936.604403 | CX19: 6055.336491 | CY19: 6176.443221 | CZ19: 6299.972085 | DA19: 6425.971527 | DB19: 6554.490957 | DC19: 6685.580776 | DD19: 6819.292392 | DE19: 6955.67824 | DF19: 7094.791805 | DG19: 7236.687641 | DH19: 7381.421393 | DI19: 7529.049821 | DJ19: 7679.630818 | DK19: 7833.223434 | DL19: 7989.887903 | DM19: 8149.685661 | DN19: 8312.679374 | DO19: 8478.932961 | DP19: 8648.511621 | DQ19: 8821.481853 | DR19: 8997.91149 | DS19: 9177.86972 | DT19: 9361.427114 | DU19: 9548.655657 | DV19: 9739.62877 | DW19: 9934.421345 | DX19: 10133.10977 | DY19: 10335.77197 | DZ19: 10542.48741 | EA19: 10753.33716 | EB19: 10968.4039 | EC19: 11187.77198 | ED19: 11411.52742 | EE19: 11639.75796 | EF19: =EF18*$E$7 -> 11872.55312 | EG19: 12110.00419 | EH19: 12352.20427 | EI19: 12599.24835 | EJ19: 12851.23332 | EK19: 13108.25799 | EL19: 13370.42315 | EM19: 13637.83161 | EN19: 13910.58824 | EO19: 14188.80001 | EP19: 14472.57601 | EQ19: 14762.02753 | ER19: 15057.26808 | ES19: 15358.41344 | ET19: 15665.58171 | EU19: 15978.89334 | EV19: 16298.47121 | EW19: 16624.44063 | EX19: 16956.92945 | EY19: 17296.06804 | EZ19: 17641.9894 | FA19: 17994.82919 | FB19: 18354.72577 | FC19: 18721.82028 | FD19: 19096.25669 | FE19: 19478.18182 | FF19: 19867.74546 | FG19: 20265.10037 | FH19: 20670.40238 | FI19: 21083.81042 | FJ19: 21505.48663 | FK19: 21935.59637 | FL19: 22374.30829 | FM19: 22821.79446 | FN19: 23278.23035 | FO19: 23743.79495 | FP19: 24218.67085 | FQ19: 24703.04427 | FR19: 25197.10516 | FS19: 25701.04726 | FT19: 26215.0682 | FU19: 26739.36957 | FV19: 27274.15696 | FW19: 27819.6401 | FX19: 28376.0329 | FY19: 28943.55356 | FZ19: 29522.42463 | GA19: 30112.87312 | GB19: 30715.13059 | GC19: 31329.4332 | GD19: 31956.02186 | GE19: 32595.1423 | GF19: 33247.04514 | GG19: 33911.98605 | GH19: 34590.22577 | GI19: 35282.03028 | GJ19: 35987.67089 | GK19: 36707.42431 | GL19: 37441.57279 | GM19: 38190.40425 | GN19: 38954.21233 | GO19: 39733.29658 | GP19: 40527.96251 | GQ19: 41338.52176 | GR19: =GR18*$E$7 -> 42165.2922 | GS19: 43008.59804 | GT19: 43868.77 | GU19: 44746.1454 | GV19: 45641.06831 | GW19: 46553.88968 | GX19: 47484.96747 | GY19: 48434.66682 | GZ19: 49403.36016 | HA19: 50391.42736 | HB19: 51399.25591 | HC19: 52427.24102 | HD19: 53475.78584 | HE19: 54545.30156 | HF19: 55636.20759 | HG19: 56748.93174 | HH19: 57883.91038 | HI19: 59041.58859 | HJ19: 60222.42036 | HK19: 61426.86877 | HL19: 62655.40614 | HM19: 63908.51426 | HN19: 65186.68455 | HO19: 66490.41824 | HP19: 67820.22661 | HQ19: 69176.63114 | HR19: 70560.16376 | HS19: 71971.36704 | HT19: 73410.79438 | HU19: 74879.01026 | HV19: 76376.59047 | HW19: 77904.12228 | HX19: 79462.20472 | HY19: 81051.44882 | HZ19: 82672.4778 | IA19: 84325.92735 | IB19: 86012.4459 | IC19: 87732.69482 | ID19: 89487.34871 | IE19: 91277.09569 | IF19: 93102.6376 | IG19: 94964.69035 | IH19: 96863.98416 | II19: 98801.26384 | IJ19: 100777.2891 | IK19: 102792.8349 | IL19: 104848.6916 | IM19: 106945.6654 | IN19: 109084.5787 | IO19: 111266.2703 | IP19: 113491.5957 | IQ19: 115761.4276 | IR19: 118076.6562 | IS19: 120438.1893 | IT19: 122846.9531 | IU19: 125303.8922 | IV19: 127809.97 | IW19: 130366.1694 | IX19: 132973.4928 | IY19: 135632.9626 | IZ19: 138345.6219 | JA19: 141112.5343 | JB19: 143934.785 | JC19: 146813.4807 | JD19: =JD18*$E$7 -> 149749.7503 | JE19: 152744.7453 | JF19: 155799.6403 | JG19: 158915.6331 | JH19: 162093.9457 | JI19: 165335.8246 | JJ19: 168642.5411 | JK19: 172015.392 | JL19: 175455.6998 | JM19: 178964.8138 | JN19: 182544.1101 | JO19: 186194.9923 | JP19: 189918.8921 | JQ19: 193717.2699 | JR19: 197591.6153 | JS19: 201543.4477 | JT19: 205574.3166 | JU19: 209685.8029 | JV19: 213879.519 | JW19: 218157.1094 | JX19: 222520.2516 | JY19: 226970.6566 | JZ19: 231510.0697 | KA19: 236140.2711 | KB19: 240863.0765 | KC19: 245680.3381 | KD19: 250593.9448 | KE19: 255605.8237 | KF19: 260717.9402 | KG19: 265932.299 | KH19: 271250.945 | KI19: 276675.9639 | KJ19: 282209.4832 | KK19: 287853.6728 | KL19: 293610.7463 | KM19: 299482.9612 | KN19: 305472.6204 | KO19: 311582.0729 | KP19: 317813.7143 | KQ19: 324169.9886 | KR19: 330653.3884 | KS19: 337266.4561 | KT19: 344011.7853
B20: EBITDA | F20: =F18-F19 -> 20 | G20: =G18-G19 -> 26 | H20: =H18-H19 -> 33.8 | I20: 43.94 | J20: 57.122 | K20: 74.2586 | L20: 96.53618 | M20: 125.497034 | N20: 163.1461442 | O20: 212.0899875 | P20: 275.7169837 | Q20: 281.2313234 | R20: 286.8559498 | S20: 292.5930688 | T20: 298.4449302 | U20: 304.4138288 | V20: 310.5021054 | W20: 316.7121475 | X20: 323.0463905 | Y20: 329.5073183 | Z20: 336.0974646 | AA20: 342.8194139 | AB20: 349.6758022 | AC20: 356.6693182 | AD20: 363.8027046 | AE20: 371.0787587 | AF20: 378.5003339 | AG20: 386.0703405 | AH20: 393.7917474 | AI20: 401.6675823 | AJ20: 409.700934 | AK20: 417.8949526 | AL20: 426.2528517 | AM20: 434.7779087 | AN20: 443.4734669 | AO20: 452.3429362 | AP20: 461.389795 | AQ20: 470.6175909 | AR20: 480.0299427 | AS20: 489.6305415 | AT20: 499.4231524 | AU20: 509.4116154 | AV20: 519.5998477 | AW20: 529.9918447 | AX20: 540.5916816 | AY20: 551.4035152 | AZ20: 562.4315855 | BA20: 573.6802172 | BB20: 585.1538215 | BC20: 596.856898 | BD20: 608.7940359 | BE20: 620.9699167 | BF20: 633.389315 | BG20: 646.0571013 | BH20: 658.9782433 | BI20: 672.1578082 | BJ20: 685.6009643 | BK20: 699.3129836 | BL20: 713.2992433 | BM20: 727.5652282 | BN20: 742.1165327 | BO20: 756.9588634 | BP20: 772.0980407 | BQ20: 787.5400015 | BR20: 803.2908015 | BS20: 819.3566175 | BT20: =BT18-BT19 -> 835.7437499 | BU20: 852.4586249 | BV20: 869.5077974 | BW20: 886.8979533 | BX20: 904.6359124 | BY20: 922.7286306 | BZ20: 941.1832032 | CA20: 960.0068673 | CB20: 979.2070047 | CC20: 998.7911448 | CD20: 1018.766968 | CE20: 1039.142307 | CF20: 1059.925153 | CG20: 1081.123656 | CH20: 1102.746129 | CI20: 1124.801052 | CJ20: 1147.297073 | CK20: 1170.243014 | CL20: 1193.647875 | CM20: 1217.520832 | CN20: 1241.871249 | CO20: 1266.708674 | CP20: 1292.042847 | CQ20: 1317.883704 | CR20: 1344.241378 | CS20: 1371.126206 | CT20: 1398.54873 | CU20: 1426.519705 | CV20: 1455.050099 | CW20: 1484.151101 | CX20: 1513.834123 | CY20: 1544.110805 | CZ20: 1574.993021 | DA20: 1606.492882 | DB20: 1638.622739 | DC20: 1671.395194 | DD20: 1704.823098 | DE20: 1738.91956 | DF20: 1773.697951 | DG20: 1809.17191 | DH20: 1845.355348 | DI20: 1882.262455 | DJ20: 1919.907704 | DK20: 1958.305859 | DL20: 1997.471976 | DM20: 2037.421415 | DN20: 2078.169844 | DO20: 2119.73324 | DP20: 2162.127905 | DQ20: 2205.370463 | DR20: 2249.477873 | DS20: 2294.46743 | DT20: 2340.356779 | DU20: 2387.163914 | DV20: 2434.907192 | DW20: 2483.605336 | DX20: 2533.277443 | DY20: 2583.942992 | DZ20: 2635.621852 | EA20: 2688.334289 | EB20: 2742.100975 | EC20: 2796.942994 | ED20: 2852.881854 | EE20: 2909.939491 | EF20: =EF18-EF19 -> 2968.138281 | EG20: 3027.501046 | EH20: 3088.051067 | EI20: 3149.812089 | EJ20: 3212.80833 | EK20: 3277.064497 | EL20: 3342.605787 | EM20: 3409.457903 | EN20: 3477.647061 | EO20: 3547.200002 | EP20: 3618.144002 | EQ20: 3690.506882 | ER20: 3764.31702 | ES20: 3839.60336 | ET20: 3916.395427 | EU20: 3994.723336 | EV20: 4074.617803 | EW20: 4156.110159 | EX20: 4239.232362 | EY20: 4324.017009 | EZ20: 4410.497349 | FA20: 4498.707296 | FB20: 4588.681442 | FC20: 4680.455071 | FD20: 4774.064172 | FE20: 4869.545456 | FF20: 4966.936365 | FG20: 5066.275092 | FH20: 5167.600594 | FI20: 5270.952606 | FJ20: 5376.371658 | FK20: 5483.899091 | FL20: 5593.577073 | FM20: 5705.448615 | FN20: 5819.557587 | FO20: 5935.948739 | FP20: 6054.667713 | FQ20: 6175.761068 | FR20: 6299.276289 | FS20: 6425.261815 | FT20: 6553.767051 | FU20: 6684.842392 | FV20: 6818.53924 | FW20: 6954.910025 | FX20: 7094.008225 | FY20: 7235.88839 | FZ20: 7380.606158 | GA20: 7528.218281 | GB20: 7678.782646 | GC20: 7832.358299 | GD20: 7989.005465 | GE20: 8148.785575 | GF20: 8311.761286 | GG20: 8477.996512 | GH20: 8647.556442 | GI20: 8820.507571 | GJ20: 8996.917722 | GK20: 9176.856077 | GL20: 9360.393198 | GM20: 9547.601062 | GN20: 9738.553083 | GO20: 9933.324145 | GP20: 10131.99063 | GQ20: 10334.63044 | GR20: =GR18-GR19 -> 10541.32305 | GS20: 10752.14951 | GT20: 10967.1925 | GU20: 11186.53635 | GV20: 11410.26708 | GW20: 11638.47242 | GX20: 11871.24187 | GY20: 12108.6667 | GZ20: 12350.84004 | HA20: 12597.85684 | HB20: 12849.81398 | HC20: 13106.81026 | HD20: 13368.94646 | HE20: 13636.32539 | HF20: 13909.0519 | HG20: 14187.23294 | HH20: 14470.97759 | HI20: 14760.39715 | HJ20: 15055.60509 | HK20: 15356.71719 | HL20: 15663.85154 | HM20: 15977.12857 | HN20: 16296.67114 | HO20: 16622.60456 | HP20: 16955.05665 | HQ20: 17294.15778 | HR20: 17640.04094 | HS20: 17992.84176 | HT20: 18352.69859 | HU20: 18719.75257 | HV20: 19094.14762 | HW20: 19476.03057 | HX20: 19865.55118 | HY20: 20262.8622 | HZ20: 20668.11945 | IA20: 21081.48184 | IB20: 21503.11147 | IC20: 21933.1737 | ID20: 22371.83718 | IE20: 22819.27392 | IF20: 23275.6594 | IG20: 23741.17259 | IH20: 24215.99604 | II20: 24700.31596 | IJ20: 25194.32228 | IK20: 25698.20873 | IL20: 26212.1729 | IM20: 26736.41636 | IN20: 27271.14469 | IO20: 27816.56758 | IP20: 28372.89893 | IQ20: 28940.35691 | IR20: 29519.16405 | IS20: 30109.54733 | IT20: 30711.73827 | IU20: 31325.97304 | IV20: 31952.4925 | IW20: 32591.54235 | IX20: 33243.3732 | IY20: 33908.24066 | IZ20: 34586.40548 | JA20: 35278.13358 | JB20: 35983.69626 | JC20: 36703.37018 | JD20: =JD18-JD19 -> 37437.43759 | JE20: 38186.18634 | JF20: 38949.91006 | JG20: 39728.90826 | JH20: 40523.48643 | JI20: 41333.95616 | JJ20: 42160.63528 | JK20: 43003.84799 | JL20: 43863.92495 | JM20: 44741.20345 | JN20: 45636.02752 | JO20: 46548.74807 | JP20: 47479.72303 | JQ20: 48429.31749 | JR20: 49397.90384 | JS20: 50385.86191 | JT20: 51393.57915 | JU20: 52421.45074 | JV20: 53469.87975 | JW20: 54539.27734 | JX20: 55630.06289 | JY20: 56742.66415 | JZ20: 57877.51743 | KA20: 59035.06778 | KB20: 60215.76914 | KC20: 61420.08452 | KD20: 62648.48621 | KE20: 63901.45593 | KF20: 65179.48505 | KG20: 66483.07475 | KH20: 67812.73625 | KI20: 69168.99097 | KJ20: 70552.37079 | KK20: 71963.41821 | KL20: 73402.68657 | KM20: 74870.7403 | KN20: 76368.15511 | KO20: 77895.51821 | KP20: 79453.42858 | KQ20: 81042.49715 | KR20: 82663.34709 | KS20: 84316.61403 | KT20: 86002.94631
B21: Level of accounts receivables | F21: =F18*$E$8 -> 25 | G21: =G18*$E$8 -> 32.5 | H21: =H18*$E$8 -> 42.25 | I21: 54.925 | J21: 71.4025 | K21: 92.82325 | L21: 120.670225 | M21: 156.8712925 | N21: 203.9326803 | O21: 265.1124843 | P21: 344.6462296 | Q21: 351.5391542 | R21: 358.5699373 | S21: 365.741336 | T21: 373.0561628 | U21: 380.517286 | V21: 388.1276317 | W21: 395.8901844 | X21: 403.8079881 | Y21: 411.8841478 | Z21: 420.1218308 | AA21: 428.5242674 | AB21: 437.0947527 | AC21: 445.8366478 | AD21: 454.7533808 | AE21: 463.8484484 | AF21: 473.1254173 | AG21: 482.5879257 | AH21: 492.2396842 | AI21: 502.0844779 | AJ21: 512.1261674 | AK21: 522.3686908 | AL21: 532.8160646 | AM21: 543.4723859 | AN21: 554.3418336 | AO21: 565.4286703 | AP21: 576.7372437 | AQ21: 588.2719886 | AR21: 600.0374283 | AS21: 612.0381769 | AT21: 624.2789404 | AU21: 636.7645193 | AV21: 649.4998096 | AW21: 662.4898058 | AX21: 675.7396019 | AY21: 689.254394 | AZ21: 703.0394819 | BA21: 717.1002715 | BB21: 731.4422769 | BC21: 746.0711225 | BD21: 760.9925449 | BE21: 776.2123958 | BF21: 791.7366437 | BG21: 807.5713766 | BH21: 823.7228041 | BI21: 840.1972602 | BJ21: 857.0012054 | BK21: 874.1412295 | BL21: 891.6240541 | BM21: 909.4565352 | BN21: 927.6456659 | BO21: 946.1985792 | BP21: 965.1225508 | BQ21: 984.4250018 | BR21: 1004.113502 | BS21: 1024.195772 | BT21: =BT18*$E$8 -> 1044.679687 | BU21: 1065.573281 | BV21: 1086.884747 | BW21: 1108.622442 | BX21: 1130.79489 | BY21: 1153.410788 | BZ21: 1176.479004 | CA21: 1200.008584 | CB21: 1224.008756 | CC21: 1248.488931 | CD21: 1273.45871 | CE21: 1298.927884 | CF21: 1324.906441 | CG21: 1351.40457 | CH21: 1378.432662 | CI21: 1406.001315 | CJ21: 1434.121341 | CK21: 1462.803768 | CL21: 1492.059843 | CM21: 1521.90104 | CN21: 1552.339061 | CO21: 1583.385842 | CP21: 1615.053559 | CQ21: 1647.35463 | CR21: 1680.301723 | CS21: 1713.907757 | CT21: 1748.185913 | CU21: 1783.149631 | CV21: 1818.812623 | CW21: 1855.188876 | CX21: 1892.292653 | CY21: 1930.138506 | CZ21: 1968.741277 | DA21: 2008.116102 | DB21: 2048.278424 | DC21: 2089.243993 | DD21: 2131.028872 | DE21: 2173.64945 | DF21: 2217.122439 | DG21: 2261.464888 | DH21: 2306.694185 | DI21: 2352.828069 | DJ21: 2399.884631 | DK21: 2447.882323 | DL21: 2496.83997 | DM21: 2546.776769 | DN21: 2597.712304 | DO21: 2649.66655 | DP21: 2702.659881 | DQ21: 2756.713079 | DR21: 2811.847341 | DS21: 2868.084287 | DT21: 2925.445973 | DU21: 2983.954893 | DV21: 3043.633991 | DW21: 3104.50667 | DX21: 3166.596804 | DY21: 3229.92874 | DZ21: 3294.527315 | EA21: 3360.417861 | EB21: 3427.626218 | EC21: 3496.178743 | ED21: 3566.102317 | EE21: 3637.424364 | EF21: =EF18*$E$8 -> 3710.172851 | EG21: 3784.376308 | EH21: 3860.063834 | EI21: 3937.265111 | EJ21: 4016.010413 | EK21: 4096.330621 | EL21: 4178.257234 | EM21: 4261.822378 | EN21: 4347.058826 | EO21: 4434.000003 | EP21: 4522.680003 | EQ21: 4613.133603 | ER21: 4705.396275 | ES21: 4799.5042 | ET21: 4895.494284 | EU21: 4993.40417 | EV21: 5093.272253 | EW21: 5195.137698 | EX21: 5299.040452 | EY21: 5405.021261 | EZ21: 5513.121687 | FA21: 5623.38412 | FB21: 5735.851803 | FC21: 5850.568839 | FD21: 5967.580216 | FE21: 6086.93182 | FF21: 6208.670456 | FG21: 6332.843865 | FH21: 6459.500743 | FI21: 6588.690758 | FJ21: 6720.464573 | FK21: 6854.873864 | FL21: 6991.971341 | FM21: 7131.810768 | FN21: 7274.446984 | FO21: 7419.935923 | FP21: 7568.334642 | FQ21: 7719.701335 | FR21: 7874.095361 | FS21: 8031.577269 | FT21: 8192.208814 | FU21: 8356.05299 | FV21: 8523.17405 | FW21: 8693.637531 | FX21: 8867.510282 | FY21: 9044.860487 | FZ21: 9225.757697 | GA21: 9410.272851 | GB21: 9598.478308 | GC21: 9790.447874 | GD21: 9986.256832 | GE21: 10185.98197 | GF21: 10389.70161 | GG21: 10597.49564 | GH21: 10809.44555 | GI21: 11025.63446 | GJ21: 11246.14715 | GK21: 11471.0701 | GL21: 11700.4915 | GM21: 11934.50133 | GN21: 12173.19135 | GO21: 12416.65518 | GP21: 12664.98829 | GQ21: 12918.28805 | GR21: =GR18*$E$8 -> 13176.65381 | GS21: 13440.18689 | GT21: 13708.99063 | GU21: 13983.17044 | GV21: 14262.83385 | GW21: 14548.09052 | GX21: 14839.05233 | GY21: 15135.83338 | GZ21: 15438.55005 | HA21: 15747.32105 | HB21: 16062.26747 | HC21: 16383.51282 | HD21: 16711.18308 | HE21: 17045.40674 | HF21: 17386.31487 | HG21: 17734.04117 | HH21: 18088.72199 | HI21: 18450.49643 | HJ21: 18819.50636 | HK21: 19195.89649 | HL21: 19579.81442 | HM21: 19971.41071 | HN21: 20370.83892 | HO21: 20778.2557 | HP21: 21193.82081 | HQ21: 21617.69723 | HR21: 22050.05118 | HS21: 22491.0522 | HT21: 22940.87324 | HU21: 23399.69071 | HV21: 23867.68452 | HW21: 24345.03821 | HX21: 24831.93898 | HY21: 25328.57776 | HZ21: 25835.14931 | IA21: 26351.8523 | IB21: 26878.88934 | IC21: 27416.46713 | ID21: 27964.79647 | IE21: 28524.0924 | IF21: 29094.57425 | IG21: 29676.46574 | IH21: 30269.99505 | II21: 30875.39495 | IJ21: 31492.90285 | IK21: 32122.76091 | IL21: 32765.21612 | IM21: 33420.52045 | IN21: 34088.93086 | IO21: 34770.70947 | IP21: 35466.12366 | IQ21: 36175.44614 | IR21: 36898.95506 | IS21: 37636.93416 | IT21: 38389.67284 | IU21: 39157.4663 | IV21: 39940.61563 | IW21: 40739.42794 | IX21: 41554.2165 | IY21: 42385.30083 | IZ21: 43233.00684 | JA21: 44097.66698 | JB21: 44979.62032 | JC21: 45879.21273 | JD21: =JD18*$E$8 -> 46796.79698 | JE21: 47732.73292 | JF21: 48687.38758 | JG21: 49661.13533 | JH21: 50654.35804 | JI21: 51667.4452 | JJ21: 52700.7941 | JK21: 53754.80998 | JL21: 54829.90618 | JM21: 55926.50431 | JN21: 57045.03439 | JO21: 58185.93508 | JP21: 59349.65378 | JQ21: 60536.64686 | JR21: 61747.3798 | JS21: 62982.32739 | JT21: 64241.97394 | JU21: 65526.81342 | JV21: 66837.34969 | JW21: 68174.09668 | JX21: 69537.57861 | JY21: 70928.33019 | JZ21: 72346.89679 | KA21: 73793.83473 | KB21: 75269.71142 | KC21: 76775.10565 | KD21: 78310.60776 | KE21: 79876.81992 | KF21: 81474.35632 | KG21: 83103.84344 | KH21: 84765.92031 | KI21: 86461.23872 | KJ21: 88190.46349 | KK21: 89954.27276 | KL21: 91753.35822 | KM21: 93588.42538 | KN21: 95460.19389 | KO21: 97369.39777 | KP21: 99316.78572 | KQ21: 101303.1214 | KR21: 103329.1839 | KS21: 105395.7675 | KT21: 107503.6829
B22: Changes in accounts receivables | G22: =G21-F21 -> 7.5 | H22: =H21-G21 -> 9.75 | I22: 12.675 | J22: 16.4775 | K22: 21.42075 | L22: 27.846975 | M22: 36.2010675 | N22: 47.06138775 | O22: 61.17980407 | P22: 79.5337453 | Q22: 6.892924592 | R22: 7.030783084 | S22: 7.171398746 | T22: 7.314826721 | U22: 7.461123255 | V22: 7.61034572 | W22: 7.762552635 | X22: 7.917803688 | Y22: 8.076159761 | Z22: 8.237682957 | AA22: 8.402436616 | AB22: 8.570485348 | AC22: 8.741895055 | AD22: 8.916732956 | AE22: 9.095067615 | AF22: 9.276968967 | AG22: 9.462508347 | AH22: 9.651758514 | AI22: 9.844793684 | AJ22: 10.04168956 | AK22: 10.24252335 | AL22: 10.44737382 | AM22: 10.65632129 | AN22: 10.86944772 | AO22: 11.08683667 | AP22: 11.30857341 | AQ22: 11.53474487 | AR22: 11.76543977 | AS22: 12.00074857 | AT22: 12.24076354 | AU22: 12.48557881 | AV22: 12.73529039 | AW22: 12.98999619 | AX22: 13.24979612 | AY22: 13.51479204 | AZ22: 13.78508788 | BA22: 14.06078964 | BB22: 14.34200543 | BC22: 14.62884554 | BD22: 14.92142245 | BE22: 15.2198509 | BF22: 15.52424792 | BG22: 15.83473287 | BH22: 16.15142753 | BI22: 16.47445608 | BJ22: 16.8039452 | BK22: 17.14002411 | BL22: 17.48282459 | BM22: 17.83248108 | BN22: 18.1891307 | BO22: 18.55291332 | BP22: 18.92397158 | BQ22: 19.30245102 | BR22: 19.68850004 | BS22: 20.08227004 | BT22: =BT21-BS21 -> 20.48391544 | BU22: 20.89359375 | BV22: 21.31146562 | BW22: 21.73769493 | BX22: 22.17244883 | BY22: 22.61589781 | BZ22: 23.06821577 | CA22: 23.52958008 | CB22: 24.00017168 | CC22: 24.48017512 | CD22: 24.96977862 | CE22: 25.46917419 | CF22: 25.97855768 | CG22: 26.49812883 | CH22: 27.02809141 | CI22: 27.56865323 | CJ22: 28.1200263 | CK22: 28.68242682 | CL22: 29.25607536 | CM22: 29.84119687 | CN22: 30.4380208 | CO22: 31.04678122 | CP22: 31.66771685 | CQ22: 32.30107118 | CR22: 32.94709261 | CS22: 33.60603446 | CT22: 34.27815515 | CU22: 34.96371825 | CV22: 35.66299262 | CW22: 36.37625247 | CX22: 37.10377752 | CY22: 37.84585307 | CZ22: 38.60277013 | DA22: 39.37482553 | DB22: 40.16232204 | DC22: 40.96556848 | DD22: 41.78487985 | DE22: 42.62057745 | DF22: 43.472989 | DG22: 44.34244878 | DH22: 45.22929775 | DI22: 46.13388371 | DJ22: 47.05656138 | DK22: 47.99769261 | DL22: 48.95764646 | DM22: 49.93679939 | DN22: 50.93553538 | DO22: 51.95424609 | DP22: 52.99333101 | DQ22: 54.05319763 | DR22: 55.13426158 | DS22: 56.23694681 | DT22: 57.36168575 | DU22: 58.50891946 | DV22: 59.67909785 | DW22: 60.87267981 | DX22: 62.09013341 | DY22: 63.33193608 | DZ22: 64.5985748 | EA22: 65.89054629 | EB22: 67.20835722 | EC22: 68.55252436 | ED22: 69.92357485 | EE22: 71.32204635 | EF22: =EF21-EE21 -> 72.74848727 | EG22: 74.20345702 | EH22: 75.68752616 | EI22: 77.20127668 | EJ22: 78.74530222 | EK22: 80.32020826 | EL22: 81.92661243 | EM22: 83.56514468 | EN22: 85.23644757 | EO22: 86.94117652 | EP22: 88.68000005 | EQ22: 90.45360005 | ER22: 92.26267205 | ES22: 94.10792549 | ET22: 95.990084 | EU22: 97.90988568 | EV22: 99.8680834 | EW22: 101.8654451 | EX22: 103.902754 | EY22: 105.980809 | EZ22: 108.1004252 | FA22: 110.2624337 | FB22: 112.4676824 | FC22: 114.7170361 | FD22: 117.0113768 | FE22: 119.3516043 | FF22: 121.7386364 | FG22: 124.1734091 | FH22: 126.6568773 | FI22: 129.1900149 | FJ22: 131.7738152 | FK22: 134.4092915 | FL22: 137.0974773 | FM22: 139.8394268 | FN22: 142.6362154 | FO22: 145.4889397 | FP22: 148.3987185 | FQ22: 151.3666928 | FR22: 154.3940267 | FS22: 157.4819072 | FT22: 160.6315454 | FU22: 163.8441763 | FV22: 167.1210598 | FW22: 170.463481 | FX22: 173.8727506 | FY22: 177.3502056 | FZ22: 180.8972097 | GA22: 184.5151539 | GB22: 188.205457 | GC22: 191.9695662 | GD22: 195.8089575 | GE22: 199.7251366 | GF22: 203.7196394 | GG22: 207.7940322 | GH22: 211.9499128 | GI22: 216.1889111 | GJ22: 220.5126893 | GK22: 224.9229431 | GL22: 229.4214019 | GM22: 234.00983 | GN22: 238.6900266 | GO22: 243.4638271 | GP22: 248.3331036 | GQ22: 253.2997657 | GR22: =GR21-GQ21 -> 258.365761 | GS22: 263.5330762 | GT22: 268.8037378 | GU22: 274.1798125 | GV22: 279.6634088 | GW22: 285.2566769 | GX22: 290.9618105 | GY22: 296.7810467 | GZ22: 302.7166676 | HA22: 308.771001 | HB22: 314.946421 | HC22: 321.2453494 | HD22: 327.6702564 | HE22: 334.2236615 | HF22: 340.9081348 | HG22: 347.7262975 | HH22: 354.6808234 | HI22: 361.7744399 | HJ22: 369.0099287 | HK22: 376.3901272 | HL22: 383.9179298 | HM22: 391.5962884 | HN22: 399.4282142 | HO22: 407.4167784 | HP22: 415.565114 | HQ22: 423.8764163 | HR22: 432.3539446 | HS22: 441.0010235 | HT22: 449.821044 | HU22: 458.8174649 | HV22: 467.9938141 | HW22: 477.3536904 | HX22: 486.9007642 | HY22: 496.6387795 | HZ22: 506.5715551 | IA22: 516.7029862 | IB22: 527.0370459 | IC22: 537.5777869 | ID22: 548.3293426 | IE22: 559.2959295 | IF22: 570.481848 | IG22: 581.891485 | IH22: 593.5293147 | II22: 605.399901 | IJ22: 617.507899 | IK22: 629.858057 | IL22: 642.4552181 | IM22: 655.3043225 | IN22: 668.4104089 | IO22: 681.7786171 | IP22: 695.4141895 | IQ22: 709.3224733 | IR22: 723.5089227 | IS22: 737.9791012 | IT22: 752.7386832 | IU22: 767.7934569 | IV22: 783.149326 | IW22: 798.8123125 | IX22: 814.7885588 | IY22: 831.0843299 | IZ22: 847.7060165 | JA22: 864.6601369 | JB22: 881.9533396 | JC22: 899.5924064 | JD22: =JD21-JC21 -> 917.5842545 | JE22: 935.9359396 | JF22: 954.6546584 | JG22: 973.7477516 | JH22: 993.2227066 | JI22: 1013.087161 | JJ22: 1033.348904 | JK22: 1054.015882 | JL22: 1075.0962 | JM22: 1096.598124 | JN22: 1118.530086 | JO22: 1140.900688 | JP22: 1163.718702 | JQ22: 1186.993076 | JR22: 1210.732937 | JS22: 1234.947596 | JT22: 1259.646548 | JU22: 1284.839479 | JV22: 1310.536268 | JW22: 1336.746994 | JX22: 1363.481934 | JY22: 1390.751572 | JZ22: 1418.566604 | KA22: 1446.937936 | KB22: 1475.876695 | KC22: 1505.394228 | KD22: 1535.502113 | KE22: 1566.212155 | KF22: 1597.536398 | KG22: 1629.487126 | KH22: 1662.076869 | KI22: 1695.318406 | KJ22: 1729.224774 | KK22: 1763.80927 | KL22: 1799.085455 | KM22: 1835.067164 | KN22: 1871.768508 | KO22: 1909.203878 | KP22: 1947.387955 | KQ22: 1986.335714 | KR22: 2026.062429 | KS22: 2066.583677 | KT22: 2107.915351
B23: Free cash flow | G23: =G20-G22 -> 18.5 | H23: =H20-H22 -> 24.05 | I23: 31.265 | J23: 40.6445 | K23: 52.83785 | L23: 68.689205 | M23: 89.2959665 | N23: 116.0847564 | O23: 150.9101834 | P23: 196.1832384 | Q23: 274.3383988 | R23: 279.8251668 | S23: 285.4216701 | T23: 291.1301035 | U23: 296.9527056 | V23: 302.8917597 | W23: 308.9495949 | X23: 315.1285868 | Y23: 321.4311585 | Z23: 327.8597817 | AA23: 334.4169773 | AB23: 341.1053168 | AC23: 347.9274232 | AD23: 354.8859716 | AE23: 361.9836911 | AF23: 369.2233649 | AG23: 376.6078322 | AH23: 384.1399888 | AI23: 391.8227886 | AJ23: 399.6592444 | AK23: 407.6524293 | AL23: 415.8054779 | AM23: 424.1215874 | AN23: 432.6040192 | AO23: 441.2560996 | AP23: 450.0812215 | AQ23: 459.082846 | AR23: 468.2645029 | AS23: 477.629793 | AT23: 487.1823888 | AU23: 496.9260366 | AV23: 506.8645573 | AW23: 517.0018485 | AX23: 527.3418854 | AY23: 537.8887232 | AZ23: 548.6464976 | BA23: 559.6194276 | BB23: 570.8118161 | BC23: 582.2280524 | BD23: 593.8726135 | BE23: 605.7500658 | BF23: 617.8650671 | BG23: 630.2223684 | BH23: 642.8268158 | BI23: 655.6833521 | BJ23: 668.7970191 | BK23: 682.1729595 | BL23: 695.8164187 | BM23: 709.7327471 | BN23: 723.927402 | BO23: 738.4059501 | BP23: 753.1740691 | BQ23: 768.2375505 | BR23: 783.6023015 | BS23: 799.2743475 | BT23: =BT20-BT22 -> 815.2598344 | BU23: 831.5650311 | BV23: 848.1963318 | BW23: 865.1602584 | BX23: 882.4634636 | BY23: 900.1127328 | BZ23: 918.1149875 | CA23: 936.4772872 | CB23: 955.206833 | CC23: 974.3109696 | CD23: 993.797189 | CE23: 1013.673133 | CF23: 1033.946595 | CG23: 1054.625527 | CH23: 1075.718038 | CI23: 1097.232399 | CJ23: 1119.177047 | CK23: 1141.560588 | CL23: 1164.391799 | CM23: 1187.679635 | CN23: 1211.433228 | CO23: 1235.661893 | CP23: 1260.37513 | CQ23: 1285.582633 | CR23: 1311.294286 | CS23: 1337.520171 | CT23: 1364.270575 | CU23: 1391.555986 | CV23: 1419.387106 | CW23: 1447.774848 | CX23: 1476.730345 | CY23: 1506.264952 | CZ23: 1536.390251 | DA23: 1567.118056 | DB23: 1598.460417 | DC23: 1630.429626 | DD23: 1663.038218 | DE23: 1696.298982 | DF23: 1730.224962 | DG23: 1764.829461 | DH23: 1800.126051 | DI23: 1836.128572 | DJ23: 1872.851143 | DK23: 1910.308166 | DL23: 1948.514329 | DM23: 1987.484616 | DN23: 2027.234308 | DO23: 2067.778994 | DP23: 2109.134574 | DQ23: 2151.317266 | DR23: 2194.343611 | DS23: 2238.230483 | DT23: 2282.995093 | DU23: 2328.654995 | DV23: 2375.228095 | DW23: 2422.732656 | DX23: 2471.18731 | DY23: 2520.611056 | DZ23: 2571.023277 | EA23: 2622.443742 | EB23: 2674.892617 | EC23: 2728.39047 | ED23: 2782.958279 | EE23: 2838.617445 | EF23: =EF20-EF22 -> 2895.389794 | EG23: 2953.297589 | EH23: 3012.363541 | EI23: 3072.610812 | EJ23: 3134.063028 | EK23: 3196.744289 | EL23: 3260.679175 | EM23: 3325.892758 | EN23: 3392.410613 | EO23: 3460.258826 | EP23: 3529.464002 | EQ23: 3600.053282 | ER23: 3672.054348 | ES23: 3745.495435 | ET23: 3820.405343 | EU23: 3896.81345 | EV23: 3974.749719 | EW23: 4054.244714 | EX23: 4135.329608 | EY23: 4218.0362 | EZ23: 4302.396924 | FA23: 4388.444863 | FB23: 4476.21376 | FC23: 4565.738035 | FD23: 4657.052796 | FE23: 4750.193852 | FF23: 4845.197729 | FG23: 4942.101683 | FH23: 5040.943717 | FI23: 5141.762591 | FJ23: 5244.597843 | FK23: 5349.4898 | FL23: 5456.479596 | FM23: 5565.609188 | FN23: 5676.921372 | FO23: 5790.459799 | FP23: 5906.268995 | FQ23: 6024.394375 | FR23: 6144.882262 | FS23: 6267.779908 | FT23: 6393.135506 | FU23: 6520.998216 | FV23: 6651.41818 | FW23: 6784.446544 | FX23: 6920.135475 | FY23: 7058.538184 | FZ23: 7199.708948 | GA23: 7343.703127 | GB23: 7490.577189 | GC23: 7640.388733 | GD23: 7793.196508 | GE23: 7949.060438 | GF23: 8108.041647 | GG23: 8270.20248 | GH23: 8435.606529 | GI23: 8604.31866 | GJ23: 8776.405033 | GK23: 8951.933134 | GL23: 9130.971796 | GM23: 9313.591232 | GN23: 9499.863057 | GO23: 9689.860318 | GP23: 9883.657524 | GQ23: 10081.33067 | GR23: =GR20-GR22 -> 10282.95729 | GS23: 10488.61643 | GT23: 10698.38876 | GU23: 10912.35654 | GV23: 11130.60367 | GW23: 11353.21574 | GX23: 11580.28006 | GY23: 11811.88566 | GZ23: 12048.12337 | HA23: 12289.08584 | HB23: 12534.86756 | HC23: 12785.56491 | HD23: 13041.2762 | HE23: 13302.10173 | HF23: 13568.14376 | HG23: 13839.50664 | HH23: 14116.29677 | HI23: 14398.62271 | HJ23: 14686.59516 | HK23: 14980.32706 | HL23: 15279.93361 | HM23: 15585.53228 | HN23: 15897.24292 | HO23: 16215.18778 | HP23: 16539.49154 | HQ23: 16870.28137 | HR23: 17207.687 | HS23: 17551.84074 | HT23: 17902.87755 | HU23: 18260.9351 | HV23: 18626.1538 | HW23: 18998.67688 | HX23: 19378.65042 | HY23: 19766.22343 | HZ23: 20161.54789 | IA23: 20564.77885 | IB23: 20976.07443 | IC23: 21395.59592 | ID23: 21823.50784 | IE23: 22259.97799 | IF23: 22705.17755 | IG23: 23159.2811 | IH23: 23622.46673 | II23: 24094.91606 | IJ23: 24576.81438 | IK23: 25068.35067 | IL23: 25569.71768 | IM23: 26081.11204 | IN23: 26602.73428 | IO23: 27134.78896 | IP23: 27677.48474 | IQ23: 28231.03444 | IR23: 28795.65512 | IS23: 29371.56823 | IT23: 29958.99959 | IU23: 30558.17958 | IV23: 31169.34317 | IW23: 31792.73004 | IX23: 32428.58464 | IY23: 33077.15633 | IZ23: 33738.69946 | JA23: 34413.47345 | JB23: 35101.74292 | JC23: 35803.77778 | JD23: =JD20-JD22 -> 36519.85333 | JE23: 37250.2504 | JF23: 37995.25541 | JG23: 38755.16051 | JH23: 39530.26372 | JI23: 40320.869 | JJ23: 41127.28638 | JK23: 41949.83211 | JL23: 42788.82875 | JM23: 43644.60532 | JN23: 44517.49743 | JO23: 45407.84738 | JP23: 46316.00433 | JQ23: 47242.32441 | JR23: 48187.1709 | JS23: 49150.91432 | JT23: 50133.9326 | JU23: 51136.61126 | JV23: 52159.34348 | JW23: 53202.53035 | JX23: 54266.58096 | JY23: 55351.91258 | JZ23: 56458.95083 | KA23: 57588.12985 | KB23: 58739.89244 | KC23: 59914.69029 | KD23: 61112.9841 | KE23: 62335.24378 | KF23: 63581.94865 | KG23: 64853.58763 | KH23: 66150.65938 | KI23: 67473.67257 | KJ23: 68823.14602 | KK23: 70199.60894 | KL23: 71603.60112 | KM23: 73035.67314 | KN23: 74496.3866 | KO23: 75986.31434 | KP23: 77506.04062 | KQ23: 79056.16143 | KR23: 80637.28466 | KS23: 82250.03036 | KT23: 83895.03096
B25: Index WACC | E25: =E11 -> 0.1 | F25: 1 | G25: =F25*(1+$E$25) -> 1.1 | H25: =G25*(1+$E$25) -> 1.21 | I25: 1.331 | J25: 1.4641 | K25: 1.61051 | L25: 1.771561 | M25: 1.9487171 | N25: 2.14358881 | O25: 2.357947691 | P25: 2.59374246 | Q25: 2.853116706 | R25: 3.138428377 | S25: 3.452271214 | T25: 3.797498336 | U25: 4.177248169 | V25: 4.594972986 | W25: 5.054470285 | X25: 5.559917313 | Y25: 6.115909045 | Z25: 6.727499949 | AA25: 7.400249944 | AB25: 8.140274939 | AC25: 8.954302433 | AD25: 9.849732676 | AE25: 10.83470594 | AF25: 11.91817654 | AG25: 13.10999419 | AH25: 14.42099361 | AI25: 15.86309297 | AJ25: 17.44940227 | AK25: 19.1943425 | AL25: 21.11377675 | AM25: 23.22515442 | AN25: 25.54766986 | AO25: 28.10243685 | AP25: 30.91268053 | AQ25: 34.00394859 | AR25: 37.40434344 | AS25: 41.14477779 | AT25: 45.25925557 | AU25: 49.78518112 | AV25: 54.76369924 | AW25: 60.24006916 | AX25: 66.26407608 | AY25: 72.89048369 | AZ25: 80.17953205 | BA25: 88.19748526 | BB25: 97.01723378 | BC25: 106.7189572 | BD25: 117.3908529 | BE25: 129.1299382 | BF25: 142.042932 | BG25: 156.2472252 | BH25: 171.8719477 | BI25: 189.0591425 | BJ25: 207.9650567 | BK25: 228.7615624 | BL25: 251.6377186 | BM25: 276.8014905 | BN25: 304.4816395 | BO25: 334.9298035 | BP25: 368.4227838 | BQ25: 405.2650622 | BR25: 445.7915685 | BS25: 490.3707253 | BT25: =BS25*(1+$E$25) -> 539.4077978 | BU25: 593.3485776 | BV25: 652.6834354 | BW25: 717.9517789 | BX25: 789.7469568 | BY25: 868.7216525 | BZ25: 955.5938177 | CA25: 1051.1532 | CB25: 1156.268519 | CC25: 1271.895371 | CD25: 1399.084909 | CE25: 1538.993399 | CF25: 1692.892739 | CG25: 1862.182013 | CH25: 2048.400215 | CI25: 2253.240236 | CJ25: 2478.56426 | CK25: 2726.420686 | CL25: 2999.062754 | CM25: 3298.96903 | CN25: 3628.865933 | CO25: 3991.752526 | CP25: 4390.927778 | CQ25: 4830.020556 | CR25: 5313.022612 | CS25: 5844.324873 | CT25: 6428.75736 | CU25: 7071.633096 | CV25: 7778.796406 | CW25: 8556.676047 | CX25: 9412.343651 | CY25: 10353.57802 | CZ25: 11388.93582 | DA25: 12527.8294 | DB25: 13780.61234 | DC25: 15158.67357 | DD25: 16674.54093 | DE25: 18341.99502 | DF25: 20176.19453 | DG25: 22193.81398 | DH25: 24413.19538 | DI25: 26854.51492 | DJ25: 29539.96641 | DK25: 32493.96305 | DL25: 35743.35935 | DM25: 39317.69529 | DN25: 43249.46482 | DO25: 47574.4113 | DP25: 52331.85243 | DQ25: 57565.03767 | DR25: 63321.54144 | DS25: 69653.69558 | DT25: 76619.06514 | DU25: 84280.97165 | DV25: 92709.06882 | DW25: 101979.9757 | DX25: 112177.9733 | DY25: 123395.7706 | DZ25: 135735.3477 | EA25: 149308.8824 | EB25: 164239.7707 | EC25: 180663.7477 | ED25: 198730.1225 | EE25: 218603.1348 | EF25: =EE25*(1+$E$25) -> 240463.4482 | EG25: 264509.7931 | EH25: 290960.7724 | EI25: 320056.8496 | EJ25: 352062.5346 | EK25: 387268.788 | EL25: 425995.6668 | EM25: 468595.2335 | EN25: 515454.7568 | EO25: 567000.2325 | EP25: 623700.2558 | EQ25: 686070.2814 | ER25: 754677.3095 | ES25: 830145.0404 | ET25: 913159.5445 | EU25: 1004475.499 | EV25: 1104923.049 | EW25: 1215415.354 | EX25: 1336956.889 | EY25: 1470652.578 | EZ25: 1617717.836 | FA25: 1779489.619 | FB25: 1957438.581 | FC25: 2153182.439 | FD25: 2368500.683 | FE25: 2605350.752 | FF25: 2865885.827 | FG25: 3152474.41 | FH25: 3467721.851 | FI25: 3814494.036 | FJ25: 4195943.439 | FK25: 4615537.783 | FL25: 5077091.561 | FM25: 5584800.717 | FN25: 6143280.789 | FO25: 6757608.868 | FP25: 7433369.755 | FQ25: 8176706.73 | FR25: 8994377.403 | FS25: 9893815.144 | FT25: 10883196.66 | FU25: 11971516.32 | FV25: 13168667.96 | FW25: 14485534.75 | FX25: 15934088.23 | FY25: 17527497.05 | FZ25: 19280246.76 | GA25: 21208271.43 | GB25: 23329098.57 | GC25: 25662008.43 | GD25: 28228209.27 | GE25: 31051030.2 | GF25: 34156133.22 | GG25: 37571746.54 | GH25: 41328921.2 | GI25: 45461813.32 | GJ25: 50007994.65 | GK25: 55008794.11 | GL25: 60509673.53 | GM25: 66560640.88 | GN25: 73216704.97 | GO25: 80538375.46 | GP25: 88592213.01 | GQ25: 97451434.31 | GR25: =GQ25*(1+$E$25) -> 107196577.7 | GS25: 117916235.5 | GT25: 129707859.1 | GU25: 142678645 | GV25: 156946509.5 | GW25: 172641160.4 | GX25: 189905276.5 | GY25: 208895804.1 | GZ25: 229785384.5 | HA25: 252763923 | HB25: 278040315.3 | HC25: 305844346.8 | HD25: 336428781.5 | HE25: 370071659.6 | HF25: 407078825.6 | HG25: 447786708.1 | HH25: 492565379 | HI25: 541821916.8 | HJ25: 596004108.5 | HK25: 655604519.4 | HL25: 721164971.3 | HM25: 793281468.5 | HN25: 872609615.3 | HO25: 959870576.8 | HP25: 1055857635 | HQ25: 1161443398 | HR25: 1277587738 | HS25: 1405346512 | HT25: 1545881163 | HU25: 1700469279 | HV25: 1870516207 | HW25: 2057567828 | HX25: 2263324610 | HY25: 2489657071 | HZ25: 2738622778 | IA25: 3012485056 | IB25: 3313733562 | IC25: 3645106918 | ID25: 4009617610 | IE25: 4410579371 | IF25: 4851637308 | IG25: 5336801039 | IH25: 5870481143 | II25: 6457529257 | IJ25: 7103282183 | IK25: 7813610401 | IL25: 8594971441 | IM25: 9454468585 | IN25: 1.039991544e+10 | IO25: 1.143990699e+10 | IP25: 1.258389769e+10 | IQ25: 1.384228746e+10 | IR25: 1.52265162e+10 | IS25: 1.674916782e+10 | IT25: 1.84240846e+10 | IU25: 2.026649306e+10 | IV25: 2.229314237e+10 | IW25: 2.452245661e+10 | IX25: 2.697470227e+10 | IY25: 2.967217249e+10 | IZ25: 3.263938974e+10 | JA25: 3.590332872e+10 | JB25: 3.949366159e+10 | JC25: 4.344302775e+10 | JD25: =JC25*(1+$E$25) -> 4.778733052e+10 | JE25: 5.256606358e+10 | JF25: 5.782266993e+10 | JG25: 6.360493693e+10 | JH25: 6.996543062e+10 | JI25: 7.696197368e+10 | JJ25: 8.465817105e+10 | JK25: 9.312398816e+10 | JL25: 1.02436387e+11 | JM25: 1.126800257e+11 | JN25: 1.239480282e+11 | JO25: 1.363428311e+11 | JP25: 1.499771142e+11 | JQ25: 1.649748256e+11 | JR25: 1.814723081e+11 | JS25: 1.99619539e+11 | JT25: 2.195814928e+11 | JU25: 2.415396421e+11 | JV25: 2.656936063e+11 | JW25: 2.92262967e+11 | JX25: 3.214892637e+11 | JY25: 3.5363819e+11 | JZ25: 3.890020091e+11 | KA25: 4.2790221e+11 | KB25: 4.70692431e+11 | KC25: 5.17761674e+11 | KD25: 5.695378415e+11 | KE25: 6.264916256e+11 | KF25: 6.891407882e+11 | KG25: 7.58054867e+11 | KH25: 8.338603537e+11 | KI25: 9.17246389e+11 | KJ25: 1.008971028e+12 | KK25: 1.109868131e+12 | KL25: 1.220854944e+12 | KM25: 1.342940438e+12 | KN25: 1.477234482e+12 | KO25: 1.62495793e+12 | KP25: 1.787453723e+12 | KQ25: 1.966199096e+12 | KR25: 2.162819005e+12 | KS25: 2.379100906e+12 | KT25: 2.617010996e+12
B26: Value using sumproduct | F26: =SUMPRODUCT(G23:KT23/G25:KT25) -> 1721.25796
B28: Enterprise value | F28: =NPV(E11,G23:KT23) -> 1721.25796
B29: EV/EBITDA | F29: =F28/G20 -> 66.20222923
A31: Valuation without Normalised Cash Flow
B32: Explicit cash flow | G32: =G23*G4 -> 18.5 | H32: =H23*H4 -> 24.05 | I32: 31.265 | J32: 40.6445 | K32: 52.83785 | L32: 68.689205 | M32: 89.2959665 | N32: 116.0847564 | O32: 150.9101834 | P32: 196.1832384 | Q32: 0 | R32: 0 | S32: 0 | T32: 0 | U32: 0 | V32: 0 | W32: 0 | X32: 0 | Y32: 0 | Z32: 0 | AA32: 0 | AB32: 0 | AC32: 0 | AD32: 0 | AE32: 0 | AF32: 0 | AG32: 0 | AH32: 0 | AI32: 0 | AJ32: 0 | AK32: 0 | AL32: 0 | AM32: 0 | AN32: 0 | AO32: 0 | AP32: 0 | AQ32: 0 | AR32: 0 | AS32: 0 | AT32: 0 | AU32: 0 | AV32: 0 | AW32: 0 | AX32: 0 | AY32: 0 | AZ32: 0 | BA32: 0 | BB32: 0 | BC32: 0 | BD32: 0 | BE32: 0 | BF32: 0 | BG32: 0 | BH32: 0 | BI32: 0 | BJ32: 0 | BK32: 0 | BL32: 0 | BM32: 0 | BN32: 0 | BO32: 0 | BP32: 0 | BQ32: 0 | BR32: 0 | BS32: 0 | BT32: =BT23*BT4 -> 0 | BU32: 0 | BV32: 0 | BW32: 0 | BX32: 0 | BY32: 0 | BZ32: 0 | CA32: 0 | CB32: 0 | CC32: 0 | CD32: 0 | CE32: 0 | CF32: 0 | CG32: 0 | CH32: 0 | CI32: 0 | CJ32: 0 | CK32: 0 | CL32: 0 | CM32: 0 | CN32: 0 | CO32: 0 | CP32: 0 | CQ32: 0 | CR32: 0 | CS32: 0 | CT32: 0 | CU32: 0 | CV32: 0 | CW32: 0 | CX32: 0 | CY32: 0 | CZ32: 0 | DA32: 0 | DB32: 0 | DC32: 0 | DD32: 0 | DE32: 0 | DF32: 0 | DG32: 0 | DH32: 0 | DI32: 0 | DJ32: 0 | DK32: 0 | DL32: 0 | DM32: 0 | DN32: 0 | DO32: 0 | DP32: 0 | DQ32: 0 | DR32: 0 | DS32: 0 | DT32: 0 | DU32: 0 | DV32: 0 | DW32: 0 | DX32: 0 | DY32: 0 | DZ32: 0 | EA32: 0 | EB32: 0 | EC32: 0 | ED32: 0 | EE32: 0 | EF32: =EF23*EF4 -> 0 | EG32: 0 | EH32: 0 | EI32: 0 | EJ32: 0 | EK32: 0 | EL32: 0 | EM32: 0 | EN32: 0 | EO32: 0 | EP32: 0 | EQ32: 0 | ER32: 0 | ES32: 0 | ET32: 0 | EU32: 0 | EV32: 0 | EW32: 0 | EX32: 0 | EY32: 0 | EZ32: 0 | FA32: 0 | FB32: 0 | FC32: 0 | FD32: 0 | FE32: 0 | FF32: 0 | FG32: 0 | FH32: 0 | FI32: 0 | FJ32: 0 | FK32: 0 | FL32: 0 | FM32: 0 | FN32: 0 | FO32: 0 | FP32: 0 | FQ32: 0 | FR32: 0 | FS32: 0 | FT32: 0 | FU32: 0 | FV32: 0 | FW32: 0 | FX32: 0 | FY32: 0 | FZ32: 0 | GA32: 0 | GB32: 0 | GC32: 0 | GD32: 0 | GE32: 0 | GF32: 0 | GG32: 0 | GH32: 0 | GI32: 0 | GJ32: 0 | GK32: 0 | GL32: 0 | GM32: 0 | GN32: 0 | GO32: 0 | GP32: 0 | GQ32: 0 | GR32: =GR23*GR4 -> 0 | GS32: 0 | GT32: 0 | GU32: 0 | GV32: 0 | GW32: 0 | GX32: 0 | GY32: 0 | GZ32: 0 | HA32: 0 | HB32: 0 | HC32: 0 | HD32: 0 | HE32: 0 | HF32: 0 | HG32: 0 | HH32: 0 | HI32: 0 | HJ32: 0 | HK32: 0 | HL32: 0 | HM32: 0 | HN32: 0 | HO32: 0 | HP32: 0 | HQ32: 0 | HR32: 0 | HS32: 0 | HT32: 0 | HU32: 0 | HV32: 0 | HW32: 0 | HX32: 0 | HY32: 0 | HZ32: 0 | IA32: 0 | IB32: 0 | IC32: 0 | ID32: 0 | IE32: 0 | IF32: 0 | IG32: 0 | IH32: 0 | II32: 0 | IJ32: 0 | IK32: 0 | IL32: 0 | IM32: 0 | IN32: 0 | IO32: 0 | IP32: 0 | IQ32: 0 | IR32: 0 | IS32: 0 | IT32: 0 | IU32: 0 | IV32: 0 | IW32: 0 | IX32: 0 | IY32: 0 | IZ32: 0 | JA32: 0 | JB32: 0 | JC32: 0 | JD32: =JD23*JD4 -> 0 | JE32: 0 | JF32: 0 | JG32: 0 | JH32: 0 | JI32: 0 | JJ32: 0 | JK32: 0 | JL32: 0 | JM32: 0 | JN32: 0 | JO32: 0 | JP32: 0 | JQ32: 0 | JR32: 0 | JS32: 0 | JT32: 0 | JU32: 0 | JV32: 0 | JW32: 0 | JX32: 0 | JY32: 0 | JZ32: 0 | KA32: 0 | KB32: 0 | KC32: 0 | KD32: 0 | KE32: 0 | KF32: 0 | KG32: 0 | KH32: 0 | KI32: 0 | KJ32: 0 | KK32: 0 | KL32: 0 | KM32: 0 | KN32: 0 | KO32: 0 | KP32: 0 | KQ32: 0 | KR32: 0 | KS32: 0 | KT32: 0
B33: Terminal value | G33: =G32*(1+$E$11)/($E$11-$E$10)*G5 -> 0 | H33: =H32*(1+$E$11)/($E$11-$E$10)*H5 -> 0 | I33: =I32*(1+$E$11)/($E$11-$E$10)*I5 -> 0 | J33: =J32*(1+$E$11)/($E$11-$E$10)*J5 -> 0 | K33: =K32*(1+$E$10)/($E$11-$E$10)*K5 -> 0 | L33: =L32*(1+$E$11)/($E$11-$E$10)*L5 -> 0 | M33: 0 | N33: 0 | O33: 0 | P33: 2697.519528 | Q33: 0 | R33: 0 | S33: 0 | T33: 0 | U33: 0 | V33: 0 | W33: 0 | X33: 0 | Y33: 0 | Z33: 0 | AA33: 0 | AB33: 0 | AC33: 0 | AD33: 0 | AE33: 0 | AF33: 0 | AG33: 0 | AH33: 0 | AI33: 0 | AJ33: 0 | AK33: 0 | AL33: 0 | AM33: 0 | AN33: 0 | AO33: 0 | AP33: 0 | AQ33: 0 | AR33: 0 | AS33: 0 | AT33: 0 | AU33: 0 | AV33: 0 | AW33: 0 | AX33: 0 | AY33: 0 | AZ33: 0 | BA33: 0 | BB33: 0 | BC33: 0 | BD33: 0 | BE33: 0 | BF33: 0 | BG33: 0 | BH33: 0 | BI33: 0 | BJ33: 0 | BK33: 0 | BL33: 0 | BM33: 0 | BN33: 0 | BO33: 0 | BP33: 0 | BQ33: 0 | BR33: 0 | BS33: 0 | BT33: 0 | BU33: 0 | BV33: 0 | BW33: 0 | BX33: =BX32*(1+$E$11)/($E$11-$E$10)*BX5 -> 0 | BY33: 0 | BZ33: 0 | CA33: 0 | CB33: 0 | CC33: 0 | CD33: 0 | CE33: 0 | CF33: 0 | CG33: 0 | CH33: 0 | CI33: 0 | CJ33: 0 | CK33: 0 | CL33: 0 | CM33: 0 | CN33: 0 | CO33: 0 | CP33: 0 | CQ33: 0 | CR33: 0 | CS33: 0 | CT33: 0 | CU33: 0 | CV33: 0 | CW33: 0 | CX33: 0 | CY33: 0 | CZ33: 0 | DA33: 0 | DB33: 0 | DC33: 0 | DD33: 0 | DE33: 0 | DF33: 0 | DG33: 0 | DH33: 0 | DI33: 0 | DJ33: 0 | DK33: 0 | DL33: 0 | DM33: 0 | DN33: 0 | DO33: 0 | DP33: 0 | DQ33: 0 | DR33: 0 | DS33: 0 | DT33: 0 | DU33: 0 | DV33: 0 | DW33: 0 | DX33: 0 | DY33: 0 | DZ33: 0 | EA33: 0 | EB33: 0 | EC33: 0 | ED33: 0 | EE33: 0 | EF33: 0 | EG33: 0 | EH33: 0 | EI33: 0 | EJ33: =EJ32*(1+$E$11)/($E$11-$E$10)*EJ5 -> 0 | EK33: 0 | EL33: 0 | EM33: 0 | EN33: 0 | EO33: 0 | EP33: 0 | EQ33: 0 | ER33: 0 | ES33: 0 | ET33: 0 | EU33: 0 | EV33: 0 | EW33: 0 | EX33: 0 | EY33: 0 | EZ33: 0 | FA33: 0 | FB33: 0 | FC33: 0 | FD33: 0 | FE33: 0 | FF33: 0 | FG33: 0 | FH33: 0 | FI33: 0 | FJ33: 0 | FK33: 0 | FL33: 0 | FM33: 0 | FN33: 0 | FO33: 0 | FP33: 0 | FQ33: 0 | FR33: 0 | FS33: 0 | FT33: 0 | FU33: 0 | FV33: 0 | FW33: 0 | FX33: 0 | FY33: 0 | FZ33: 0 | GA33: 0 | GB33: 0 | GC33: 0 | GD33: 0 | GE33: 0 | GF33: 0 | GG33: 0 | GH33: 0 | GI33: 0 | GJ33: 0 | GK33: 0 | GL33: 0 | GM33: 0 | GN33: 0 | GO33: 0 | GP33: 0 | GQ33: 0 | GR33: 0 | GS33: 0 | GT33: 0 | GU33: 0 | GV33: =GV32*(1+$E$11)/($E$11-$E$10)*GV5 -> 0 | GW33: 0 | GX33: 0 | GY33: 0 | GZ33: 0 | HA33: 0 | HB33: 0 | HC33: 0 | HD33: 0 | HE33: 0 | HF33: 0 | HG33: 0 | HH33: 0 | HI33: 0 | HJ33: 0 | HK33: 0 | HL33: 0 | HM33: 0 | HN33: 0 | HO33: 0 | HP33: 0 | HQ33: 0 | HR33: 0 | HS33: 0 | HT33: 0 | HU33: 0 | HV33: 0 | HW33: 0 | HX33: 0 | HY33: 0 | HZ33: 0 | IA33: 0 | IB33: 0 | IC33: 0 | ID33: 0 | IE33: 0 | IF33: 0 | IG33: 0 | IH33: 0 | II33: 0 | IJ33: 0 | IK33: 0 | IL33: 0 | IM33: 0 | IN33: 0 | IO33: 0 | IP33: 0 | IQ33: 0 | IR33: 0 | IS33: 0 | IT33: 0 | IU33: 0 | IV33: 0 | IW33: 0 | IX33: 0 | IY33: 0 | IZ33: 0 | JA33: 0 | JB33: 0 | JC33: 0 | JD33: 0 | JE33: 0 | JF33: 0 | JG33: 0 | JH33: =JH32*(1+$E$11)/($E$11-$E$10)*JH5 -> 0 | JI33: 0 | JJ33: 0 | JK33: 0 | JL33: 0 | JM33: 0 | JN33: 0 | JO33: 0 | JP33: 0 | JQ33: 0 | JR33: 0 | JS33: 0 | JT33: 0 | JU33: 0 | JV33: 0 | JW33: 0 | JX33: 0 | JY33: 0 | JZ33: 0 | KA33: 0 | KB33: 0 | KC33: 0 | KD33: 0 | KE33: 0 | KF33: 0 | KG33: 0 | KH33: 0 | KI33: 0 | KJ33: 0 | KK33: 0 | KL33: 0 | KM33: 0 | KN33: 0 | KO33: 0 | KP33: 0 | KQ33: 0 | KR33: 0 | KS33: 0 | KT33: 0
B34: Total | G34: =SUM(G32:G33) -> 18.5 | H34: 24.05 | I34: 31.265 | J34: 40.6445 | K34: 52.83785 | L34: 68.689205 | M34: 89.2959665 | N34: 116.0847564 | O34: 150.9101834 | P34: 2893.702766 | Q34: 0 | R34: 0 | S34: 0 | T34: 0 | U34: 0 | V34: 0 | W34: 0 | X34: 0 | Y34: 0 | Z34: 0 | AA34: 0 | AB34: 0 | AC34: 0 | AD34: 0 | AE34: 0 | AF34: 0 | AG34: 0 | AH34: 0 | AI34: 0 | AJ34: 0 | AK34: 0 | AL34: 0 | AM34: 0 | AN34: 0 | AO34: 0 | AP34: 0 | AQ34: 0 | AR34: 0 | AS34: 0 | AT34: 0 | AU34: 0 | AV34: 0 | AW34: 0 | AX34: 0 | AY34: 0 | AZ34: 0 | BA34: 0 | BB34: 0 | BC34: 0 | BD34: 0 | BE34: 0 | BF34: 0 | BG34: 0 | BH34: 0 | BI34: 0 | BJ34: 0 | BK34: 0 | BL34: 0 | BM34: 0 | BN34: 0 | BO34: 0 | BP34: 0 | BQ34: 0 | BR34: 0 | BS34: =SUM(BS32:BS33) -> 0 | BT34: 0 | BU34: 0 | BV34: 0 | BW34: 0 | BX34: 0 | BY34: 0 | BZ34: 0 | CA34: 0 | CB34: 0 | CC34: 0 | CD34: 0 | CE34: 0 | CF34: 0 | CG34: 0 | CH34: 0 | CI34: 0 | CJ34: 0 | CK34: 0 | CL34: 0 | CM34: 0 | CN34: 0 | CO34: 0 | CP34: 0 | CQ34: 0 | CR34: 0 | CS34: 0 | CT34: 0 | CU34: 0 | CV34: 0 | CW34: 0 | CX34: 0 | CY34: 0 | CZ34: 0 | DA34: 0 | DB34: 0 | DC34: 0 | DD34: 0 | DE34: 0 | DF34: 0 | DG34: 0 | DH34: 0 | DI34: 0 | DJ34: 0 | DK34: 0 | DL34: 0 | DM34: 0 | DN34: 0 | DO34: 0 | DP34: 0 | DQ34: 0 | DR34: 0 | DS34: 0 | DT34: 0 | DU34: 0 | DV34: 0 | DW34: 0 | DX34: 0 | DY34: 0 | DZ34: 0 | EA34: 0 | EB34: 0 | EC34: 0 | ED34: 0 | EE34: =SUM(EE32:EE33) -> 0 | EF34: 0 | EG34: 0 | EH34: 0 | EI34: 0 | EJ34: 0 | EK34: 0 | EL34: 0 | EM34: 0 | EN34: 0 | EO34: 0 | EP34: 0 | EQ34: 0 | ER34: 0 | ES34: 0 | ET34: 0 | EU34: 0 | EV34: 0 | EW34: 0 | EX34: 0 | EY34: 0 | EZ34: 0 | FA34: 0 | FB34: 0 | FC34: 0 | FD34: 0 | FE34: 0 | FF34: 0 | FG34: 0 | FH34: 0 | FI34: 0 | FJ34: 0 | FK34: 0 | FL34: 0 | FM34: 0 | FN34: 0 | FO34: 0 | FP34: 0 | FQ34: 0 | FR34: 0 | FS34: 0 | FT34: 0 | FU34: 0 | FV34: 0 | FW34: 0 | FX34: 0 | FY34: 0 | FZ34: 0 | GA34: 0 | GB34: 0 | GC34: 0 | GD34: 0 | GE34: 0 | GF34: 0 | GG34: 0 | GH34: 0 | GI34: 0 | GJ34: 0 | GK34: 0 | GL34: 0 | GM34: 0 | GN34: 0 | GO34: 0 | GP34: 0 | GQ34: =SUM(GQ32:GQ33) -> 0 | GR34: 0 | GS34: 0 | GT34: 0 | GU34: 0 | GV34: 0 | GW34: 0 | GX34: 0 | GY34: 0 | GZ34: 0 | HA34: 0 | HB34: 0 | HC34: 0 | HD34: 0 | HE34: 0 | HF34: 0 | HG34: 0 | HH34: 0 | HI34: 0 | HJ34: 0 | HK34: 0 | HL34: 0 | HM34: 0 | HN34: 0 | HO34: 0 | HP34: 0 | HQ34: 0 | HR34: 0 | HS34: 0 | HT34: 0 | HU34: 0 | HV34: 0 | HW34: 0 | HX34: 0 | HY34: 0 | HZ34: 0 | IA34: 0 | IB34: 0 | IC34: 0 | ID34: 0 | IE34: 0 | IF34: 0 | IG34: 0 | IH34: 0 | II34: 0 | IJ34: 0 | IK34: 0 | IL34: 0 | IM34: 0 | IN34: 0 | IO34: 0 | IP34: 0 | IQ34: 0 | IR34: 0 | IS34: 0 | IT34: 0 | IU34: 0 | IV34: 0 | IW34: 0 | IX34: 0 | IY34: 0 | IZ34: 0 | JA34: 0 | JB34: 0 | JC34: =SUM(JC32:JC33) -> 0 | JD34: 0 | JE34: 0 | JF34: 0 | JG34: 0 | JH34: 0 | JI34: 0 | JJ34: 0 | JK34: 0 | JL34: 0 | JM34: 0 | JN34: 0 | JO34: 0 | JP34: 0 | JQ34: 0 | JR34: 0 | JS34: 0 | JT34: 0 | JU34: 0 | JV34: 0 | JW34: 0 | JX34: 0 | JY34: 0 | JZ34: 0 | KA34: 0 | KB34: 0 | KC34: 0 | KD34: 0 | KE34: 0 | KF34: 0 | KG34: 0 | KH34: 0 | KI34: 0 | KJ34: 0 | KK34: 0 | KL34: 0 | KM34: 0 | KN34: 0 | KO34: 0 | KP34: 0 | KQ34: 0 | KR34: 0 | KS34: 0 | KT34: 0
B35: EV | F35: =NPV(E11,34:34) -> 1439.151904
A37: Valuation with normalized cash flow
B38: Explicit cash flow | G38: =G23*G4 -> 18.5 | H38: =H23*H4 -> 24.05 | I38: 31.265 | J38: 40.6445 | K38: 52.83785 | L38: 68.689205 | M38: 89.2959665 | N38: 116.0847564 | O38: 150.9101834 | P38: 196.1832384 | Q38: 0 | R38: 0 | S38: 0 | T38: 0 | U38: 0 | V38: 0 | W38: 0 | X38: 0 | Y38: 0 | Z38: 0 | AA38: 0 | AB38: 0 | AC38: 0 | AD38: 0 | AE38: 0 | AF38: 0 | AG38: 0 | AH38: 0 | AI38: 0 | AJ38: 0 | AK38: 0 | AL38: 0 | AM38: 0 | AN38: 0 | AO38: 0 | AP38: 0 | AQ38: 0 | AR38: 0 | AS38: 0 | AT38: 0 | AU38: 0 | AV38: 0 | AW38: 0 | AX38: 0 | AY38: 0 | AZ38: 0 | BA38: 0 | BB38: 0 | BC38: 0 | BD38: 0 | BE38: 0 | BF38: 0 | BG38: 0 | BH38: 0 | BI38: 0 | BJ38: 0 | BK38: 0 | BL38: 0 | BM38: 0 | BN38: 0 | BO38: 0 | BP38: 0 | BQ38: 0 | BR38: 0 | BS38: 0 | BT38: =BT23*BT4 -> 0 | BU38: 0 | BV38: 0 | BW38: 0 | BX38: 0 | BY38: 0 | BZ38: 0 | CA38: 0 | CB38: 0 | CC38: 0 | CD38: 0 | CE38: 0 | CF38: 0 | CG38: 0 | CH38: 0 | CI38: 0 | CJ38: 0 | CK38: 0 | CL38: 0 | CM38: 0 | CN38: 0 | CO38: 0 | CP38: 0 | CQ38: 0 | CR38: 0 | CS38: 0 | CT38: 0 | CU38: 0 | CV38: 0 | CW38: 0 | CX38: 0 | CY38: 0 | CZ38: 0 | DA38: 0 | DB38: 0 | DC38: 0 | DD38: 0 | DE38: 0 | DF38: 0 | DG38: 0 | DH38: 0 | DI38: 0 | DJ38: 0 | DK38: 0 | DL38: 0 | DM38: 0 | DN38: 0 | DO38: 0 | DP38: 0 | DQ38: 0 | DR38: 0 | DS38: 0 | DT38: 0 | DU38: 0 | DV38: 0 | DW38: 0 | DX38: 0 | DY38: 0 | DZ38: 0 | EA38: 0 | EB38: 0 | EC38: 0 | ED38: 0 | EE38: 0 | EF38: =EF23*EF4 -> 0 | EG38: 0 | EH38: 0 | EI38: 0 | EJ38: 0 | EK38: 0 | EL38: 0 | EM38: 0 | EN38: 0 | EO38: 0 | EP38: 0 | EQ38: 0 | ER38: 0 | ES38: 0 | ET38: 0 | EU38: 0 | EV38: 0 | EW38: 0 | EX38: 0 | EY38: 0 | EZ38: 0 | FA38: 0 | FB38: 0 | FC38: 0 | FD38: 0 | FE38: 0 | FF38: 0 | FG38: 0 | FH38: 0 | FI38: 0 | FJ38: 0 | FK38: 0 | FL38: 0 | FM38: 0 | FN38: 0 | FO38: 0 | FP38: 0 | FQ38: 0 | FR38: 0 | FS38: 0 | FT38: 0 | FU38: 0 | FV38: 0 | FW38: 0 | FX38: 0 | FY38: 0 | FZ38: 0 | GA38: 0 | GB38: 0 | GC38: 0 | GD38: 0 | GE38: 0 | GF38: 0 | GG38: 0 | GH38: 0 | GI38: 0 | GJ38: 0 | GK38: 0 | GL38: 0 | GM38: 0 | GN38: 0 | GO38: 0 | GP38: 0 | GQ38: 0 | GR38: =GR23*GR4 -> 0 | GS38: 0 | GT38: 0 | GU38: 0 | GV38: 0 | GW38: 0 | GX38: 0 | GY38: 0 | GZ38: 0 | HA38: 0 | HB38: 0 | HC38: 0 | HD38: 0 | HE38: 0 | HF38: 0 | HG38: 0 | HH38: 0 | HI38: 0 | HJ38: 0 | HK38: 0 | HL38: 0 | HM38: 0 | HN38: 0 | HO38: 0 | HP38: 0 | HQ38: 0 | HR38: 0 | HS38: 0 | HT38: 0 | HU38: 0 | HV38: 0 | HW38: 0 | HX38: 0 | HY38: 0 | HZ38: 0 | IA38: 0 | IB38: 0 | IC38: 0 | ID38: 0 | IE38: 0 | IF38: 0 | IG38: 0 | IH38: 0 | II38: 0 | IJ38: 0 | IK38: 0 | IL38: 0 | IM38: 0 | IN38: 0 | IO38: 0 | IP38: 0 | IQ38: 0 | IR38: 0 | IS38: 0 | IT38: 0 | IU38: 0 | IV38: 0 | IW38: 0 | IX38: 0 | IY38: 0 | IZ38: 0 | JA38: 0 | JB38: 0 | JC38: 0 | JD38: =JD23*JD4 -> 0 | JE38: 0 | JF38: 0 | JG38: 0 | JH38: 0 | JI38: 0 | JJ38: 0 | JK38: 0 | JL38: 0 | JM38: 0 | JN38: 0 | JO38: 0 | JP38: 0 | JQ38: 0 | JR38: 0 | JS38: 0 | JT38: 0 | JU38: 0 | JV38: 0 | JW38: 0 | JX38: 0 | JY38: 0 | JZ38: 0 | KA38: 0 | KB38: 0 | KC38: 0 | KD38: 0 | KE38: 0 | KF38: 0 | KG38: 0 | KH38: 0 | KI38: 0 | KJ38: 0 | KK38: 0 | KL38: 0 | KM38: 0 | KN38: 0 | KO38: 0 | KP38: 0 | KQ38: 0 | KR38: 0 | KS38: 0 | KT38: 0
B39: Working capital/EBITDA | G39: =G21/G20*G4 -> 1.25 | H39: =H21/H20*H4 -> 1.25 | I39: 1.25 | J39: 1.25 | K39: 1.25 | L39: 1.25 | M39: 1.25 | N39: 1.25 | O39: 1.25 | P39: 1.25 | Q39: 0 | R39: 0 | S39: 0 | T39: 0 | U39: 0 | V39: 0 | W39: 0 | X39: 0 | Y39: 0 | Z39: 0 | AA39: 0 | AB39: 0 | AC39: 0 | AD39: 0 | AE39: 0 | AF39: 0 | AG39: 0 | AH39: 0 | AI39: 0 | AJ39: 0 | AK39: 0 | AL39: 0 | AM39: 0 | AN39: 0 | AO39: 0 | AP39: 0 | AQ39: 0 | AR39: 0 | AS39: 0 | AT39: 0 | AU39: 0 | AV39: 0 | AW39: 0 | AX39: 0 | AY39: 0 | AZ39: 0 | BA39: 0 | BB39: 0 | BC39: 0 | BD39: 0 | BE39: 0 | BF39: 0 | BG39: 0 | BH39: 0 | BI39: 0 | BJ39: 0 | BK39: 0 | BL39: 0 | BM39: 0 | BN39: 0 | BO39: 0 | BP39: 0 | BQ39: 0 | BR39: 0 | BS39: 0 | BT39: =BT21/BT20*BT4 -> 0 | BU39: 0 | BV39: 0 | BW39: 0 | BX39: 0 | BY39: 0 | BZ39: 0 | CA39: 0 | CB39: 0 | CC39: 0 | CD39: 0 | CE39: 0 | CF39: 0 | CG39: 0 | CH39: 0 | CI39: 0 | CJ39: 0 | CK39: 0 | CL39: 0 | CM39: 0 | CN39: 0 | CO39: 0 | CP39: 0 | CQ39: 0 | CR39: 0 | CS39: 0 | CT39: 0 | CU39: 0 | CV39: 0 | CW39: 0 | CX39: 0 | CY39: 0 | CZ39: 0 | DA39: 0 | DB39: 0 | DC39: 0 | DD39: 0 | DE39: 0 | DF39: 0 | DG39: 0 | DH39: 0 | DI39: 0 | DJ39: 0 | DK39: 0 | DL39: 0 | DM39: 0 | DN39: 0 | DO39: 0 | DP39: 0 | DQ39: 0 | DR39: 0 | DS39: 0 | DT39: 0 | DU39: 0 | DV39: 0 | DW39: 0 | DX39: 0 | DY39: 0 | DZ39: 0 | EA39: 0 | EB39: 0 | EC39: 0 | ED39: 0 | EE39: 0 | EF39: =EF21/EF20*EF4 -> 0 | EG39: 0 | EH39: 0 | EI39: 0 | EJ39: 0 | EK39: 0 | EL39: 0 | EM39: 0 | EN39: 0 | EO39: 0 | EP39: 0 | EQ39: 0 | ER39: 0 | ES39: 0 | ET39: 0 | EU39: 0 | EV39: 0 | EW39: 0 | EX39: 0 | EY39: 0 | EZ39: 0 | FA39: 0 | FB39: 0 | FC39: 0 | FD39: 0 | FE39: 0 | FF39: 0 | FG39: 0 | FH39: 0 | FI39: 0 | FJ39: 0 | FK39: 0 | FL39: 0 | FM39: 0 | FN39: 0 | FO39: 0 | FP39: 0 | FQ39: 0 | FR39: 0 | FS39: 0 | FT39: 0 | FU39: 0 | FV39: 0 | FW39: 0 | FX39: 0 | FY39: 0 | FZ39: 0 | GA39: 0 | GB39: 0 | GC39: 0 | GD39: 0 | GE39: 0 | GF39: 0 | GG39: 0 | GH39: 0 | GI39: 0 | GJ39: 0 | GK39: 0 | GL39: 0 | GM39: 0 | GN39: 0 | GO39: 0 | GP39: 0 | GQ39: 0 | GR39: =GR21/GR20*GR4 -> 0 | GS39: 0 | GT39: 0 | GU39: 0 | GV39: 0 | GW39: 0 | GX39: 0 | GY39: 0 | GZ39: 0 | HA39: 0 | HB39: 0 | HC39: 0 | HD39: 0 | HE39: 0 | HF39: 0 | HG39: 0 | HH39: 0 | HI39: 0 | HJ39: 0 | HK39: 0 | HL39: 0 | HM39: 0 | HN39: 0 | HO39: 0 | HP39: 0 | HQ39: 0 | HR39: 0 | HS39: 0 | HT39: 0 | HU39: 0 | HV39: 0 | HW39: 0 | HX39: 0 | HY39: 0 | HZ39: 0 | IA39: 0 | IB39: 0 | IC39: 0 | ID39: 0 | IE39: 0 | IF39: 0 | IG39: 0 | IH39: 0 | II39: 0 | IJ39: 0 | IK39: 0 | IL39: 0 | IM39: 0 | IN39: 0 | IO39: 0 | IP39: 0 | IQ39: 0 | IR39: 0 | IS39: 0 | IT39: 0 | IU39: 0 | IV39: 0 | IW39: 0 | IX39: 0 | IY39: 0 | IZ39: 0 | JA39: 0 | JB39: 0 | JC39: 0 | JD39: =JD21/JD20*JD4 -> 0 | JE39: 0 | JF39: 0 | JG39: 0 | JH39: 0 | JI39: 0 | JJ39: 0 | JK39: 0 | JL39: 0 | JM39: 0 | JN39: 0 | JO39: 0 | JP39: 0 | JQ39: 0 | JR39: 0 | JS39: 0 | JT39: 0 | JU39: 0 | JV39: 0 | JW39: 0 | JX39: 0 | JY39: 0 | JZ39: 0 | KA39: 0 | KB39: 0 | KC39: 0 | KD39: 0 | KE39: 0 | KF39: 0 | KG39: 0 | KH39: 0 | KI39: 0 | KJ39: 0 | KK39: 0 | KL39: 0 | KM39: 0 | KN39: 0 | KO39: 0 | KP39: 0 | KQ39: 0 | KR39: 0 | KS39: 0 | KT39: 0
B40: Normalized working capital | G40: =G39*G20*$E$10/(1+$E$10)*G5 -> 0 | H40: =H39*H20*$E$10/(1+$E$10)*H5 -> 0 | I40: 0 | J40: 0 | K40: =K39*K20*$E$10/(1+$E$10)*K5 -> 0 | L40: 0 | M40: 0 | N40: 0 | O40: 0 | P40: 6.757769208 | Q40: 0 | R40: 0 | S40: 0 | T40: 0 | U40: 0 | V40: 0 | W40: 0 | X40: 0 | Y40: 0 | Z40: 0 | AA40: 0 | AB40: 0 | AC40: 0 | AD40: 0 | AE40: 0 | AF40: 0 | AG40: 0 | AH40: 0 | AI40: 0 | AJ40: 0 | AK40: 0 | AL40: 0 | AM40: 0 | AN40: 0 | AO40: 0 | AP40: 0 | AQ40: 0 | AR40: 0 | AS40: 0 | AT40: 0 | AU40: 0 | AV40: 0 | AW40: 0 | AX40: 0 | AY40: 0 | AZ40: 0 | BA40: 0 | BB40: 0 | BC40: 0 | BD40: 0 | BE40: 0 | BF40: 0 | BG40: 0 | BH40: 0 | BI40: 0 | BJ40: 0 | BK40: 0 | BL40: 0 | BM40: 0 | BN40: 0 | BO40: 0 | BP40: 0 | BQ40: 0 | BR40: 0 | BS40: 0 | BT40: =BT39*BT20*$E$10/(1+$E$10)*BT5 -> 0 | BU40: 0 | BV40: 0 | BW40: 0 | BX40: 0 | BY40: 0 | BZ40: 0 | CA40: 0 | CB40: 0 | CC40: 0 | CD40: 0 | CE40: 0 | CF40: 0 | CG40: 0 | CH40: 0 | CI40: 0 | CJ40: 0 | CK40: 0 | CL40: 0 | CM40: 0 | CN40: 0 | CO40: 0 | CP40: 0 | CQ40: 0 | CR40: 0 | CS40: 0 | CT40: 0 | CU40: 0 | CV40: 0 | CW40: 0 | CX40: 0 | CY40: 0 | CZ40: 0 | DA40: 0 | DB40: 0 | DC40: 0 | DD40: 0 | DE40: 0 | DF40: 0 | DG40: 0 | DH40: 0 | DI40: 0 | DJ40: 0 | DK40: 0 | DL40: 0 | DM40: 0 | DN40: 0 | DO40: 0 | DP40: 0 | DQ40: 0 | DR40: 0 | DS40: 0 | DT40: 0 | DU40: 0 | DV40: 0 | DW40: 0 | DX40: 0 | DY40: 0 | DZ40: 0 | EA40: 0 | EB40: 0 | EC40: 0 | ED40: 0 | EE40: 0 | EF40: =EF39*EF20*$E$10/(1+$E$10)*EF5 -> 0 | EG40: 0 | EH40: 0 | EI40: 0 | EJ40: 0 | EK40: 0 | EL40: 0 | EM40: 0 | EN40: 0 | EO40: 0 | EP40: 0 | EQ40: 0 | ER40: 0 | ES40: 0 | ET40: 0 | EU40: 0 | EV40: 0 | EW40: 0 | EX40: 0 | EY40: 0 | EZ40: 0 | FA40: 0 | FB40: 0 | FC40: 0 | FD40: 0 | FE40: 0 | FF40: 0 | FG40: 0 | FH40: 0 | FI40: 0 | FJ40: 0 | FK40: 0 | FL40: 0 | FM40: 0 | FN40: 0 | FO40: 0 | FP40: 0 | FQ40: 0 | FR40: 0 | FS40: 0 | FT40: 0 | FU40: 0 | FV40: 0 | FW40: 0 | FX40: 0 | FY40: 0 | FZ40: 0 | GA40: 0 | GB40: 0 | GC40: 0 | GD40: 0 | GE40: 0 | GF40: 0 | GG40: 0 | GH40: 0 | GI40: 0 | GJ40: 0 | GK40: 0 | GL40: 0 | GM40: 0 | GN40: 0 | GO40: 0 | GP40: 0 | GQ40: 0 | GR40: =GR39*GR20*$E$10/(1+$E$10)*GR5 -> 0 | GS40: 0 | GT40: 0 | GU40: 0 | GV40: 0 | GW40: 0 | GX40: 0 | GY40: 0 | GZ40: 0 | HA40: 0 | HB40: 0 | HC40: 0 | HD40: 0 | HE40: 0 | HF40: 0 | HG40: 0 | HH40: 0 | HI40: 0 | HJ40: 0 | HK40: 0 | HL40: 0 | HM40: 0 | HN40: 0 | HO40: 0 | HP40: 0 | HQ40: 0 | HR40: 0 | HS40: 0 | HT40: 0 | HU40: 0 | HV40: 0 | HW40: 0 | HX40: 0 | HY40: 0 | HZ40: 0 | IA40: 0 | IB40: 0 | IC40: 0 | ID40: 0 | IE40: 0 | IF40: 0 | IG40: 0 | IH40: 0 | II40: 0 | IJ40: 0 | IK40: 0 | IL40: 0 | IM40: 0 | IN40: 0 | IO40: 0 | IP40: 0 | IQ40: 0 | IR40: 0 | IS40: 0 | IT40: 0 | IU40: 0 | IV40: 0 | IW40: 0 | IX40: 0 | IY40: 0 | IZ40: 0 | JA40: 0 | JB40: 0 | JC40: 0 | JD40: =JD39*JD20*$E$10/(1+$E$10)*JD5 -> 0 | JE40: 0 | JF40: 0 | JG40: 0 | JH40: 0 | JI40: 0 | JJ40: 0 | JK40: 0 | JL40: 0 | JM40: 0 | JN40: 0 | JO40: 0 | JP40: 0 | JQ40: 0 | JR40: 0 | JS40: 0 | JT40: 0 | JU40: 0 | JV40: 0 | JW40: 0 | JX40: 0 | JY40: 0 | JZ40: 0 | KA40: 0 | KB40: 0 | KC40: 0 | KD40: 0 | KE40: 0 | KF40: 0 | KG40: 0 | KH40: 0 | KI40: 0 | KJ40: 0 | KK40: 0 | KL40: 0 | KM40: 0 | KN40: 0 | KO40: 0 | KP40: 0 | KQ40: 0 | KR40: 0 | KS40: 0 | KT40: 0
B41: Normalized cash flow | G41: =(G23+G22-G40)*G5 -> 0 | H41: =(H23+H22-H40)*H5 -> 0 | I41: 0 | J41: 0 | K41: 0 | L41: 0 | M41: 0 | N41: 0 | O41: 0 | P41: 268.9592145 | Q41: 0 | R41: 0 | S41: 0 | T41: 0 | U41: 0 | V41: 0 | W41: 0 | X41: 0 | Y41: 0 | Z41: 0 | AA41: 0 | AB41: 0 | AC41: 0 | AD41: 0 | AE41: 0 | AF41: 0 | AG41: 0 | AH41: 0 | AI41: 0 | AJ41: 0 | AK41: 0 | AL41: 0 | AM41: 0 | AN41: 0 | AO41: 0 | AP41: 0 | AQ41: 0 | AR41: 0 | AS41: 0 | AT41: 0 | AU41: 0 | AV41: 0 | AW41: 0 | AX41: 0 | AY41: 0 | AZ41: 0 | BA41: 0 | BB41: 0 | BC41: 0 | BD41: 0 | BE41: 0 | BF41: 0 | BG41: 0 | BH41: 0 | BI41: 0 | BJ41: 0 | BK41: 0 | BL41: 0 | BM41: 0 | BN41: 0 | BO41: 0 | BP41: 0 | BQ41: 0 | BR41: 0 | BS41: 0 | BT41: =(BT23+BT22-BT40)*BT5 -> 0 | BU41: 0 | BV41: 0 | BW41: 0 | BX41: 0 | BY41: 0 | BZ41: 0 | CA41: 0 | CB41: 0 | CC41: 0 | CD41: 0 | CE41: 0 | CF41: 0 | CG41: 0 | CH41: 0 | CI41: 0 | CJ41: 0 | CK41: 0 | CL41: 0 | CM41: 0 | CN41: 0 | CO41: 0 | CP41: 0 | CQ41: 0 | CR41: 0 | CS41: 0 | CT41: 0 | CU41: 0 | CV41: 0 | CW41: 0 | CX41: 0 | CY41: 0 | CZ41: 0 | DA41: 0 | DB41: 0 | DC41: 0 | DD41: 0 | DE41: 0 | DF41: 0 | DG41: 0 | DH41: 0 | DI41: 0 | DJ41: 0 | DK41: 0 | DL41: 0 | DM41: 0 | DN41: 0 | DO41: 0 | DP41: 0 | DQ41: 0 | DR41: 0 | DS41: 0 | DT41: 0 | DU41: 0 | DV41: 0 | DW41: 0 | DX41: 0 | DY41: 0 | DZ41: 0 | EA41: 0 | EB41: 0 | EC41: 0 | ED41: 0 | EE41: 0 | EF41: =(EF23+EF22-EF40)*EF5 -> 0 | EG41: 0 | EH41: 0 | EI41: 0 | EJ41: 0 | EK41: 0 | EL41: 0 | EM41: 0 | EN41: 0 | EO41: 0 | EP41: 0 | EQ41: 0 | ER41: 0 | ES41: 0 | ET41: 0 | EU41: 0 | EV41: 0 | EW41: 0 | EX41: 0 | EY41: 0 | EZ41: 0 | FA41: 0 | FB41: 0 | FC41: 0 | FD41: 0 | FE41: 0 | FF41: 0 | FG41: 0 | FH41: 0 | FI41: 0 | FJ41: 0 | FK41: 0 | FL41: 0 | FM41: 0 | FN41: 0 | FO41: 0 | FP41: 0 | FQ41: 0 | FR41: 0 | FS41: 0 | FT41: 0 | FU41: 0 | FV41: 0 | FW41: 0 | FX41: 0 | FY41: 0 | FZ41: 0 | GA41: 0 | GB41: 0 | GC41: 0 | GD41: 0 | GE41: 0 | GF41: 0 | GG41: 0 | GH41: 0 | GI41: 0 | GJ41: 0 | GK41: 0 | GL41: 0 | GM41: 0 | GN41: 0 | GO41: 0 | GP41: 0 | GQ41: 0 | GR41: =(GR23+GR22-GR40)*GR5 -> 0 | GS41: 0 | GT41: 0 | GU41: 0 | GV41: 0 | GW41: 0 | GX41: 0 | GY41: 0 | GZ41: 0 | HA41: 0 | HB41: 0 | HC41: 0 | HD41: 0 | HE41: 0 | HF41: 0 | HG41: 0 | HH41: 0 | HI41: 0 | HJ41: 0 | HK41: 0 | HL41: 0 | HM41: 0 | HN41: 0 | HO41: 0 | HP41: 0 | HQ41: 0 | HR41: 0 | HS41: 0 | HT41: 0 | HU41: 0 | HV41: 0 | HW41: 0 | HX41: 0 | HY41: 0 | HZ41: 0 | IA41: 0 | IB41: 0 | IC41: 0 | ID41: 0 | IE41: 0 | IF41: 0 | IG41: 0 | IH41: 0 | II41: 0 | IJ41: 0 | IK41: 0 | IL41: 0 | IM41: 0 | IN41: 0 | IO41: 0 | IP41: 0 | IQ41: 0 | IR41: 0 | IS41: 0 | IT41: 0 | IU41: 0 | IV41: 0 | IW41: 0 | IX41: 0 | IY41: 0 | IZ41: 0 | JA41: 0 | JB41: 0 | JC41: 0 | JD41: =(JD23+JD22-JD40)*JD5 -> 0 | JE41: 0 | JF41: 0 | JG41: 0 | JH41: 0 | JI41: 0 | JJ41: 0 | JK41: 0 | JL41: 0 | JM41: 0 | JN41: 0 | JO41: 0 | JP41: 0 | JQ41: 0 | JR41: 0 | JS41: 0 | JT41: 0 | JU41: 0 | JV41: 0 | JW41: 0 | JX41: 0 | JY41: 0 | JZ41: 0 | KA41: 0 | KB41: 0 | KC41: 0 | KD41: 0 | KE41: 0 | KF41: 0 | KG41: 0 | KH41: 0 | KI41: 0 | KJ41: 0 | KK41: 0 | KL41: 0 | KM41: 0 | KN41: 0 | KO41: 0 | KP41: 0 | KQ41: 0 | KR41: 0 | KS41: 0 | KT41: 0
B42: Terminal value | G42: =G41*(1+$E$10)/($E$11-$E$10)*G5 -> 0 | H42: =H41*(1+$E$10)/($E$11-$E$10)*H5 -> 0 | I42: =I41*(1+$E$10)/($E$11-$E$10)*I5 -> 0 | J42: =J41*(1+$E$10)/($E$11-$E$10)*J5 -> 0 | K42: =K41*(1+$E$10)/($E$11-$E$10)*K5 -> 0 | L42: =L41*(1+$E$10)/($E$11-$E$10)*L5 -> 0 | M42: 0 | N42: 0 | O42: 0 | P42: 3429.229985 | Q42: 0 | R42: 0 | S42: 0 | T42: 0 | U42: 0 | V42: 0 | W42: 0 | X42: 0 | Y42: 0 | Z42: 0 | AA42: 0 | AB42: 0 | AC42: 0 | AD42: 0 | AE42: 0 | AF42: 0 | AG42: 0 | AH42: 0 | AI42: 0 | AJ42: 0 | AK42: 0 | AL42: 0 | AM42: 0 | AN42: 0 | AO42: 0 | AP42: 0 | AQ42: 0 | AR42: 0 | AS42: 0 | AT42: 0 | AU42: 0 | AV42: 0 | AW42: 0 | AX42: 0 | AY42: 0 | AZ42: 0 | BA42: 0 | BB42: 0 | BC42: 0 | BD42: 0 | BE42: 0 | BF42: 0 | BG42: 0 | BH42: 0 | BI42: 0 | BJ42: 0 | BK42: 0 | BL42: 0 | BM42: 0 | BN42: 0 | BO42: 0 | BP42: 0 | BQ42: 0 | BR42: 0 | BS42: 0 | BT42: 0 | BU42: 0 | BV42: 0 | BW42: 0 | BX42: =BX41*(1+$E$10)/($E$11-$E$10)*BX5 -> 0 | BY42: 0 | BZ42: 0 | CA42: 0 | CB42: 0 | CC42: 0 | CD42: 0 | CE42: 0 | CF42: 0 | CG42: 0 | CH42: 0 | CI42: 0 | CJ42: 0 | CK42: 0 | CL42: 0 | CM42: 0 | CN42: 0 | CO42: 0 | CP42: 0 | CQ42: 0 | CR42: 0 | CS42: 0 | CT42: 0 | CU42: 0 | CV42: 0 | CW42: 0 | CX42: 0 | CY42: 0 | CZ42: 0 | DA42: 0 | DB42: 0 | DC42: 0 | DD42: 0 | DE42: 0 | DF42: 0 | DG42: 0 | DH42: 0 | DI42: 0 | DJ42: 0 | DK42: 0 | DL42: 0 | DM42: 0 | DN42: 0 | DO42: 0 | DP42: 0 | DQ42: 0 | DR42: 0 | DS42: 0 | DT42: 0 | DU42: 0 | DV42: 0 | DW42: 0 | DX42: 0 | DY42: 0 | DZ42: 0 | EA42: 0 | EB42: 0 | EC42: 0 | ED42: 0 | EE42: 0 | EF42: 0 | EG42: 0 | EH42: 0 | EI42: 0 | EJ42: =EJ41*(1+$E$10)/($E$11-$E$10)*EJ5 -> 0 | EK42: 0 | EL42: 0 | EM42: 0 | EN42: 0 | EO42: 0 | EP42: 0 | EQ42: 0 | ER42: 0 | ES42: 0 | ET42: 0 | EU42: 0 | EV42: 0 | EW42: 0 | EX42: 0 | EY42: 0 | EZ42: 0 | FA42: 0 | FB42: 0 | FC42: 0 | FD42: 0 | FE42: 0 | FF42: 0 | FG42: 0 | FH42: 0 | FI42: 0 | FJ42: 0 | FK42: 0 | FL42: 0 | FM42: 0 | FN42: 0 | FO42: 0 | FP42: 0 | FQ42: 0 | FR42: 0 | FS42: 0 | FT42: 0 | FU42: 0 | FV42: 0 | FW42: 0 | FX42: 0 | FY42: 0 | FZ42: 0 | GA42: 0 | GB42: 0 | GC42: 0 | GD42: 0 | GE42: 0 | GF42: 0 | GG42: 0 | GH42: 0 | GI42: 0 | GJ42: 0 | GK42: 0 | GL42: 0 | GM42: 0 | GN42: 0 | GO42: 0 | GP42: 0 | GQ42: 0 | GR42: 0 | GS42: 0 | GT42: 0 | GU42: 0 | GV42: =GV41*(1+$E$10)/($E$11-$E$10)*GV5 -> 0 | GW42: 0 | GX42: 0 | GY42: 0 | GZ42: 0 | HA42: 0 | HB42: 0 | HC42: 0 | HD42: 0 | HE42: 0 | HF42: 0 | HG42: 0 | HH42: 0 | HI42: 0 | HJ42: 0 | HK42: 0 | HL42: 0 | HM42: 0 | HN42: 0 | HO42: 0 | HP42: 0 | HQ42: 0 | HR42: 0 | HS42: 0 | HT42: 0 | HU42: 0 | HV42: 0 | HW42: 0 | HX42: 0 | HY42: 0 | HZ42: 0 | IA42: 0 | IB42: 0 | IC42: 0 | ID42: 0 | IE42: 0 | IF42: 0 | IG42: 0 | IH42: 0 | II42: 0 | IJ42: 0 | IK42: 0 | IL42: 0 | IM42: 0 | IN42: 0 | IO42: 0 | IP42: 0 | IQ42: 0 | IR42: 0 | IS42: 0 | IT42: 0 | IU42: 0 | IV42: 0 | IW42: 0 | IX42: 0 | IY42: 0 | IZ42: 0 | JA42: 0 | JB42: 0 | JC42: 0 | JD42: 0 | JE42: 0 | JF42: 0 | JG42: 0 | JH42: =JH41*(1+$E$10)/($E$11-$E$10)*JH5 -> 0 | JI42: 0 | JJ42: 0 | JK42: 0 | JL42: 0 | JM42: 0 | JN42: 0 | JO42: 0 | JP42: 0 | JQ42: 0 | JR42: 0 | JS42: 0 | JT42: 0 | JU42: 0 | JV42: 0 | JW42: 0 | JX42: 0 | JY42: 0 | JZ42: 0 | KA42: 0 | KB42: 0 | KC42: 0 | KD42: 0 | KE42: 0 | KF42: 0 | KG42: 0 | KH42: 0 | KI42: 0 | KJ42: 0 | KK42: 0 | KL42: 0 | KM42: 0 | KN42: 0 | KO42: 0 | KP42: 0 | KQ42: 0 | KR42: 0 | KS42: 0 | KT42: 0
B43: Total | G43: =G38+G42 -> 18.5 | H43: =H38+H42 -> 24.05 | I43: 31.265 | J43: 40.6445 | K43: 52.83785 | L43: 68.689205 | M43: 89.2959665 | N43: 116.0847564 | O43: 150.9101834 | P43: 3625.413223 | Q43: 0 | R43: 0 | S43: 0 | T43: 0 | U43: 0 | V43: 0 | W43: 0 | X43: 0 | Y43: 0 | Z43: 0 | AA43: 0 | AB43: 0 | AC43: 0 | AD43: 0 | AE43: 0 | AF43: 0 | AG43: 0 | AH43: 0 | AI43: 0 | AJ43: 0 | AK43: 0 | AL43: 0 | AM43: 0 | AN43: 0 | AO43: 0 | AP43: 0 | AQ43: 0 | AR43: 0 | AS43: 0 | AT43: 0 | AU43: 0 | AV43: 0 | AW43: 0 | AX43: 0 | AY43: 0 | AZ43: 0 | BA43: 0 | BB43: 0 | BC43: 0 | BD43: 0 | BE43: 0 | BF43: 0 | BG43: 0 | BH43: 0 | BI43: 0 | BJ43: 0 | BK43: 0 | BL43: 0 | BM43: 0 | BN43: 0 | BO43: 0 | BP43: 0 | BQ43: 0 | BR43: 0 | BS43: 0 | BT43: =BT38+BT42 -> 0 | BU43: 0 | BV43: 0 | BW43: 0 | BX43: 0 | BY43: 0 | BZ43: 0 | CA43: 0 | CB43: 0 | CC43: 0 | CD43: 0 | CE43: 0 | CF43: 0 | CG43: 0 | CH43: 0 | CI43: 0 | CJ43: 0 | CK43: 0 | CL43: 0 | CM43: 0 | CN43: 0 | CO43: 0 | CP43: 0 | CQ43: 0 | CR43: 0 | CS43: 0 | CT43: 0 | CU43: 0 | CV43: 0 | CW43: 0 | CX43: 0 | CY43: 0 | CZ43: 0 | DA43: 0 | DB43: 0 | DC43: 0 | DD43: 0 | DE43: 0 | DF43: 0 | DG43: 0 | DH43: 0 | DI43: 0 | DJ43: 0 | DK43: 0 | DL43: 0 | DM43: 0 | DN43: 0 | DO43: 0 | DP43: 0 | DQ43: 0 | DR43: 0 | DS43: 0 | DT43: 0 | DU43: 0 | DV43: 0 | DW43: 0 | DX43: 0 | DY43: 0 | DZ43: 0 | EA43: 0 | EB43: 0 | EC43: 0 | ED43: 0 | EE43: 0 | EF43: =EF38+EF42 -> 0 | EG43: 0 | EH43: 0 | EI43: 0 | EJ43: 0 | EK43: 0 | EL43: 0 | EM43: 0 | EN43: 0 | EO43: 0 | EP43: 0 | EQ43: 0 | ER43: 0 | ES43: 0 | ET43: 0 | EU43: 0 | EV43: 0 | EW43: 0 | EX43: 0 | EY43: 0 | EZ43: 0 | FA43: 0 | FB43: 0 | FC43: 0 | FD43: 0 | FE43: 0 | FF43: 0 | FG43: 0 | FH43: 0 | FI43: 0 | FJ43: 0 | FK43: 0 | FL43: 0 | FM43: 0 | FN43: 0 | FO43: 0 | FP43: 0 | FQ43: 0 | FR43: 0 | FS43: 0 | FT43: 0 | FU43: 0 | FV43: 0 | FW43: 0 | FX43: 0 | FY43: 0 | FZ43: 0 | GA43: 0 | GB43: 0 | GC43: 0 | GD43: 0 | GE43: 0 | GF43: 0 | GG43: 0 | GH43: 0 | GI43: 0 | GJ43: 0 | GK43: 0 | GL43: 0 | GM43: 0 | GN43: 0 | GO43: 0 | GP43: 0 | GQ43: 0 | GR43: =GR38+GR42 -> 0 | GS43: 0 | GT43: 0 | GU43: 0 | GV43: 0 | GW43: 0 | GX43: 0 | GY43: 0 | GZ43: 0 | HA43: 0 | HB43: 0 | HC43: 0 | HD43: 0 | HE43: 0 | HF43: 0 | HG43: 0 | HH43: 0 | HI43: 0 | HJ43: 0 | HK43: 0 | HL43: 0 | HM43: 0 | HN43: 0 | HO43: 0 | HP43: 0 | HQ43: 0 | HR43: 0 | HS43: 0 | HT43: 0 | HU43: 0 | HV43: 0 | HW43: 0 | HX43: 0 | HY43: 0 | HZ43: 0 | IA43: 0 | IB43: 0 | IC43: 0 | ID43: 0 | IE43: 0 | IF43: 0 | IG43: 0 | IH43: 0 | II43: 0 | IJ43: 0 | IK43: 0 | IL43: 0 | IM43: 0 | IN43: 0 | IO43: 0 | IP43: 0 | IQ43: 0 | IR43: 0 | IS43: 0 | IT43: 0 | IU43: 0 | IV43: 0 | IW43: 0 | IX43: 0 | IY43: 0 | IZ43: 0 | JA43: 0 | JB43: 0 | JC43: 0 | JD43: =JD38+JD42 -> 0 | JE43: 0 | JF43: 0 | JG43: 0 | JH43: 0 | JI43: 0 | JJ43: 0 | JK43: 0 | JL43: 0 | JM43: 0 | JN43: 0 | JO43: 0 | JP43: 0 | JQ43: 0 | JR43: 0 | JS43: 0 | JT43: 0 | JU43: 0 | JV43: 0 | JW43: 0 | JX43: 0 | JY43: 0 | JZ43: 0 | KA43: 0 | KB43: 0 | KC43: 0 | KD43: 0 | KE43: 0 | KF43: 0 | KG43: 0 | KH43: 0 | KI43: 0 | KJ43: 0 | KK43: 0 | KL43: 0 | KM43: 0 | KN43: 0 | KO43: 0 | KP43: 0 | KQ43: 0 | KR43: 0 | KS43: 0 | KT43: 0
B44: EV | F44: =NPV(E11,43:43) -> 1721.25796 | H44: =F44*(1+E11)^0.5 -> 1805.270579
B45: EV/EBITDA in valuation | F45: =F44/F20 -> 86.06289802
B47: EBITDA in terminal year | F47: =INDEX(20:20,E13) -> 275.7169837 | G47: =showformula(F47) -> 
B48: EV/EBITDA in terminal year | F48: =SUM(42:42)/F47 -> 12.4375
L50: Growth rate long-term
E51: Difference | F51: =F44-F35 -> 282.1060564 | K51: =$F$51/$F$44 -> 0.1638952806 | L51: 0 | M51: 0.02 | N51: 0.04 | O51: 0.06
K52: 0.4 | L52: 0.2300348467 | M52: 0.2372163733 | N52: 0.2451400376 | O52: 0.2539271459
K53: 0.35 | L53: 0.1946115417 | M53: 0.2012927484 | N53: 0.2087501019 | O53: 0.2171271882
I54: Growth rate short-term | K54: 0.3 | L54: 0.1579864838 | M54: 0.1638952806 | N54: 0.1705829441 | O54: 0.1782143392
K55: 0.25 | L55: 0.1206117242 | M55: 0.1253918947 | N55: 0.1308939842 | O55: 0.1372948909
K56: 0.2 | L56: 0.08322373002 | M56: 0.0864289368 | N56: 0.09019408969 | O56: 0.09467996542
K57: 0.15 | L57: 0.04692865973 | M57: 0.04803903457 | N57: 0.04937577653 | O57: 0.05101596522
B61: Use of OFFSET function
C62: 1 | D62: 2 | E62: 3 | F62: 4 | G62: 400
C63: 12 | D63: 45 | E63: 67 | F63: 89 | G63: 0
C64: 33 | D64: 44 | E64: 66 | F64: 88 | G64: 99
C65: =OFFSET(C62,1,1) -> 45 | D65: =offset C62;1;1)
C66: =OFFSET(G64,-2,-3) -> 2 | D66: =
B67: row | C67: 1 | E67: =AVERAGE(OFFSET(C62,C67,C68,C69,C70)) -> 41.33333333
B68: column | C68: 0 | E68: =AVERAGE(Ed) -> 41.33333333
B69: height | C69: 1
B70: width | C70: 3
B77: Life of PPE | C77: 10 | E77: Stable CAPEX/Depreciation
B78: WACC | C78: 0.1 | E78: Retirement ratio
B79: Growth rate | C79: 0.05 | E79: Net plant depreciation rate
E81: 0 | F81: 1 | G81: 2 | H81: 3 | I81: 4 | J81: 5 | K81: 6 | L81: 7 | M81: 8 | N81: 9 | O81: 10 | P81: 11 | Q81: 12 | R81: 13 | S81: 14 | T81: 15 | U81: 16 | V81: 17 | W81: 18 | X81: 19 | Y81: 20 | Z81: 21 | AA81: 22 | AB81: 23 | AC81: 24 | AD81: 25 | AE81: 26 | AF81: 27 | AG81: 28 | AH81: 29 | AI81: 30 | AJ81: 31 | AK81: 32 | AL81: 33 | AM81: 34 | AN81: 35 | AO81: 36 | AP81: 37 | AQ81: 38 | AR81: 39 | AS81: 40 | AT81: 41 | AU81: 42 | AV81: 43 | AW81: 44 | AX81: 45 | AY81: 46 | AZ81: 47 | BA81: 48 | BB81: 49 | BC81: 50 | BD81: 51 | BE81: 52 | BF81: 53 | BG81: 54 | BH81: 55 | BI81: 56 | BJ81: 57 | BK81: 58 | BL81: 59 | BM81: 60 | BN81: 61 | BO81: 62 | BP81: 63 | BQ81: 64 | BR81: 65 | BS81: 66 | BT81: 67 | BU81: 68 | BV81: 69 | BW81: 70 | BX81: 71 | BY81: 72 | BZ81: 73 | CA81: 74 | CB81: 75 | CC81: 76 | CD81: 77 | CE81: 78 | CF81: 79 | CG81: 80 | CH81: 81 | CI81: 82 | CJ81: 83 | CK81: 84 | CL81: 85 | CM81: 86 | CN81: 87 | CO81: 88 | CP81: 89 | CQ81: 90 | CR81: 91 | CS81: 92 | CT81: 93 | CU81: 94 | CV81: 95 | CW81: 96 | CX81: 97 | CY81: 98 | CZ81: 99 | DA81: 100 | DB81: 101 | DC81: 102 | DD81: 103 | DE81: 104 | DF81: 105 | DG81: 106 | DH81: 107 | DI81: 108 | DJ81: 109 | DK81: 110 | DL81: 111 | DM81: 112 | DN81: 113 | DO81: 114 | DP81: 115 | DQ81: 116 | DR81: 117 | DS81: 118 | DT81: 119 | DU81: 120 | DV81: 121 | DW81: 122 | DX81: 123 | DY81: 124 | DZ81: 125 | EA81: 126 | EB81: 127 | EC81: 128 | ED81: 129 | EE81: 130 | EF81: 131 | EG81: 132 | EH81: 133 | EI81: 134 | EJ81: 135 | EK81: 136 | EL81: 137 | EM81: 138 | EN81: 139 | EO81: 140 | EP81: 141 | EQ81: 142 | ER81: 143 | ES81: 144 | ET81: 145 | EU81: 146 | EV81: 147 | EW81: 148 | EX81: 149 | EY81: 150 | EZ81: 151 | FA81: 152 | FB81: 153 | FC81: 154 | FD81: 155 | FE81: 156 | FF81: 157 | FG81: 158 | FH81: 159 | FI81: 160 | FJ81: 161 | FK81: 162 | FL81: 163 | FM81: 164 | FN81: 165 | FO81: 166 | FP81: 167 | FQ81: 168 | FR81: 169 | FS81: 170 | FT81: 171 | FU81: 172 | FV81: 173 | FW81: 174 | FX81: 175 | FY81: 176 | FZ81: 177 | GA81: 178 | GB81: 179 | GC81: 180 | GD81: 181 | GE81: 182 | GF81: 183 | GG81: 184 | GH81: 185 | GI81: 186 | GJ81: 187 | GK81: 188 | GL81: 189 | GM81: 190 | GN81: 191 | GO81: 192 | GP81: 193 | GQ81: 194 | GR81: 195 | GS81: 196 | GT81: 197 | GU81: 198 | GV81: 199 | GW81: 200 | GX81: 201 | GY81: 202 | GZ81: 203 | HA81: 204 | HB81: 205 | HC81: 206 | HD81: 207 | HE81: 208 | HF81: 209 | HG81: 210 | HH81: 211 | HI81: 212 | HJ81: 213 | HK81: 214 | HL81: 215 | HM81: 216 | HN81: 217 | HO81: 218 | HP81: 219 | HQ81: 220 | HR81: 221 | HS81: 222 | HT81: 223 | HU81: 224 | HV81: 225 | HW81: 226 | HX81: 227 | HY81: 228 | HZ81: 229 | IA81: 230 | IB81: 231 | IC81: 232 | ID81: 233 | IE81: 234 | IF81: 235 | IG81: 236 | IH81: 237 | II81: 238 | IJ81: 239 | IK81: 240 | IL81: 241 | IM81: 242 | IN81: 243 | IO81: 244 | IP81: 245 | IQ81: 246 | IR81: 247 | IS81: 248 | IT81: 249 | IU81: 250 | IV81: 251 | IW81: 252 | IX81: 253 | IY81: 254 | IZ81: 255 | JA81: 256 | JB81: 257 | JC81: 258 | JD81: 259 | JE81: 260 | JF81: 261 | JG81: 262 | JH81: 263 | JI81: 264 | JJ81: 265 | JK81: 266 | JL81: 267 | JM81: 268 | JN81: 269 | JO81: 270 | JP81: 271 | JQ81: 272 | JR81: 273 | JS81: 274 | JT81: 275 | JU81: 276 | JV81: 277 | JW81: 278 | JX81: 279 | JY81: 280 | JZ81: 281 | KA81: 282 | KB81: 283 | KC81: 284 | KD81: 285 | KE81: 286 | KF81: 287 | KG81: 288 | KH81: 289 | KI81: 290 | KJ81: 291 | KK81: 292 | KL81: 293 | KM81: 294 | KN81: 295 | KO81: 296 | KP81: 297 | KQ81: 298 | KR81: 299 | KS81: 300 | KT81: 301
B82: Opening Balance | E82: =D85 -> 0 | F82: =E85 -> 100 | G82: 205 | H82: 315.25 | I82: 431.0125 | J82: 552.563125 | K82: 680.1912812 | L82: 814.2008453 | M82: 954.9108876 | N82: 1102.656432 | O82: 1257.789254 | P82: 1320.678716 | Q82: 1386.712652 | R82: 1456.048285 | S82: 1528.850699 | T82: 1605.293234 | U82: 1685.557896 | V82: 1769.83579 | W82: 1858.32758 | X82: 1951.243959 | Y82: 2048.806157 | Z82: 2151.246465 | AA82: 2258.808788 | AB82: 2371.749227 | AC82: 2490.336689 | AD82: 2614.853523 | AE82: 2745.596199 | AF82: 2882.876009 | AG82: 3027.01981 | AH82: 3178.3708 | AI82: 3337.28934 | AJ82: 3504.153807 | AK82: 3679.361497 | AL82: 3863.329572 | AM82: 4056.496051 | AN82: 4259.320853 | AO82: 4472.286896 | AP82: 4695.901241 | AQ82: 4930.696303 | AR82: 5177.231118 | AS82: 5436.092674 | AT82: 5707.897308 | AU82: 5993.292173 | AV82: 6292.956782 | AW82: 6607.604621 | AX82: 6937.984852 | AY82: 7284.884094 | AZ82: 7649.128299 | BA82: 8031.584714 | BB82: 8433.16395 | BC82: 8854.822147 | BD82: 9297.563255 | BE82: 9762.441417 | BF82: 10250.56349 | BG82: 10763.09166 | BH82: 11301.24625 | BI82: 11866.30856 | BJ82: 12459.62399 | BK82: 13082.60519 | BL82: 13736.73544 | BM82: 14423.57222 | BN82: 15144.75083 | BO82: 15901.98837 | BP82: 16697.08779 | BQ82: 17531.94218 | BR82: =BQ85 -> 18408.53929 | BS82: 19328.96625 | BT82: 20295.41456 | BU82: 21310.18529 | BV82: 22375.69456 | BW82: 23494.47928 | BX82: 24669.20325 | BY82: 25902.66341 | BZ82: 27197.79658 | CA82: 28557.68641 | CB82: 29985.57073 | CC82: 31484.84927 | CD82: 33059.09173 | CE82: 34712.04632 | CF82: 36447.64863 | CG82: 38270.03106 | CH82: 40183.53262 | CI82: 42192.70925 | CJ82: 44302.34471 | CK82: 46517.46194 | CL82: 48843.33504 | CM82: 51285.50179 | CN82: 53849.77688 | CO82: 56542.26573 | CP82: 59369.37901 | CQ82: 62337.84796 | CR82: 65454.74036 | CS82: 68727.47738 | CT82: 72163.85125 | CU82: 75772.04381 | CV82: 79560.646 | CW82: 83538.6783 | CX82: 87715.61222 | CY82: 92101.39283 | CZ82: 96706.46247 | DA82: 101541.7856 | DB82: 106618.8749 | DC82: 111949.8186 | DD82: 117547.3095 | DE82: 123424.675 | DF82: 129595.9088 | DG82: 136075.7042 | DH82: 142879.4894 | DI82: 150023.4639 | DJ82: 157524.6371 | DK82: 165400.8689 | DL82: 173670.9124 | DM82: 182354.458 | DN82: 191472.1809 | DO82: 201045.79 | DP82: 211098.0795 | DQ82: 221652.9834 | DR82: 232735.6326 | DS82: 244372.4142 | DT82: 256591.0349 | DU82: 269420.5867 | DV82: 282891.616 | DW82: 297036.1968 | DX82: 311888.0067 | DY82: 327482.407 | DZ82: 343856.5274 | EA82: 361049.3537 | EB82: 379101.8214 | EC82: 398056.9125 | ED82: =EC85 -> 417959.7581 | EE82: 438857.746 | EF82: 460800.6333 | EG82: 483840.665 | EH82: 508032.6982 | EI82: 533434.3331 | EJ82: 560106.0498 | EK82: 588111.3523 | EL82: 617516.9199 | EM82: 648392.7659 | EN82: 680812.4042 | EO82: 714853.0244 | EP82: 750595.6756 | EQ82: 788125.4594 | ER82: 827531.7324 | ES82: 868908.319 | ET82: 912353.7349 | EU82: 957971.4217 | EV82: 1005869.993 | EW82: 1056163.492 | EX82: 1108971.667 | EY82: 1164420.25 | EZ82: 1222641.263 | FA82: 1283773.326 | FB82: 1347961.992 | FC82: 1415360.092 | FD82: 1486128.097 | FE82: 1560434.501 | FF82: 1638456.226 | FG82: 1720379.038 | FH82: 1806397.99 | FI82: 1896717.889 | FJ82: 1991553.784 | FK82: 2091131.473 | FL82: 2195688.046 | FM82: 2305472.449 | FN82: 2420746.071 | FO82: 2541783.375 | FP82: 2668872.543 | FQ82: 2802316.171 | FR82: 2942431.979 | FS82: 3089553.578 | FT82: 3244031.257 | FU82: 3406232.82 | FV82: 3576544.461 | FW82: 3755371.684 | FX82: 3943140.268 | FY82: 4140297.282 | FZ82: 4347312.146 | GA82: 4564677.753 | GB82: 4792911.641 | GC82: 5032557.223 | GD82: 5284185.084 | GE82: 5548394.338 | GF82: 5825814.055 | GG82: 6117104.758 | GH82: 6422959.995 | GI82: 6744107.995 | GJ82: 7081313.395 | GK82: 7435379.065 | GL82: 7807148.018 | GM82: 8197505.419 | GN82: 8607380.69 | GO82: 9037749.724 | GP82: =GO85 -> 9489637.21 | GQ82: 9964119.071 | GR82: 10462325.02 | GS82: 10985441.28 | GT82: 11534713.34 | GU82: 12111449.01 | GV82: 12717021.46 | GW82: 13352872.53 | GX82: 14020516.16 | GY82: 14721541.96 | GZ82: 15457619.06 | HA82: 16230500.02 | HB82: 17042025.02 | HC82: 17894126.27 | HD82: 18788832.58 | HE82: 19728274.21 | HF82: 20714687.92 | HG82: 21750422.32 | HH82: 22837943.43 | HI82: 23979840.6 | HJ82: 25178832.63 | HK82: 26437774.26 | HL82: 27759662.98 | HM82: 29147646.13 | HN82: 30605028.43 | HO82: 32135279.85 | HP82: 33742043.85 | HQ82: 35429146.04 | HR82: 37200603.34 | HS82: 39060633.51 | HT82: 41013665.18 | HU82: 43064348.44 | HV82: 45217565.87 | HW82: 47478444.16 | HX82: 49852366.37 | HY82: 52344984.69 | HZ82: 54962233.92 | IA82: 57710345.62 | IB82: 60595862.9 | IC82: 63625656.04 | ID82: 66806938.84 | IE82: 70147285.79 | IF82: 73654650.07 | IG82: 77337382.58 | IH82: 81204251.71 | II82: 85264464.29 | IJ82: 89527687.51 | IK82: 94004071.88 | IL82: 98704275.48 | IM82: 103639489.3 | IN82: 108821463.7 | IO82: 114262536.9 | IP82: 119975663.7 | IQ82: 125974446.9 | IR82: 132273169.3 | IS82: 138886827.7 | IT82: 145831169.1 | IU82: 153122727.6 | IV82: 160778864 | IW82: 168817807.2 | IX82: 177258697.5 | IY82: 186121632.4 | IZ82: 195427714 | JA82: 205199099.7 | JB82: =JA85 -> 215459054.7 | JC82: 226232007.4 | JD82: 237543607.8 | JE82: 249420788.2 | JF82: 261891827.6 | JG82: 274986419 | JH82: 288735739.9 | JI82: 303172526.9 | JJ82: 318331153.3 | JK82: 334247710.9 | JL82: 350960096.5 | JM82: 368508101.3 | JN82: 386933506.4 | JO82: 406280181.7 | JP82: 426594190.8 | JQ82: 447923900.3 | JR82: 470320095.3 | JS82: 493836100.1 | JT82: 518527905.1 | JU82: 544454300.4 | JV82: 571677015.4 | JW82: 600260866.2 | JX82: 630273909.5 | JY82: 661787604.9 | JZ82: 694876985.2 | KA82: 729620834.5 | KB82: 766101876.2 | KC82: 804406970 | KD82: 844627318.5 | KE82: 886858684.4 | KF82: 931201618.6 | KG82: 977761699.6 | KH82: 1026649785 | KI82: 1077982274 | KJ82: 1131881387 | KK82: 1188475457 | KL82: 1247899230 | KM82: 1310294191 | KN82: 1375808901 | KO82: 1444599346 | KP82: 1516829313 | KQ82: 1592670779 | KR82: 1672304318 | KS82: 1755919534 | KT82: 1843715510
B83: add CAPEX | E83: 100 | F83: =E83*(1+$C$79) -> 105 | G83: =F83*(1+$C$79) -> 110.25 | H83: 115.7625 | I83: 121.550625 | J83: 127.6281563 | K83: 134.0095641 | L83: 140.7100423 | M83: 147.7455444 | N83: 155.1328216 | O83: 162.8894627 | P83: 171.0339358 | Q83: 179.5856326 | R83: 188.5649142 | S83: 197.9931599 | T83: 207.8928179 | U83: 218.2874588 | V83: 229.2018318 | W83: 240.6619234 | X83: 252.6950195 | Y83: 265.3297705 | Z83: 278.596259 | AA83: 292.526072 | AB83: 307.1523756 | AC83: 322.5099944 | AD83: 338.6354941 | AE83: 355.5672688 | AF83: 373.3456322 | AG83: 392.0129138 | AH83: 411.6135595 | AI83: 432.1942375 | AJ83: 453.8039494 | AK83: 476.4941469 | AL83: 500.3188542 | AM83: 525.3347969 | AN83: 551.6015368 | AO83: 579.1816136 | AP83: 608.1406943 | AQ83: 638.547729 | AR83: 670.4751154 | AS83: 703.9988712 | AT83: 739.1988148 | AU83: 776.1587555 | AV83: 814.9666933 | AW83: 855.715028 | AX83: 898.5007793 | AY83: 943.4258183 | AZ83: 990.5971092 | BA83: 1040.126965 | BB83: 1092.133313 | BC83: 1146.739979 | BD83: 1204.076978 | BE83: 1264.280826 | BF83: 1327.494868 | BG83: 1393.869611 | BH83: 1463.563092 | BI83: 1536.741246 | BJ83: 1613.578309 | BK83: 1694.257224 | BL83: 1778.970085 | BM83: 1867.918589 | BN83: 1961.314519 | BO83: 2059.380245 | BP83: 2162.349257 | BQ83: 2270.46672 | BR83: 2383.990056 | BS83: =BR83*(1+$C$79) -> 2503.189559 | BT83: 2628.349037 | BU83: 2759.766488 | BV83: 2897.754813 | BW83: 3042.642554 | BX83: 3194.774681 | BY83: 3354.513415 | BZ83: 3522.239086 | CA83: 3698.35104 | CB83: 3883.268592 | CC83: 4077.432022 | CD83: 4281.303623 | CE83: 4495.368804 | CF83: 4720.137244 | CG83: 4956.144107 | CH83: 5203.951312 | CI83: 5464.148878 | CJ83: 5737.356322 | CK83: 6024.224138 | CL83: 6325.435344 | CM83: 6641.707112 | CN83: 6973.792467 | CO83: 7322.482091 | CP83: 7688.606195 | CQ83: 8073.036505 | CR83: 8476.68833 | CS83: 8900.522747 | CT83: 9345.548884 | CU83: 9812.826328 | CV83: 10303.46764 | CW83: 10818.64103 | CX83: 11359.57308 | CY83: 11927.55173 | CZ83: 12523.92932 | DA83: 13150.12578 | DB83: 13807.63207 | DC83: 14498.01368 | DD83: 15222.91436 | DE83: 15984.06008 | DF83: 16783.26308 | DG83: 17622.42624 | DH83: 18503.54755 | DI83: 19428.72493 | DJ83: 20400.16117 | DK83: 21420.16923 | DL83: 22491.17769 | DM83: 23615.73658 | DN83: 24796.52341 | DO83: 26036.34958 | DP83: 27338.16706 | DQ83: 28705.07541 | DR83: 30140.32918 | DS83: 31647.34564 | DT83: 33229.71292 | DU83: 34891.19857 | DV83: 36635.7585 | DW83: 38467.54642 | DX83: 40390.92374 | DY83: 42410.46993 | DZ83: 44530.99342 | EA83: 46757.5431 | EB83: 49095.42025 | EC83: 51550.19126 | ED83: 54127.70083 | EE83: =ED83*(1+$C$79) -> 56834.08587 | EF83: 59675.79016 | EG83: 62659.57967 | EH83: 65792.55865 | EI83: 69082.18658 | EJ83: 72536.29591 | EK83: 76163.11071 | EL83: 79971.26624 | EM83: 83969.82956 | EN83: 88168.32104 | EO83: 92576.73709 | EP83: 97205.57394 | EQ83: 102065.8526 | ER83: 107169.1453 | ES83: 112527.6025 | ET83: 118153.9827 | EU83: 124061.6818 | EV83: 130264.7659 | EW83: 136778.0042 | EX83: 143616.9044 | EY83: 150797.7496 | EZ83: 158337.6371 | FA83: 166254.5189 | FB83: 174567.2449 | FC83: 183295.6071 | FD83: 192460.3875 | FE83: 202083.4069 | FF83: 212187.5772 | FG83: 222796.9561 | FH83: 233936.8039 | FI83: 245633.6441 | FJ83: 257915.3263 | FK83: 270811.0926 | FL83: 284351.6472 | FM83: 298569.2296 | FN83: 313497.691 | FO83: 329172.5756 | FP83: 345631.2044 | FQ83: 362912.7646 | FR83: 381058.4028 | FS83: 400111.323 | FT83: 420116.8891 | FU83: 441122.7336 | FV83: 463178.8703 | FW83: 486337.8138 | FX83: 510654.7045 | FY83: 536187.4397 | FZ83: 562996.8117 | GA83: 591146.6522 | GB83: 620703.9849 | GC83: 651739.1841 | GD83: 684326.1433 | GE83: 718542.4505 | GF83: 754469.573 | GG83: 792193.0516 | GH83: 831802.7042 | GI83: 873392.8394 | GJ83: 917062.4814 | GK83: 962915.6055 | GL83: 1011061.386 | GM83: 1061614.455 | GN83: 1114695.178 | GO83: 1170429.937 | GP83: 1228951.434 | GQ83: =GP83*(1+$C$79) -> 1290399.005 | GR83: 1354918.955 | GS83: 1422664.903 | GT83: 1493798.148 | GU83: 1568488.056 | GV83: 1646912.459 | GW83: 1729258.082 | GX83: 1815720.986 | GY83: 1906507.035 | GZ83: 2001832.387 | HA83: 2101924.006 | HB83: 2207020.206 | HC83: 2317371.217 | HD83: 2433239.777 | HE83: 2554901.766 | HF83: 2682646.855 | HG83: 2816779.197 | HH83: 2957618.157 | HI83: 3105499.065 | HJ83: 3260774.018 | HK83: 3423812.719 | HL83: 3595003.355 | HM83: 3774753.523 | HN83: 3963491.199 | HO83: 4161665.759 | HP83: 4369749.047 | HQ83: 4588236.499 | HR83: 4817648.324 | HS83: 5058530.74 | HT83: 5311457.277 | HU83: 5577030.141 | HV83: 5855881.648 | HW83: 6148675.731 | HX83: 6456109.517 | HY83: 6778914.993 | HZ83: 7117860.743 | IA83: 7473753.78 | IB83: 7847441.469 | IC83: 8239813.543 | ID83: 8651804.22 | IE83: 9084394.431 | IF83: 9538614.152 | IG83: 10015544.86 | IH83: 10516322.1 | II83: 11042138.21 | IJ83: 11594245.12 | IK83: 12173957.37 | IL83: 12782655.24 | IM83: 13421788.01 | IN83: 14092877.41 | IO83: 14797521.28 | IP83: 15537397.34 | IQ83: 16314267.21 | IR83: 17129980.57 | IS83: 17986479.6 | IT83: 18885803.57 | IU83: 19830093.75 | IV83: 20821598.44 | IW83: 21862678.36 | IX83: 22955812.28 | IY83: 24103602.9 | IZ83: 25308783.04 | JA83: 26574222.19 | JB83: 27902933.3 | JC83: =JB83*(1+$C$79) -> 29298079.97 | JD83: 30762983.97 | JE83: 32301133.16 | JF83: 33916189.82 | JG83: 35611999.31 | JH83: 37392599.28 | JI83: 39262229.24 | JJ83: 41225340.7 | JK83: 43286607.74 | JL83: 45450938.13 | JM83: 47723485.03 | JN83: 50109659.28 | JO83: 52615142.25 | JP83: 55245899.36 | JQ83: 58008194.33 | JR83: 60908604.05 | JS83: 63954034.25 | JT83: 67151735.96 | JU83: 70509322.76 | JV83: 74034788.9 | JW83: 77736528.34 | JX83: 81623354.76 | JY83: 85704522.5 | JZ83: 89989748.62 | KA83: 94489236.05 | KB83: 99213697.85 | KC83: 104174382.7 | KD83: 109383101.9 | KE83: 114852257 | KF83: 120594869.8 | KG83: 126624613.3 | KH83: 132955844 | KI83: 139603636.2 | KJ83: 146583818 | KK83: 153913008.9 | KL83: 161608659.3 | KM83: 169689092.3 | KN83: 178173546.9 | KO83: 187082224.3 | KP83: 196436335.5 | KQ83: 206258152.3 | KR83: 216571059.9 | KS83: 227399612.9 | KT83: 238769593.5
B84: less Retirement | E84: =IF(E81>=$C$77,OFFSET(E83,0,-$C$77)) -> FALSE | F84: =IF(F81>=$C$77,OFFSET(F83,0,-$C$77)) -> FALSE | G84: FALSE | H84: FALSE | I84: FALSE | J84: FALSE | K84: FALSE | L84: FALSE | M84: FALSE | N84: FALSE | O84: 100 | P84: 105 | Q84: 110.25 | R84: 115.7625 | S84: 121.550625 | T84: 127.6281563 | U84: 134.0095641 | V84: 140.7100423 | W84: 147.7455444 | X84: 155.1328216 | Y84: 162.8894627 | Z84: 171.0339358 | AA84: 179.5856326 | AB84: 188.5649142 | AC84: 197.9931599 | AD84: 207.8928179 | AE84: 218.2874588 | AF84: 229.2018318 | AG84: 240.6619234 | AH84: 252.6950195 | AI84: 265.3297705 | AJ84: 278.596259 | AK84: 292.526072 | AL84: 307.1523756 | AM84: 322.5099944 | AN84: 338.6354941 | AO84: 355.5672688 | AP84: 373.3456322 | AQ84: 392.0129138 | AR84: 411.6135595 | AS84: 432.1942375 | AT84: 453.8039494 | AU84: 476.4941469 | AV84: 500.3188542 | AW84: 525.3347969 | AX84: 551.6015368 | AY84: 579.1816136 | AZ84: 608.1406943 | BA84: 638.547729 | BB84: 670.4751154 | BC84: 703.9988712 | BD84: 739.1988148 | BE84: 776.1587555 | BF84: 814.9666933 | BG84: 855.715028 | BH84: 898.5007793 | BI84: 943.4258183 | BJ84: 990.5971092 | BK84: 1040.126965 | BL84: 1092.133313 | BM84: 1146.739979 | BN84: 1204.076978 | BO84: 1264.280826 | BP84: 1327.494868 | BQ84: 1393.869611 | BR84: =IF(BR81>=$C$77,OFFSET(BR83,0,-$C$77)) -> 1463.563092 | BS84: 1536.741246 | BT84: 1613.578309 | BU84: 1694.257224 | BV84: 1778.970085 | BW84: 1867.918589 | BX84: 1961.314519 | BY84: 2059.380245 | BZ84: 2162.349257 | CA84: 2270.46672 | CB84: 2383.990056 | CC84: 2503.189559 | CD84: 2628.349037 | CE84: 2759.766488 | CF84: 2897.754813 | CG84: 3042.642554 | CH84: 3194.774681 | CI84: 3354.513415 | CJ84: 3522.239086 | CK84: 3698.35104 | CL84: 3883.268592 | CM84: 4077.432022 | CN84: 4281.303623 | CO84: 4495.368804 | CP84: 4720.137244 | CQ84: 4956.144107 | CR84: 5203.951312 | CS84: 5464.148878 | CT84: 5737.356322 | CU84: 6024.224138 | CV84: 6325.435344 | CW84: 6641.707112 | CX84: 6973.792467 | CY84: 7322.482091 | CZ84: 7688.606195 | DA84: 8073.036505 | DB84: 8476.68833 | DC84: 8900.522747 | DD84: 9345.548884 | DE84: 9812.826328 | DF84: 10303.46764 | DG84: 10818.64103 | DH84: 11359.57308 | DI84: 11927.55173 | DJ84: 12523.92932 | DK84: 13150.12578 | DL84: 13807.63207 | DM84: 14498.01368 | DN84: 15222.91436 | DO84: 15984.06008 | DP84: 16783.26308 | DQ84: 17622.42624 | DR84: 18503.54755 | DS84: 19428.72493 | DT84: 20400.16117 | DU84: 21420.16923 | DV84: 22491.17769 | DW84: 23615.73658 | DX84: 24796.52341 | DY84: 26036.34958 | DZ84: 27338.16706 | EA84: 28705.07541 | EB84: 30140.32918 | EC84: 31647.34564 | ED84: =IF(ED81>=$C$77,OFFSET(ED83,0,-$C$77)) -> 33229.71292 | EE84: 34891.19857 | EF84: 36635.7585 | EG84: 38467.54642 | EH84: 40390.92374 | EI84: 42410.46993 | EJ84: 44530.99342 | EK84: 46757.5431 | EL84: 49095.42025 | EM84: 51550.19126 | EN84: 54127.70083 | EO84: 56834.08587 | EP84: 59675.79016 | EQ84: 62659.57967 | ER84: 65792.55865 | ES84: 69082.18658 | ET84: 72536.29591 | EU84: 76163.11071 | EV84: 79971.26624 | EW84: 83969.82956 | EX84: 88168.32104 | EY84: 92576.73709 | EZ84: 97205.57394 | FA84: 102065.8526 | FB84: 107169.1453 | FC84: 112527.6025 | FD84: 118153.9827 | FE84: 124061.6818 | FF84: 130264.7659 | FG84: 136778.0042 | FH84: 143616.9044 | FI84: 150797.7496 | FJ84: 158337.6371 | FK84: 166254.5189 | FL84: 174567.2449 | FM84: 183295.6071 | FN84: 192460.3875 | FO84: 202083.4069 | FP84: 212187.5772 | FQ84: 222796.9561 | FR84: 233936.8039 | FS84: 245633.6441 | FT84: 257915.3263 | FU84: 270811.0926 | FV84: 284351.6472 | FW84: 298569.2296 | FX84: 313497.691 | FY84: 329172.5756 | FZ84: 345631.2044 | GA84: 362912.7646 | GB84: 381058.4028 | GC84: 400111.323 | GD84: 420116.8891 | GE84: 441122.7336 | GF84: 463178.8703 | GG84: 486337.8138 | GH84: 510654.7045 | GI84: 536187.4397 | GJ84: 562996.8117 | GK84: 591146.6522 | GL84: 620703.9849 | GM84: 651739.1841 | GN84: 684326.1433 | GO84: 718542.4505 | GP84: =IF(GP81>=$C$77,OFFSET(GP83,0,-$C$77)) -> 754469.573 | GQ84: 792193.0516 | GR84: 831802.7042 | GS84: 873392.8394 | GT84: 917062.4814 | GU84: 962915.6055 | GV84: 1011061.386 | GW84: 1061614.455 | GX84: 1114695.178 | GY84: 1170429.937 | GZ84: 1228951.434 | HA84: 1290399.005 | HB84: 1354918.955 | HC84: 1422664.903 | HD84: 1493798.148 | HE84: 1568488.056 | HF84: 1646912.459 | HG84: 1729258.082 | HH84: 1815720.986 | HI84: 1906507.035 | HJ84: 2001832.387 | HK84: 2101924.006 | HL84: 2207020.206 | HM84: 2317371.217 | HN84: 2433239.777 | HO84: 2554901.766 | HP84: 2682646.855 | HQ84: 2816779.197 | HR84: 2957618.157 | HS84: 3105499.065 | HT84: 3260774.018 | HU84: 3423812.719 | HV84: 3595003.355 | HW84: 3774753.523 | HX84: 3963491.199 | HY84: 4161665.759 | HZ84: 4369749.047 | IA84: 4588236.499 | IB84: 4817648.324 | IC84: 5058530.74 | ID84: 5311457.277 | IE84: 5577030.141 | IF84: 5855881.648 | IG84: 6148675.731 | IH84: 6456109.517 | II84: 6778914.993 | IJ84: 7117860.743 | IK84: 7473753.78 | IL84: 7847441.469 | IM84: 8239813.543 | IN84: 8651804.22 | IO84: 9084394.431 | IP84: 9538614.152 | IQ84: 10015544.86 | IR84: 10516322.1 | IS84: 11042138.21 | IT84: 11594245.12 | IU84: 12173957.37 | IV84: 12782655.24 | IW84: 13421788.01 | IX84: 14092877.41 | IY84: 14797521.28 | IZ84: 15537397.34 | JA84: 16314267.21 | JB84: =IF(JB81>=$C$77,OFFSET(JB83,0,-$C$77)) -> 17129980.57 | JC84: 17986479.6 | JD84: 18885803.57 | JE84: 19830093.75 | JF84: 20821598.44 | JG84: 21862678.36 | JH84: 22955812.28 | JI84: 24103602.9 | JJ84: 25308783.04 | JK84: 26574222.19 | JL84: 27902933.3 | JM84: 29298079.97 | JN84: 30762983.97 | JO84: 32301133.16 | JP84: 33916189.82 | JQ84: 35611999.31 | JR84: 37392599.28 | JS84: 39262229.24 | JT84: 41225340.7 | JU84: 43286607.74 | JV84: 45450938.13 | JW84: 47723485.03 | JX84: 50109659.28 | JY84: 52615142.25 | JZ84: 55245899.36 | KA84: 58008194.33 | KB84: 60908604.05 | KC84: 63954034.25 | KD84: 67151735.96 | KE84: 70509322.76 | KF84: 74034788.9 | KG84: 77736528.34 | KH84: 81623354.76 | KI84: 85704522.5 | KJ84: 89989748.62 | KK84: 94489236.05 | KL84: 99213697.85 | KM84: 104174382.7 | KN84: 109383101.9 | KO84: 114852257 | KP84: 120594869.8 | KQ84: 126624613.3 | KR84: 132955844 | KS84: 139603636.2 | KT84: 146583818
B85: Closing Balance | E85: =E82+E83-E84 -> 100 | F85: =F82+F83-F84 -> 205 | G85: 315.25 | H85: 431.0125 | I85: 552.563125 | J85: 680.1912812 | K85: 814.2008453 | L85: 954.9108876 | M85: 1102.656432 | N85: 1257.789254 | O85: 1320.678716 | P85: 1386.712652 | Q85: 1456.048285 | R85: 1528.850699 | S85: 1605.293234 | T85: 1685.557896 | U85: 1769.83579 | V85: 1858.32758 | W85: 1951.243959 | X85: 2048.806157 | Y85: 2151.246465 | Z85: 2258.808788 | AA85: 2371.749227 | AB85: 2490.336689 | AC85: 2614.853523 | AD85: 2745.596199 | AE85: 2882.876009 | AF85: 3027.01981 | AG85: 3178.3708 | AH85: 3337.28934 | AI85: 3504.153807 | AJ85: 3679.361497 | AK85: 3863.329572 | AL85: 4056.496051 | AM85: 4259.320853 | AN85: 4472.286896 | AO85: 4695.901241 | AP85: 4930.696303 | AQ85: 5177.231118 | AR85: 5436.092674 | AS85: 5707.897308 | AT85: 5993.292173 | AU85: 6292.956782 | AV85: 6607.604621 | AW85: 6937.984852 | AX85: 7284.884094 | AY85: 7649.128299 | AZ85: 8031.584714 | BA85: 8433.16395 | BB85: 8854.822147 | BC85: 9297.563255 | BD85: 9762.441417 | BE85: 10250.56349 | BF85: 10763.09166 | BG85: 11301.24625 | BH85: 11866.30856 | BI85: 12459.62399 | BJ85: 13082.60519 | BK85: 13736.73544 | BL85: 14423.57222 | BM85: 15144.75083 | BN85: 15901.98837 | BO85: 16697.08779 | BP85: 17531.94218 | BQ85: 18408.53929 | BR85: =BR82+BR83-BR84 -> 19328.96625 | BS85: 20295.41456 | BT85: 21310.18529 | BU85: 22375.69456 | BV85: 23494.47928 | BW85: 24669.20325 | BX85: 25902.66341 | BY85: 27197.79658 | BZ85: 28557.68641 | CA85: 29985.57073 | CB85: 31484.84927 | CC85: 33059.09173 | CD85: 34712.04632 | CE85: 36447.64863 | CF85: 38270.03106 | CG85: 40183.53262 | CH85: 42192.70925 | CI85: 44302.34471 | CJ85: 46517.46194 | CK85: 48843.33504 | CL85: 51285.50179 | CM85: 53849.77688 | CN85: 56542.26573 | CO85: 59369.37901 | CP85: 62337.84796 | CQ85: 65454.74036 | CR85: 68727.47738 | CS85: 72163.85125 | CT85: 75772.04381 | CU85: 79560.646 | CV85: 83538.6783 | CW85: 87715.61222 | CX85: 92101.39283 | CY85: 96706.46247 | CZ85: 101541.7856 | DA85: 106618.8749 | DB85: 111949.8186 | DC85: 117547.3095 | DD85: 123424.675 | DE85: 129595.9088 | DF85: 136075.7042 | DG85: 142879.4894 | DH85: 150023.4639 | DI85: 157524.6371 | DJ85: 165400.8689 | DK85: 173670.9124 | DL85: 182354.458 | DM85: 191472.1809 | DN85: 201045.79 | DO85: 211098.0795 | DP85: 221652.9834 | DQ85: 232735.6326 | DR85: 244372.4142 | DS85: 256591.0349 | DT85: 269420.5867 | DU85: 282891.616 | DV85: 297036.1968 | DW85: 311888.0067 | DX85: 327482.407 | DY85: 343856.5274 | DZ85: 361049.3537 | EA85: 379101.8214 | EB85: 398056.9125 | EC85: 417959.7581 | ED85: =ED82+ED83-ED84 -> 438857.746 | EE85: 460800.6333 | EF85: 483840.665 | EG85: 508032.6982 | EH85: 533434.3331 | EI85: 560106.0498 | EJ85: 588111.3523 | EK85: 617516.9199 | EL85: 648392.7659 | EM85: 680812.4042 | EN85: 714853.0244 | EO85: 750595.6756 | EP85: 788125.4594 | EQ85: 827531.7324 | ER85: 868908.319 | ES85: 912353.7349 | ET85: 957971.4217 | EU85: 1005869.993 | EV85: 1056163.492 | EW85: 1108971.667 | EX85: 1164420.25 | EY85: 1222641.263 | EZ85: 1283773.326 | FA85: 1347961.992 | FB85: 1415360.092 | FC85: 1486128.097 | FD85: 1560434.501 | FE85: 1638456.226 | FF85: 1720379.038 | FG85: 1806397.99 | FH85: 1896717.889 | FI85: 1991553.784 | FJ85: 2091131.473 | FK85: 2195688.046 | FL85: 2305472.449 | FM85: 2420746.071 | FN85: 2541783.375 | FO85: 2668872.543 | FP85: 2802316.171 | FQ85: 2942431.979 | FR85: 3089553.578 | FS85: 3244031.257 | FT85: 3406232.82 | FU85: 3576544.461 | FV85: 3755371.684 | FW85: 3943140.268 | FX85: 4140297.282 | FY85: 4347312.146 | FZ85: 4564677.753 | GA85: 4792911.641 | GB85: 5032557.223 | GC85: 5284185.084 | GD85: 5548394.338 | GE85: 5825814.055 | GF85: 6117104.758 | GG85: 6422959.995 | GH85: 6744107.995 | GI85: 7081313.395 | GJ85: 7435379.065 | GK85: 7807148.018 | GL85: 8197505.419 | GM85: 8607380.69 | GN85: 9037749.724 | GO85: 9489637.21 | GP85: =GP82+GP83-GP84 -> 9964119.071 | GQ85: 10462325.02 | GR85: 10985441.28 | GS85: 11534713.34 | GT85: 12111449.01 | GU85: 12717021.46 | GV85: 13352872.53 | GW85: 14020516.16 | GX85: 14721541.96 | GY85: 15457619.06 | GZ85: 16230500.02 | HA85: 17042025.02 | HB85: 17894126.27 | HC85: 18788832.58 | HD85: 19728274.21 | HE85: 20714687.92 | HF85: 21750422.32 | HG85: 22837943.43 | HH85: 23979840.6 | HI85: 25178832.63 | HJ85: 26437774.26 | HK85: 27759662.98 | HL85: 29147646.13 | HM85: 30605028.43 | HN85: 32135279.85 | HO85: 33742043.85 | HP85: 35429146.04 | HQ85: 37200603.34 | HR85: 39060633.51 | HS85: 41013665.18 | HT85: 43064348.44 | HU85: 45217565.87 | HV85: 47478444.16 | HW85: 49852366.37 | HX85: 52344984.69 | HY85: 54962233.92 | HZ85: 57710345.62 | IA85: 60595862.9 | IB85: 63625656.04 | IC85: 66806938.84 | ID85: 70147285.79 | IE85: 73654650.07 | IF85: 77337382.58 | IG85: 81204251.71 | IH85: 85264464.29 | II85: 89527687.51 | IJ85: 94004071.88 | IK85: 98704275.48 | IL85: 103639489.3 | IM85: 108821463.7 | IN85: 114262536.9 | IO85: 119975663.7 | IP85: 125974446.9 | IQ85: 132273169.3 | IR85: 138886827.7 | IS85: 145831169.1 | IT85: 153122727.6 | IU85: 160778864 | IV85: 168817807.2 | IW85: 177258697.5 | IX85: 186121632.4 | IY85: 195427714 | IZ85: 205199099.7 | JA85: 215459054.7 | JB85: =JB82+JB83-JB84 -> 226232007.4 | JC85: 237543607.8 | JD85: 249420788.2 | JE85: 261891827.6 | JF85: 274986419 | JG85: 288735739.9 | JH85: 303172526.9 | JI85: 318331153.3 | JJ85: 334247710.9 | JK85: 350960096.5 | JL85: 368508101.3 | JM85: 386933506.4 | JN85: 406280181.7 | JO85: 426594190.8 | JP85: 447923900.3 | JQ85: 470320095.3 | JR85: 493836100.1 | JS85: 518527905.1 | JT85: 544454300.4 | JU85: 571677015.4 | JV85: 600260866.2 | JW85: 630273909.5 | JX85: 661787604.9 | JY85: 694876985.2 | JZ85: 729620834.5 | KA85: 766101876.2 | KB85: 804406970 | KC85: 844627318.5 | KD85: 886858684.4 | KE85: 931201618.6 | KF85: 977761699.6 | KG85: 1026649785 | KH85: 1077982274 | KI85: 1131881387 | KJ85: 1188475457 | KK85: 1247899230 | KL85: 1310294191 | KM85: 1375808901 | KN85: 1444599346 | KO85: 1516829313 | KP85: 1592670779 | KQ85: 1672304318 | KR85: 1755919534 | KS85: 1843715510 | KT85: 1935901286
B86: Depreciation rate | C86: =1/C77 -> 0.1 | E86: =$C$86 -> 0.1 | F86: =$C$86 -> 0.1 | G86: 0.1 | H86: 0.1 | I86: 0.1 | J86: 0.1 | K86: 0.1 | L86: 0.1 | M86: 0.1 | N86: 0.1 | O86: 0.1 | P86: 0.1 | Q86: 0.1 | R86: 0.1 | S86: 0.1 | T86: 0.1 | U86: 0.1 | V86: 0.1 | W86: 0.1 | X86: 0.1 | Y86: 0.1 | Z86: 0.1 | AA86: 0.1 | AB86: 0.1 | AC86: 0.1 | AD86: 0.1 | AE86: 0.1 | AF86: 0.1 | AG86: 0.1 | AH86: 0.1 | AI86: 0.1 | AJ86: 0.1 | AK86: 0.1 | AL86: 0.1 | AM86: 0.1 | AN86: 0.1 | AO86: 0.1 | AP86: 0.1 | AQ86: 0.1 | AR86: 0.1 | AS86: 0.1 | AT86: 0.1 | AU86: 0.1 | AV86: 0.1 | AW86: 0.1 | AX86: 0.1 | AY86: 0.1 | AZ86: 0.1 | BA86: 0.1 | BB86: 0.1 | BC86: 0.1 | BD86: 0.1 | BE86: 0.1 | BF86: 0.1 | BG86: 0.1 | BH86: 0.1 | BI86: 0.1 | BJ86: 0.1 | BK86: 0.1 | BL86: 0.1 | BM86: 0.1 | BN86: 0.1 | BO86: 0.1 | BP86: 0.1 | BQ86: 0.1 | BR86: =$C$86 -> 0.1 | BS86: 0.1 | BT86: 0.1 | BU86: 0.1 | BV86: 0.1 | BW86: 0.1 | BX86: 0.1 | BY86: 0.1 | BZ86: 0.1 | CA86: 0.1 | CB86: 0.1 | CC86: 0.1 | CD86: 0.1 | CE86: 0.1 | CF86: 0.1 | CG86: 0.1 | CH86: 0.1 | CI86: 0.1 | CJ86: 0.1 | CK86: 0.1 | CL86: 0.1 | CM86: 0.1 | CN86: 0.1 | CO86: 0.1 | CP86: 0.1 | CQ86: 0.1 | CR86: 0.1 | CS86: 0.1 | CT86: 0.1 | CU86: 0.1 | CV86: 0.1 | CW86: 0.1 | CX86: 0.1 | CY86: 0.1 | CZ86: 0.1 | DA86: 0.1 | DB86: 0.1 | DC86: 0.1 | DD86: 0.1 | DE86: 0.1 | DF86: 0.1 | DG86: 0.1 | DH86: 0.1 | DI86: 0.1 | DJ86: 0.1 | DK86: 0.1 | DL86: 0.1 | DM86: 0.1 | DN86: 0.1 | DO86: 0.1 | DP86: 0.1 | DQ86: 0.1 | DR86: 0.1 | DS86: 0.1 | DT86: 0.1 | DU86: 0.1 | DV86: 0.1 | DW86: 0.1 | DX86: 0.1 | DY86: 0.1 | DZ86: 0.1 | EA86: 0.1 | EB86: 0.1 | EC86: 0.1 | ED86: =$C$86 -> 0.1 | EE86: 0.1 | EF86: 0.1 | EG86: 0.1 | EH86: 0.1 | EI86: 0.1 | EJ86: 0.1 | EK86: 0.1 | EL86: 0.1 | EM86: 0.1 | EN86: 0.1 | EO86: 0.1 | EP86: 0.1 | EQ86: 0.1 | ER86: 0.1 | ES86: 0.1 | ET86: 0.1 | EU86: 0.1 | EV86: 0.1 | EW86: 0.1 | EX86: 0.1 | EY86: 0.1 | EZ86: 0.1 | FA86: 0.1 | FB86: 0.1 | FC86: 0.1 | FD86: 0.1 | FE86: 0.1 | FF86: 0.1 | FG86: 0.1 | FH86: 0.1 | FI86: 0.1 | FJ86: 0.1 | FK86: 0.1 | FL86: 0.1 | FM86: 0.1 | FN86: 0.1 | FO86: 0.1 | FP86: 0.1 | FQ86: 0.1 | FR86: 0.1 | FS86: 0.1 | FT86: 0.1 | FU86: 0.1 | FV86: 0.1 | FW86: 0.1 | FX86: 0.1 | FY86: 0.1 | FZ86: 0.1 | GA86: 0.1 | GB86: 0.1 | GC86: 0.1 | GD86: 0.1 | GE86: 0.1 | GF86: 0.1 | GG86: 0.1 | GH86: 0.1 | GI86: 0.1 | GJ86: 0.1 | GK86: 0.1 | GL86: 0.1 | GM86: 0.1 | GN86: 0.1 | GO86: 0.1 | GP86: =$C$86 -> 0.1 | GQ86: 0.1 | GR86: 0.1 | GS86: 0.1 | GT86: 0.1 | GU86: 0.1 | GV86: 0.1 | GW86: 0.1 | GX86: 0.1 | GY86: 0.1 | GZ86: 0.1 | HA86: 0.1 | HB86: 0.1 | HC86: 0.1 | HD86: 0.1 | HE86: 0.1 | HF86: 0.1 | HG86: 0.1 | HH86: 0.1 | HI86: 0.1 | HJ86: 0.1 | HK86: 0.1 | HL86: 0.1 | HM86: 0.1 | HN86: 0.1 | HO86: 0.1 | HP86: 0.1 | HQ86: 0.1 | HR86: 0.1 | HS86: 0.1 | HT86: 0.1 | HU86: 0.1 | HV86: 0.1 | HW86: 0.1 | HX86: 0.1 | HY86: 0.1 | HZ86: 0.1 | IA86: 0.1 | IB86: 0.1 | IC86: 0.1 | ID86: 0.1 | IE86: 0.1 | IF86: 0.1 | IG86: 0.1 | IH86: 0.1 | II86: 0.1 | IJ86: 0.1 | IK86: 0.1 | IL86: 0.1 | IM86: 0.1 | IN86: 0.1 | IO86: 0.1 | IP86: 0.1 | IQ86: 0.1 | IR86: 0.1 | IS86: 0.1 | IT86: 0.1 | IU86: 0.1 | IV86: 0.1 | IW86: 0.1 | IX86: 0.1 | IY86: 0.1 | IZ86: 0.1 | JA86: 0.1 | JB86: =$C$86 -> 0.1 | JC86: 0.1 | JD86: 0.1 | JE86: 0.1 | JF86: 0.1 | JG86: 0.1 | JH86: 0.1 | JI86: 0.1 | JJ86: 0.1 | JK86: 0.1 | JL86: 0.1 | JM86: 0.1 | JN86: 0.1 | JO86: 0.1 | JP86: 0.1 | JQ86: 0.1 | JR86: 0.1 | JS86: 0.1 | JT86: 0.1 | JU86: 0.1 | JV86: 0.1 | JW86: 0.1 | JX86: 0.1 | JY86: 0.1 | JZ86: 0.1 | KA86: 0.1 | KB86: 0.1 | KC86: 0.1 | KD86: 0.1 | KE86: 0.1 | KF86: 0.1 | KG86: 0.1 | KH86: 0.1 | KI86: 0.1 | KJ86: 0.1 | KK86: 0.1 | KL86: 0.1 | KM86: 0.1 | KN86: 0.1 | KO86: 0.1 | KP86: 0.1 | KQ86: 0.1 | KR86: 0.1 | KS86: 0.1 | KT86: 0.1
B87: Depreciation expense | E87: =E86*E82 -> 0 | F87: =F86*F82 -> 10 | G87: =G86*G82 -> 20.5 | H87: 31.525 | I87: 43.10125 | J87: 55.2563125 | K87: 68.01912812 | L87: 81.42008453 | M87: 95.49108876 | N87: 110.2656432 | O87: 125.7789254 | P87: 132.0678716 | Q87: 138.6712652 | R87: 145.6048285 | S87: 152.8850699 | T87: 160.5293234 | U87: 168.5557896 | V87: 176.983579 | W87: 185.832758 | X87: 195.1243959 | Y87: 204.8806157 | Z87: 215.1246465 | AA87: 225.8808788 | AB87: 237.1749227 | AC87: 249.0336689 | AD87: 261.4853523 | AE87: 274.5596199 | AF87: 288.2876009 | AG87: 302.701981 | AH87: 317.83708 | AI87: 333.728934 | AJ87: 350.4153807 | AK87: 367.9361497 | AL87: 386.3329572 | AM87: 405.6496051 | AN87: 425.9320853 | AO87: 447.2286896 | AP87: 469.5901241 | AQ87: 493.0696303 | AR87: 517.7231118 | AS87: 543.6092674 | AT87: 570.7897308 | AU87: 599.3292173 | AV87: 629.2956782 | AW87: 660.7604621 | AX87: 693.7984852 | AY87: 728.4884094 | AZ87: 764.9128299 | BA87: 803.1584714 | BB87: 843.316395 | BC87: 885.4822147 | BD87: 929.7563255 | BE87: 976.2441417 | BF87: 1025.056349 | BG87: 1076.309166 | BH87: 1130.124625 | BI87: 1186.630856 | BJ87: 1245.962399 | BK87: 1308.260519 | BL87: 1373.673544 | BM87: 1442.357222 | BN87: 1514.475083 | BO87: 1590.198837 | BP87: 1669.708779 | BQ87: 1753.194218 | BR87: =BR86*BR82 -> 1840.853929 | BS87: 1932.896625 | BT87: 2029.541456 | BU87: 2131.018529 | BV87: 2237.569456 | BW87: 2349.447928 | BX87: 2466.920325 | BY87: 2590.266341 | BZ87: 2719.779658 | CA87: 2855.768641 | CB87: 2998.557073 | CC87: 3148.484927 | CD87: 3305.909173 | CE87: 3471.204632 | CF87: 3644.764863 | CG87: 3827.003106 | CH87: 4018.353262 | CI87: 4219.270925 | CJ87: 4430.234471 | CK87: 4651.746194 | CL87: 4884.333504 | CM87: 5128.550179 | CN87: 5384.977688 | CO87: 5654.226573 | CP87: 5936.937901 | CQ87: 6233.784796 | CR87: 6545.474036 | CS87: 6872.747738 | CT87: 7216.385125 | CU87: 7577.204381 | CV87: 7956.0646 | CW87: 8353.86783 | CX87: 8771.561222 | CY87: 9210.139283 | CZ87: 9670.646247 | DA87: 10154.17856 | DB87: 10661.88749 | DC87: 11194.98186 | DD87: 11754.73095 | DE87: 12342.4675 | DF87: 12959.59088 | DG87: 13607.57042 | DH87: 14287.94894 | DI87: 15002.34639 | DJ87: 15752.46371 | DK87: 16540.08689 | DL87: 17367.09124 | DM87: 18235.4458 | DN87: 19147.21809 | DO87: 20104.579 | DP87: 21109.80795 | DQ87: 22165.29834 | DR87: 23273.56326 | DS87: 24437.24142 | DT87: 25659.10349 | DU87: 26942.05867 | DV87: 28289.1616 | DW87: 29703.61968 | DX87: 31188.80067 | DY87: 32748.2407 | DZ87: 34385.65274 | EA87: 36104.93537 | EB87: 37910.18214 | EC87: 39805.69125 | ED87: =ED86*ED82 -> 41795.97581 | EE87: 43885.7746 | EF87: 46080.06333 | EG87: 48384.0665 | EH87: 50803.26982 | EI87: 53343.43331 | EJ87: 56010.60498 | EK87: 58811.13523 | EL87: 61751.69199 | EM87: 64839.27659 | EN87: 68081.24042 | EO87: 71485.30244 | EP87: 75059.56756 | EQ87: 78812.54594 | ER87: 82753.17324 | ES87: 86890.8319 | ET87: 91235.37349 | EU87: 95797.14217 | EV87: 100586.9993 | EW87: 105616.3492 | EX87: 110897.1667 | EY87: 116442.025 | EZ87: 122264.1263 | FA87: 128377.3326 | FB87: 134796.1992 | FC87: 141536.0092 | FD87: 148612.8097 | FE87: 156043.4501 | FF87: 163845.6226 | FG87: 172037.9038 | FH87: 180639.799 | FI87: 189671.7889 | FJ87: 199155.3784 | FK87: 209113.1473 | FL87: 219568.8046 | FM87: 230547.2449 | FN87: 242074.6071 | FO87: 254178.3375 | FP87: 266887.2543 | FQ87: 280231.6171 | FR87: 294243.1979 | FS87: 308955.3578 | FT87: 324403.1257 | FU87: 340623.282 | FV87: 357654.4461 | FW87: 375537.1684 | FX87: 394314.0268 | FY87: 414029.7282 | FZ87: 434731.2146 | GA87: 456467.7753 | GB87: 479291.1641 | GC87: 503255.7223 | GD87: 528418.5084 | GE87: 554839.4338 | GF87: 582581.4055 | GG87: 611710.4758 | GH87: 642295.9995 | GI87: 674410.7995 | GJ87: 708131.3395 | GK87: 743537.9065 | GL87: 780714.8018 | GM87: 819750.5419 | GN87: 860738.069 | GO87: 903774.9724 | GP87: =GP86*GP82 -> 948963.721 | GQ87: 996411.9071 | GR87: 1046232.502 | GS87: 1098544.128 | GT87: 1153471.334 | GU87: 1211144.901 | GV87: 1271702.146 | GW87: 1335287.253 | GX87: 1402051.616 | GY87: 1472154.196 | GZ87: 1545761.906 | HA87: 1623050.002 | HB87: 1704202.502 | HC87: 1789412.627 | HD87: 1878883.258 | HE87: 1972827.421 | HF87: 2071468.792 | HG87: 2175042.232 | HH87: 2283794.343 | HI87: 2397984.06 | HJ87: 2517883.263 | HK87: 2643777.426 | HL87: 2775966.298 | HM87: 2914764.613 | HN87: 3060502.843 | HO87: 3213527.985 | HP87: 3374204.385 | HQ87: 3542914.604 | HR87: 3720060.334 | HS87: 3906063.351 | HT87: 4101366.518 | HU87: 4306434.844 | HV87: 4521756.587 | HW87: 4747844.416 | HX87: 4985236.637 | HY87: 5234498.469 | HZ87: 5496223.392 | IA87: 5771034.562 | IB87: 6059586.29 | IC87: 6362565.604 | ID87: 6680693.884 | IE87: 7014728.579 | IF87: 7365465.007 | IG87: 7733738.258 | IH87: 8120425.171 | II87: 8526446.429 | IJ87: 8952768.751 | IK87: 9400407.188 | IL87: 9870427.548 | IM87: 10363948.93 | IN87: 10882146.37 | IO87: 11426253.69 | IP87: 11997566.37 | IQ87: 12597444.69 | IR87: 13227316.93 | IS87: 13888682.77 | IT87: 14583116.91 | IU87: 15312272.76 | IV87: 16077886.4 | IW87: 16881780.72 | IX87: 17725869.75 | IY87: 18612163.24 | IZ87: 19542771.4 | JA87: 20519909.97 | JB87: =JB86*JB82 -> 21545905.47 | JC87: 22623200.74 | JD87: 23754360.78 | JE87: 24942078.82 | JF87: 26189182.76 | JG87: 27498641.9 | JH87: 28873573.99 | JI87: 30317252.69 | JJ87: 31833115.33 | JK87: 33424771.09 | JL87: 35096009.65 | JM87: 36850810.13 | JN87: 38693350.64 | JO87: 40628018.17 | JP87: 42659419.08 | JQ87: 44792390.03 | JR87: 47032009.53 | JS87: 49383610.01 | JT87: 51852790.51 | JU87: 54445430.04 | JV87: 57167701.54 | JW87: 60026086.62 | JX87: 63027390.95 | JY87: 66178760.49 | JZ87: 69487698.52 | KA87: 72962083.45 | KB87: 76610187.62 | KC87: 80440697 | KD87: 84462731.85 | KE87: 88685868.44 | KF87: 93120161.86 | KG87: 97776169.96 | KH87: 102664978.5 | KI87: 107798227.4 | KJ87: 113188138.7 | KK87: 118847545.7 | KL87: 124789923 | KM87: 131029419.1 | KN87: 137580890.1 | KO87: 144459934.6 | KP87: 151682931.3 | KQ87: 159267077.9 | KR87: 167230431.8 | KS87: 175591953.4 | KT87: 184371551
B89: Accumulated depreciation OB | E89: =D92 -> 0 | F89: =E92 -> 0 | G89: 10 | H89: 30.5 | I89: 62.025 | J89: 105.12625 | K89: 160.3825625 | L89: 228.4016906 | M89: 309.8217752 | N89: 405.3128639 | O89: 515.5785071 | P89: 641.3574325 | Q89: 773.4253041 | R89: 912.0965693 | S89: 1057.701398 | T89: 1210.586468 | U89: 1371.115791 | V89: 1539.671581 | W89: 1716.65516 | X89: 1902.487918 | Y89: 2097.612313 | Z89: 2302.492929 | AA89: 2517.617576 | AB89: 2743.498454 | AC89: 2980.673377 | AD89: 3229.707046 | AE89: 3491.192398 | AF89: 3765.752018 | AG89: 4054.039619 | AH89: 4356.7416 | AI89: 4674.57868 | AJ89: 5008.307614 | AK89: 5358.722995 | AL89: 5726.659144 | AM89: 6112.992102 | AN89: 6518.641707 | AO89: 6944.573792 | AP89: 7391.802482 | AQ89: 7861.392606 | AR89: 8354.462236 | AS89: 8872.185348 | AT89: 9415.794615 | AU89: 9986.584346 | AV89: 10585.91356 | AW89: 11215.20924 | AX89: 11875.9697 | AY89: 12569.76819 | AZ89: 13298.2566 | BA89: 14063.16943 | BB89: 14866.3279 | BC89: 15709.64429 | BD89: 16595.12651 | BE89: 17524.88283 | BF89: 18501.12698 | BG89: 19526.18333 | BH89: 20602.49249 | BI89: 21732.61712 | BJ89: 22919.24797 | BK89: 24165.21037 | BL89: 25473.47089 | BM89: 26847.14443 | BN89: 28289.50166 | BO89: 29803.97674 | BP89: 31394.17557 | BQ89: 33063.88435 | BR89: =BQ92 -> 34817.07857 | BS89: 36657.9325 | BT89: 38590.82912 | BU89: 40620.37058 | BV89: 42751.38911 | BW89: 44988.95857 | BX89: 47338.40649 | BY89: 49805.32682 | BZ89: 52395.59316 | CA89: 55115.37282 | CB89: 57971.14146 | CC89: 60969.69853 | CD89: 64118.18346 | CE89: 67424.09263 | CF89: 70895.29726 | CG89: 74540.06213 | CH89: 78367.06523 | CI89: 82385.41849 | CJ89: 86604.68942 | CK89: 91034.92389 | CL89: 95686.67008 | CM89: 100571.0036 | CN89: 105699.5538 | CO89: 111084.5315 | CP89: 116738.758 | CQ89: 122675.6959 | CR89: 128909.4807 | CS89: 135454.9548 | CT89: 142327.7025 | CU89: 149544.0876 | CV89: 157121.292 | CW89: 165077.3566 | CX89: 173431.2244 | CY89: 182202.7857 | CZ89: 191412.9249 | DA89: 201083.5712 | DB89: 211237.7497 | DC89: 221899.6372 | DD89: 233094.6191 | DE89: 244849.3501 | DF89: 257191.8176 | DG89: 270151.4084 | DH89: 283758.9789 | DI89: 298046.9278 | DJ89: 313049.2742 | DK89: 328801.7379 | DL89: 345341.8248 | DM89: 362708.916 | DN89: 380944.3618 | DO89: 400091.5799 | DP89: 420196.1589 | DQ89: 441305.9669 | DR89: 463471.2652 | DS89: 486744.8285 | DT89: 511182.0699 | DU89: 536841.1734 | DV89: 563783.2321 | DW89: 592072.3937 | DX89: 621776.0133 | DY89: 652964.814 | DZ89: 685713.0547 | EA89: 720098.7074 | EB89: 756203.6428 | EC89: 794113.825 | ED89: =EC92 -> 833919.5162 | EE89: 875715.492 | EF89: 919601.2666 | EG89: 965681.3299 | EH89: 1014065.396 | EI89: 1064868.666 | EJ89: 1118212.1 | EK89: 1174222.705 | EL89: 1233033.84 | EM89: 1294785.532 | EN89: 1359624.808 | EO89: 1427706.049 | EP89: 1499191.351 | EQ89: 1574250.919 | ER89: 1653063.465 | ES89: 1735816.638 | ET89: 1822707.47 | EU89: 1913942.843 | EV89: 2009739.986 | EW89: 2110326.985 | EX89: 2215943.334 | EY89: 2326840.501 | EZ89: 2443282.526 | FA89: 2565546.652 | FB89: 2693923.985 | FC89: 2828720.184 | FD89: 2970256.193 | FE89: 3118869.003 | FF89: 3274912.453 | FG89: 3438758.076 | FH89: 3610795.979 | FI89: 3791435.778 | FJ89: 3981107.567 | FK89: 4180262.946 | FL89: 4389376.093 | FM89: 4608944.897 | FN89: 4839492.142 | FO89: 5081566.749 | FP89: 5335745.087 | FQ89: 5602632.341 | FR89: 5882863.958 | FS89: 6177107.156 | FT89: 6486062.514 | FU89: 6810465.64 | FV89: 7151088.922 | FW89: 7508743.368 | FX89: 7884280.536 | FY89: 8278594.563 | FZ89: 8692624.291 | GA89: 9127355.506 | GB89: 9583823.281 | GC89: 10063114.45 | GD89: 10566370.17 | GE89: 11094788.68 | GF89: 11649628.11 | GG89: 12232209.52 | GH89: 12843919.99 | GI89: 13486215.99 | GJ89: 14160626.79 | GK89: 14868758.13 | GL89: 15612296.04 | GM89: 16393010.84 | GN89: 17212761.38 | GO89: 18073499.45 | GP89: =GO92 -> 18977274.42 | GQ89: 19926238.14 | GR89: 20922650.05 | GS89: 21968882.55 | GT89: 23067426.68 | GU89: 24220898.01 | GV89: 25432042.91 | GW89: 26703745.06 | GX89: 28039032.31 | GY89: 29441083.93 | GZ89: 30913238.12 | HA89: 32459000.03 | HB89: 34082050.03 | HC89: 35786252.53 | HD89: 37575665.16 | HE89: 39454548.42 | HF89: 41427375.84 | HG89: 43498844.63 | HH89: 45673886.86 | HI89: 47957681.21 | HJ89: 50355665.27 | HK89: 52873548.53 | HL89: 55517325.96 | HM89: 58293292.25 | HN89: 61208056.87 | HO89: 64268559.71 | HP89: 67482087.7 | HQ89: 70856292.08 | HR89: 74399206.68 | HS89: 78119267.02 | HT89: 82025330.37 | HU89: 86126696.89 | HV89: 90433131.73 | HW89: 94954888.32 | HX89: 99702732.73 | HY89: 104687969.4 | HZ89: 109922467.8 | IA89: 115418691.2 | IB89: 121189725.8 | IC89: 127249312.1 | ID89: 133611877.7 | IE89: 140292571.6 | IF89: 147307300.1 | IG89: 154672765.2 | IH89: 162406503.4 | II89: 170526928.6 | IJ89: 179053375 | IK89: 188006143.8 | IL89: 197406551 | IM89: 207276978.5 | IN89: 217640927.4 | IO89: 228523073.8 | IP89: 239949327.5 | IQ89: 251946893.9 | IR89: 264544338.6 | IS89: 277771655.5 | IT89: 291660338.3 | IU89: 306243455.2 | IV89: 321555727.9 | IW89: 337633614.3 | IX89: 354515395 | IY89: 372241264.8 | IZ89: 390853428 | JA89: 410396199.4 | JB89: =JA92 -> 430916109.4 | JC89: 452462014.9 | JD89: 475085215.6 | JE89: 498839576.4 | JF89: 523781655.2 | JG89: 549970838 | JH89: 577469479.9 | JI89: 606343053.9 | JJ89: 636660306.6 | JK89: 668493421.9 | JL89: 701918193 | JM89: 737014202.6 | JN89: 773865012.8 | JO89: 812558363.4 | JP89: 853186381.6 | JQ89: 895845800.7 | JR89: 940638190.7 | JS89: 987670200.2 | JT89: 1037053810 | JU89: 1088906601 | JV89: 1143352031 | JW89: 1200519732 | JX89: 1260545819 | JY89: 1323573210 | JZ89: 1389751970 | KA89: 1459239669 | KB89: 1532201752 | KC89: 1608811940 | KD89: 1689252637 | KE89: 1773715369 | KF89: 1862401237 | KG89: 1955521399 | KH89: 2053297569 | KI89: 2155962548 | KJ89: 2263760775 | KK89: 2376948914 | KL89: 2495796459 | KM89: 2620586382 | KN89: 2751615801 | KO89: 2889196692 | KP89: 3033656626 | KQ89: 3185339557 | KR89: 3344606635 | KS89: 3511837067 | KT89: 3687429020
B90: Add depreciation expense | E90: =E87 -> 0 | F90: =F87 -> 10 | G90: 20.5 | H90: 31.525 | I90: 43.10125 | J90: 55.2563125 | K90: 68.01912812 | L90: 81.42008453 | M90: 95.49108876 | N90: 110.2656432 | O90: 125.7789254 | P90: 132.0678716 | Q90: 138.6712652 | R90: 145.6048285 | S90: 152.8850699 | T90: 160.5293234 | U90: 168.5557896 | V90: 176.983579 | W90: 185.832758 | X90: 195.1243959 | Y90: 204.8806157 | Z90: 215.1246465 | AA90: 225.8808788 | AB90: 237.1749227 | AC90: 249.0336689 | AD90: 261.4853523 | AE90: 274.5596199 | AF90: 288.2876009 | AG90: 302.701981 | AH90: 317.83708 | AI90: 333.728934 | AJ90: 350.4153807 | AK90: 367.9361497 | AL90: 386.3329572 | AM90: 405.6496051 | AN90: 425.9320853 | AO90: 447.2286896 | AP90: 469.5901241 | AQ90: 493.0696303 | AR90: 517.7231118 | AS90: 543.6092674 | AT90: 570.7897308 | AU90: 599.3292173 | AV90: 629.2956782 | AW90: 660.7604621 | AX90: 693.7984852 | AY90: 728.4884094 | AZ90: 764.9128299 | BA90: 803.1584714 | BB90: 843.316395 | BC90: 885.4822147 | BD90: 929.7563255 | BE90: 976.2441417 | BF90: 1025.056349 | BG90: 1076.309166 | BH90: 1130.124625 | BI90: 1186.630856 | BJ90: 1245.962399 | BK90: 1308.260519 | BL90: 1373.673544 | BM90: 1442.357222 | BN90: 1514.475083 | BO90: 1590.198837 | BP90: 1669.708779 | BQ90: 1753.194218 | BR90: =BR87 -> 1840.853929 | BS90: 1932.896625 | BT90: 2029.541456 | BU90: 2131.018529 | BV90: 2237.569456 | BW90: 2349.447928 | BX90: 2466.920325 | BY90: 2590.266341 | BZ90: 2719.779658 | CA90: 2855.768641 | CB90: 2998.557073 | CC90: 3148.484927 | CD90: 3305.909173 | CE90: 3471.204632 | CF90: 3644.764863 | CG90: 3827.003106 | CH90: 4018.353262 | CI90: 4219.270925 | CJ90: 4430.234471 | CK90: 4651.746194 | CL90: 4884.333504 | CM90: 5128.550179 | CN90: 5384.977688 | CO90: 5654.226573 | CP90: 5936.937901 | CQ90: 6233.784796 | CR90: 6545.474036 | CS90: 6872.747738 | CT90: 7216.385125 | CU90: 7577.204381 | CV90: 7956.0646 | CW90: 8353.86783 | CX90: 8771.561222 | CY90: 9210.139283 | CZ90: 9670.646247 | DA90: 10154.17856 | DB90: 10661.88749 | DC90: 11194.98186 | DD90: 11754.73095 | DE90: 12342.4675 | DF90: 12959.59088 | DG90: 13607.57042 | DH90: 14287.94894 | DI90: 15002.34639 | DJ90: 15752.46371 | DK90: 16540.08689 | DL90: 17367.09124 | DM90: 18235.4458 | DN90: 19147.21809 | DO90: 20104.579 | DP90: 21109.80795 | DQ90: 22165.29834 | DR90: 23273.56326 | DS90: 24437.24142 | DT90: 25659.10349 | DU90: 26942.05867 | DV90: 28289.1616 | DW90: 29703.61968 | DX90: 31188.80067 | DY90: 32748.2407 | DZ90: 34385.65274 | EA90: 36104.93537 | EB90: 37910.18214 | EC90: 39805.69125 | ED90: =ED87 -> 41795.97581 | EE90: 43885.7746 | EF90: 46080.06333 | EG90: 48384.0665 | EH90: 50803.26982 | EI90: 53343.43331 | EJ90: 56010.60498 | EK90: 58811.13523 | EL90: 61751.69199 | EM90: 64839.27659 | EN90: 68081.24042 | EO90: 71485.30244 | EP90: 75059.56756 | EQ90: 78812.54594 | ER90: 82753.17324 | ES90: 86890.8319 | ET90: 91235.37349 | EU90: 95797.14217 | EV90: 100586.9993 | EW90: 105616.3492 | EX90: 110897.1667 | EY90: 116442.025 | EZ90: 122264.1263 | FA90: 128377.3326 | FB90: 134796.1992 | FC90: 141536.0092 | FD90: 148612.8097 | FE90: 156043.4501 | FF90: 163845.6226 | FG90: 172037.9038 | FH90: 180639.799 | FI90: 189671.7889 | FJ90: 199155.3784 | FK90: 209113.1473 | FL90: 219568.8046 | FM90: 230547.2449 | FN90: 242074.6071 | FO90: 254178.3375 | FP90: 266887.2543 | FQ90: 280231.6171 | FR90: 294243.1979 | FS90: 308955.3578 | FT90: 324403.1257 | FU90: 340623.282 | FV90: 357654.4461 | FW90: 375537.1684 | FX90: 394314.0268 | FY90: 414029.7282 | FZ90: 434731.2146 | GA90: 456467.7753 | GB90: 479291.1641 | GC90: 503255.7223 | GD90: 528418.5084 | GE90: 554839.4338 | GF90: 582581.4055 | GG90: 611710.4758 | GH90: 642295.9995 | GI90: 674410.7995 | GJ90: 708131.3395 | GK90: 743537.9065 | GL90: 780714.8018 | GM90: 819750.5419 | GN90: 860738.069 | GO90: 903774.9724 | GP90: =GP87 -> 948963.721 | GQ90: 996411.9071 | GR90: 1046232.502 | GS90: 1098544.128 | GT90: 1153471.334 | GU90: 1211144.901 | GV90: 1271702.146 | GW90: 1335287.253 | GX90: 1402051.616 | GY90: 1472154.196 | GZ90: 1545761.906 | HA90: 1623050.002 | HB90: 1704202.502 | HC90: 1789412.627 | HD90: 1878883.258 | HE90: 1972827.421 | HF90: 2071468.792 | HG90: 2175042.232 | HH90: 2283794.343 | HI90: 2397984.06 | HJ90: 2517883.263 | HK90: 2643777.426 | HL90: 2775966.298 | HM90: 2914764.613 | HN90: 3060502.843 | HO90: 3213527.985 | HP90: 3374204.385 | HQ90: 3542914.604 | HR90: 3720060.334 | HS90: 3906063.351 | HT90: 4101366.518 | HU90: 4306434.844 | HV90: 4521756.587 | HW90: 4747844.416 | HX90: 4985236.637 | HY90: 5234498.469 | HZ90: 5496223.392 | IA90: 5771034.562 | IB90: 6059586.29 | IC90: 6362565.604 | ID90: 6680693.884 | IE90: 7014728.579 | IF90: 7365465.007 | IG90: 7733738.258 | IH90: 8120425.171 | II90: 8526446.429 | IJ90: 8952768.751 | IK90: 9400407.188 | IL90: 9870427.548 | IM90: 10363948.93 | IN90: 10882146.37 | IO90: 11426253.69 | IP90: 11997566.37 | IQ90: 12597444.69 | IR90: 13227316.93 | IS90: 13888682.77 | IT90: 14583116.91 | IU90: 15312272.76 | IV90: 16077886.4 | IW90: 16881780.72 | IX90: 17725869.75 | IY90: 18612163.24 | IZ90: 19542771.4 | JA90: 20519909.97 | JB90: =JB87 -> 21545905.47 | JC90: 22623200.74 | JD90: 23754360.78 | JE90: 24942078.82 | JF90: 26189182.76 | JG90: 27498641.9 | JH90: 28873573.99 | JI90: 30317252.69 | JJ90: 31833115.33 | JK90: 33424771.09 | JL90: 35096009.65 | JM90: 36850810.13 | JN90: 38693350.64 | JO90: 40628018.17 | JP90: 42659419.08 | JQ90: 44792390.03 | JR90: 47032009.53 | JS90: 49383610.01 | JT90: 51852790.51 | JU90: 54445430.04 | JV90: 57167701.54 | JW90: 60026086.62 | JX90: 63027390.95 | JY90: 66178760.49 | JZ90: 69487698.52 | KA90: 72962083.45 | KB90: 76610187.62 | KC90: 80440697 | KD90: 84462731.85 | KE90: 88685868.44 | KF90: 93120161.86 | KG90: 97776169.96 | KH90: 102664978.5 | KI90: 107798227.4 | KJ90: 113188138.7 | KK90: 118847545.7 | KL90: 124789923 | KM90: 131029419.1 | KN90: 137580890.1 | KO90: 144459934.6 | KP90: 151682931.3 | KQ90: 159267077.9 | KR90: 167230431.8 | KS90: 175591953.4 | KT90: 184371551
B91: less retirements
